Workbook

Sheet AER Inputs
D2: AER Final Decision | K2: Endeavour Energy Revised Proposal
D3: 2019-20 | E3: 2020-21 | F3: 2021-22 | G3: 2022-23 | H3: 2023-24 | K3: 2019-20 | L3: 2020-21 | M3: 2021-22 | N3: 2022-23 | O3: 2023-24
B5: Nominal pre-tax cost of debt | C5: % p.a. | D5: 0.05684426897 | K5: 0.05726317908
B7: Nominal post-tax cost of equity | C7: % p.a. | D7: 0.0579810134 | K7: 0.0636
B9: Effective tax rate for equity | C9: % p.a. | D9: 0.259057128 | K9: 0.2799157598
B11: Effective tax rate for debt | C11: % p.a. | D11: 0.3027347224 | K11: 0.3024610675
B13: Utilisation of imputation credits | C13: % | D13: 0.585 | K13: 0.585
B15: Forecast CPI | C15: % p.a. | D15: 0.02424874658 | K15: 0.02424874658
B17: Real Labour Escalator | C17: % p.a. | D17: 0.007652430635 | E17: 0.008303312425 | F17: 0.01168108403 | G17: 0.01232501213 | H17: 0.01029555568 | K17: 0.004865627339 | L17: 0.007667341796 | M17: 0.01171876985 | N17: 0.01303003309 | O17: 0.01105449891
B19: Useful Life - LED lights | C19: Years | D19: =K19 -> 16 | K19: 16

Sheet Cover

Sheet Capex
B1: Capex Inputs
C2: Capex inputs required for derivation of labour cost per component
C6: Summary labour rate values
C8: Component ratios
C9: Column | D9: % | E9: 0.9
C10: Bracket | D10: % | E10: 0.01
C11: Luminaire | D11: % | E11: 0.09
C13: Scaling
C14: Scaling factor (Tot CAPEX+OH/Tot CAPEX) | D14: % | E14: 1
C17: Total capital calculations | D17: Total $
B18: =IF(C18="Spare",TRUE,0) -> 0 | C18: Total CAPEX + OH
B19: =IF(C19="Spare",TRUE,0) -> 0 | C19: Total CAPEX
B20: =IF(C21="Spare",TRUE,0) -> 0
B21: =IF(C22="Spare",TRUE,0) -> 0 | C21: Refurbishment related | D21: Total $ | E21: Scaled $
B22: =IF(C23="Spare",TRUE,0) -> 0 | C22: Labour
B23: =IF(C24="Spare",TRUE,0) -> 0 | C23: Materials
B24: =IF(C25="Spare",TRUE,0) -> 0 | C24: Contractors
C25: Other
C27: Growth Related Capital | D27: Total $ | E27: Scaled $
C28: Labour
B29: =IF(C29="Spare",TRUE,0) -> 0 | C29: Materials
B30: =IF(C30="Spare",TRUE,0) -> 0 | C30: Contractors
B31: =IF(C31="Spare",TRUE,0) -> 0 | C31: Other
B32: =IF(C34="Spare",TRUE,0) -> 0
B33: =IF(C35="Spare",TRUE,0) -> 0 | C33: Totals | D33: Total $ | E33: Scaled $
B34: =IF(C37="Spare",TRUE,0) -> 0 | C34: Direct - overhead (contractors and other)
C35: Direct - labour
C36: Direct - materials
C37: Allocated - overheads and switching costs
C40: Derivation of labour cost per component
G42: Total | H42: Total Scaled | I42: Overheads | J42: Labour | K42: Overheads | L42: Total | M42: Labour Cost | N42: Labour Cost All
D43: Growth Count | E43: Refurbishment Count | F43: Asset class type | G43: # | H43: # | I43: Corporate | J43: Direct | K43: Direct | L43: Labour overheads | M43: $ per component | N43: $ per component | Q43: Scaling Factor
C44: 2x14W Energy Efficient Fluro - STD | D44: 0 | E44: 47 | F44: Luminaire
C45: 2x24W Energy Efficient Fluro - STD | D45: 0 | E45: 32 | F45: Luminaire
C46: 1x42W Compact Fluorescent - STD | D46: 2 | E46: 137 | F46: Luminaire
C47: 50W Mercury - STANDARD | D47: 3 | E47: 1 | F47: Luminaire
C48: 80W Mercury - STANDARD | D48: 0 | E48: 2 | F48: Luminaire
C49: 70W Sodium - STANDARD | D49: 0 | E49: 4 | F49: Luminaire
C50: 100W Sodium - STANDARD | D50: 0 | E50: 17 | F50: Luminaire
C51: 100W Metal Halide - STANDARD | D51: 0 | E51: 9 | F51: Luminaire
C52: 25W LED | D52: 0 | E52: 1 | F52: Luminaire
C53: Suburban 70W HPS c/w D2 PECB - STD | D53: 0 | E53: 0 | F53: Luminaire
C54: 150W Sodium - STANDARD | D54: 0 | E54: 74 | F54: Luminaire
C55: 150W Metal Halide - STANDARD | D55: 0 | E55: 14 | F55: Luminaire
C56: 250W Sodium - STANDARD | D56: 2 | E56: 158 | F56: Luminaire
C57: 250W Metal Halide - STANDARD | D57: 0 | E57: 2 | F57: Luminaire
C58: 400W Sodium - STANDARD | D58: 0 | E58: 5 | F58: Luminaire
C59: 80W Mercury - AEROSCREEN | D59: 0 | E59: 0 | F59: Luminaire
C60: Urban A/Screen 42W CFL c/w D2 PECB | D60: 0 | E60: 3 | F60: Luminaire
C61: 150W Sodium - AEROSCREEN | D61: 0 | E61: 11 | F61: Luminaire
C62: 150W Metal Halide - AEROSCREEN | D62: 0 | E62: 5 | F62: Luminaire
C63: 250W Sodium (w/o PECB) - AEROSCREEN | D63: 0 | E63: 6 | F63: Luminaire
C64: 250W Metal Halide - AEROSCREEN | D64: 0 | E64: 0 | F64: Luminaire
C65: 400W Sodium - AEROSCREEN | D65: 0 | E65: 0 | F65: Luminaire
C66: 400W Metal Halide - AEROSCREEN | D66: 1 | E66: 2 | F66: Luminaire
C67: Roadster A/Screen 100W HPS c/w PECB | D67: 0 | E67: 0 | F67: Luminaire
C68: 80W Mercury - POST TOP | D68: 0 | E68: 6 | F68: Luminaire
C69: B2001 42WCFL c/w D2 PECB green - PT | D69: 0 | E69: 1 | F69: Luminaire
C70: 250W Sodium - FLOODLIGHT | D70: 0 | E70: 3 | F70: Luminaire
C71: 250W Metal Halide - FLOODLIGHT | D71: 0 | E71: 7 | F71: Luminaire
C72: 400W Sodium - FLOODLIGHT | D72: 0 | E72: 3 | F72: Luminaire
C73: 400W Metal Halide - FLOODLIGHT | D73: 1 | E73: 5 | F73: Luminaire
C74: 150W Sodium - FLOODLIGHT | D74: 0 | E74: 0 | F74: Luminaire
C75: 150W Metal Halide - FLOODLIGHT | D75: 0 | E75: 0 | F75: Luminaire
C76: Bracket - Minor <=3m | D76: 6 | E76: 1104 | F76: Bracket
C77: Bracket - Major >3m | D77: 2 | E77: 236 | F77: Bracket
C78: Outreach - Minor <=2m | D78: 3 | E78: 1174 | F78: Bracket
C79: Outreach - Major >2m | D79: 3 | E79: 185 | F79: Bracket
C80: Pole (Wood) - Minor - DEDICATED SL <=11m | D80: 8 | E80: 4 | F80: Column
C81: Pole (Wood) - Major - DEDICATED SL >11m | D81: 1 | E81: 0 | F81: Column
C82: Column (Steel) - Minor <=9m | D82: 254 | E82: 646 | F82: Column
C83: Column (Steel) - Major >9m | D83: 50 | E83: 80 | F83: Column
C84: Pole (Wood) - Minor <=11m | D84: 0 | E84: 0 | F84: Column
C85: Pole (Wood) - Major >11m | D85: 0 | E85: 0 | F85: Column
C86: 18W LED P4 Gerard | D86: 5 | E86: 1994 | F86: Luminaire
C87: 25W LED P4 Gerard | D87: 0 | E87: 146 | F87: Luminaire
C93: ='Roll Forward'!C91 -> Spare
C94: ='Roll Forward'!C92 -> Spare
C95: ='Roll Forward'!C93 -> Spare
C96: ='Roll Forward'!C94 -> Spare
C97: ='Roll Forward'!C95 -> Spare
C98: ='Roll Forward'!C96 -> Spare
C99: ='Roll Forward'!C97 -> Spare
C100: ='Roll Forward'!C98 -> Spare
C101: ='Roll Forward'!C99 -> Spare
C102: ='Roll Forward'!C100 -> Spare
C103: ='Roll Forward'!C101 -> Spare
C104: ='Roll Forward'!C102 -> Spare
C105: ='Roll Forward'!C103 -> Spare
C106: ='Roll Forward'!C104 -> Spare
C107: ='Roll Forward'!C105 -> Spare
C108: ='Roll Forward'!C106 -> Spare
C109: ='Roll Forward'!C107 -> Spare
C110: ='Roll Forward'!C108 -> Spare
C111: ='Roll Forward'!C109 -> Spare
C112: ='Roll Forward'!C110 -> Spare
C113: ='Roll Forward'!C111 -> Spare
C114: ='Roll Forward'!C112 -> Spare
C115: ='Roll Forward'!C113 -> Spare
C116: ='Roll Forward'!C114 -> Spare
C117: ='Roll Forward'!C115 -> Spare
C118: ='Roll Forward'!C116 -> Spare
C119: ='Roll Forward'!C117 -> Spare
C120: ='Roll Forward'!C118 -> Spare
C121: ='Roll Forward'!C119 -> Spare
C122: ='Roll Forward'!C120 -> Spare
C123: ='Roll Forward'!C121 -> Spare
C124: ='Roll Forward'!C122 -> Spare
C125: ='Roll Forward'!C123 -> Spare
C126: ='Roll Forward'!C124 -> Spare
C127: ='Roll Forward'!C125 -> Spare
C128: ='Roll Forward'!C126 -> Spare
C129: ='Roll Forward'!C127 -> Spare
C130: ='Roll Forward'!C128 -> Spare
C131: ='Roll Forward'!C129 -> Spare
C132: ='Roll Forward'!C130 -> Spare
C133: ='Roll Forward'!C131 -> Spare
C134: ='Roll Forward'!C132 -> Spare
C135: ='Roll Forward'!C133 -> Spare
C136: ='Roll Forward'!C134 -> Spare
C137: ='Roll Forward'!C135 -> Spare
C138: ='Roll Forward'!C136 -> Spare
C139: ='Roll Forward'!C137 -> Spare
C140: ='Roll Forward'!C138 -> Spare
C141: ='Roll Forward'!C139 -> Spare
C142: ='Roll Forward'!C140 -> Spare
C143: ='Roll Forward'!C141 -> Spare
C144: ='Roll Forward'!C142 -> Spare
C145: ='Roll Forward'!C143 -> Spare
C146: ='Roll Forward'!C144 -> Spare
C147: ='Roll Forward'!C145 -> Spare
C148: ='Roll Forward'!C146 -> Spare
C149: ='Roll Forward'!C147 -> Spare
C150: ='Roll Forward'!C148 -> Spare
C151: ='Roll Forward'!C149 -> Spare
C152: ='Roll Forward'!C150 -> Spare
C153: ='Roll Forward'!C151 -> Spare
C154: ='Roll Forward'!C152 -> Spare
C155: ='Roll Forward'!C153 -> Spare
C156: ='Roll Forward'!C154 -> Spare
C157: ='Roll Forward'!C155 -> Spare
C158: ='Roll Forward'!C156 -> Spare
C159: ='Roll Forward'!C157 -> Spare
C160: ='Roll Forward'!C158 -> Spare
C161: ='Roll Forward'!C159 -> Spare
C162: ='Roll Forward'!C160 -> Spare
C163: ='Roll Forward'!C161 -> Spare
C164: ='Roll Forward'!C162 -> Spare
C165: ='Roll Forward'!C163 -> Spare
C166: ='Roll Forward'!C164 -> Spare
C167: ='Roll Forward'!C165 -> Spare
C168: ='Roll Forward'!C166 -> Spare
C169: ='Roll Forward'!C167 -> Spare
C170: ='Roll Forward'!C168 -> Spare
C171: ='Roll Forward'!C169 -> Spare
C172: ='Roll Forward'!C170 -> Spare
C173: ='Roll Forward'!C171 -> Spare
C174: ='Roll Forward'!C172 -> Spare
C175: ='Roll Forward'!C173 -> Spare
C176: ='Roll Forward'!C174 -> Spare
C177: ='Roll Forward'!C175 -> Spare
C178: ='Roll Forward'!C176 -> Spare
C179: ='Roll Forward'!C177 -> Spare
C180: ='Roll Forward'!C178 -> Spare
C181: ='Roll Forward'!C179 -> Spare
C182: ='Roll Forward'!C180 -> Spare
C183: ='Roll Forward'!C181 -> Spare
C184: ='Roll Forward'!C182 -> Spare
C185: ='Roll Forward'!C183 -> Spare

Sheet Opex
B1: Opex Inputs
C2: Opex inputs required for derivation of general maintenance and overhead cost per component
C6: Summary opex inputs
C9: Opex input values required
C10: Total Opex (calculated value as average of FY2016/17 actuals and FY2017/18 forecast). Includes overheads. | D10: $ | E10: 14713582.5
C14: RF - Fault and Emergency Repairs | D14: Cost incl OH
C15: Outage Management System (OMS) expenses
C16: Component Type | D16: Volume (num of units) | E16: Model % (cost weight) | F16: =C17 -> Column | G16: =C18 -> Bracket | H16: =C19 -> Luminaire | I16: =C20 -> LED Luminaire | J16: Calc cost per unit
C17: Column | D17: 101899
C18: Bracket | D18: 205524
C19: Luminaire | D19: 178163
C20: LED Luminaire | D20: 30058
C23: RC - Condition Based Maintenance | D23: Cost incl OH
C24: Column replacements
C25: Component Type | D25: Volume (num of units) | E25: Model % (cost weight) | F25: =C26 -> Column | G25: =C27 -> Bracket | H25: =C28 -> Luminaire | I25: =C29 -> LED Luminaire | J25: Calc cost per unit
C26: Column | D26: 101899
C27: Bracket | D27: 205524
C28: Luminaire | D28: 178163
C29: LED Luminaire | D29: 30058
C32: RI - Inspection and Investigation | D32: Cost incl OH
C33: Patrol and routine column inspection
C34: Component Type | D34: Volume (num of units) | E34: Model % (cost weight) | F34: =C35 -> Column | G34: =C36 -> Bracket | H34: =C37 -> Luminaire | I34: =C38 -> LED Luminaire | J34: Calc cost per unit
C35: Column | D35: 101899
C36: Bracket | D36: 205524
C37: Luminaire | D37: 178163
C38: LED Luminaire | D38: 30058
C41: RP - Preventative Based Maintenance | D41: Cost incl OH | F41: Bulk lamp replacement
C42: Bulk lamp replacement
C43: Component Type | D43: Volume (num of units) | E43: Model % (cost weight) | F43: =C44 -> Column | G43: =C45 -> Bracket | H43: =C46 -> Luminaire | I43: =C47 -> LED Luminaire | J43: Calc cost per unit
C44: Column | D44: 101899
C45: Bracket | D45: 205524
C46: Luminaire | D46: 178163
C47: LED Luminaire | D47: 30058
C50: Other | D50: Cost incl OH
C51: Other
C52: Component Type | D52: Volume (num of units) | E52: Model % (cost weight) | F52: =C53 -> Column | G52: =C54 -> Bracket | H52: =C55 -> Luminaire | I52: =C56 -> LED Luminaire | J52: Calc cost per unit
C53: Column | D53: 101899
C54: Bracket | D54: 205524
C55: Luminaire | D55: 178163
C56: LED Luminaire | D56: 30058
C59: Total Unit Cost
C60: Component Type | D60: Cost (incl. OH)
C61: Column
C62: Bracket
C63: Luminaire
C64: LED Luminaire
C67: Derivation of cost per component
D69: Asset type | E69: Total | F69: Opex per unit | G69: Lamps
C70: Asset class | D70: Category | E70: $ | F70: $ | G70: $
C71: 2x14W Energy Efficient Fluro - STD | D71: Luminaire | E71: 50.28953401
C72: 2x24W Energy Efficient Fluro - STD | D72: Luminaire | E72: 50.28953401
C73: 1x42W Compact Fluorescent - STD | D73: Luminaire | E73: 52.13953401
C74: 50W Mercury - STANDARD | D74: Luminaire | E74: 53.48953401
C75: 80W Mercury - STANDARD | D75: Luminaire | E75: 50.78953401
C76: 70W Sodium - STANDARD | D76: Luminaire | E76: 55.80953401
C77: 100W Sodium - STANDARD | D77: Luminaire | E77: 59.68953401
C78: 100W Metal Halide - STANDARD | D78: Luminaire | E78: 79.01953401
C79: 25W LED | D79: LED Luminaire | E79: 44.68275711
C80: Suburban 70W HPS c/w D2 PECB - STD | D80: Luminaire | E80: 55.80953401
C81: 150W Sodium - STANDARD | D81: Luminaire | E81: 55.63953401
C82: 150W Metal Halide - STANDARD | D82: Luminaire | E82: 68.88953401
C83: 250W Sodium - STANDARD | D83: Luminaire | E83: 64.86953401
C84: 250W Metal Halide - STANDARD | D84: Luminaire | E84: 66.26953401
C85: 400W Sodium - STANDARD | D85: Luminaire | E85: 57.78953401
C86: 80W Mercury - AEROSCREEN | D86: Luminaire | E86: 77.78953401
C87: Urban A/Screen 42W CFL c/w D2 PECB | D87: Luminaire | E87: 52.13953401
C88: 150W Sodium - AEROSCREEN | D88: Luminaire | E88: 55.63953401
C89: 150W Metal Halide - AEROSCREEN | D89: Luminaire | E89: 68.88953401
C90: 250W Sodium (w/o PECB) - AEROSCREEN | D90: Luminaire | E90: 64.86953401
C91: 250W Metal Halide - AEROSCREEN | D91: Luminaire | E91: 66.26953401
C92: 400W Sodium - AEROSCREEN | D92: Luminaire | E92: 57.78953401
C93: 400W Metal Halide - AEROSCREEN | D93: Luminaire | E93: 64.88953401
C94: Roadster A/Screen 100W HPS c/w PECB | D94: Luminaire | E94: 59.68953401
C95: 80W Mercury - POST TOP | D95: Luminaire | E95: 50.78953401
C96: B2001 42WCFL c/w D2 PECB green - PT | D96: Luminaire | E96: 52.13953401
C97: 250W Sodium - FLOODLIGHT | D97: Luminaire | E97: 64.86953401
C98: 250W Metal Halide - FLOODLIGHT | D98: Luminaire | E98: 66.26953401
C99: 400W Sodium - FLOODLIGHT | D99: Luminaire | E99: 57.78953401
C100: 400W Metal Halide - FLOODLIGHT | D100: Luminaire | E100: 64.88953401
C101: 150W Sodium - FLOODLIGHT | D101: Luminaire | E101: 55.63953401
C102: 150W Metal Halide - FLOODLIGHT | D102: Luminaire | E102: 68.88953401
C103: Bracket - Minor <=3m | D103: Bracket | E103: 14.8152592
C104: Bracket - Major >3m | D104: Bracket | E104: 14.8152592
C105: Outreach - Minor <=2m | D105: Bracket | E105: 14.8152592
C106: Outreach - Major >2m | D106: Bracket | E106: 14.8152592
C107: Pole (Wood) - Minor - DEDICATED SL <=11m | D107: Column | E107: 19.34893186
C108: Pole (Wood) - Major - DEDICATED SL >11m | D108: Column | E108: 19.34893186
C109: Column (Steel) - Minor <=9m | D109: Column | E109: 19.34893186
C110: Column (Steel) - Major >9m | D110: Column | E110: 19.34893186
C111: Pole (Wood) - Minor <=11m | D111: Column | E111: 19.34893186
C112: Pole (Wood) - Major >11m | D112: Column | E112: 19.34893186
C113: 18W LED P4 Gerard | D113: LED Luminaire | E113: 44.68275711
C114: 25W LED P4 Gerard | D114: LED Luminaire | E114: 44.68275711
C115: 33W LED | D115: LED Luminaire | E115: 44.68275711
C116: 42W LED | D116: LED Luminaire | E116: 44.68275711
C117: 82W LED Gerard V5 Cat Luminaire | D117: LED Luminaire | E117: 44.68275711
C118: 100W LED Gerard V4 Cat Luminaire | D118: LED Luminaire | E118: 44.68275711
C119: 198W LED Gerard V2/V3 Cat Luminaire | D119: LED Luminaire | E119: 44.68275711
C120: ='Roll Forward'!C91 -> Spare | E120: =SUM(F120:H120) ->  | F120: =INDEX(#REF!, MATCH(D120,#REF!, 0), 5) ->  | G120: =IFERROR(INDEX(#REF!, MATCH(D120,#REF!, 0), 6),0) -> 0
C121: ='Roll Forward'!C92 -> Spare | F121: =INDEX(#REF!, MATCH(D121,#REF!, 0), 5) ->  | G121: =IFERROR(INDEX(#REF!, MATCH(D121,#REF!, 0), 6),0) -> 0
C122: ='Roll Forward'!C93 -> Spare | F122: =INDEX(#REF!, MATCH(D122,#REF!, 0), 5) ->  | G122: =IFERROR(INDEX(#REF!, MATCH(D122,#REF!, 0), 6),0) -> 0
C123: ='Roll Forward'!C94 -> Spare | F123: =INDEX(#REF!, MATCH(D123,#REF!, 0), 5) ->  | G123: =IFERROR(INDEX(#REF!, MATCH(D123,#REF!, 0), 6),0) -> 0
C124: ='Roll Forward'!C95 -> Spare | F124: =INDEX(#REF!, MATCH(D124,#REF!, 0), 5) ->  | G124: =IFERROR(INDEX(#REF!, MATCH(D124,#REF!, 0), 6),0) -> 0
C125: ='Roll Forward'!C96 -> Spare | E125: =SUM(F125:H125) ->  | F125: =INDEX(#REF!, MATCH(D125,#REF!, 0), 5) ->  | G125: =IFERROR(INDEX(#REF!, MATCH(D125,#REF!, 0), 6),0) -> 0
C126: ='Roll Forward'!C97 -> Spare | F126: =INDEX(#REF!, MATCH(D126,#REF!, 0), 5) ->  | G126: =IFERROR(INDEX(#REF!, MATCH(D126,#REF!, 0), 6),0) -> 0
C127: ='Roll Forward'!C98 -> Spare | F127: =INDEX(#REF!, MATCH(D127,#REF!, 0), 5) ->  | G127: =IFERROR(INDEX(#REF!, MATCH(D127,#REF!, 0), 6),0) -> 0
C128: ='Roll Forward'!C99 -> Spare | F128: =INDEX(#REF!, MATCH(D128,#REF!, 0), 5) ->  | G128: =IFERROR(INDEX(#REF!, MATCH(D128,#REF!, 0), 6),0) -> 0
C129: ='Roll Forward'!C100 -> Spare | F129: =INDEX(#REF!, MATCH(D129,#REF!, 0), 5) ->  | G129: =IFERROR(INDEX(#REF!, MATCH(D129,#REF!, 0), 6),0) -> 0
C130: ='Roll Forward'!C101 -> Spare | F130: =INDEX(#REF!, MATCH(D130,#REF!, 0), 5) ->  | G130: =IFERROR(INDEX(#REF!, MATCH(D130,#REF!, 0), 6),0) -> 0
C131: ='Roll Forward'!C102 -> Spare | F131: =INDEX(#REF!, MATCH(D131,#REF!, 0), 5) ->  | G131: =IFERROR(INDEX(#REF!, MATCH(D131,#REF!, 0), 6),0) -> 0
C132: ='Roll Forward'!C103 -> Spare | F132: =INDEX(#REF!, MATCH(D132,#REF!, 0), 5) ->  | G132: =IFERROR(INDEX(#REF!, MATCH(D132,#REF!, 0), 6),0) -> 0
C133: ='Roll Forward'!C104 -> Spare | F133: =INDEX(#REF!, MATCH(D133,#REF!, 0), 5) ->  | G133: =IFERROR(INDEX(#REF!, MATCH(D133,#REF!, 0), 6),0) -> 0
C134: ='Roll Forward'!C105 -> Spare | F134: =INDEX(#REF!, MATCH(D134,#REF!, 0), 5) ->  | G134: =IFERROR(INDEX(#REF!, MATCH(D134,#REF!, 0), 6),0) -> 0
C135: ='Roll Forward'!C106 -> Spare | F135: =INDEX(#REF!, MATCH(D135,#REF!, 0), 5) ->  | G135: =IFERROR(INDEX(#REF!, MATCH(D135,#REF!, 0), 6),0) -> 0
C136: ='Roll Forward'!C107 -> Spare | F136: =INDEX(#REF!, MATCH(D136,#REF!, 0), 5) ->  | G136: =IFERROR(INDEX(#REF!, MATCH(D136,#REF!, 0), 6),0) -> 0
C137: ='Roll Forward'!C108 -> Spare | F137: =INDEX(#REF!, MATCH(D137,#REF!, 0), 5) ->  | G137: =IFERROR(INDEX(#REF!, MATCH(D137,#REF!, 0), 6),0) -> 0
C138: ='Roll Forward'!C109 -> Spare | F138: =INDEX(#REF!, MATCH(D138,#REF!, 0), 5) ->  | G138: =IFERROR(INDEX(#REF!, MATCH(D138,#REF!, 0), 6),0) -> 0
C139: ='Roll Forward'!C110 -> Spare | F139: =INDEX(#REF!, MATCH(D139,#REF!, 0), 5) ->  | G139: =IFERROR(INDEX(#REF!, MATCH(D139,#REF!, 0), 6),0) -> 0
C140: ='Roll Forward'!C111 -> Spare | F140: =INDEX(#REF!, MATCH(D140,#REF!, 0), 5) ->  | G140: =IFERROR(INDEX(#REF!, MATCH(D140,#REF!, 0), 6),0) -> 0
C141: ='Roll Forward'!C112 -> Spare | F141: =INDEX(#REF!, MATCH(D141,#REF!, 0), 5) ->  | G141: =IFERROR(INDEX(#REF!, MATCH(D141,#REF!, 0), 6),0) -> 0
C142: ='Roll Forward'!C113 -> Spare | F142: =INDEX(#REF!, MATCH(D142,#REF!, 0), 5) ->  | G142: =IFERROR(INDEX(#REF!, MATCH(D142,#REF!, 0), 6),0) -> 0
C143: ='Roll Forward'!C114 -> Spare | F143: =INDEX(#REF!, MATCH(D143,#REF!, 0), 5) ->  | G143: =IFERROR(INDEX(#REF!, MATCH(D143,#REF!, 0), 6),0) -> 0
C144: ='Roll Forward'!C115 -> Spare | F144: =INDEX(#REF!, MATCH(D144,#REF!, 0), 5) ->  | G144: =IFERROR(INDEX(#REF!, MATCH(D144,#REF!, 0), 6),0) -> 0
C145: ='Roll Forward'!C116 -> Spare | F145: =INDEX(#REF!, MATCH(D145,#REF!, 0), 5) ->  | G145: =IFERROR(INDEX(#REF!, MATCH(D145,#REF!, 0), 6),0) -> 0
C146: ='Roll Forward'!C117 -> Spare | F146: =INDEX(#REF!, MATCH(D146,#REF!, 0), 5) ->  | G146: =IFERROR(INDEX(#REF!, MATCH(D146,#REF!, 0), 6),0) -> 0
C147: ='Roll Forward'!C118 -> Spare | F147: =INDEX(#REF!, MATCH(D147,#REF!, 0), 5) ->  | G147: =IFERROR(INDEX(#REF!, MATCH(D147,#REF!, 0), 6),0) -> 0
C148: ='Roll Forward'!C119 -> Spare | F148: =INDEX(#REF!, MATCH(D148,#REF!, 0), 5) ->  | G148: =IFERROR(INDEX(#REF!, MATCH(D148,#REF!, 0), 6),0) -> 0
C149: ='Roll Forward'!C120 -> Spare | F149: =INDEX(#REF!, MATCH(D149,#REF!, 0), 5) ->  | G149: =IFERROR(INDEX(#REF!, MATCH(D149,#REF!, 0), 6),0) -> 0
C150: ='Roll Forward'!C121 -> Spare | F150: =INDEX(#REF!, MATCH(D150,#REF!, 0), 5) ->  | G150: =IFERROR(INDEX(#REF!, MATCH(D150,#REF!, 0), 6),0) -> 0
C151: ='Roll Forward'!C122 -> Spare | F151: =INDEX(#REF!, MATCH(D151,#REF!, 0), 5) ->  | G151: =IFERROR(INDEX(#REF!, MATCH(D151,#REF!, 0), 6),0) -> 0
C152: ='Roll Forward'!C123 -> Spare | F152: =INDEX(#REF!, MATCH(D152,#REF!, 0), 5) ->  | G152: =IFERROR(INDEX(#REF!, MATCH(D152,#REF!, 0), 6),0) -> 0
C153: ='Roll Forward'!C124 -> Spare | F153: =INDEX(#REF!, MATCH(D153,#REF!, 0), 5) ->  | G153: =IFERROR(INDEX(#REF!, MATCH(D153,#REF!, 0), 6),0) -> 0
C154: ='Roll Forward'!C125 -> Spare | F154: =INDEX(#REF!, MATCH(D154,#REF!, 0), 5) ->  | G154: =IFERROR(INDEX(#REF!, MATCH(D154,#REF!, 0), 6),0) -> 0
C155: ='Roll Forward'!C126 -> Spare | F155: =INDEX(#REF!, MATCH(D155,#REF!, 0), 5) ->  | G155: =IFERROR(INDEX(#REF!, MATCH(D155,#REF!, 0), 6),0) -> 0
C156: ='Roll Forward'!C127 -> Spare | F156: =INDEX(#REF!, MATCH(D156,#REF!, 0), 5) ->  | G156: =IFERROR(INDEX(#REF!, MATCH(D156,#REF!, 0), 6),0) -> 0
C157: ='Roll Forward'!C128 -> Spare | F157: =INDEX(#REF!, MATCH(D157,#REF!, 0), 5) ->  | G157: =IFERROR(INDEX(#REF!, MATCH(D157,#REF!, 0), 6),0) -> 0
C158: ='Roll Forward'!C129 -> Spare | F158: =INDEX(#REF!, MATCH(D158,#REF!, 0), 5) ->  | G158: =IFERROR(INDEX(#REF!, MATCH(D158,#REF!, 0), 6),0) -> 0
C159: ='Roll Forward'!C130 -> Spare | F159: =INDEX(#REF!, MATCH(D159,#REF!, 0), 5) ->  | G159: =IFERROR(INDEX(#REF!, MATCH(D159,#REF!, 0), 6),0) -> 0
C160: ='Roll Forward'!C131 -> Spare | F160: =INDEX(#REF!, MATCH(D160,#REF!, 0), 5) ->  | G160: =IFERROR(INDEX(#REF!, MATCH(D160,#REF!, 0), 6),0) -> 0
C161: ='Roll Forward'!C132 -> Spare | F161: =INDEX(#REF!, MATCH(D161,#REF!, 0), 5) ->  | G161: =IFERROR(INDEX(#REF!, MATCH(D161,#REF!, 0), 6),0) -> 0
C162: ='Roll Forward'!C133 -> Spare | F162: =INDEX(#REF!, MATCH(D162,#REF!, 0), 5) ->  | G162: =IFERROR(INDEX(#REF!, MATCH(D162,#REF!, 0), 6),0) -> 0
C163: ='Roll Forward'!C134 -> Spare | F163: =INDEX(#REF!, MATCH(D163,#REF!, 0), 5) ->  | G163: =IFERROR(INDEX(#REF!, MATCH(D163,#REF!, 0), 6),0) -> 0
C164: ='Roll Forward'!C135 -> Spare | F164: =INDEX(#REF!, MATCH(D164,#REF!, 0), 5) ->  | G164: =IFERROR(INDEX(#REF!, MATCH(D164,#REF!, 0), 6),0) -> 0
C165: ='Roll Forward'!C136 -> Spare | F165: =INDEX(#REF!, MATCH(D165,#REF!, 0), 5) ->  | G165: =IFERROR(INDEX(#REF!, MATCH(D165,#REF!, 0), 6),0) -> 0
C166: ='Roll Forward'!C137 -> Spare | F166: =INDEX(#REF!, MATCH(D166,#REF!, 0), 5) ->  | G166: =IFERROR(INDEX(#REF!, MATCH(D166,#REF!, 0), 6),0) -> 0
C167: ='Roll Forward'!C138 -> Spare | F167: =INDEX(#REF!, MATCH(D167,#REF!, 0), 5) ->  | G167: =IFERROR(INDEX(#REF!, MATCH(D167,#REF!, 0), 6),0) -> 0
C168: ='Roll Forward'!C139 -> Spare | F168: =INDEX(#REF!, MATCH(D168,#REF!, 0), 5) ->  | G168: =IFERROR(INDEX(#REF!, MATCH(D168,#REF!, 0), 6),0) -> 0
C169: ='Roll Forward'!C140 -> Spare | F169: =INDEX(#REF!, MATCH(D169,#REF!, 0), 5) ->  | G169: =IFERROR(INDEX(#REF!, MATCH(D169,#REF!, 0), 6),0) -> 0
C170: ='Roll Forward'!C141 -> Spare | F170: =INDEX(#REF!, MATCH(D170,#REF!, 0), 5) ->  | G170: =IFERROR(INDEX(#REF!, MATCH(D170,#REF!, 0), 6),0) -> 0
C171: ='Roll Forward'!C142 -> Spare | F171: =INDEX(#REF!, MATCH(D171,#REF!, 0), 5) ->  | G171: =IFERROR(INDEX(#REF!, MATCH(D171,#REF!, 0), 6),0) -> 0
C172: ='Roll Forward'!C143 -> Spare | F172: =INDEX(#REF!, MATCH(D172,#REF!, 0), 5) ->  | G172: =IFERROR(INDEX(#REF!, MATCH(D172,#REF!, 0), 6),0) -> 0
C173: ='Roll Forward'!C144 -> Spare | F173: =INDEX(#REF!, MATCH(D173,#REF!, 0), 5) ->  | G173: =IFERROR(INDEX(#REF!, MATCH(D173,#REF!, 0), 6),0) -> 0
C174: ='Roll Forward'!C145 -> Spare | F174: =INDEX(#REF!, MATCH(D174,#REF!, 0), 5) ->  | G174: =IFERROR(INDEX(#REF!, MATCH(D174,#REF!, 0), 6),0) -> 0
C175: ='Roll Forward'!C146 -> Spare | F175: =INDEX(#REF!, MATCH(D175,#REF!, 0), 5) ->  | G175: =IFERROR(INDEX(#REF!, MATCH(D175,#REF!, 0), 6),0) -> 0
C176: ='Roll Forward'!C147 -> Spare | F176: =INDEX(#REF!, MATCH(D176,#REF!, 0), 5) ->  | G176: =IFERROR(INDEX(#REF!, MATCH(D176,#REF!, 0), 6),0) -> 0
C177: ='Roll Forward'!C148 -> Spare | E177: =SUM(F177:H177) ->  | F177: =INDEX(#REF!, MATCH(D177,#REF!, 0), 5) ->  | G177: =IFERROR(INDEX(#REF!, MATCH(D177,#REF!, 0), 6),0) -> 0
C178: ='Roll Forward'!C149 -> Spare | F178: =INDEX(#REF!, MATCH(D178,#REF!, 0), 5) ->  | G178: =IFERROR(INDEX(#REF!, MATCH(D178,#REF!, 0), 6),0) -> 0
C179: ='Roll Forward'!C150 -> Spare | F179: =INDEX(#REF!, MATCH(D179,#REF!, 0), 5) ->  | G179: =IFERROR(INDEX(#REF!, MATCH(D179,#REF!, 0), 6),0) -> 0
C180: ='Roll Forward'!C151 -> Spare | F180: =INDEX(#REF!, MATCH(D180,#REF!, 0), 5) ->  | G180: =IFERROR(INDEX(#REF!, MATCH(D180,#REF!, 0), 6),0) -> 0
C181: ='Roll Forward'!C152 -> Spare | F181: =INDEX(#REF!, MATCH(D181,#REF!, 0), 5) ->  | G181: =IFERROR(INDEX(#REF!, MATCH(D181,#REF!, 0), 6),0) -> 0
C182: ='Roll Forward'!C153 -> Spare | F182: =INDEX(#REF!, MATCH(D182,#REF!, 0), 5) ->  | G182: =IFERROR(INDEX(#REF!, MATCH(D182,#REF!, 0), 6),0) -> 0
C183: ='Roll Forward'!C154 -> Spare | F183: =INDEX(#REF!, MATCH(D183,#REF!, 0), 5) ->  | G183: =IFERROR(INDEX(#REF!, MATCH(D183,#REF!, 0), 6),0) -> 0
C184: ='Roll Forward'!C155 -> Spare | F184: =INDEX(#REF!, MATCH(D184,#REF!, 0), 5) ->  | G184: =IFERROR(INDEX(#REF!, MATCH(D184,#REF!, 0), 6),0) -> 0
C185: ='Roll Forward'!C156 -> Spare | F185: =INDEX(#REF!, MATCH(D185,#REF!, 0), 5) ->  | G185: =IFERROR(INDEX(#REF!, MATCH(D185,#REF!, 0), 6),0) -> 0
C186: ='Roll Forward'!C157 -> Spare | F186: =INDEX(#REF!, MATCH(D186,#REF!, 0), 5) ->  | G186: =IFERROR(INDEX(#REF!, MATCH(D186,#REF!, 0), 6),0) -> 0
C187: ='Roll Forward'!C158 -> Spare | F187: =INDEX(#REF!, MATCH(D187,#REF!, 0), 5) ->  | G187: =IFERROR(INDEX(#REF!, MATCH(D187,#REF!, 0), 6),0) -> 0
C188: ='Roll Forward'!C159 -> Spare | F188: =INDEX(#REF!, MATCH(D188,#REF!, 0), 5) ->  | G188: =IFERROR(INDEX(#REF!, MATCH(D188,#REF!, 0), 6),0) -> 0
C189: ='Roll Forward'!C160 -> Spare | F189: =INDEX(#REF!, MATCH(D189,#REF!, 0), 5) ->  | G189: =IFERROR(INDEX(#REF!, MATCH(D189,#REF!, 0), 6),0) -> 0
C190: ='Roll Forward'!C161 -> Spare | F190: =INDEX(#REF!, MATCH(D190,#REF!, 0), 5) ->  | G190: =IFERROR(INDEX(#REF!, MATCH(D190,#REF!, 0), 6),0) -> 0
C191: ='Roll Forward'!C162 -> Spare | F191: =INDEX(#REF!, MATCH(D191,#REF!, 0), 5) ->  | G191: =IFERROR(INDEX(#REF!, MATCH(D191,#REF!, 0), 6),0) -> 0
C192: ='Roll Forward'!C163 -> Spare | F192: =INDEX(#REF!, MATCH(D192,#REF!, 0), 5) ->  | G192: =IFERROR(INDEX(#REF!, MATCH(D192,#REF!, 0), 6),0) -> 0
C193: ='Roll Forward'!C164 -> Spare | F193: =INDEX(#REF!, MATCH(D193,#REF!, 0), 5) ->  | G193: =IFERROR(INDEX(#REF!, MATCH(D193,#REF!, 0), 6),0) -> 0
C194: ='Roll Forward'!C165 -> Spare | F194: =INDEX(#REF!, MATCH(D194,#REF!, 0), 5) ->  | G194: =IFERROR(INDEX(#REF!, MATCH(D194,#REF!, 0), 6),0) -> 0
C195: ='Roll Forward'!C166 -> Spare | F195: =INDEX(#REF!, MATCH(D195,#REF!, 0), 5) ->  | G195: =IFERROR(INDEX(#REF!, MATCH(D195,#REF!, 0), 6),0) -> 0
C196: ='Roll Forward'!C167 -> Spare | F196: =INDEX(#REF!, MATCH(D196,#REF!, 0), 5) ->  | G196: =IFERROR(INDEX(#REF!, MATCH(D196,#REF!, 0), 6),0) -> 0
C197: ='Roll Forward'!C168 -> Spare | F197: =INDEX(#REF!, MATCH(D197,#REF!, 0), 5) ->  | G197: =IFERROR(INDEX(#REF!, MATCH(D197,#REF!, 0), 6),0) -> 0
C198: ='Roll Forward'!C169 -> Spare | F198: =INDEX(#REF!, MATCH(D198,#REF!, 0), 5) ->  | G198: =IFERROR(INDEX(#REF!, MATCH(D198,#REF!, 0), 6),0) -> 0
C199: ='Roll Forward'!C170 -> Spare | F199: =INDEX(#REF!, MATCH(D199,#REF!, 0), 5) ->  | G199: =IFERROR(INDEX(#REF!, MATCH(D199,#REF!, 0), 6),0) -> 0
C200: ='Roll Forward'!C171 -> Spare | F200: =INDEX(#REF!, MATCH(D200,#REF!, 0), 5) ->  | G200: =IFERROR(INDEX(#REF!, MATCH(D200,#REF!, 0), 6),0) -> 0
C201: ='Roll Forward'!C172 -> Spare | F201: =INDEX(#REF!, MATCH(D201,#REF!, 0), 5) ->  | G201: =IFERROR(INDEX(#REF!, MATCH(D201,#REF!, 0), 6),0) -> 0
C202: ='Roll Forward'!C173 -> Spare | F202: =INDEX(#REF!, MATCH(D202,#REF!, 0), 5) ->  | G202: =IFERROR(INDEX(#REF!, MATCH(D202,#REF!, 0), 6),0) -> 0
C203: ='Roll Forward'!C174 -> Spare | F203: =INDEX(#REF!, MATCH(D203,#REF!, 0), 5) ->  | G203: =IFERROR(INDEX(#REF!, MATCH(D203,#REF!, 0), 6),0) -> 0
C204: ='Roll Forward'!C175 -> Spare | F204: =INDEX(#REF!, MATCH(D204,#REF!, 0), 5) ->  | G204: =IFERROR(INDEX(#REF!, MATCH(D204,#REF!, 0), 6),0) -> 0
C205: ='Roll Forward'!C176 -> Spare | F205: =INDEX(#REF!, MATCH(D205,#REF!, 0), 5) ->  | G205: =IFERROR(INDEX(#REF!, MATCH(D205,#REF!, 0), 6),0) -> 0
C206: ='Roll Forward'!C177 -> Spare | F206: =INDEX(#REF!, MATCH(D206,#REF!, 0), 5) ->  | G206: =IFERROR(INDEX(#REF!, MATCH(D206,#REF!, 0), 6),0) -> 0
C207: ='Roll Forward'!C178 -> Spare | F207: =INDEX(#REF!, MATCH(D207,#REF!, 0), 5) ->  | G207: =IFERROR(INDEX(#REF!, MATCH(D207,#REF!, 0), 6),0) -> 0
C208: ='Roll Forward'!C179 -> Spare | F208: =INDEX(#REF!, MATCH(D208,#REF!, 0), 5) ->  | G208: =IFERROR(INDEX(#REF!, MATCH(D208,#REF!, 0), 6),0) -> 0
C209: ='Roll Forward'!C180 -> Spare | F209: =INDEX(#REF!, MATCH(D209,#REF!, 0), 5) ->  | G209: =IFERROR(INDEX(#REF!, MATCH(D209,#REF!, 0), 6),0) -> 0
C210: ='Roll Forward'!C181 -> Spare | F210: =INDEX(#REF!, MATCH(D210,#REF!, 0), 5) ->  | G210: =IFERROR(INDEX(#REF!, MATCH(D210,#REF!, 0), 6),0) -> 0
C211: ='Roll Forward'!C182 -> Spare | F211: =INDEX(#REF!, MATCH(D211,#REF!, 0), 5) ->  | G211: =IFERROR(INDEX(#REF!, MATCH(D211,#REF!, 0), 6),0) -> 0

Sheet Annuity
B1: Annuity Revenue Inputs
C2: Inputs required for calculating the annuity revenue requirement
C6: ="Capex " & "- nominal " & RegYear-1 -> Capex - nominal 2019
C8: Index for de-escalation | F8: Name | G8: Reference
C9: Asset value | D9: Selection | F9: CPI | G9: =MATCH(F9,List_Escalation,0) -> 1
C10: Labour | D10: Selection | F10: LPI | G10: =MATCH(F10,List_Escalation,0) -> 2
C12: Adjustment for volume growth
C13: Capital | D13: % | E13: 0
C14: Labour | D14: % | E14: 0
C15: Opex | D15: % | E15: 0
C17: Real Escalation Index
C18: Capital | D18: Selection | E18: Real capex
C19: Labour | D19: Selection | E19: Real labour (capex)
C20: Opex | D20: Selection | E20: Real opex
E22: Useful life (years) | H22: Nominal ($ / Component) | L22: De-escalation factors - index | O22: ="Real ($ / Component) " & "- nominal " & RegYear-1 -> Real ($ / Component) - nominal 2019
C23: Asset Register | E23: Asset | F23: =I23 -> Labour | H23: asset value | I23: Labour | J23: year | L23: Asset value | M23: Labour | O23: Asset value | P23: Labour
B24: =IF(C24="Spare",TRUE,0) -> 0 | C24: 2x14W Energy Efficient Fluro - STD | E24: 20 | F24: 20 | G24: $ / Component | L24: =IF($J24=0,1,INDEX(REG_Timing!$K$23:$O$27,$G$9,MATCH($J24,List_RegYear,0))) -> 1 | M24: =IF($J24=0,1,INDEX(REG_Timing!$K$23:$O$27,$G$10,MATCH($J24,List_RegYear,0))) -> 1 | O24: =H24 -> 0 | P24: =I24 -> 0
B25: =IF(C25="Spare",TRUE,0) -> 0 | C25: 2x24W Energy Efficient Fluro - STD | E25: 20 | F25: 20 | G25: $ / Component | L25: =IF($J25=0,1,INDEX(REG_Timing!$K$23:$O$27,$G$9,MATCH($J25,List_RegYear,0))) -> 1 | M25: =IF($J25=0,1,INDEX(REG_Timing!$K$23:$O$27,$G$10,MATCH($J25,List_RegYear,0))) -> 1 | O25: =H25 -> 0 | P25: 0
B26: 0 | C26: 1x42W Compact Fluorescent - STD | E26: 20 | F26: 20 | G26: $ / Component | L26: =IF($J26=0,1,INDEX(REG_Timing!$K$23:$O$27,$G$9,MATCH($J26,List_RegYear,0))) -> 1 | M26: =IF($J26=0,1,INDEX(REG_Timing!$K$23:$O$27,$G$10,MATCH($J26,List_RegYear,0))) -> 1 | O26: 0 | P26: 0
B27: 0 | C27: 50W Mercury - STANDARD | E27: 20 | F27: 20 | G27: $ / Component | L27: =IF($J27=0,1,INDEX(REG_Timing!$K$23:$O$27,$G$9,MATCH($J27,List_RegYear,0))) -> 1 | M27: =IF($J27=0,1,INDEX(REG_Timing!$K$23:$O$27,$G$10,MATCH($J27,List_RegYear,0))) -> 1 | O27: 0 | P27: 0
B28: 0 | C28: 80W Mercury - STANDARD | E28: 20 | F28: 20 | G28: $ / Component | L28: =IF($J28=0,1,INDEX(REG_Timing!$K$23:$O$27,$G$9,MATCH($J28,List_RegYear,0))) -> 1 | M28: =IF($J28=0,1,INDEX(REG_Timing!$K$23:$O$27,$G$10,MATCH($J28,List_RegYear,0))) -> 1 | O28: 0 | P28: 0
B29: 0 | C29: 70W Sodium - STANDARD | E29: 20 | F29: 20 | G29: $ / Component | L29: =IF($J29=0,1,INDEX(REG_Timing!$K$23:$O$27,$G$9,MATCH($J29,List_RegYear,0))) -> 1 | M29: =IF($J29=0,1,INDEX(REG_Timing!$K$23:$O$27,$G$10,MATCH($J29,List_RegYear,0))) -> 1 | O29: 0 | P29: 0
B30: 0 | C30: 100W Sodium - STANDARD | E30: 20 | F30: 20 | G30: $ / Component | L30: =IF($J30=0,1,INDEX(REG_Timing!$K$23:$O$27,$G$9,MATCH($J30,List_RegYear,0))) -> 1 | M30: =IF($J30=0,1,INDEX(REG_Timing!$K$23:$O$27,$G$10,MATCH($J30,List_RegYear,0))) -> 1 | O30: 0 | P30: 0
B31: 0 | C31: 100W Metal Halide - STANDARD | E31: 20 | F31: 20 | G31: $ / Component | L31: =IF($J31=0,1,INDEX(REG_Timing!$K$23:$O$27,$G$9,MATCH($J31,List_RegYear,0))) -> 1 | M31: =IF($J31=0,1,INDEX(REG_Timing!$K$23:$O$27,$G$10,MATCH($J31,List_RegYear,0))) -> 1 | O31: 0 | P31: 0
B32: 0 | C32: 25W LED | E32: ='AER Inputs'!$D$19 -> 16 | F32: ='AER Inputs'!$D$19 -> 16 | G32: $ / Component | L32: =IF($J32=0,1,INDEX(REG_Timing!$K$23:$O$27,$G$9,MATCH($J32,List_RegYear,0))) -> 1 | M32: =IF($J32=0,1,INDEX(REG_Timing!$K$23:$O$27,$G$10,MATCH($J32,List_RegYear,0))) -> 1 | O32: 0 | P32: 0
B33: 0 | C33: Suburban 70W HPS c/w D2 PECB - STD | E33: 20 | F33: 20 | G33: $ / Component | L33: =IF($J33=0,1,INDEX(REG_Timing!$K$23:$O$27,$G$9,MATCH($J33,List_RegYear,0))) -> 1 | M33: =IF($J33=0,1,INDEX(REG_Timing!$K$23:$O$27,$G$10,MATCH($J33,List_RegYear,0))) -> 1 | O33: 0 | P33: 0
B34: 0 | C34: 150W Sodium - STANDARD | E34: 20 | F34: 20 | G34: $ / Component | L34: =IF($J34=0,1,INDEX(REG_Timing!$K$23:$O$27,$G$9,MATCH($J34,List_RegYear,0))) -> 1 | M34: =IF($J34=0,1,INDEX(REG_Timing!$K$23:$O$27,$G$10,MATCH($J34,List_RegYear,0))) -> 1 | O34: 0 | P34: 0
B35: 0 | C35: 150W Metal Halide - STANDARD | E35: 20 | F35: 20 | G35: $ / Component | L35: =IF($J35=0,1,INDEX(REG_Timing!$K$23:$O$27,$G$9,MATCH($J35,List_RegYear,0))) -> 1 | M35: =IF($J35=0,1,INDEX(REG_Timing!$K$23:$O$27,$G$10,MATCH($J35,List_RegYear,0))) -> 1 | O35: 0 | P35: 0
B36: 0 | C36: 250W Sodium - STANDARD | E36: 20 | F36: 20 | G36: $ / Component | L36: =IF($J36=0,1,INDEX(REG_Timing!$K$23:$O$27,$G$9,MATCH($J36,List_RegYear,0))) -> 1 | M36: =IF($J36=0,1,INDEX(REG_Timing!$K$23:$O$27,$G$10,MATCH($J36,List_RegYear,0))) -> 1 | O36: 0 | P36: 0
B37: 0 | C37: 250W Metal Halide - STANDARD | E37: 20 | F37: 20 | G37: $ / Component | L37: =IF($J37=0,1,INDEX(REG_Timing!$K$23:$O$27,$G$9,MATCH($J37,List_RegYear,0))) -> 1 | M37: =IF($J37=0,1,INDEX(REG_Timing!$K$23:$O$27,$G$10,MATCH($J37,List_RegYear,0))) -> 1 | O37: 0 | P37: 0
B38: 0 | C38: 400W Sodium - STANDARD | E38: 20 | F38: 20 | G38: $ / Component | L38: =IF($J38=0,1,INDEX(REG_Timing!$K$23:$O$27,$G$9,MATCH($J38,List_RegYear,0))) -> 1 | M38: =IF($J38=0,1,INDEX(REG_Timing!$K$23:$O$27,$G$10,MATCH($J38,List_RegYear,0))) -> 1 | O38: 0 | P38: 0
B39: 0 | C39: 80W Mercury - AEROSCREEN | E39: 20 | F39: 20 | G39: $ / Component | L39: =IF($J39=0,1,INDEX(REG_Timing!$K$23:$O$27,$G$9,MATCH($J39,List_RegYear,0))) -> 1 | M39: =IF($J39=0,1,INDEX(REG_Timing!$K$23:$O$27,$G$10,MATCH($J39,List_RegYear,0))) -> 1 | O39: 0 | P39: 0
B40: 0 | C40: Urban A/Screen 42W CFL c/w D2 PECB | E40: 20 | F40: 20 | G40: $ / Component | L40: =IF($J40=0,1,INDEX(REG_Timing!$K$23:$O$27,$G$9,MATCH($J40,List_RegYear,0))) -> 1 | M40: =IF($J40=0,1,INDEX(REG_Timing!$K$23:$O$27,$G$10,MATCH($J40,List_RegYear,0))) -> 1 | O40: 0 | P40: 0
B41: 0 | C41: 150W Sodium - AEROSCREEN | E41: 20 | F41: 20 | G41: $ / Component | L41: =IF($J41=0,1,INDEX(REG_Timing!$K$23:$O$27,$G$9,MATCH($J41,List_RegYear,0))) -> 1 | M41: =IF($J41=0,1,INDEX(REG_Timing!$K$23:$O$27,$G$10,MATCH($J41,List_RegYear,0))) -> 1 | O41: 0 | P41: 0
B42: 0 | C42: 150W Metal Halide - AEROSCREEN | E42: 20 | F42: 20 | G42: $ / Component | L42: =IF($J42=0,1,INDEX(REG_Timing!$K$23:$O$27,$G$9,MATCH($J42,List_RegYear,0))) -> 1 | M42: =IF($J42=0,1,INDEX(REG_Timing!$K$23:$O$27,$G$10,MATCH($J42,List_RegYear,0))) -> 1 | O42: 0 | P42: 0
B43: 0 | C43: 250W Sodium (w/o PECB) - AEROSCREEN | E43: 20 | F43: 20 | G43: $ / Component | L43: =IF($J43=0,1,INDEX(REG_Timing!$K$23:$O$27,$G$9,MATCH($J43,List_RegYear,0))) -> 1 | M43: =IF($J43=0,1,INDEX(REG_Timing!$K$23:$O$27,$G$10,MATCH($J43,List_RegYear,0))) -> 1 | O43: 0 | P43: 0
B44: 0 | C44: 250W Metal Halide - AEROSCREEN | E44: 20 | F44: 20 | G44: $ / Component | L44: =IF($J44=0,1,INDEX(REG_Timing!$K$23:$O$27,$G$9,MATCH($J44,List_RegYear,0))) -> 1 | M44: =IF($J44=0,1,INDEX(REG_Timing!$K$23:$O$27,$G$10,MATCH($J44,List_RegYear,0))) -> 1 | O44: 0 | P44: 0
B45: 0 | C45: 400W Sodium - AEROSCREEN | E45: 20 | F45: 20 | G45: $ / Component | L45: =IF($J45=0,1,INDEX(REG_Timing!$K$23:$O$27,$G$9,MATCH($J45,List_RegYear,0))) -> 1 | M45: =IF($J45=0,1,INDEX(REG_Timing!$K$23:$O$27,$G$10,MATCH($J45,List_RegYear,0))) -> 1 | O45: 0 | P45: 0
B46: 0 | C46: 400W Metal Halide - AEROSCREEN | E46: 20 | F46: 20 | G46: $ / Component | L46: =IF($J46=0,1,INDEX(REG_Timing!$K$23:$O$27,$G$9,MATCH($J46,List_RegYear,0))) -> 1 | M46: =IF($J46=0,1,INDEX(REG_Timing!$K$23:$O$27,$G$10,MATCH($J46,List_RegYear,0))) -> 1 | O46: 0 | P46: 0
B47: 0 | C47: Roadster A/Screen 100W HPS c/w PECB | E47: 20 | F47: 20 | G47: $ / Component | L47: =IF($J47=0,1,INDEX(REG_Timing!$K$23:$O$27,$G$9,MATCH($J47,List_RegYear,0))) -> 1 | M47: =IF($J47=0,1,INDEX(REG_Timing!$K$23:$O$27,$G$10,MATCH($J47,List_RegYear,0))) -> 1 | O47: 0 | P47: 0
B48: 0 | C48: 80W Mercury - POST TOP | E48: 20 | F48: 20 | G48: $ / Component | L48: =IF($J48=0,1,INDEX(REG_Timing!$K$23:$O$27,$G$9,MATCH($J48,List_RegYear,0))) -> 1 | M48: =IF($J48=0,1,INDEX(REG_Timing!$K$23:$O$27,$G$10,MATCH($J48,List_RegYear,0))) -> 1 | O48: 0 | P48: 0
B49: 0 | C49: B2001 42WCFL c/w D2 PECB green - PT | E49: 20 | F49: 20 | G49: $ / Component | L49: =IF($J49=0,1,INDEX(REG_Timing!$K$23:$O$27,$G$9,MATCH($J49,List_RegYear,0))) -> 1 | M49: =IF($J49=0,1,INDEX(REG_Timing!$K$23:$O$27,$G$10,MATCH($J49,List_RegYear,0))) -> 1 | O49: 0 | P49: 0
B50: 0 | C50: 250W Sodium - FLOODLIGHT | E50: 20 | F50: 20 | G50: $ / Component | L50: =IF($J50=0,1,INDEX(REG_Timing!$K$23:$O$27,$G$9,MATCH($J50,List_RegYear,0))) -> 1 | M50: =IF($J50=0,1,INDEX(REG_Timing!$K$23:$O$27,$G$10,MATCH($J50,List_RegYear,0))) -> 1 | O50: 0 | P50: 0
B51: 0 | C51: 250W Metal Halide - FLOODLIGHT | E51: 20 | F51: 20 | G51: $ / Component | L51: =IF($J51=0,1,INDEX(REG_Timing!$K$23:$O$27,$G$9,MATCH($J51,List_RegYear,0))) -> 1 | M51: =IF($J51=0,1,INDEX(REG_Timing!$K$23:$O$27,$G$10,MATCH($J51,List_RegYear,0))) -> 1 | O51: 0 | P51: 0
B52: 0 | C52: 400W Sodium - FLOODLIGHT | E52: 20 | F52: 20 | G52: $ / Component | L52: =IF($J52=0,1,INDEX(REG_Timing!$K$23:$O$27,$G$9,MATCH($J52,List_RegYear,0))) -> 1 | M52: =IF($J52=0,1,INDEX(REG_Timing!$K$23:$O$27,$G$10,MATCH($J52,List_RegYear,0))) -> 1 | O52: 0 | P52: 0
B53: 0 | C53: 400W Metal Halide - FLOODLIGHT | E53: 20 | F53: 20 | G53: $ / Component | L53: =IF($J53=0,1,INDEX(REG_Timing!$K$23:$O$27,$G$9,MATCH($J53,List_RegYear,0))) -> 1 | M53: =IF($J53=0,1,INDEX(REG_Timing!$K$23:$O$27,$G$10,MATCH($J53,List_RegYear,0))) -> 1 | O53: 0 | P53: 0
B54: 0 | C54: 150W Sodium - FLOODLIGHT | E54: 20 | F54: 20 | G54: $ / Component | L54: =IF($J54=0,1,INDEX(REG_Timing!$K$23:$O$27,$G$9,MATCH($J54,List_RegYear,0))) -> 1 | M54: =IF($J54=0,1,INDEX(REG_Timing!$K$23:$O$27,$G$10,MATCH($J54,List_RegYear,0))) -> 1 | O54: 0 | P54: 0
B55: 0 | C55: 150W Metal Halide - FLOODLIGHT | E55: 20 | F55: 20 | G55: $ / Component | L55: =IF($J55=0,1,INDEX(REG_Timing!$K$23:$O$27,$G$9,MATCH($J55,List_RegYear,0))) -> 1 | M55: =IF($J55=0,1,INDEX(REG_Timing!$K$23:$O$27,$G$10,MATCH($J55,List_RegYear,0))) -> 1 | O55: 0 | P55: 0
B56: 0 | C56: Bracket - Minor <=3m | E56: 35 | F56: 35 | G56: $ / Component | L56: =IF($J56=0,1,INDEX(REG_Timing!$K$23:$O$27,$G$9,MATCH($J56,List_RegYear,0))) -> 1 | M56: =IF($J56=0,1,INDEX(REG_Timing!$K$23:$O$27,$G$10,MATCH($J56,List_RegYear,0))) -> 1 | O56: 0 | P56: 0
B57: 0 | C57: Bracket - Major >3m | E57: 35 | F57: 35 | G57: $ / Component | L57: =IF($J57=0,1,INDEX(REG_Timing!$K$23:$O$27,$G$9,MATCH($J57,List_RegYear,0))) -> 1 | M57: =IF($J57=0,1,INDEX(REG_Timing!$K$23:$O$27,$G$10,MATCH($J57,List_RegYear,0))) -> 1 | O57: 0 | P57: 0
B58: 0 | C58: Outreach - Minor <=2m | E58: 35 | F58: 35 | G58: $ / Component | L58: =IF($J58=0,1,INDEX(REG_Timing!$K$23:$O$27,$G$9,MATCH($J58,List_RegYear,0))) -> 1 | M58: =IF($J58=0,1,INDEX(REG_Timing!$K$23:$O$27,$G$10,MATCH($J58,List_RegYear,0))) -> 1 | O58: 0 | P58: 0
B59: 0 | C59: Outreach - Major >2m | E59: 35 | F59: 35 | G59: $ / Component | L59: =IF($J59=0,1,INDEX(REG_Timing!$K$23:$O$27,$G$9,MATCH($J59,List_RegYear,0))) -> 1 | M59: =IF($J59=0,1,INDEX(REG_Timing!$K$23:$O$27,$G$10,MATCH($J59,List_RegYear,0))) -> 1 | O59: 0 | P59: 0
B60: 0 | C60: Pole (Wood) - Minor - DEDICATED SL <=11m | E60: 35 | F60: 35 | G60: $ / Component | L60: =IF($J60=0,1,INDEX(REG_Timing!$K$23:$O$27,$G$9,MATCH($J60,List_RegYear,0))) -> 1 | M60: =IF($J60=0,1,INDEX(REG_Timing!$K$23:$O$27,$G$10,MATCH($J60,List_RegYear,0))) -> 1 | O60: 0 | P60: 0
B61: 0 | C61: Pole (Wood) - Major - DEDICATED SL >11m | E61: 35 | F61: 35 | G61: $ / Component | L61: =IF($J61=0,1,INDEX(REG_Timing!$K$23:$O$27,$G$9,MATCH($J61,List_RegYear,0))) -> 1 | M61: =IF($J61=0,1,INDEX(REG_Timing!$K$23:$O$27,$G$10,MATCH($J61,List_RegYear,0))) -> 1 | O61: 0 | P61: 0
B62: 0 | C62: Column (Steel) - Minor <=9m | E62: 35 | F62: 35 | G62: $ / Component | L62: =IF($J62=0,1,INDEX(REG_Timing!$K$23:$O$27,$G$9,MATCH($J62,List_RegYear,0))) -> 1 | M62: =IF($J62=0,1,INDEX(REG_Timing!$K$23:$O$27,$G$10,MATCH($J62,List_RegYear,0))) -> 1 | O62: 0 | P62: 0
B63: 0 | C63: Column (Steel) - Major >9m | E63: 35 | F63: 35 | G63: $ / Component | L63: =IF($J63=0,1,INDEX(REG_Timing!$K$23:$O$27,$G$9,MATCH($J63,List_RegYear,0))) -> 1 | M63: =IF($J63=0,1,INDEX(REG_Timing!$K$23:$O$27,$G$10,MATCH($J63,List_RegYear,0))) -> 1 | O63: 0 | P63: 0
B64: 0 | C64: Pole (Wood) - Minor <=11m | E64: 35 | F64: 35 | G64: $ / Component | L64: =IF($J64=0,1,INDEX(REG_Timing!$K$23:$O$27,$G$9,MATCH($J64,List_RegYear,0))) -> 1 | M64: =IF($J64=0,1,INDEX(REG_Timing!$K$23:$O$27,$G$10,MATCH($J64,List_RegYear,0))) -> 1 | O64: =H64 -> 0 | P64: =I64 -> 0
B65: 0 | C65: Pole (Wood) - Major >11m | E65: 35 | F65: 35 | G65: $ / Component | L65: =IF($J65=0,1,INDEX(REG_Timing!$K$23:$O$27,$G$9,MATCH($J65,List_RegYear,0))) -> 1 | M65: =IF($J65=0,1,INDEX(REG_Timing!$K$23:$O$27,$G$10,MATCH($J65,List_RegYear,0))) -> 1 | O65: 0 | P65: 0
B66: 0 | C66: 18W LED P4 Gerard | E66: ='AER Inputs'!$D$19 -> 16 | F66: ='AER Inputs'!$D$19 -> 16 | G66: $ / Component | L66: =IF($J66=0,1,INDEX(REG_Timing!$K$23:$O$27,$G$9,MATCH($J66,List_RegYear,0))) -> 1 | M66: =IF($J66=0,1,INDEX(REG_Timing!$K$23:$O$27,$G$10,MATCH($J66,List_RegYear,0))) -> 1 | O66: 0 | P66: 0
B67: 0 | C67: 25W LED P4 Gerard | E67: ='AER Inputs'!$D$19 -> 16 | F67: ='AER Inputs'!$D$19 -> 16 | G67: $ / Component | L67: =IF($J67=0,1,INDEX(REG_Timing!$K$23:$O$27,$G$9,MATCH($J67,List_RegYear,0))) -> 1 | M67: =IF($J67=0,1,INDEX(REG_Timing!$K$23:$O$27,$G$10,MATCH($J67,List_RegYear,0))) -> 1 | O67: 0 | P67: 0
B68: 0 | C68: 33W LED | E68: ='AER Inputs'!$D$19 -> 16 | F68: ='AER Inputs'!$D$19 -> 16 | G68: $ / Component | L68: =IF($J68=0,1,INDEX(REG_Timing!$K$23:$O$27,$G$9,MATCH($J68,List_RegYear,0))) -> 1 | M68: =IF($J68=0,1,INDEX(REG_Timing!$K$23:$O$27,$G$10,MATCH($J68,List_RegYear,0))) -> 1 | O68: =H68/L68 -> 0 | P68: =I68/M68 -> 0
B69: 0 | C69: 42W LED | E69: ='AER Inputs'!$D$19 -> 16 | F69: ='AER Inputs'!$D$19 -> 16 | G69: $ / Component | L69: =IF($J69=0,1,INDEX(REG_Timing!$K$23:$O$27,$G$9,MATCH($J69,List_RegYear,0))) -> 1 | M69: =IF($J69=0,1,INDEX(REG_Timing!$K$23:$O$27,$G$10,MATCH($J69,List_RegYear,0))) -> 1 | O69: 0 | P69: 0
B70: 0 | C70: 82W LED Gerard V5 Cat Luminaire | E70: ='AER Inputs'!$D$19 -> 16 | F70: ='AER Inputs'!$D$19 -> 16 | G70: $ / Component | L70: =IF($J70=0,1,INDEX(REG_Timing!$K$23:$O$27,$G$9,MATCH($J70,List_RegYear,0))) -> 1 | M70: =IF($J70=0,1,INDEX(REG_Timing!$K$23:$O$27,$G$10,MATCH($J70,List_RegYear,0))) -> 1 | O70: 0 | P70: 0
B71: 0 | C71: 100W LED Gerard V4 Cat Luminaire | E71: ='AER Inputs'!$D$19 -> 16 | F71: ='AER Inputs'!$D$19 -> 16 | G71: $ / Component | L71: =IF($J71=0,1,INDEX(REG_Timing!$K$23:$O$27,$G$9,MATCH($J71,List_RegYear,0))) -> 1 | M71: =IF($J71=0,1,INDEX(REG_Timing!$K$23:$O$27,$G$10,MATCH($J71,List_RegYear,0))) -> 1 | O71: 0 | P71: 0
B72: 0 | C72: 198W LED Gerard V2/V3 Cat Luminaire | E72: ='AER Inputs'!$D$19 -> 16 | F72: ='AER Inputs'!$D$19 -> 16 | G72: $ / Component | L72: =IF($J72=0,1,INDEX(REG_Timing!$K$23:$O$27,$G$9,MATCH($J72,List_RegYear,0))) -> 1 | M72: =IF($J72=0,1,INDEX(REG_Timing!$K$23:$O$27,$G$10,MATCH($J72,List_RegYear,0))) -> 1 | O72: =H72 -> 0 | P72: =I72 -> 0
B73: =IF(C73="Spare",TRUE,0) -> 0 | C73: 17W LED Cat P Luminaire | E73: ='AER Inputs'!$D$19 -> 16 | F73: ='AER Inputs'!$D$19 -> 16 | G73: $ / Component | L73: =IF($J73=0,1,INDEX(REG_Timing!$K$23:$O$27,$G$9,MATCH($J73,List_RegYear,0))) -> 1 | M73: =IF($J73=0,1,INDEX(REG_Timing!$K$23:$O$27,$G$10,MATCH($J73,List_RegYear,0))) -> 1 | O73: 0 | P73: 0
B74: TRUE | C74: Spare | G74: $ / Component | L74: =IF($J74=0,1,INDEX(REG_Timing!$K$23:$O$27,$G$9,MATCH($J74,List_RegYear,0))) -> 1 | M74: =IF($J74=0,1,INDEX(REG_Timing!$K$23:$O$27,$G$10,MATCH($J74,List_RegYear,0))) -> 1 | O74: 0 | P74: 0
B75: TRUE | C75: Spare | G75: $ / Component | L75: =IF($J75=0,1,INDEX(REG_Timing!$K$23:$O$27,$G$9,MATCH($J75,List_RegYear,0))) -> 1 | M75: =IF($J75=0,1,INDEX(REG_Timing!$K$23:$O$27,$G$10,MATCH($J75,List_RegYear,0))) -> 1 | O75: 0 | P75: 0
B76: TRUE | C76: Spare | G76: $ / Component | L76: =IF($J76=0,1,INDEX(REG_Timing!$K$23:$O$27,$G$9,MATCH($J76,List_RegYear,0))) -> 1 | M76: =IF($J76=0,1,INDEX(REG_Timing!$K$23:$O$27,$G$10,MATCH($J76,List_RegYear,0))) -> 1 | O76: 0 | P76: 0
B77: TRUE | C77: Spare | G77: $ / Component | L77: =IF($J77=0,1,INDEX(REG_Timing!$K$23:$O$27,$G$9,MATCH($J77,List_RegYear,0))) -> 1 | M77: =IF($J77=0,1,INDEX(REG_Timing!$K$23:$O$27,$G$10,MATCH($J77,List_RegYear,0))) -> 1 | O77: 0 | P77: 0
B78: TRUE | C78: Spare | G78: $ / Component | L78: =IF($J78=0,1,INDEX(REG_Timing!$K$23:$O$27,$G$9,MATCH($J78,List_RegYear,0))) -> 1 | M78: =IF($J78=0,1,INDEX(REG_Timing!$K$23:$O$27,$G$10,MATCH($J78,List_RegYear,0))) -> 1 | O78: 0 | P78: 0
B79: =IF(C79="Spare",TRUE,0) -> TRUE | C79: Spare | G79: $ / Component | L79: =IF($J79=0,1,INDEX(REG_Timing!$K$23:$O$27,$G$9,MATCH($J79,List_RegYear,0))) -> 1 | M79: =IF($J79=0,1,INDEX(REG_Timing!$K$23:$O$27,$G$10,MATCH($J79,List_RegYear,0))) -> 1 | O79: =H79/L79 -> 0 | P79: =I79/M79 -> 0
B80: TRUE | C80: Spare | G80: $ / Component | L80: =IF($J80=0,1,INDEX(REG_Timing!$K$23:$O$27,$G$9,MATCH($J80,List_RegYear,0))) -> 1 | M80: =IF($J80=0,1,INDEX(REG_Timing!$K$23:$O$27,$G$10,MATCH($J80,List_RegYear,0))) -> 1 | O80: 0 | P80: 0
B81: TRUE | C81: Spare | G81: $ / Component | L81: =IF($J81=0,1,INDEX(REG_Timing!$K$23:$O$27,$G$9,MATCH($J81,List_RegYear,0))) -> 1 | M81: =IF($J81=0,1,INDEX(REG_Timing!$K$23:$O$27,$G$10,MATCH($J81,List_RegYear,0))) -> 1 | O81: 0 | P81: 0
B82: TRUE | C82: Spare | G82: $ / Component | L82: =IF($J82=0,1,INDEX(REG_Timing!$K$23:$O$27,$G$9,MATCH($J82,List_RegYear,0))) -> 1 | M82: =IF($J82=0,1,INDEX(REG_Timing!$K$23:$O$27,$G$10,MATCH($J82,List_RegYear,0))) -> 1 | O82: 0 | P82: 0
B83: TRUE | C83: Spare | G83: $ / Component | L83: =IF($J83=0,1,INDEX(REG_Timing!$K$23:$O$27,$G$9,MATCH($J83,List_RegYear,0))) -> 1 | M83: =IF($J83=0,1,INDEX(REG_Timing!$K$23:$O$27,$G$10,MATCH($J83,List_RegYear,0))) -> 1 | O83: 0 | P83: 0
B84: TRUE | C84: Spare | G84: $ / Component | L84: =IF($J84=0,1,INDEX(REG_Timing!$K$23:$O$27,$G$9,MATCH($J84,List_RegYear,0))) -> 1 | M84: =IF($J84=0,1,INDEX(REG_Timing!$K$23:$O$27,$G$10,MATCH($J84,List_RegYear,0))) -> 1 | O84: 0 | P84: 0
B85: TRUE | C85: Spare | G85: $ / Component | L85: =IF($J85=0,1,INDEX(REG_Timing!$K$23:$O$27,$G$9,MATCH($J85,List_RegYear,0))) -> 1 | M85: =IF($J85=0,1,INDEX(REG_Timing!$K$23:$O$27,$G$10,MATCH($J85,List_RegYear,0))) -> 1 | O85: 0 | P85: 0
B86: TRUE | C86: Spare | G86: $ / Component | L86: =IF($J86=0,1,INDEX(REG_Timing!$K$23:$O$27,$G$9,MATCH($J86,List_RegYear,0))) -> 1 | M86: =IF($J86=0,1,INDEX(REG_Timing!$K$23:$O$27,$G$10,MATCH($J86,List_RegYear,0))) -> 1 | O86: 0 | P86: 0
B87: TRUE | C87: Spare | G87: $ / Component | L87: =IF($J87=0,1,INDEX(REG_Timing!$K$23:$O$27,$G$9,MATCH($J87,List_RegYear,0))) -> 1 | M87: =IF($J87=0,1,INDEX(REG_Timing!$K$23:$O$27,$G$10,MATCH($J87,List_RegYear,0))) -> 1 | O87: 0 | P87: 0
B88: TRUE | C88: Spare | G88: $ / Component | L88: =IF($J88=0,1,INDEX(REG_Timing!$K$23:$O$27,$G$9,MATCH($J88,List_RegYear,0))) -> 1 | M88: =IF($J88=0,1,INDEX(REG_Timing!$K$23:$O$27,$G$10,MATCH($J88,List_RegYear,0))) -> 1 | O88: 0 | P88: 0
B89: TRUE | C89: Spare | G89: $ / Component | L89: =IF($J89=0,1,INDEX(REG_Timing!$K$23:$O$27,$G$9,MATCH($J89,List_RegYear,0))) -> 1 | M89: =IF($J89=0,1,INDEX(REG_Timing!$K$23:$O$27,$G$10,MATCH($J89,List_RegYear,0))) -> 1 | O89: 0 | P89: 0
B90: TRUE | C90: Spare | G90: $ / Component | L90: =IF($J90=0,1,INDEX(REG_Timing!$K$23:$O$27,$G$9,MATCH($J90,List_RegYear,0))) -> 1 | M90: =IF($J90=0,1,INDEX(REG_Timing!$K$23:$O$27,$G$10,MATCH($J90,List_RegYear,0))) -> 1 | O90: 0 | P90: 0
B91: TRUE | C91: Spare | G91: $ / Component | L91: =IF($J91=0,1,INDEX(REG_Timing!$K$23:$O$27,$G$9,MATCH($J91,List_RegYear,0))) -> 1 | M91: =IF($J91=0,1,INDEX(REG_Timing!$K$23:$O$27,$G$10,MATCH($J91,List_RegYear,0))) -> 1 | O91: 0 | P91: 0
B92: TRUE | C92: Spare | G92: $ / Component | L92: =IF($J92=0,1,INDEX(REG_Timing!$K$23:$O$27,$G$9,MATCH($J92,List_RegYear,0))) -> 1 | M92: =IF($J92=0,1,INDEX(REG_Timing!$K$23:$O$27,$G$10,MATCH($J92,List_RegYear,0))) -> 1 | O92: 0 | P92: 0
B93: TRUE | C93: Spare | G93: $ / Component | L93: =IF($J93=0,1,INDEX(REG_Timing!$K$23:$O$27,$G$9,MATCH($J93,List_RegYear,0))) -> 1 | M93: =IF($J93=0,1,INDEX(REG_Timing!$K$23:$O$27,$G$10,MATCH($J93,List_RegYear,0))) -> 1 | O93: 0 | P93: 0
B94: TRUE | C94: Spare | G94: $ / Component | L94: =IF($J94=0,1,INDEX(REG_Timing!$K$23:$O$27,$G$9,MATCH($J94,List_RegYear,0))) -> 1 | M94: =IF($J94=0,1,INDEX(REG_Timing!$K$23:$O$27,$G$10,MATCH($J94,List_RegYear,0))) -> 1 | O94: 0 | P94: 0
B95: TRUE | C95: Spare | G95: $ / Component | L95: =IF($J95=0,1,INDEX(REG_Timing!$K$23:$O$27,$G$9,MATCH($J95,List_RegYear,0))) -> 1 | M95: =IF($J95=0,1,INDEX(REG_Timing!$K$23:$O$27,$G$10,MATCH($J95,List_RegYear,0))) -> 1 | O95: 0 | P95: 0
B96: TRUE | C96: Spare | G96: $ / Component | L96: =IF($J96=0,1,INDEX(REG_Timing!$K$23:$O$27,$G$9,MATCH($J96,List_RegYear,0))) -> 1 | M96: =IF($J96=0,1,INDEX(REG_Timing!$K$23:$O$27,$G$10,MATCH($J96,List_RegYear,0))) -> 1 | O96: 0 | P96: 0
B97: TRUE | C97: Spare | G97: $ / Component | L97: =IF($J97=0,1,INDEX(REG_Timing!$K$23:$O$27,$G$9,MATCH($J97,List_RegYear,0))) -> 1 | M97: =IF($J97=0,1,INDEX(REG_Timing!$K$23:$O$27,$G$10,MATCH($J97,List_RegYear,0))) -> 1 | O97: 0 | P97: 0
B98: TRUE | C98: Spare | G98: $ / Component | L98: =IF($J98=0,1,INDEX(REG_Timing!$K$23:$O$27,$G$9,MATCH($J98,List_RegYear,0))) -> 1 | M98: =IF($J98=0,1,INDEX(REG_Timing!$K$23:$O$27,$G$10,MATCH($J98,List_RegYear,0))) -> 1 | O98: 0 | P98: 0
B99: TRUE | C99: Spare | G99: $ / Component | L99: =IF($J99=0,1,INDEX(REG_Timing!$K$23:$O$27,$G$9,MATCH($J99,List_RegYear,0))) -> 1 | M99: =IF($J99=0,1,INDEX(REG_Timing!$K$23:$O$27,$G$10,MATCH($J99,List_RegYear,0))) -> 1 | O99: 0 | P99: 0
B100: TRUE | C100: Spare | G100: $ / Component | L100: =IF($J100=0,1,INDEX(REG_Timing!$K$23:$O$27,$G$9,MATCH($J100,List_RegYear,0))) -> 1 | M100: =IF($J100=0,1,INDEX(REG_Timing!$K$23:$O$27,$G$10,MATCH($J100,List_RegYear,0))) -> 1 | O100: 0 | P100: 0
B101: TRUE | C101: Spare | G101: $ / Component | L101: =IF($J101=0,1,INDEX(REG_Timing!$K$23:$O$27,$G$9,MATCH($J101,List_RegYear,0))) -> 1 | M101: =IF($J101=0,1,INDEX(REG_Timing!$K$23:$O$27,$G$10,MATCH($J101,List_RegYear,0))) -> 1 | O101: 0 | P101: 0
B102: TRUE | C102: Spare | G102: $ / Component | L102: =IF($J102=0,1,INDEX(REG_Timing!$K$23:$O$27,$G$9,MATCH($J102,List_RegYear,0))) -> 1 | M102: =IF($J102=0,1,INDEX(REG_Timing!$K$23:$O$27,$G$10,MATCH($J102,List_RegYear,0))) -> 1 | O102: 0 | P102: 0
B103: TRUE | C103: Spare | G103: $ / Component | L103: =IF($J103=0,1,INDEX(REG_Timing!$K$23:$O$27,$G$9,MATCH($J103,List_RegYear,0))) -> 1 | M103: =IF($J103=0,1,INDEX(REG_Timing!$K$23:$O$27,$G$10,MATCH($J103,List_RegYear,0))) -> 1 | O103: 0 | P103: 0
B104: TRUE | C104: Spare | G104: $ / Component | L104: =IF($J104=0,1,INDEX(REG_Timing!$K$23:$O$27,$G$9,MATCH($J104,List_RegYear,0))) -> 1 | M104: =IF($J104=0,1,INDEX(REG_Timing!$K$23:$O$27,$G$10,MATCH($J104,List_RegYear,0))) -> 1 | O104: 0 | P104: 0
B105: TRUE | C105: Spare | G105: $ / Component | L105: =IF($J105=0,1,INDEX(REG_Timing!$K$23:$O$27,$G$9,MATCH($J105,List_RegYear,0))) -> 1 | M105: =IF($J105=0,1,INDEX(REG_Timing!$K$23:$O$27,$G$10,MATCH($J105,List_RegYear,0))) -> 1 | O105: 0 | P105: 0
B106: TRUE | C106: Spare | G106: $ / Component | L106: =IF($J106=0,1,INDEX(REG_Timing!$K$23:$O$27,$G$9,MATCH($J106,List_RegYear,0))) -> 1 | M106: =IF($J106=0,1,INDEX(REG_Timing!$K$23:$O$27,$G$10,MATCH($J106,List_RegYear,0))) -> 1 | O106: 0 | P106: 0
B107: TRUE | C107: Spare | G107: $ / Component | L107: =IF($J107=0,1,INDEX(REG_Timing!$K$23:$O$27,$G$9,MATCH($J107,List_RegYear,0))) -> 1 | M107: =IF($J107=0,1,INDEX(REG_Timing!$K$23:$O$27,$G$10,MATCH($J107,List_RegYear,0))) -> 1 | O107: 0 | P107: 0
B108: TRUE | C108: Spare | G108: $ / Component | L108: =IF($J108=0,1,INDEX(REG_Timing!$K$23:$O$27,$G$9,MATCH($J108,List_RegYear,0))) -> 1 | M108: =IF($J108=0,1,INDEX(REG_Timing!$K$23:$O$27,$G$10,MATCH($J108,List_RegYear,0))) -> 1 | O108: 0 | P108: 0
B109: TRUE | C109: Spare | G109: $ / Component | L109: =IF($J109=0,1,INDEX(REG_Timing!$K$23:$O$27,$G$9,MATCH($J109,List_RegYear,0))) -> 1 | M109: =IF($J109=0,1,INDEX(REG_Timing!$K$23:$O$27,$G$10,MATCH($J109,List_RegYear,0))) -> 1 | O109: 0 | P109: 0
B110: TRUE | C110: Spare | G110: $ / Component | L110: =IF($J110=0,1,INDEX(REG_Timing!$K$23:$O$27,$G$9,MATCH($J110,List_RegYear,0))) -> 1 | M110: =IF($J110=0,1,INDEX(REG_Timing!$K$23:$O$27,$G$10,MATCH($J110,List_RegYear,0))) -> 1 | O110: 0 | P110: 0
B111: TRUE | C111: Spare | G111: $ / Component | L111: =IF($J111=0,1,INDEX(REG_Timing!$K$23:$O$27,$G$9,MATCH($J111,List_RegYear,0))) -> 1 | M111: =IF($J111=0,1,INDEX(REG_Timing!$K$23:$O$27,$G$10,MATCH($J111,List_RegYear,0))) -> 1 | O111: 0 | P111: 0
B112: TRUE | C112: Spare | G112: $ / Component | L112: =IF($J112=0,1,INDEX(REG_Timing!$K$23:$O$27,$G$9,MATCH($J112,List_RegYear,0))) -> 1 | M112: =IF($J112=0,1,INDEX(REG_Timing!$K$23:$O$27,$G$10,MATCH($J112,List_RegYear,0))) -> 1 | O112: 0 | P112: 0
B113: TRUE | C113: Spare | G113: $ / Component | L113: =IF($J113=0,1,INDEX(REG_Timing!$K$23:$O$27,$G$9,MATCH($J113,List_RegYear,0))) -> 1 | M113: =IF($J113=0,1,INDEX(REG_Timing!$K$23:$O$27,$G$10,MATCH($J113,List_RegYear,0))) -> 1 | O113: 0 | P113: 0
B114: TRUE | C114: Spare | G114: $ / Component | L114: =IF($J114=0,1,INDEX(REG_Timing!$K$23:$O$27,$G$9,MATCH($J114,List_RegYear,0))) -> 1 | M114: =IF($J114=0,1,INDEX(REG_Timing!$K$23:$O$27,$G$10,MATCH($J114,List_RegYear,0))) -> 1 | O114: 0 | P114: 0
B115: TRUE | C115: Spare | G115: $ / Component | L115: =IF($J115=0,1,INDEX(REG_Timing!$K$23:$O$27,$G$9,MATCH($J115,List_RegYear,0))) -> 1 | M115: =IF($J115=0,1,INDEX(REG_Timing!$K$23:$O$27,$G$10,MATCH($J115,List_RegYear,0))) -> 1 | O115: 0 | P115: 0
B116: TRUE | C116: Spare | G116: $ / Component | L116: =IF($J116=0,1,INDEX(REG_Timing!$K$23:$O$27,$G$9,MATCH($J116,List_RegYear,0))) -> 1 | M116: =IF($J116=0,1,INDEX(REG_Timing!$K$23:$O$27,$G$10,MATCH($J116,List_RegYear,0))) -> 1 | O116: 0 | P116: 0
B117: TRUE | C117: Spare | G117: $ / Component | L117: =IF($J117=0,1,INDEX(REG_Timing!$K$23:$O$27,$G$9,MATCH($J117,List_RegYear,0))) -> 1 | M117: =IF($J117=0,1,INDEX(REG_Timing!$K$23:$O$27,$G$10,MATCH($J117,List_RegYear,0))) -> 1 | O117: 0 | P117: 0
B118: TRUE | C118: Spare | G118: $ / Component | L118: =IF($J118=0,1,INDEX(REG_Timing!$K$23:$O$27,$G$9,MATCH($J118,List_RegYear,0))) -> 1 | M118: =IF($J118=0,1,INDEX(REG_Timing!$K$23:$O$27,$G$10,MATCH($J118,List_RegYear,0))) -> 1 | O118: 0 | P118: 0
B119: TRUE | C119: Spare | G119: $ / Component | L119: =IF($J119=0,1,INDEX(REG_Timing!$K$23:$O$27,$G$9,MATCH($J119,List_RegYear,0))) -> 1 | M119: =IF($J119=0,1,INDEX(REG_Timing!$K$23:$O$27,$G$10,MATCH($J119,List_RegYear,0))) -> 1 | O119: 0 | P119: 0
B120: TRUE | C120: Spare | G120: $ / Component | L120: =IF($J120=0,1,INDEX(REG_Timing!$K$23:$O$27,$G$9,MATCH($J120,List_RegYear,0))) -> 1 | M120: =IF($J120=0,1,INDEX(REG_Timing!$K$23:$O$27,$G$10,MATCH($J120,List_RegYear,0))) -> 1 | O120: 0 | P120: 0
B121: TRUE | C121: Spare | G121: $ / Component | L121: =IF($J121=0,1,INDEX(REG_Timing!$K$23:$O$27,$G$9,MATCH($J121,List_RegYear,0))) -> 1 | M121: =IF($J121=0,1,INDEX(REG_Timing!$K$23:$O$27,$G$10,MATCH($J121,List_RegYear,0))) -> 1 | O121: 0 | P121: 0
B122: TRUE | C122: Spare | G122: $ / Component | L122: =IF($J122=0,1,INDEX(REG_Timing!$K$23:$O$27,$G$9,MATCH($J122,List_RegYear,0))) -> 1 | M122: =IF($J122=0,1,INDEX(REG_Timing!$K$23:$O$27,$G$10,MATCH($J122,List_RegYear,0))) -> 1 | O122: 0 | P122: 0
B123: TRUE | C123: Spare | G123: $ / Component | L123: =IF($J123=0,1,INDEX(REG_Timing!$K$23:$O$27,$G$9,MATCH($J123,List_RegYear,0))) -> 1 | M123: =IF($J123=0,1,INDEX(REG_Timing!$K$23:$O$27,$G$10,MATCH($J123,List_RegYear,0))) -> 1 | O123: 0 | P123: 0
B124: TRUE | C124: Spare | G124: $ / Component | L124: =IF($J124=0,1,INDEX(REG_Timing!$K$23:$O$27,$G$9,MATCH($J124,List_RegYear,0))) -> 1 | M124: =IF($J124=0,1,INDEX(REG_Timing!$K$23:$O$27,$G$10,MATCH($J124,List_RegYear,0))) -> 1 | O124: 0 | P124: 0
B125: TRUE | C125: Spare | G125: $ / Component | L125: =IF($J125=0,1,INDEX(REG_Timing!$K$23:$O$27,$G$9,MATCH($J125,List_RegYear,0))) -> 1 | M125: =IF($J125=0,1,INDEX(REG_Timing!$K$23:$O$27,$G$10,MATCH($J125,List_RegYear,0))) -> 1 | O125: 0 | P125: 0
B126: TRUE | C126: Spare | G126: $ / Component | L126: =IF($J126=0,1,INDEX(REG_Timing!$K$23:$O$27,$G$9,MATCH($J126,List_RegYear,0))) -> 1 | M126: =IF($J126=0,1,INDEX(REG_Timing!$K$23:$O$27,$G$10,MATCH($J126,List_RegYear,0))) -> 1 | O126: 0 | P126: 0
B127: TRUE | C127: Spare | G127: $ / Component | L127: =IF($J127=0,1,INDEX(REG_Timing!$K$23:$O$27,$G$9,MATCH($J127,List_RegYear,0))) -> 1 | M127: =IF($J127=0,1,INDEX(REG_Timing!$K$23:$O$27,$G$10,MATCH($J127,List_RegYear,0))) -> 1 | O127: 0 | P127: 0
B128: TRUE | C128: Spare | G128: $ / Component | L128: =IF($J128=0,1,INDEX(REG_Timing!$K$23:$O$27,$G$9,MATCH($J128,List_RegYear,0))) -> 1 | M128: =IF($J128=0,1,INDEX(REG_Timing!$K$23:$O$27,$G$10,MATCH($J128,List_RegYear,0))) -> 1 | O128: 0 | P128: 0
B129: TRUE | C129: Spare | G129: $ / Component | L129: =IF($J129=0,1,INDEX(REG_Timing!$K$23:$O$27,$G$9,MATCH($J129,List_RegYear,0))) -> 1 | M129: =IF($J129=0,1,INDEX(REG_Timing!$K$23:$O$27,$G$10,MATCH($J129,List_RegYear,0))) -> 1 | O129: 0 | P129: 0
B130: TRUE | C130: Spare | G130: $ / Component | L130: =IF($J130=0,1,INDEX(REG_Timing!$K$23:$O$27,$G$9,MATCH($J130,List_RegYear,0))) -> 1 | M130: =IF($J130=0,1,INDEX(REG_Timing!$K$23:$O$27,$G$10,MATCH($J130,List_RegYear,0))) -> 1 | O130: 0 | P130: 0
B131: TRUE | C131: Spare | G131: $ / Component | L131: =IF($J131=0,1,INDEX(REG_Timing!$K$23:$O$27,$G$9,MATCH($J131,List_RegYear,0))) -> 1 | M131: =IF($J131=0,1,INDEX(REG_Timing!$K$23:$O$27,$G$10,MATCH($J131,List_RegYear,0))) -> 1 | O131: 0 | P131: 0
B132: TRUE | C132: Spare | G132: $ / Component | L132: =IF($J132=0,1,INDEX(REG_Timing!$K$23:$O$27,$G$9,MATCH($J132,List_RegYear,0))) -> 1 | M132: =IF($J132=0,1,INDEX(REG_Timing!$K$23:$O$27,$G$10,MATCH($J132,List_RegYear,0))) -> 1 | O132: =H132/L132 -> 0 | P132: 0
B133: TRUE | C133: Spare | G133: $ / Component | L133: =IF($J133=0,1,INDEX(REG_Timing!$K$23:$O$27,$G$9,MATCH($J133,List_RegYear,0))) -> 1 | M133: =IF($J133=0,1,INDEX(REG_Timing!$K$23:$O$27,$G$10,MATCH($J133,List_RegYear,0))) -> 1 | O133: 0 | P133: 0
B134: TRUE | C134: Spare | G134: $ / Component | L134: =IF($J134=0,1,INDEX(REG_Timing!$K$23:$O$27,$G$9,MATCH($J134,List_RegYear,0))) -> 1 | M134: =IF($J134=0,1,INDEX(REG_Timing!$K$23:$O$27,$G$10,MATCH($J134,List_RegYear,0))) -> 1 | O134: 0 | P134: 0
B135: TRUE | C135: Spare | G135: $ / Component | L135: =IF($J135=0,1,INDEX(REG_Timing!$K$23:$O$27,$G$9,MATCH($J135,List_RegYear,0))) -> 1 | M135: =IF($J135=0,1,INDEX(REG_Timing!$K$23:$O$27,$G$10,MATCH($J135,List_RegYear,0))) -> 1 | O135: 0 | P135: 0
B136: TRUE | C136: Spare | G136: $ / Component | L136: =IF($J136=0,1,INDEX(REG_Timing!$K$23:$O$27,$G$9,MATCH($J136,List_RegYear,0))) -> 1 | M136: =IF($J136=0,1,INDEX(REG_Timing!$K$23:$O$27,$G$10,MATCH($J136,List_RegYear,0))) -> 1 | O136: 0 | P136: 0
B137: TRUE | C137: Spare | G137: $ / Component | L137: =IF($J137=0,1,INDEX(REG_Timing!$K$23:$O$27,$G$9,MATCH($J137,List_RegYear,0))) -> 1 | M137: =IF($J137=0,1,INDEX(REG_Timing!$K$23:$O$27,$G$10,MATCH($J137,List_RegYear,0))) -> 1 | O137: 0 | P137: 0
B138: TRUE | C138: Spare | G138: $ / Component | L138: =IF($J138=0,1,INDEX(REG_Timing!$K$23:$O$27,$G$9,MATCH($J138,List_RegYear,0))) -> 1 | M138: =IF($J138=0,1,INDEX(REG_Timing!$K$23:$O$27,$G$10,MATCH($J138,List_RegYear,0))) -> 1 | O138: =H138/L138 -> 0 | P138: =I138/M138 -> 0
B139: =IF(C139="Spare",TRUE,0) -> TRUE | C139: Spare | G139: $ / Component | L139: =IF($J139=0,1,INDEX(REG_Timing!$K$23:$O$27,$G$9,MATCH($J139,List_RegYear,0))) -> 1 | M139: =IF($J139=0,1,INDEX(REG_Timing!$K$23:$O$27,$G$10,MATCH($J139,List_RegYear,0))) -> 1 | O139: 0 | P139: 0
B140: TRUE | C140: Spare | G140: $ / Component | L140: =IF($J140=0,1,INDEX(REG_Timing!$K$23:$O$27,$G$9,MATCH($J140,List_RegYear,0))) -> 1 | M140: =IF($J140=0,1,INDEX(REG_Timing!$K$23:$O$27,$G$10,MATCH($J140,List_RegYear,0))) -> 1 | O140: 0 | P140: 0
B141: TRUE | C141: Spare | G141: $ / Component | L141: =IF($J141=0,1,INDEX(REG_Timing!$K$23:$O$27,$G$9,MATCH($J141,List_RegYear,0))) -> 1 | M141: =IF($J141=0,1,INDEX(REG_Timing!$K$23:$O$27,$G$10,MATCH($J141,List_RegYear,0))) -> 1 | O141: 0 | P141: 0
B142: TRUE | C142: Spare | G142: $ / Component | L142: =IF($J142=0,1,INDEX(REG_Timing!$K$23:$O$27,$G$9,MATCH($J142,List_RegYear,0))) -> 1 | M142: =IF($J142=0,1,INDEX(REG_Timing!$K$23:$O$27,$G$10,MATCH($J142,List_RegYear,0))) -> 1 | O142: 0 | P142: 0
B143: TRUE | C143: Spare | G143: $ / Component | L143: =IF($J143=0,1,INDEX(REG_Timing!$K$23:$O$27,$G$9,MATCH($J143,List_RegYear,0))) -> 1 | M143: =IF($J143=0,1,INDEX(REG_Timing!$K$23:$O$27,$G$10,MATCH($J143,List_RegYear,0))) -> 1 | O143: 0 | P143: 0
B144: TRUE | C144: Spare | G144: $ / Component | L144: =IF($J144=0,1,INDEX(REG_Timing!$K$23:$O$27,$G$9,MATCH($J144,List_RegYear,0))) -> 1 | M144: =IF($J144=0,1,INDEX(REG_Timing!$K$23:$O$27,$G$10,MATCH($J144,List_RegYear,0))) -> 1 | O144: 0 | P144: 0
B145: TRUE | C145: Spare | G145: $ / Component | L145: =IF($J145=0,1,INDEX(REG_Timing!$K$23:$O$27,$G$9,MATCH($J145,List_RegYear,0))) -> 1 | M145: =IF($J145=0,1,INDEX(REG_Timing!$K$23:$O$27,$G$10,MATCH($J145,List_RegYear,0))) -> 1 | O145: 0 | P145: 0
B146: TRUE | C146: Spare | G146: $ / Component | L146: =IF($J146=0,1,INDEX(REG_Timing!$K$23:$O$27,$G$9,MATCH($J146,List_RegYear,0))) -> 1 | M146: =IF($J146=0,1,INDEX(REG_Timing!$K$23:$O$27,$G$10,MATCH($J146,List_RegYear,0))) -> 1 | O146: 0 | P146: 0
B147: TRUE | C147: Spare | G147: $ / Component | L147: =IF($J147=0,1,INDEX(REG_Timing!$K$23:$O$27,$G$9,MATCH($J147,List_RegYear,0))) -> 1 | M147: =IF($J147=0,1,INDEX(REG_Timing!$K$23:$O$27,$G$10,MATCH($J147,List_RegYear,0))) -> 1 | O147: 0 | P147: 0
B148: TRUE | C148: Spare | G148: $ / Component | L148: =IF($J148=0,1,INDEX(REG_Timing!$K$23:$O$27,$G$9,MATCH($J148,List_RegYear,0))) -> 1 | M148: =IF($J148=0,1,INDEX(REG_Timing!$K$23:$O$27,$G$10,MATCH($J148,List_RegYear,0))) -> 1 | O148: 0 | P148: 0
B149: TRUE | C149: Spare | G149: $ / Component | L149: =IF($J149=0,1,INDEX(REG_Timing!$K$23:$O$27,$G$9,MATCH($J149,List_RegYear,0))) -> 1 | M149: =IF($J149=0,1,INDEX(REG_Timing!$K$23:$O$27,$G$10,MATCH($J149,List_RegYear,0))) -> 1 | O149: 0 | P149: 0
B150: TRUE | C150: Spare | G150: $ / Component | L150: =IF($J150=0,1,INDEX(REG_Timing!$K$23:$O$27,$G$9,MATCH($J150,List_RegYear,0))) -> 1 | M150: =IF($J150=0,1,INDEX(REG_Timing!$K$23:$O$27,$G$10,MATCH($J150,List_RegYear,0))) -> 1 | O150: 0 | P150: 0
B151: TRUE | C151: Spare | G151: $ / Component | L151: =IF($J151=0,1,INDEX(REG_Timing!$K$23:$O$27,$G$9,MATCH($J151,List_RegYear,0))) -> 1 | M151: =IF($J151=0,1,INDEX(REG_Timing!$K$23:$O$27,$G$10,MATCH($J151,List_RegYear,0))) -> 1 | O151: 0 | P151: 0
B152: TRUE | C152: Spare | G152: $ / Component | L152: =IF($J152=0,1,INDEX(REG_Timing!$K$23:$O$27,$G$9,MATCH($J152,List_RegYear,0))) -> 1 | M152: =IF($J152=0,1,INDEX(REG_Timing!$K$23:$O$27,$G$10,MATCH($J152,List_RegYear,0))) -> 1 | O152: 0 | P152: 0
B153: TRUE | C153: Spare | G153: $ / Component | L153: =IF($J153=0,1,INDEX(REG_Timing!$K$23:$O$27,$G$9,MATCH($J153,List_RegYear,0))) -> 1 | M153: =IF($J153=0,1,INDEX(REG_Timing!$K$23:$O$27,$G$10,MATCH($J153,List_RegYear,0))) -> 1 | O153: 0 | P153: 0
B154: TRUE | C154: Spare | G154: $ / Component | L154: =IF($J154=0,1,INDEX(REG_Timing!$K$23:$O$27,$G$9,MATCH($J154,List_RegYear,0))) -> 1 | M154: =IF($J154=0,1,INDEX(REG_Timing!$K$23:$O$27,$G$10,MATCH($J154,List_RegYear,0))) -> 1 | O154: 0 | P154: 0
B155: TRUE | C155: Spare | G155: $ / Component | L155: =IF($J155=0,1,INDEX(REG_Timing!$K$23:$O$27,$G$9,MATCH($J155,List_RegYear,0))) -> 1 | M155: =IF($J155=0,1,INDEX(REG_Timing!$K$23:$O$27,$G$10,MATCH($J155,List_RegYear,0))) -> 1 | O155: 0 | P155: 0
B156: TRUE | C156: Spare | G156: $ / Component | L156: =IF($J156=0,1,INDEX(REG_Timing!$K$23:$O$27,$G$9,MATCH($J156,List_RegYear,0))) -> 1 | M156: =IF($J156=0,1,INDEX(REG_Timing!$K$23:$O$27,$G$10,MATCH($J156,List_RegYear,0))) -> 1 | O156: 0 | P156: 0
B157: TRUE | C157: Spare | G157: $ / Component | L157: =IF($J157=0,1,INDEX(REG_Timing!$K$23:$O$27,$G$9,MATCH($J157,List_RegYear,0))) -> 1 | M157: =IF($J157=0,1,INDEX(REG_Timing!$K$23:$O$27,$G$10,MATCH($J157,List_RegYear,0))) -> 1 | O157: 0 | P157: 0
B158: TRUE | C158: Spare | G158: $ / Component | L158: =IF($J158=0,1,INDEX(REG_Timing!$K$23:$O$27,$G$9,MATCH($J158,List_RegYear,0))) -> 1 | M158: =IF($J158=0,1,INDEX(REG_Timing!$K$23:$O$27,$G$10,MATCH($J158,List_RegYear,0))) -> 1 | O158: 0 | P158: 0
B159: TRUE | C159: Spare | G159: $ / Component | L159: =IF($J159=0,1,INDEX(REG_Timing!$K$23:$O$27,$G$9,MATCH($J159,List_RegYear,0))) -> 1 | M159: =IF($J159=0,1,INDEX(REG_Timing!$K$23:$O$27,$G$10,MATCH($J159,List_RegYear,0))) -> 1 | O159: 0 | P159: 0
B160: TRUE | C160: Spare | G160: $ / Component | L160: =IF($J160=0,1,INDEX(REG_Timing!$K$23:$O$27,$G$9,MATCH($J160,List_RegYear,0))) -> 1 | M160: =IF($J160=0,1,INDEX(REG_Timing!$K$23:$O$27,$G$10,MATCH($J160,List_RegYear,0))) -> 1 | O160: 0 | P160: 0
B161: TRUE | C161: Spare | G161: $ / Component | L161: =IF($J161=0,1,INDEX(REG_Timing!$K$23:$O$27,$G$9,MATCH($J161,List_RegYear,0))) -> 1 | M161: =IF($J161=0,1,INDEX(REG_Timing!$K$23:$O$27,$G$10,MATCH($J161,List_RegYear,0))) -> 1 | O161: 0 | P161: 0
B162: TRUE | C162: Spare | G162: $ / Component | L162: =IF($J162=0,1,INDEX(REG_Timing!$K$23:$O$27,$G$9,MATCH($J162,List_RegYear,0))) -> 1 | M162: =IF($J162=0,1,INDEX(REG_Timing!$K$23:$O$27,$G$10,MATCH($J162,List_RegYear,0))) -> 1 | O162: 0 | P162: 0
B163: TRUE | C163: Spare | G163: $ / Component | L163: =IF($J163=0,1,INDEX(REG_Timing!$K$23:$O$27,$G$9,MATCH($J163,List_RegYear,0))) -> 1 | M163: =IF($J163=0,1,INDEX(REG_Timing!$K$23:$O$27,$G$10,MATCH($J163,List_RegYear,0))) -> 1 | O163: 0 | P163: 0
B164: TRUE | C164: Spare | G164: $ / Component | L164: =IF($J164=0,1,INDEX(REG_Timing!$K$23:$O$27,$G$9,MATCH($J164,List_RegYear,0))) -> 1 | M164: =IF($J164=0,1,INDEX(REG_Timing!$K$23:$O$27,$G$10,MATCH($J164,List_RegYear,0))) -> 1 | O164: 0 | P164: 0
B165: TRUE | C165: Spare | G165: $ / Component | L165: =IF($J165=0,1,INDEX(REG_Timing!$K$23:$O$27,$G$9,MATCH($J165,List_RegYear,0))) -> 1 | M165: =IF($J165=0,1,INDEX(REG_Timing!$K$23:$O$27,$G$10,MATCH($J165,List_RegYear,0))) -> 1 | O165: 0 | P165: 0
B166: TRUE | C166: Spare | G166: $ / Component | L166: =IF($J166=0,1,INDEX(REG_Timing!$K$23:$O$27,$G$9,MATCH($J166,List_RegYear,0))) -> 1 | M166: =IF($J166=0,1,INDEX(REG_Timing!$K$23:$O$27,$G$10,MATCH($J166,List_RegYear,0))) -> 1 | O166: 0 | P166: 0
B167: TRUE | C167: Spare | G167: $ / Component | L167: =IF($J167=0,1,INDEX(REG_Timing!$K$23:$O$27,$G$9,MATCH($J167,List_RegYear,0))) -> 1 | M167: =IF($J167=0,1,INDEX(REG_Timing!$K$23:$O$27,$G$10,MATCH($J167,List_RegYear,0))) -> 1 | O167: 0 | P167: 0
B168: TRUE | C168: Spare | G168: $ / Component | L168: =IF($J168=0,1,INDEX(REG_Timing!$K$23:$O$27,$G$9,MATCH($J168,List_RegYear,0))) -> 1 | M168: =IF($J168=0,1,INDEX(REG_Timing!$K$23:$O$27,$G$10,MATCH($J168,List_RegYear,0))) -> 1 | O168: 0 | P168: 0
B169: TRUE | C169: Spare | G169: $ / Component | L169: =IF($J169=0,1,INDEX(REG_Timing!$K$23:$O$27,$G$9,MATCH($J169,List_RegYear,0))) -> 1 | M169: =IF($J169=0,1,INDEX(REG_Timing!$K$23:$O$27,$G$10,MATCH($J169,List_RegYear,0))) -> 1 | O169: 0 | P169: 0
B170: TRUE | C170: Spare | G170: $ / Component | L170: =IF($J170=0,1,INDEX(REG_Timing!$K$23:$O$27,$G$9,MATCH($J170,List_RegYear,0))) -> 1 | M170: =IF($J170=0,1,INDEX(REG_Timing!$K$23:$O$27,$G$10,MATCH($J170,List_RegYear,0))) -> 1 | O170: 0 | P170: 0
B171: TRUE | C171: Spare | G171: $ / Component | L171: =IF($J171=0,1,INDEX(REG_Timing!$K$23:$O$27,$G$9,MATCH($J171,List_RegYear,0))) -> 1 | M171: =IF($J171=0,1,INDEX(REG_Timing!$K$23:$O$27,$G$10,MATCH($J171,List_RegYear,0))) -> 1 | O171: 0 | P171: 0
B172: TRUE | C172: Spare | G172: $ / Component | L172: =IF($J172=0,1,INDEX(REG_Timing!$K$23:$O$27,$G$9,MATCH($J172,List_RegYear,0))) -> 1 | M172: =IF($J172=0,1,INDEX(REG_Timing!$K$23:$O$27,$G$10,MATCH($J172,List_RegYear,0))) -> 1 | O172: 0 | P172: 0
B173: TRUE | C173: Spare | G173: $ / Component | L173: =IF($J173=0,1,INDEX(REG_Timing!$K$23:$O$27,$G$9,MATCH($J173,List_RegYear,0))) -> 1 | M173: =IF($J173=0,1,INDEX(REG_Timing!$K$23:$O$27,$G$10,MATCH($J173,List_RegYear,0))) -> 1 | O173: 0 | P173: 0
XFD174: =I65*R65 -> 0
C175: ="Opex " & "- real " & RegYear-1 -> Opex - real 2019 | V175: =SUM(V24:V65) -> 0
C177: Operating Expenses
C179: Asset Register | F179: Total | G179: Overheads | H179: Globe (Lamp) | I179: Spare | J179: Spare | K179: Spare | L179: Spare | M179: Spare | N179: Spare | O179: Spare | P179: Spare | Q179: Spare | R179: Spare | S179: Spare | T179: Spare
B180: =IF(C180="Spare",TRUE,0) -> 0 | C180: =C24 -> 2x14W Energy Efficient Fluro - STD | D180: $ p.a. / Component | F180: 50.28953401
B181: =IF(C181="Spare",TRUE,0) -> 0 | C181: =C25 -> 2x24W Energy Efficient Fluro - STD | D181: $ p.a. / Component | F181: 50.28953401
B182: 0 | C182: 1x42W Compact Fluorescent - STD | D182: $ p.a. / Component | F182: 52.13953401
B183: 0 | C183: 50W Mercury - STANDARD | D183: $ p.a. / Component | F183: 53.48953401
B184: 0 | C184: 80W Mercury - STANDARD | D184: $ p.a. / Component | F184: 50.78953401
B185: 0 | C185: 70W Sodium - STANDARD | D185: $ p.a. / Component | F185: 55.80953401
B186: 0 | C186: 100W Sodium - STANDARD | D186: $ p.a. / Component | F186: 59.68953401
B187: 0 | C187: 100W Metal Halide - STANDARD | D187: $ p.a. / Component | F187: 79.01953401
B188: 0 | C188: 25W LED | D188: $ p.a. / Component | F188: 44.68275711
B189: 0 | C189: Suburban 70W HPS c/w D2 PECB - STD | D189: $ p.a. / Component | F189: 55.80953401
B190: 0 | C190: 150W Sodium - STANDARD | D190: $ p.a. / Component | F190: 55.63953401
B191: 0 | C191: 150W Metal Halide - STANDARD | D191: $ p.a. / Component | F191: 68.88953401
B192: 0 | C192: 250W Sodium - STANDARD | D192: $ p.a. / Component | F192: 64.86953401
B193: 0 | C193: 250W Metal Halide - STANDARD | D193: $ p.a. / Component | F193: 66.26953401
B194: 0 | C194: 400W Sodium - STANDARD | D194: $ p.a. / Component | F194: 57.78953401
B195: 0 | C195: 80W Mercury - AEROSCREEN | D195: $ p.a. / Component | F195: 77.78953401
B196: 0 | C196: Urban A/Screen 42W CFL c/w D2 PECB | D196: $ p.a. / Component | F196: 52.13953401
B197: 0 | C197: 150W Sodium - AEROSCREEN | D197: $ p.a. / Component | F197: 55.63953401
B198: 0 | C198: 150W Metal Halide - AEROSCREEN | D198: $ p.a. / Component | F198: 68.88953401
B199: 0 | C199: 250W Sodium (w/o PECB) - AEROSCREEN | D199: $ p.a. / Component | F199: 64.86953401
B200: 0 | C200: 250W Metal Halide - AEROSCREEN | D200: $ p.a. / Component | F200: 66.26953401
B201: 0 | C201: 400W Sodium - AEROSCREEN | D201: $ p.a. / Component | F201: 57.78953401
B202: 0 | C202: 400W Metal Halide - AEROSCREEN | D202: $ p.a. / Component | F202: 64.88953401
B203: 0 | C203: Roadster A/Screen 100W HPS c/w PECB | D203: $ p.a. / Component | F203: 59.68953401
B204: 0 | C204: 80W Mercury - POST TOP | D204: $ p.a. / Component | F204: 50.78953401
B205: 0 | C205: B2001 42WCFL c/w D2 PECB green - PT | D205: $ p.a. / Component | F205: 52.13953401
B206: 0 | C206: 250W Sodium - FLOODLIGHT | D206: $ p.a. / Component | F206: 64.86953401
B207: 0 | C207: 250W Metal Halide - FLOODLIGHT | D207: $ p.a. / Component | F207: 66.26953401
B208: 0 | C208: 400W Sodium - FLOODLIGHT | D208: $ p.a. / Component | F208: 57.78953401
B209: 0 | C209: 400W Metal Halide - FLOODLIGHT | D209: $ p.a. / Component | F209: 64.88953401
... 120 more rows

Sheet RAB
B1: RAB Revenue Inputs
C2: Inputs required for calculating the RAB revenue requirement.
C6: ="Opening Regulated Asset Base " & "- nominal " & RegYear-1 -> Opening Regulated Asset Base - nominal 2019
C8: RAB escalation index | D8: selection | E8: CPI
K9: Closing Inventory
E10: Opening RAB | F10: Remaining Life | G10: Standard Life | H10: Opening TAB | I10: Remaining Life | K10: =REG_Timing!J4 -> 2019 | L10: =REG_Timing!K4 -> 2020 | M10: =REG_Timing!L4 -> 2021 | N10: =REG_Timing!M4 -> 2022 | O10: =REG_Timing!N4 -> 2023 | P10: =REG_Timing!O4 -> 2024
E11: $ | F11: Yrs | G11: Yrs | H11: $ | I11: Yrs | K11: #
C12: Asset Class Name
B13: =IF(C13="Spare",TRUE,0) -> 0 | C13: ='Roll Forward'!C34 -> 1 x 20 W Fluorescent | E13: =RF!E1723 -> 997.8862984 | F13: 10 | G13: ='Roll Forward'!G34 -> 20 | H13: =RF!E2500 -> 946.2032666 | I13: =IF(H13=0,0,IF(IF('Roll Forward'!J34<RegDur,0,'Roll Forward'!J34-RegDur)=0,'Roll Forward'!K34-RegDur,IF('Roll Forward'!J34<RegDur,0,'Roll Forward'!J34-RegDur))) -> 5 | K13: 238 | L13: =IF(K13+K172-K330 < 0, 0, K13+K172-K330) -> 237 | M13: 236 | N13: =IF(M13+M172-M330<0,0,M13+M172-M330) -> 235 | O13: 234 | P13: 233
B14: 0 | C14: ='Roll Forward'!C35 -> 2 x 20 W Fluorescent | E14: =RF!E1724 -> 0 | F14: 0 | G14: ='Roll Forward'!G35 -> 20 | H14: =RF!E2501 -> 0 | I14: =IF(H14=0,0,IF(IF('Roll Forward'!J35<RegDur,0,'Roll Forward'!J35-RegDur)=0,'Roll Forward'!K35-RegDur,IF('Roll Forward'!J35<RegDur,0,'Roll Forward'!J35-RegDur))) -> 0 | K14: 90 | L14: =IF(K14+K173-K331 < 0, 0, K14+K173-K331) -> 88 | M14: 86 | N14: =IF(M14+M173-M331<0,0,M14+M173-M331) -> 84 | O14: 82 | P14: 80
B15: 0 | C15: ='Roll Forward'!C36 -> 4 x 20 W Fluorescent | E15: =RF!E1725 -> 33246.32356 | F15: 10 | G15: ='Roll Forward'!G36 -> 20 | H15: =RF!E2502 -> 39605.23787 | I15: =IF(H15=0,0,IF(IF('Roll Forward'!J36<RegDur,0,'Roll Forward'!J36-RegDur)=0,'Roll Forward'!K36-RegDur,IF('Roll Forward'!J36<RegDur,0,'Roll Forward'!J36-RegDur))) -> 5 | K15: 1 | L15: =IF(K15+K174-K332 < 0, 0, K15+K174-K332) -> 0 | M15: 0 | N15: =IF(M15+M174-M332<0,0,M15+M174-M332) -> 0 | O15: 0 | P15: 0
B16: 0 | C16: ='Roll Forward'!C37 -> 2 x 14 W Fluorescent | E16: =RF!E1726 -> 161284.9583 | F16: 8 | G16: ='Roll Forward'!G37 -> 20 | H16: =RF!E2503 -> 144465.8812 | I16: =IF(H16=0,0,IF(IF('Roll Forward'!J37<RegDur,0,'Roll Forward'!J37-RegDur)=0,'Roll Forward'!K37-RegDur,IF('Roll Forward'!J37<RegDur,0,'Roll Forward'!J37-RegDur))) -> 3 | K16: 3241 | L16: =IF(K16+K175-K333 < 0, 0, K16+K175-K333) -> 3063 | M16: 2885 | N16: =IF(M16+M175-M333<0,0,M16+M175-M333) -> 2707 | O16: 2529 | P16: 2351
B17: 0 | C17: ='Roll Forward'!C38 -> 2 x 24 W Fluorescent | E17: =RF!E1727 -> 50296.27014 | F17: 10 | G17: ='Roll Forward'!G38 -> 20 | H17: =RF!E2504 -> 30761.78709 | I17: =IF(H17=0,0,IF(IF('Roll Forward'!J38<RegDur,0,'Roll Forward'!J38-RegDur)=0,'Roll Forward'!K38-RegDur,IF('Roll Forward'!J38<RegDur,0,'Roll Forward'!J38-RegDur))) -> 5 | K17: 1608 | L17: =IF(K17+K176-K334 < 0, 0, K17+K176-K334) -> 1487 | M17: 1366 | N17: =IF(M17+M176-M334<0,0,M17+M176-M334) -> 1245 | O17: 1124 | P17: 1003
B18: 0 | C18: ='Roll Forward'!C39 -> 1 x 40 W Fluorescent | E18: =RF!E1728 -> 18865.81007 | F18: 10 | G18: ='Roll Forward'!G39 -> 20 | H18: =RF!E2505 -> 11376.62284 | I18: =IF(H18=0,0,IF(IF('Roll Forward'!J39<RegDur,0,'Roll Forward'!J39-RegDur)=0,'Roll Forward'!K39-RegDur,IF('Roll Forward'!J39<RegDur,0,'Roll Forward'!J39-RegDur))) -> 5 | K18: 2579 | L18: =IF(K18+K177-K335 < 0, 0, K18+K177-K335) -> 1785 | M18: 991 | N18: =IF(M18+M177-M335<0,0,M18+M177-M335) -> 197 | O18: 0 | P18: 0
B19: 0 | C19: ='Roll Forward'!C40 -> 2 x 40 W Fluorescent | E19: =RF!E1729 -> 0 | F19: 0 | G19: ='Roll Forward'!G40 -> 20 | H19: =RF!E2506 -> 0 | I19: =IF(H19=0,0,IF(IF('Roll Forward'!J40<RegDur,0,'Roll Forward'!J40-RegDur)=0,'Roll Forward'!K40-RegDur,IF('Roll Forward'!J40<RegDur,0,'Roll Forward'!J40-RegDur))) -> 0 | K19: 41 | L19: =IF(K19+K178-K336 < 0, 0, K19+K178-K336) -> 41 | M19: 41 | N19: =IF(M19+M178-M336<0,0,M19+M178-M336) -> 41 | O19: 41 | P19: 41
B20: 0 | C20: ='Roll Forward'!C41 -> 1 x 42 W Fluorescent | E20: =RF!E1730 -> 0 | F20: 0 | G20: ='Roll Forward'!G41 -> 20 | H20: =RF!E2507 -> 0 | I20: =IF(H20=0,0,IF(IF('Roll Forward'!J41<RegDur,0,'Roll Forward'!J41-RegDur)=0,'Roll Forward'!K41-RegDur,IF('Roll Forward'!J41<RegDur,0,'Roll Forward'!J41-RegDur))) -> 0 | K20: 1591 | L20: =IF(K20+K179-K337 < 0, 0, K20+K179-K337) -> 1478 | M20: 1365 | N20: =IF(M20+M179-M337<0,0,M20+M179-M337) -> 1252 | O20: 1139 | P20: 1026
B21: 0 | C21: ='Roll Forward'!C42 -> 50W Mercury | E21: =RF!E1731 -> 5804.77475 | F21: 10 | G21: ='Roll Forward'!G42 -> 20 | H21: =RF!E2508 -> 2198.957071 | I21: =IF(H21=0,0,IF(IF('Roll Forward'!J42<RegDur,0,'Roll Forward'!J42-RegDur)=0,'Roll Forward'!K42-RegDur,IF('Roll Forward'!J42<RegDur,0,'Roll Forward'!J42-RegDur))) -> 5 | K21: 3196 | L21: =IF(K21+K180-K338 < 0, 0, K21+K180-K338) -> 2241 | M21: 1286 | N21: =IF(M21+M180-M338<0,0,M21+M180-M338) -> 331 | O21: 0 | P21: 0
B22: 0 | C22: ='Roll Forward'!C43 -> 80W Mercury | E22: =RF!E1732 -> 75962.11196 | F22: 10 | G22: ='Roll Forward'!G43 -> 20 | H22: =RF!E2509 -> 19066.18115 | I22: =IF(H22=0,0,IF(IF('Roll Forward'!J43<RegDur,0,'Roll Forward'!J43-RegDur)=0,'Roll Forward'!K43-RegDur,IF('Roll Forward'!J43<RegDur,0,'Roll Forward'!J43-RegDur))) -> 10 | K22: 50943 | L22: =IF(K22+K181-K339 < 0, 0, K22+K181-K339) -> 43812 | M22: =IF(L22+L181-L339 < 0, 0, L22+L181-L339) -> 36681 | N22: =IF(M22+M181-M339<0,0,M22+M181-M339) -> 29550 | O22: =IF(N22+N181-N339<0,0,N22+N181-N339) -> 22419 | P22: =IF(O22+O181-O339<0,0,O22+O181-O339) -> 15288
B23: =IF(C23="Spare",TRUE,0) -> 0 | C23: ='Roll Forward'!C44 -> 125W Mercury | E23: =RF!E1733 -> 3894.713319 | F23: 5 | G23: ='Roll Forward'!G44 -> 20 | H23: =RF!E2510 -> 752.7303227 | I23: =IF(H23=0,0,IF(IF('Roll Forward'!J44<RegDur,0,'Roll Forward'!J44-RegDur)=0,'Roll Forward'!K44-RegDur,IF('Roll Forward'!J44<RegDur,0,'Roll Forward'!J44-RegDur))) -> 5 | K23: 2043 | L23: =IF(K23+K182-K340 < 0, 0, K23+K182-K340) -> 1874 | M23: 1705 | N23: =IF(M23+M182-M340<0,0,M23+M182-M340) -> 1536 | O23: 1367 | P23: 1198
B24: 0 | C24: ='Roll Forward'!C45 -> 250W Mercury | E24: =RF!E1734 -> 5596.698361 | F24: 5 | G24: ='Roll Forward'!G45 -> 20 | H24: =RF!E2511 -> 0 | I24: =IF(H24=0,0,IF(IF('Roll Forward'!J45<RegDur,0,'Roll Forward'!J45-RegDur)=0,'Roll Forward'!K45-RegDur,IF('Roll Forward'!J45<RegDur,0,'Roll Forward'!J45-RegDur))) -> 0 | K24: 1999 | L24: =IF(K24+K183-K341 < 0, 0, K24+K183-K341) -> 1947 | M24: 1895 | N24: =IF(M24+M183-M341<0,0,M24+M183-M341) -> 1843 | O24: 1791 | P24: 1739
B25: 0 | C25: ='Roll Forward'!C46 -> 2 x 250W Mercury | E25: =RF!E1735 -> 561.9182461 | F25: 10 | G25: ='Roll Forward'!G46 -> 20 | H25: =RF!E2512 -> 334.7978773 | I25: =IF(H25=0,0,IF(IF('Roll Forward'!J46<RegDur,0,'Roll Forward'!J46-RegDur)=0,'Roll Forward'!K46-RegDur,IF('Roll Forward'!J46<RegDur,0,'Roll Forward'!J46-RegDur))) -> 5 | K25: 2 | L25: =IF(K25+K184-K342 < 0, 0, K25+K184-K342) -> 2 | M25: 2 | N25: =IF(M25+M184-M342<0,0,M25+M184-M342) -> 2 | O25: 2 | P25: 2
B26: 0 | C26: ='Roll Forward'!C47 -> 400 W Mercury | E26: =RF!E1736 -> 2722.404012 | F26: 5 | G26: ='Roll Forward'!G47 -> 20 | H26: =RF!E2513 -> 0 | I26: =IF(H26=0,0,IF(IF('Roll Forward'!J47<RegDur,0,'Roll Forward'!J47-RegDur)=0,'Roll Forward'!K47-RegDur,IF('Roll Forward'!J47<RegDur,0,'Roll Forward'!J47-RegDur))) -> 0 | K26: 712 | L26: =IF(K26+K185-K343 < 0, 0, K26+K185-K343) -> 667 | M26: 622 | N26: =IF(M26+M185-M343<0,0,M26+M185-M343) -> 577 | O26: 532 | P26: 487
B27: 0 | C27: ='Roll Forward'!C48 -> 700 W Mercury | E27: =RF!E1737 -> 0 | F27: 0 | G27: ='Roll Forward'!G48 -> 20 | H27: =RF!E2514 -> 0 | I27: =IF(H27=0,0,IF(IF('Roll Forward'!J48<RegDur,0,'Roll Forward'!J48-RegDur)=0,'Roll Forward'!K48-RegDur,IF('Roll Forward'!J48<RegDur,0,'Roll Forward'!J48-RegDur))) -> 0 | K27: 0 | L27: =IF(K27+K186-K344 < 0, 0, K27+K186-K344) -> 0 | M27: 0 | N27: =IF(M27+M186-M344<0,0,M27+M186-M344) -> 0 | O27: 0 | P27: 0
B28: 0 | C28: ='Roll Forward'!C49 -> 50W Sodium | E28: =RF!E1738 -> 198.5170703 | F28: 10 | G28: ='Roll Forward'!G49 -> 20 | H28: =RF!E2515 -> 118.2789387 | I28: =IF(H28=0,0,IF(IF('Roll Forward'!J49<RegDur,0,'Roll Forward'!J49-RegDur)=0,'Roll Forward'!K49-RegDur,IF('Roll Forward'!J49<RegDur,0,'Roll Forward'!J49-RegDur))) -> 5 | K28: 4 | L28: =IF(K28+K187-K345 < 0, 0, K28+K187-K345) -> 4 | M28: 4 | N28: =IF(M28+M187-M345<0,0,M28+M187-M345) -> 4 | O28: 4 | P28: 4
B29: 0 | C29: ='Roll Forward'!C50 -> 70W Sodium | E29: =RF!E1739 -> 7365.110408 | F29: 10 | G29: ='Roll Forward'!G50 -> 20 | H29: =RF!E2516 -> 4447.876794 | I29: =IF(H29=0,0,IF(IF('Roll Forward'!J50<RegDur,0,'Roll Forward'!J50-RegDur)=0,'Roll Forward'!K50-RegDur,IF('Roll Forward'!J50<RegDur,0,'Roll Forward'!J50-RegDur))) -> 5 | K29: 895 | L29: =IF(K29+K188-K346 < 0, 0, K29+K188-K346) -> 846 | M29: =IF(L29+L188-L346 < 0, 0, L29+L188-L346) -> 797 | N29: =IF(M29+M188-M346<0,0,M29+M188-M346) -> 748 | O29: 699 | P29: 650
B30: 0 | C30: ='Roll Forward'!C51 -> 90W Sodium | E30: =RF!E1740 -> 0 | F30: 0 | G30: ='Roll Forward'!G51 -> 20 | H30: =RF!E2517 -> 0 | I30: =IF(H30=0,0,IF(IF('Roll Forward'!J51<RegDur,0,'Roll Forward'!J51-RegDur)=0,'Roll Forward'!K51-RegDur,IF('Roll Forward'!J51<RegDur,0,'Roll Forward'!J51-RegDur))) -> 0 | K30: 25 | L30: =IF(K30+K189-K347 < 0, 0, K30+K189-K347) -> 25 | M30: 25 | N30: =IF(M30+M189-M347<0,0,M30+M189-M347) -> 25 | O30: 25 | P30: 25
B31: 0 | C31: ='Roll Forward'!C52 -> 100W Sodium | E31: =RF!E1741 -> 16077.15502 | F31: 10 | G31: ='Roll Forward'!G52 -> 20 | H31: =RF!E2518 -> 17901.18296 | I31: =IF(H31=0,0,IF(IF('Roll Forward'!J52<RegDur,0,'Roll Forward'!J52-RegDur)=0,'Roll Forward'!K52-RegDur,IF('Roll Forward'!J52<RegDur,0,'Roll Forward'!J52-RegDur))) -> 5 | K31: 1475 | L31: =IF(K31+K190-K348 < 0, 0, K31+K190-K348) -> 1438 | M31: 1401 | N31: =IF(M31+M190-M348<0,0,M31+M190-M348) -> 1364 | O31: 1327 | P31: 1290
B32: 0 | C32: ='Roll Forward'!C53 -> 120W Sodium | E32: =RF!E1742 -> 217.6846082 | F32: 10 | G32: ='Roll Forward'!G53 -> 20 | H32: =RF!E2519 -> 137.7741257 | I32: =IF(H32=0,0,IF(IF('Roll Forward'!J53<RegDur,0,'Roll Forward'!J53-RegDur)=0,'Roll Forward'!K53-RegDur,IF('Roll Forward'!J53<RegDur,0,'Roll Forward'!J53-RegDur))) -> 5 | K32: 35 | L32: =IF(K32+K191-K349 < 0, 0, K32+K191-K349) -> 33 | M32: 31 | N32: =IF(M32+M191-M349<0,0,M32+M191-M349) -> 29 | O32: 27 | P32: 25
B33: 0 | C33: ='Roll Forward'!C54 -> 150W Sodium | E33: =RF!E1743 -> 177041.7449 | F33: 6 | G33: ='Roll Forward'!G54 -> 20 | H33: =RF!E2520 -> 0 | I33: =IF(H33=0,0,IF(IF('Roll Forward'!J54<RegDur,0,'Roll Forward'!J54-RegDur)=0,'Roll Forward'!K54-RegDur,IF('Roll Forward'!J54<RegDur,0,'Roll Forward'!J54-RegDur))) -> 0 | K33: 11143 | L33: =IF(K33+K192-K350 < 0, 0, K33+K192-K350) -> 11009 | M33: 10875 | N33: =IF(M33+M192-M350<0,0,M33+M192-M350) -> 10741 | O33: 10607 | P33: 10473
B34: 0 | C34: ='Roll Forward'!C55 -> 250W Sodium | E34: =RF!E1744 -> 65840.15333 | F34: 6 | G34: ='Roll Forward'!G55 -> 20 | H34: =RF!E2521 -> 0 | I34: =IF(H34=0,0,IF(IF('Roll Forward'!J55<RegDur,0,'Roll Forward'!J55-RegDur)=0,'Roll Forward'!K55-RegDur,IF('Roll Forward'!J55<RegDur,0,'Roll Forward'!J55-RegDur))) -> 0 | K34: 17782 | L34: =IF(K34+K193-K351 < 0, 0, K34+K193-K351) -> 17527 | M34: 17272 | N34: =IF(M34+M193-M351<0,0,M34+M193-M351) -> 17017 | O34: 16762 | P34: 16507
B35: 0 | C35: ='Roll Forward'!C56 -> 2 x 250W Sodium | E35: =RF!E1745 -> 939.8752958 | F35: 10 | G35: ='Roll Forward'!G56 -> 20 | H35: =RF!E2522 -> 559.9893867 | I35: =IF(H35=0,0,IF(IF('Roll Forward'!J56<RegDur,0,'Roll Forward'!J56-RegDur)=0,'Roll Forward'!K56-RegDur,IF('Roll Forward'!J56<RegDur,0,'Roll Forward'!J56-RegDur))) -> 5 | K35: 90 | L35: =IF(K35+K194-K352 < 0, 0, K35+K194-K352) -> 89 | M35: 88 | N35: =IF(M35+M194-M352<0,0,M35+M194-M352) -> 87 | O35: 86 | P35: 85
B36: 0 | C36: ='Roll Forward'!C57 -> 310W Sodium | E36: =RF!E1746 -> 0 | F36: 0 | G36: ='Roll Forward'!G57 -> 20 | H36: =RF!E2523 -> 0 | I36: =IF(H36=0,0,IF(IF('Roll Forward'!J57<RegDur,0,'Roll Forward'!J57-RegDur)=0,'Roll Forward'!K57-RegDur,IF('Roll Forward'!J57<RegDur,0,'Roll Forward'!J57-RegDur))) -> 0 | K36: 322 | L36: =IF(K36+K195-K353 < 0, 0, K36+K195-K353) -> 313 | M36: 304 | N36: =IF(M36+M195-M353<0,0,M36+M195-M353) -> 295 | O36: 286 | P36: 277
B37: 0 | C37: ='Roll Forward'!C58 -> 400 W Sodium | E37: =RF!E1747 -> 0 | F37: 1 | G37: ='Roll Forward'!G58 -> 20 | H37: =RF!E2524 -> 23987.33154 | I37: =IF(H37=0,0,IF(IF('Roll Forward'!J58<RegDur,0,'Roll Forward'!J58-RegDur)=0,'Roll Forward'!K58-RegDur,IF('Roll Forward'!J58<RegDur,0,'Roll Forward'!J58-RegDur))) -> 10 | K37: 1792 | L37: =IF(K37+K196-K354 < 0, 0, K37+K196-K354) -> 1763 | M37: 1734 | N37: =IF(M37+M196-M354<0,0,M37+M196-M354) -> 1705 | O37: 1676 | P37: 1647
B38: 0 | C38: ='Roll Forward'!C59 -> 2 x 400 W Sodium | E38: =RF!E1748 -> 1603.297848 | F38: 10 | G38: ='Roll Forward'!G59 -> 20 | H38: =RF!E2525 -> 1745.200957 | I38: =IF(H38=0,0,IF(IF('Roll Forward'!J59<RegDur,0,'Roll Forward'!J59-RegDur)=0,'Roll Forward'!K59-RegDur,IF('Roll Forward'!J59<RegDur,0,'Roll Forward'!J59-RegDur))) -> 5 | K38: 52 | L38: =IF(K38+K197-K355 < 0, 0, K38+K197-K355) -> 52 | M38: 52 | N38: =IF(M38+M197-M355<0,0,M38+M197-M355) -> 52 | O38: 52 | P38: 52
B39: 0 | C39: ='Roll Forward'!C60 -> 4 x 600W Sodium | E39: =RF!E1749 -> 0 | F39: 0 | G39: ='Roll Forward'!G60 -> 20 | H39: =RF!E2526 -> 0 | I39: =IF(H39=0,0,IF(IF('Roll Forward'!J60<RegDur,0,'Roll Forward'!J60-RegDur)=0,'Roll Forward'!K60-RegDur,IF('Roll Forward'!J60<RegDur,0,'Roll Forward'!J60-RegDur))) -> 0 | K39: 3 | L39: =IF(K39+K198-K356 < 0, 0, K39+K198-K356) -> 3 | M39: 3 | N39: =IF(M39+M198-M356<0,0,M39+M198-M356) -> 3 | O39: 3 | P39: 3
B40: 0 | C40: ='Roll Forward'!C61 -> 60 W Incandescent | E40: =RF!E1750 -> 0 | F40: 0 | G40: ='Roll Forward'!G61 -> 20 | H40: =RF!E2527 -> 0 | I40: =IF(H40=0,0,IF(IF('Roll Forward'!J61<RegDur,0,'Roll Forward'!J61-RegDur)=0,'Roll Forward'!K61-RegDur,IF('Roll Forward'!J61<RegDur,0,'Roll Forward'!J61-RegDur))) -> 0 | K40: 18 | L40: =IF(K40+K199-K357 < 0, 0, K40+K199-K357) -> 13 | M40: 8 | N40: =IF(M40+M199-M357<0,0,M40+M199-M357) -> 3 | O40: 0 | P40: 0
B41: 0 | C41: ='Roll Forward'!C62 -> 100 W Incandescent | E41: =RF!E1751 -> 0 | F41: 0 | G41: ='Roll Forward'!G62 -> 20 | H41: =RF!E2528 -> 0 | I41: =IF(H41=0,0,IF(IF('Roll Forward'!J62<RegDur,0,'Roll Forward'!J62-RegDur)=0,'Roll Forward'!K62-RegDur,IF('Roll Forward'!J62<RegDur,0,'Roll Forward'!J62-RegDur))) -> 0 | K41: 5 | L41: =IF(K41+K200-K358 < 0, 0, K41+K200-K358) -> 0 | M41: 0 | N41: =IF(M41+M200-M358<0,0,M41+M200-M358) -> 0 | O41: 0 | P41: 0
B42: 0 | C42: ='Roll Forward'!C63 -> 500 W Incandescent | E42: =RF!E1752 -> 0.01898805043 | F42: 10 | G42: ='Roll Forward'!G63 -> 20 | H42: =RF!E2529 -> 0 | I42: =IF(H42=0,0,IF(IF('Roll Forward'!J63<RegDur,0,'Roll Forward'!J63-RegDur)=0,'Roll Forward'!K63-RegDur,IF('Roll Forward'!J63<RegDur,0,'Roll Forward'!J63-RegDur))) -> 0 | K42: 0 | L42: =IF(K42+K201-K359 < 0, 0, K42+K201-K359) -> 0 | M42: 0 | N42: =IF(M42+M201-M359<0,0,M42+M201-M359) -> 0 | O42: 0 | P42: 0
B43: 0 | C43: ='Roll Forward'!C64 -> 1000 W Incandescent | E43: =RF!E1753 -> 0 | F43: 0 | G43: ='Roll Forward'!G64 -> 20 | H43: =RF!E2530 -> 0 | I43: =IF(H43=0,0,IF(IF('Roll Forward'!J64<RegDur,0,'Roll Forward'!J64-RegDur)=0,'Roll Forward'!K64-RegDur,IF('Roll Forward'!J64<RegDur,0,'Roll Forward'!J64-RegDur))) -> 0 | K43: 0 | L43: =IF(K43+K202-K360 < 0, 0, K43+K202-K360) -> 0 | M43: 0 | N43: =IF(M43+M202-M360<0,0,M43+M202-M360) -> 0 | O43: 0 | P43: 0
B44: 0 | C44: ='Roll Forward'!C65 -> 1500 W Incandescent | E44: =RF!E1754 -> 0 | F44: 0 | G44: ='Roll Forward'!G65 -> 20 | H44: =RF!E2531 -> 0 | I44: =IF(H44=0,0,IF(IF('Roll Forward'!J65<RegDur,0,'Roll Forward'!J65-RegDur)=0,'Roll Forward'!K65-RegDur,IF('Roll Forward'!J65<RegDur,0,'Roll Forward'!J65-RegDur))) -> 0 | K44: 1 | L44: =IF(K44+K203-K361 < 0, 0, K44+K203-K361) -> 1 | M44: 1 | N44: =IF(M44+M203-M361<0,0,M44+M203-M361) -> 1 | O44: 1 | P44: 1
B45: 0 | C45: ='Roll Forward'!C66 -> 100 W Metal Halide | E45: =RF!E1755 -> 7653.215523 | F45: 10 | G45: ='Roll Forward'!G66 -> 20 | H45: =RF!E2532 -> 182.1769279 | I45: =IF(H45=0,0,IF(IF('Roll Forward'!J66<RegDur,0,'Roll Forward'!J66-RegDur)=0,'Roll Forward'!K66-RegDur,IF('Roll Forward'!J66<RegDur,0,'Roll Forward'!J66-RegDur))) -> 10 | K45: 168 | L45: =IF(K45+K204-K362 < 0, 0, K45+K204-K362) -> 162 | M45: 156 | N45: =IF(M45+M204-M362<0,0,M45+M204-M362) -> 150 | O45: 144 | P45: 138
B46: 0 | C46: ='Roll Forward'!C67 -> 150 W Metal Halide | E46: =RF!E1756 -> 110103.918 | F46: 10 | G46: ='Roll Forward'!G67 -> 20 | H46: =RF!E2533 -> 176254.735 | I46: =IF(H46=0,0,IF(IF('Roll Forward'!J67<RegDur,0,'Roll Forward'!J67-RegDur)=0,'Roll Forward'!K67-RegDur,IF('Roll Forward'!J67<RegDur,0,'Roll Forward'!J67-RegDur))) -> 10 | K46: 321 | L46: =IF(K46+K205-K363 < 0, 0, K46+K205-K363) -> 302 | M46: 283 | N46: =IF(M46+M205-M363<0,0,M46+M205-M363) -> 264 | O46: 245 | P46: 226
B47: 0 | C47: ='Roll Forward'!C68 -> 250 W Metal Halide | E47: =RF!E1757 -> 15875.9922 | F47: 10 | G47: ='Roll Forward'!G68 -> 20 | H47: =RF!E2534 -> 34347.16664 | I47: =IF(H47=0,0,IF(IF('Roll Forward'!J68<RegDur,0,'Roll Forward'!J68-RegDur)=0,'Roll Forward'!K68-RegDur,IF('Roll Forward'!J68<RegDur,0,'Roll Forward'!J68-RegDur))) -> 10 | K47: 259 | L47: =IF(K47+K206-K364 < 0, 0, K47+K206-K364) -> 250 | M47: 241 | N47: =IF(M47+M206-M364<0,0,M47+M206-M364) -> 232 | O47: 223 | P47: 214
B48: 0 | C48: ='Roll Forward'!C69 -> 2 x 250 W Metal Halide | E48: =RF!E1758 -> 10834.72715 | F48: 10 | G48: ='Roll Forward'!G69 -> 20 | H48: =RF!E2535 -> 11804.32295 | I48: =IF(H48=0,0,IF(IF('Roll Forward'!J69<RegDur,0,'Roll Forward'!J69-RegDur)=0,'Roll Forward'!K69-RegDur,IF('Roll Forward'!J69<RegDur,0,'Roll Forward'!J69-RegDur))) -> 5 | K48: 37 | L48: =IF(K48+K207-K365 < 0, 0, K48+K207-K365) -> 36 | M48: 35 | N48: =IF(M48+M207-M365<0,0,M48+M207-M365) -> 34 | O48: 33 | P48: 32
B49: 0 | C49: ='Roll Forward'!C70 -> 400 W Metal Halide | E49: =RF!E1759 -> 4135.368311 | F49: 10 | G49: ='Roll Forward'!G70 -> 20 | H49: =RF!E2536 -> 26417.67569 | I49: =IF(H49=0,0,IF(IF('Roll Forward'!J70<RegDur,0,'Roll Forward'!J70-RegDur)=0,'Roll Forward'!K70-RegDur,IF('Roll Forward'!J70<RegDur,0,'Roll Forward'!J70-RegDur))) -> 10 | K49: 317 | L49: =IF(K49+K208-K366 < 0, 0, K49+K208-K366) -> 308 | M49: 299 | N49: =IF(M49+M208-M366<0,0,M49+M208-M366) -> 290 | O49: 281 | P49: 272
B50: 0 | C50: ='Roll Forward'!C71 -> 2 x 400 W Metal Halide | E50: =RF!E1760 -> 4033.177972 | F50: 10 | G50: ='Roll Forward'!G71 -> 20 | H50: =RF!E2537 -> 4411.435381 | I50: =IF(H50=0,0,IF(IF('Roll Forward'!J71<RegDur,0,'Roll Forward'!J71-RegDur)=0,'Roll Forward'!K71-RegDur,IF('Roll Forward'!J71<RegDur,0,'Roll Forward'!J71-RegDur))) -> 5 | K50: 7 | L50: =IF(K50+K209-K367 < 0, 0, K50+K209-K367) -> 7 | M50: 7 | N50: =IF(M50+M209-M367<0,0,M50+M209-M367) -> 7 | O50: 7 | P50: 7
B51: 0 | C51: ='Roll Forward'!C72 -> 1000 W Metal Halide | E51: =RF!E1761 -> 0 | F51: 10 | G51: ='Roll Forward'!G72 -> 20 | H51: =RF!E2538 -> 17.80757904 | I51: =IF(H51=0,0,IF(IF('Roll Forward'!J72<RegDur,0,'Roll Forward'!J72-RegDur)=0,'Roll Forward'!K72-RegDur,IF('Roll Forward'!J72<RegDur,0,'Roll Forward'!J72-RegDur))) -> 10 | K51: 14 | L51: =IF(K51+K210-K368 < 0, 0, K51+K210-K368) -> 13 | M51: 12 | N51: =IF(M51+M210-M368<0,0,M51+M210-M368) -> 11 | O51: 10 | P51: 9
B52: 0 | C52: ='Roll Forward'!C73 -> 600 W Sodium | E52: =RF!E1762 -> 2289.128766 | F52: 7 | G52: ='Roll Forward'!G73 -> 20 | H52: =RF!E2539 -> 611.6771524 | I52: =IF(H52=0,0,IF(IF('Roll Forward'!J73<RegDur,0,'Roll Forward'!J73-RegDur)=0,'Roll Forward'!K73-RegDur,IF('Roll Forward'!J73<RegDur,0,'Roll Forward'!J73-RegDur))) -> 2 | K52: 16 | L52: =IF(K52+K211-K369 < 0, 0, K52+K211-K369) -> 15 | M52: 14 | N52: =IF(M52+M211-M369<0,0,M52+M211-M369) -> 13 | O52: 12 | P52: 11
B53: 0 | C53: ='Roll Forward'!C74 -> Pole mounting bracket minor (<=3m) | E53: =RF!E1763 -> 29072.07739 | F53: 10 | G53: ='Roll Forward'!G74 -> 35 | H53: =RF!E2540 -> 85352.2605 | I53: =IF(H53=0,0,IF(IF('Roll Forward'!J74<RegDur,0,'Roll Forward'!J74-RegDur)=0,'Roll Forward'!K74-RegDur,IF('Roll Forward'!J74<RegDur,0,'Roll Forward'!J74-RegDur))) -> 10 | K53: 40224 | L53: =IF(K53+K212-K370 < 0, 0, K53+K212-K370) -> 39951 | M53: 39678 | N53: =IF(M53+M212-M370<0,0,M53+M212-M370) -> 39405 | O53: 39132 | P53: 38859
B54: 0 | C54: ='Roll Forward'!C75 -> Pole mounting bracket major (>3m) | E54: =RF!E1764 -> 37296.10725 | F54: 10 | G54: ='Roll Forward'!G75 -> 35 | H54: =RF!E2541 -> 0 | I54: =IF(H54=0,0,IF(IF('Roll Forward'!J75<RegDur,0,'Roll Forward'!J75-RegDur)=0,'Roll Forward'!K75-RegDur,IF('Roll Forward'!J75<RegDur,0,'Roll Forward'!J75-RegDur))) -> 0 | K54: 25398 | L54: =IF(K54+K213-K371 < 0, 0, K54+K213-K371) -> 25284 | M54: 25170 | N54: =IF(M54+M213-M371<0,0,M54+M213-M371) -> 25056 | O54: 24942 | P54: 24828
B55: 0 | C55: ='Roll Forward'!C76 -> Outreach Minor (<=2m) | E55: =RF!E1765 -> 2824.429335 | F55: 10 | G55: ='Roll Forward'!G76 -> 35 | H55: =RF!E2542 -> 397858.1211 | I55: =IF(H55=0,0,IF(IF('Roll Forward'!J76<RegDur,0,'Roll Forward'!J76-RegDur)=0,'Roll Forward'!K76-RegDur,IF('Roll Forward'!J76<RegDur,0,'Roll Forward'!J76-RegDur))) -> 10 | K55: 9040 | L55: =IF(K55+K214-K372 < 0, 0, K55+K214-K372) -> 8861 | M55: 8682 | N55: =IF(M55+M214-M372<0,0,M55+M214-M372) -> 8503 | O55: 8324 | P55: 8145
B56: 0 | C56: ='Roll Forward'!C77 -> Outreach Major (>2m) | E56: =RF!E1766 -> 533.6051552 | F56: 10 | G56: ='Roll Forward'!G77 -> 35 | H56: =RF!E2543 -> 476106.7672 | I56: =IF(H56=0,0,IF(IF('Roll Forward'!J77<RegDur,0,'Roll Forward'!J77-RegDur)=0,'Roll Forward'!K77-RegDur,IF('Roll Forward'!J77<RegDur,0,'Roll Forward'!J77-RegDur))) -> 10 | K56: 11899 | L56: =IF(K56+K215-K373 < 0, 0, K56+K215-K373) -> 11849 | M56: 11799 | N56: =IF(M56+M215-M373<0,0,M56+M215-M373) -> 11749 | O56: 11699 | P56: 11649
B57: 0 | C57: ='Roll Forward'!C78 -> Minor Column (<=9) | E57: =RF!E1767 -> 2304291.568 | F57: 15 | G57: ='Roll Forward'!G78 -> 35 | H57: =RF!E2544 -> 161384.7862 | I57: =IF(H57=0,0,IF(IF('Roll Forward'!J78<RegDur,0,'Roll Forward'!J78-RegDur)=0,'Roll Forward'!K78-RegDur,IF('Roll Forward'!J78<RegDur,0,'Roll Forward'!J78-RegDur))) -> 10 | K57: 34936 | L57: =IF(K57+K216-K374 < 0, 0, K57+K216-K374) -> 34759 | M57: 34582 | N57: =IF(M57+M216-M374<0,0,M57+M216-M374) -> 34405 | O57: 34228 | P57: 34051
B58: 0 | C58: ='Roll Forward'!C79 -> Major Column (>=9) | E58: =RF!E1768 -> 10884633.13 | F58: 15 | G58: ='Roll Forward'!G79 -> 35 | H58: =RF!E2545 -> 254199.591 | I58: =IF(H58=0,0,IF(IF('Roll Forward'!J79<RegDur,0,'Roll Forward'!J79-RegDur)=0,'Roll Forward'!K79-RegDur,IF('Roll Forward'!J79<RegDur,0,'Roll Forward'!J79-RegDur))) -> 10 | K58: 11701 | L58: =IF(K58+K217-K375 < 0, 0, K58+K217-K375) -> 11649 | M58: 11597 | N58: =IF(M58+M217-M375<0,0,M58+M217-M375) -> 11545 | O58: 11493 | P58: 11441
B59: TRUE | C59: ='Roll Forward'!C80 -> Spare | E59: =RF!E1769 -> 0 | F59: =IF('Roll Forward'!F80<RegDur,0,'Roll Forward'!F80-RegDur) -> 0 | G59: ='Roll Forward'!G80 -> 0 | H59: =RF!E2546 -> 0 | I59: =IF('Roll Forward'!J80<RegDur,0,'Roll Forward'!J80-RegDur) -> 0 | K59: 0 | L59: =K59-K690 -> 0 | M59: =L59-L690 -> 0 | N59: =M59-M690 -> 0 | O59: =N59-N690 -> 0 | P59: =O59-O690 -> 0
B60: TRUE | C60: ='Roll Forward'!C81 -> Spare | E60: =RF!E1770 -> 0 | F60: =IF('Roll Forward'!F81<RegDur,0,'Roll Forward'!F81-RegDur) -> 0 | G60: ='Roll Forward'!G81 -> 0 | H60: =RF!E2547 -> 0 | I60: =IF('Roll Forward'!J81<RegDur,0,'Roll Forward'!J81-RegDur) -> 0 | K60: 0 | L60: 0 | M60: 0 | N60: 0 | O60: 0 | P60: 0
B61: TRUE | C61: ='Roll Forward'!C82 -> Spare | E61: =RF!E1771 -> 0 | F61: =IF('Roll Forward'!F82<RegDur,0,'Roll Forward'!F82-RegDur) -> 0 | G61: ='Roll Forward'!G82 -> 0 | H61: =RF!E2548 -> 0 | I61: =IF('Roll Forward'!J82<RegDur,0,'Roll Forward'!J82-RegDur) -> 0 | K61: 0 | L61: 0 | M61: 0 | N61: 0 | O61: 0 | P61: 0
B62: TRUE | C62: ='Roll Forward'!C83 -> Spare | E62: =RF!E1772 -> 0 | F62: =IF('Roll Forward'!F83<RegDur,0,'Roll Forward'!F83-RegDur) -> 0 | G62: ='Roll Forward'!G83 -> 0 | H62: =RF!E2549 -> 0 | I62: =IF('Roll Forward'!J83<RegDur,0,'Roll Forward'!J83-RegDur) -> 0 | K62: 0 | L62: 0 | M62: 0 | N62: 0 | O62: 0 | P62: 0
B63: TRUE | C63: ='Roll Forward'!C84 -> Spare | E63: =RF!E1773 -> 0 | F63: =IF('Roll Forward'!F84<RegDur,0,'Roll Forward'!F84-RegDur) -> 0 | G63: ='Roll Forward'!G84 -> 0 | H63: =RF!E2550 -> 0 | I63: =IF('Roll Forward'!J84<RegDur,0,'Roll Forward'!J84-RegDur) -> 0 | K63: 0 | L63: 0 | M63: 0 | N63: 0 | O63: 0 | P63: 0
B64: TRUE | C64: ='Roll Forward'!C85 -> Spare | E64: =RF!E1774 -> 0 | F64: =IF('Roll Forward'!F85<RegDur,0,'Roll Forward'!F85-RegDur) -> 0 | G64: ='Roll Forward'!G85 -> 0 | H64: =RF!E2551 -> 0 | I64: =IF('Roll Forward'!J85<RegDur,0,'Roll Forward'!J85-RegDur) -> 0 | K64: 0 | L64: 0 | M64: 0 | N64: 0 | O64: 0 | P64: 0
B65: TRUE | C65: ='Roll Forward'!C86 -> Spare | E65: =RF!E1775 -> 0 | F65: =IF('Roll Forward'!F86<RegDur,0,'Roll Forward'!F86-RegDur) -> 0 | G65: ='Roll Forward'!G86 -> 0 | H65: =RF!E2552 -> 0 | I65: =IF('Roll Forward'!J86<RegDur,0,'Roll Forward'!J86-RegDur) -> 0 | K65: 0 | L65: 0 | M65: 0 | N65: 0 | O65: 0 | P65: 0
B66: TRUE | C66: ='Roll Forward'!C87 -> Spare | E66: =RF!E1776 -> 0 | F66: =IF('Roll Forward'!F87<RegDur,0,'Roll Forward'!F87-RegDur) -> 0 | G66: ='Roll Forward'!G87 -> 0 | H66: =RF!E2553 -> 0 | I66: =IF('Roll Forward'!J87<RegDur,0,'Roll Forward'!J87-RegDur) -> 0 | K66: 0 | L66: 0 | M66: 0 | N66: 0 | O66: 0 | P66: 0
B67: TRUE | C67: ='Roll Forward'!C88 -> Spare | E67: =RF!E1777 -> 0 | F67: =IF('Roll Forward'!F88<RegDur,0,'Roll Forward'!F88-RegDur) -> 0 | G67: ='Roll Forward'!G88 -> 0 | H67: =RF!E2554 -> 0 | I67: =IF('Roll Forward'!J88<RegDur,0,'Roll Forward'!J88-RegDur) -> 0 | K67: 0 | L67: 0 | M67: 0 | N67: 0 | O67: 0 | P67: 0
B68: TRUE | C68: ='Roll Forward'!C89 -> Spare | E68: =RF!E1778 -> 0 | F68: =IF('Roll Forward'!F89<RegDur,0,'Roll Forward'!F89-RegDur) -> 0 | G68: ='Roll Forward'!G89 -> 0 | H68: =RF!E2555 -> 0 | I68: =IF('Roll Forward'!J89<RegDur,0,'Roll Forward'!J89-RegDur) -> 0 | K68: 0 | L68: 0 | M68: 0 | N68: 0 | O68: 0 | P68: 0
B69: TRUE | C69: ='Roll Forward'!C90 -> Spare | E69: =RF!E1779 -> 0 | F69: =IF('Roll Forward'!F90<RegDur,0,'Roll Forward'!F90-RegDur) -> 0 | G69: ='Roll Forward'!G90 -> 0 | H69: =RF!E2556 -> 0 | I69: =IF('Roll Forward'!J90<RegDur,0,'Roll Forward'!J90-RegDur) -> 0 | K69: 0 | L69: 0 | M69: 0 | N69: 0 | O69: 0 | P69: 0
B70: TRUE | C70: ='Roll Forward'!C91 -> Spare | E70: =RF!E1780 -> 0 | F70: =IF('Roll Forward'!F91<RegDur,0,'Roll Forward'!F91-RegDur) -> 0 | G70: ='Roll Forward'!G91 -> 0 | H70: =RF!E2557 -> 0 | I70: =IF('Roll Forward'!J91<RegDur,0,'Roll Forward'!J91-RegDur) -> 0 | K70: 0 | L70: 0 | M70: 0 | N70: 0 | O70: 0 | P70: 0
B71: TRUE | C71: ='Roll Forward'!C92 -> Spare | E71: =RF!E1781 -> 0 | F71: =IF('Roll Forward'!F92<RegDur,0,'Roll Forward'!F92-RegDur) -> 0 | G71: ='Roll Forward'!G92 -> 0 | H71: =RF!E2558 -> 0 | I71: =IF('Roll Forward'!J92<RegDur,0,'Roll Forward'!J92-RegDur) -> 0 | K71: 0 | L71: 0 | M71: 0 | N71: 0 | O71: 0 | P71: 0
B72: TRUE | C72: ='Roll Forward'!C93 -> Spare | E72: =RF!E1782 -> 0 | F72: =IF('Roll Forward'!F93<RegDur,0,'Roll Forward'!F93-RegDur) -> 0 | G72: ='Roll Forward'!G93 -> 0 | H72: =RF!E2559 -> 0 | I72: =IF('Roll Forward'!J93<RegDur,0,'Roll Forward'!J93-RegDur) -> 0 | K72: 0 | L72: 0 | M72: 0 | N72: 0 | O72: 0 | P72: 0
B73: TRUE | C73: ='Roll Forward'!C94 -> Spare | E73: =RF!E1783 -> 0 | F73: =IF('Roll Forward'!F94<RegDur,0,'Roll Forward'!F94-RegDur) -> 0 | G73: ='Roll Forward'!G94 -> 0 | H73: =RF!E2560 -> 0 | I73: =IF('Roll Forward'!J94<RegDur,0,'Roll Forward'!J94-RegDur) -> 0 | K73: 0 | L73: 0 | M73: 0 | N73: 0 | O73: 0 | P73: 0
B74: TRUE | C74: ='Roll Forward'!C95 -> Spare | E74: =RF!E1784 -> 0 | F74: =IF('Roll Forward'!F95<RegDur,0,'Roll Forward'!F95-RegDur) -> 0 | G74: ='Roll Forward'!G95 -> 0 | H74: =RF!E2561 -> 0 | I74: =IF('Roll Forward'!J95<RegDur,0,'Roll Forward'!J95-RegDur) -> 0 | K74: 0 | L74: 0 | M74: 0 | N74: 0 | O74: 0 | P74: 0
B75: TRUE | C75: ='Roll Forward'!C96 -> Spare | E75: =RF!E1785 -> 0 | F75: =IF('Roll Forward'!F96<RegDur,0,'Roll Forward'!F96-RegDur) -> 0 | G75: ='Roll Forward'!G96 -> 0 | H75: =RF!E2562 -> 0 | I75: =IF('Roll Forward'!J96<RegDur,0,'Roll Forward'!J96-RegDur) -> 0 | K75: 0 | L75: 0 | M75: 0 | N75: 0 | O75: 0 | P75: 0
B76: TRUE | C76: ='Roll Forward'!C97 -> Spare | E76: =RF!E1786 -> 0 | F76: =IF('Roll Forward'!F97<RegDur,0,'Roll Forward'!F97-RegDur) -> 0 | G76: ='Roll Forward'!G97 -> 0 | H76: =RF!E2563 -> 0 | I76: =IF('Roll Forward'!J97<RegDur,0,'Roll Forward'!J97-RegDur) -> 0 | K76: 0 | L76: 0 | M76: 0 | N76: 0 | O76: 0 | P76: 0
B77: TRUE | C77: ='Roll Forward'!C98 -> Spare | E77: =RF!E1787 -> 0 | F77: =IF('Roll Forward'!F98<RegDur,0,'Roll Forward'!F98-RegDur) -> 0 | G77: ='Roll Forward'!G98 -> 0 | H77: =RF!E2564 -> 0 | I77: =IF('Roll Forward'!J98<RegDur,0,'Roll Forward'!J98-RegDur) -> 0 | K77: 0 | L77: 0 | M77: 0 | N77: 0 | O77: 0 | P77: 0
B78: TRUE | C78: ='Roll Forward'!C99 -> Spare | E78: =RF!E1788 -> 0 | F78: =IF('Roll Forward'!F99<RegDur,0,'Roll Forward'!F99-RegDur) -> 0 | G78: ='Roll Forward'!G99 -> 0 | H78: =RF!E2565 -> 0 | I78: =IF('Roll Forward'!J99<RegDur,0,'Roll Forward'!J99-RegDur) -> 0 | K78: 0 | L78: 0 | M78: 0 | N78: 0 | O78: 0 | P78: 0
B79: TRUE | C79: ='Roll Forward'!C100 -> Spare | E79: =RF!E1789 -> 0 | F79: =IF('Roll Forward'!F100<RegDur,0,'Roll Forward'!F100-RegDur) -> 0 | G79: ='Roll Forward'!G100 -> 0 | H79: =RF!E2566 -> 0 | I79: =IF('Roll Forward'!J100<RegDur,0,'Roll Forward'!J100-RegDur) -> 0 | K79: 0 | L79: 0 | M79: 0 | N79: 0 | O79: 0 | P79: 0
B80: TRUE | C80: ='Roll Forward'!C101 -> Spare | E80: =RF!E1790 -> 0 | F80: =IF('Roll Forward'!F101<RegDur,0,'Roll Forward'!F101-RegDur) -> 0 | G80: ='Roll Forward'!G101 -> 0 | H80: =RF!E2567 -> 0 | I80: =IF('Roll Forward'!J101<RegDur,0,'Roll Forward'!J101-RegDur) -> 0 | K80: 0 | L80: 0 | M80: 0 | N80: 0 | O80: 0 | P80: 0
B81: TRUE | C81: ='Roll Forward'!C102 -> Spare | E81: =RF!E1791 -> 0 | F81: =IF('Roll Forward'!F102<RegDur,0,'Roll Forward'!F102-RegDur) -> 0 | G81: ='Roll Forward'!G102 -> 0 | H81: =RF!E2568 -> 0 | I81: =IF('Roll Forward'!J102<RegDur,0,'Roll Forward'!J102-RegDur) -> 0 | K81: 0 | L81: 0 | M81: 0 | N81: 0 | O81: 0 | P81: 0
B82: TRUE | C82: ='Roll Forward'!C103 -> Spare | E82: =RF!E1792 -> 0 | F82: =IF('Roll Forward'!F103<RegDur,0,'Roll Forward'!F103-RegDur) -> 0 | G82: ='Roll Forward'!G103 -> 0 | H82: =RF!E2569 -> 0 | I82: =IF('Roll Forward'!J103<RegDur,0,'Roll Forward'!J103-RegDur) -> 0 | K82: 0 | L82: 0 | M82: 0 | N82: 0 | O82: 0 | P82: 0
B83: TRUE | C83: ='Roll Forward'!C104 -> Spare | E83: =RF!E1793 -> 0 | F83: =IF('Roll Forward'!F104<RegDur,0,'Roll Forward'!F104-RegDur) -> 0 | G83: ='Roll Forward'!G104 -> 0 | H83: =RF!E2570 -> 0 | I83: =IF('Roll Forward'!J104<RegDur,0,'Roll Forward'!J104-RegDur) -> 0 | K83: 0 | L83: 0 | M83: 0 | N83: 0 | O83: 0 | P83: 0
B84: TRUE | C84: ='Roll Forward'!C105 -> Spare | E84: =RF!E1794 -> 0 | F84: =IF('Roll Forward'!F105<RegDur,0,'Roll Forward'!F105-RegDur) -> 0 | G84: ='Roll Forward'!G105 -> 0 | H84: =RF!E2571 -> 0 | I84: =IF('Roll Forward'!J105<RegDur,0,'Roll Forward'!J105-RegDur) -> 0 | K84: 0 | L84: 0 | M84: 0 | N84: 0 | O84: 0 | P84: 0
B85: TRUE | C85: ='Roll Forward'!C106 -> Spare | E85: =RF!E1795 -> 0 | F85: =IF('Roll Forward'!F106<RegDur,0,'Roll Forward'!F106-RegDur) -> 0 | G85: ='Roll Forward'!G106 -> 0 | H85: =RF!E2572 -> 0 | I85: =IF('Roll Forward'!J106<RegDur,0,'Roll Forward'!J106-RegDur) -> 0 | K85: 0 | L85: 0 | M85: 0 | N85: 0 | O85: 0 | P85: 0
B86: TRUE | C86: ='Roll Forward'!C107 -> Spare | E86: =RF!E1796 -> 0 | F86: =IF('Roll Forward'!F107<RegDur,0,'Roll Forward'!F107-RegDur) -> 0 | G86: ='Roll Forward'!G107 -> 0 | H86: =RF!E2573 -> 0 | I86: =IF('Roll Forward'!J107<RegDur,0,'Roll Forward'!J107-RegDur) -> 0 | K86: 0 | L86: 0 | M86: 0 | N86: 0 | O86: 0 | P86: 0
B87: =IF(C87="Spare",TRUE,0) -> TRUE | C87: ='Roll Forward'!C108 -> Spare | E87: =RF!E1797 -> 0 | F87: =IF('Roll Forward'!F108<RegDur,0,'Roll Forward'!F108-RegDur) -> 0 | G87: ='Roll Forward'!G108 -> 0 | H87: =RF!E2574 -> 0 | I87: =IF('Roll Forward'!J108<RegDur,0,'Roll Forward'!J108-RegDur) -> 0 | K87: 0 | L87: =K87-K718 -> 0 | M87: =L87-L718 -> 0 | N87: =M87-M718 -> 0 | O87: =N87-N718 -> 0 | P87: =O87-O718 -> 0
B88: TRUE | C88: ='Roll Forward'!C109 -> Spare | E88: =RF!E1798 -> 0 | F88: =IF('Roll Forward'!F109<RegDur,0,'Roll Forward'!F109-RegDur) -> 0 | G88: ='Roll Forward'!G109 -> 0 | H88: =RF!E2575 -> 0 | I88: =IF('Roll Forward'!J109<RegDur,0,'Roll Forward'!J109-RegDur) -> 0 | K88: 0 | L88: 0 | M88: 0 | N88: 0 | O88: 0 | P88: 0
B89: TRUE | C89: ='Roll Forward'!C110 -> Spare | E89: =RF!E1799 -> 0 | F89: =IF('Roll Forward'!F110<RegDur,0,'Roll Forward'!F110-RegDur) -> 0 | G89: ='Roll Forward'!G110 -> 0 | H89: =RF!E2576 -> 0 | I89: =IF('Roll Forward'!J110<RegDur,0,'Roll Forward'!J110-RegDur) -> 0 | K89: 0 | L89: 0 | M89: 0 | N89: 0 | O89: 0 | P89: 0
B90: TRUE | C90: ='Roll Forward'!C111 -> Spare | E90: =RF!E1800 -> 0 | F90: =IF('Roll Forward'!F111<RegDur,0,'Roll Forward'!F111-RegDur) -> 0 | G90: ='Roll Forward'!G111 -> 0 | H90: =RF!E2577 -> 0 | I90: =IF('Roll Forward'!J111<RegDur,0,'Roll Forward'!J111-RegDur) -> 0 | K90: 0 | L90: 0 | M90: 0 | N90: 0 | O90: 0 | P90: 0
B91: TRUE | C91: ='Roll Forward'!C112 -> Spare | E91: =RF!E1801 -> 0 | F91: =IF('Roll Forward'!F112<RegDur,0,'Roll Forward'!F112-RegDur) -> 0 | G91: ='Roll Forward'!G112 -> 0 | H91: =RF!E2578 -> 0 | I91: =IF('Roll Forward'!J112<RegDur,0,'Roll Forward'!J112-RegDur) -> 0 | K91: 0 | L91: 0 | M91: 0 | N91: 0 | O91: 0 | P91: 0
B92: TRUE | C92: ='Roll Forward'!C113 -> Spare | E92: =RF!E1802 -> 0 | F92: =IF('Roll Forward'!F113<RegDur,0,'Roll Forward'!F113-RegDur) -> 0 | G92: ='Roll Forward'!G113 -> 0 | H92: =RF!E2579 -> 0 | I92: =IF('Roll Forward'!J113<RegDur,0,'Roll Forward'!J113-RegDur) -> 0 | K92: 0 | L92: 0 | M92: 0 | N92: 0 | O92: 0 | P92: 0
B93: TRUE | C93: ='Roll Forward'!C114 -> Spare | E93: =RF!E1803 -> 0 | F93: =IF('Roll Forward'!F114<RegDur,0,'Roll Forward'!F114-RegDur) -> 0 | G93: ='Roll Forward'!G114 -> 0 | H93: =RF!E2580 -> 0 | I93: =IF('Roll Forward'!J114<RegDur,0,'Roll Forward'!J114-RegDur) -> 0 | K93: 0 | L93: 0 | M93: 0 | N93: 0 | O93: 0 | P93: 0
B94: TRUE | C94: ='Roll Forward'!C115 -> Spare | E94: =RF!E1804 -> 0 | F94: =IF('Roll Forward'!F115<RegDur,0,'Roll Forward'!F115-RegDur) -> 0 | G94: ='Roll Forward'!G115 -> 0 | H94: =RF!E2581 -> 0 | I94: =IF('Roll Forward'!J115<RegDur,0,'Roll Forward'!J115-RegDur) -> 0 | K94: 0 | L94: 0 | M94: 0 | N94: 0 | O94: 0 | P94: 0
B95: TRUE | C95: ='Roll Forward'!C116 -> Spare | E95: =RF!E1805 -> 0 | F95: =IF('Roll Forward'!F116<RegDur,0,'Roll Forward'!F116-RegDur) -> 0 | G95: ='Roll Forward'!G116 -> 0 | H95: =RF!E2582 -> 0 | I95: =IF('Roll Forward'!J116<RegDur,0,'Roll Forward'!J116-RegDur) -> 0 | K95: 0 | L95: 0 | M95: 0 | N95: 0 | O95: 0 | P95: 0
B96: TRUE | C96: ='Roll Forward'!C117 -> Spare | E96: =RF!E1806 -> 0 | F96: =IF('Roll Forward'!F117<RegDur,0,'Roll Forward'!F117-RegDur) -> 0 | G96: ='Roll Forward'!G117 -> 0 | H96: =RF!E2583 -> 0 | I96: =IF('Roll Forward'!J117<RegDur,0,'Roll Forward'!J117-RegDur) -> 0 | K96: 0 | L96: 0 | M96: 0 | N96: 0 | O96: 0 | P96: 0
B97: TRUE | C97: ='Roll Forward'!C118 -> Spare | E97: =RF!E1807 -> 0 | F97: =IF('Roll Forward'!F118<RegDur,0,'Roll Forward'!F118-RegDur) -> 0 | G97: ='Roll Forward'!G118 -> 0 | H97: =RF!E2584 -> 0 | I97: =IF('Roll Forward'!J118<RegDur,0,'Roll Forward'!J118-RegDur) -> 0 | K97: 0 | L97: 0 | M97: 0 | N97: 0 | O97: 0 | P97: 0
B98: TRUE | C98: ='Roll Forward'!C119 -> Spare | E98: =RF!E1808 -> 0 | F98: =IF('Roll Forward'!F119<RegDur,0,'Roll Forward'!F119-RegDur) -> 0 | G98: ='Roll Forward'!G119 -> 0 | H98: =RF!E2585 -> 0 | I98: =IF('Roll Forward'!J119<RegDur,0,'Roll Forward'!J119-RegDur) -> 0 | K98: 0 | L98: 0 | M98: 0 | N98: 0 | O98: 0 | P98: 0
B99: TRUE | C99: ='Roll Forward'!C120 -> Spare | E99: =RF!E1809 -> 0 | F99: =IF('Roll Forward'!F120<RegDur,0,'Roll Forward'!F120-RegDur) -> 0 | G99: ='Roll Forward'!G120 -> 0 | H99: =RF!E2586 -> 0 | I99: =IF('Roll Forward'!J120<RegDur,0,'Roll Forward'!J120-RegDur) -> 0 | K99: 0 | L99: 0 | M99: 0 | N99: 0 | O99: 0 | P99: 0
B100: TRUE | C100: ='Roll Forward'!C121 -> Spare | E100: =RF!E1810 -> 0 | F100: =IF('Roll Forward'!F121<RegDur,0,'Roll Forward'!F121-RegDur) -> 0 | G100: ='Roll Forward'!G121 -> 0 | H100: =RF!E2587 -> 0 | I100: =IF('Roll Forward'!J121<RegDur,0,'Roll Forward'!J121-RegDur) -> 0 | K100: 0 | L100: 0 | M100: 0 | N100: 0 | O100: 0 | P100: 0
B101: TRUE | C101: ='Roll Forward'!C122 -> Spare | E101: =RF!E1811 -> 0 | F101: =IF('Roll Forward'!F122<RegDur,0,'Roll Forward'!F122-RegDur) -> 0 | G101: ='Roll Forward'!G122 -> 0 | H101: =RF!E2588 -> 0 | I101: =IF('Roll Forward'!J122<RegDur,0,'Roll Forward'!J122-RegDur) -> 0 | K101: 0 | L101: 0 | M101: 0 | N101: 0 | O101: 0 | P101: 0
B102: TRUE | C102: ='Roll Forward'!C123 -> Spare | E102: =RF!E1812 -> 0 | F102: =IF('Roll Forward'!F123<RegDur,0,'Roll Forward'!F123-RegDur) -> 0 | G102: ='Roll Forward'!G123 -> 0 | H102: =RF!E2589 -> 0 | I102: =IF('Roll Forward'!J123<RegDur,0,'Roll Forward'!J123-RegDur) -> 0 | K102: 0 | L102: 0 | M102: 0 | N102: 0 | O102: 0 | P102: 0
B103: TRUE | C103: ='Roll Forward'!C124 -> Spare | E103: =RF!E1813 -> 0 | F103: =IF('Roll Forward'!F124<RegDur,0,'Roll Forward'!F124-RegDur) -> 0 | G103: ='Roll Forward'!G124 -> 0 | H103: =RF!E2590 -> 0 | I103: =IF('Roll Forward'!J124<RegDur,0,'Roll Forward'!J124-RegDur) -> 0 | K103: 0 | L103: 0 | M103: 0 | N103: 0 | O103: 0 | P103: 0
B104: TRUE | C104: ='Roll Forward'!C125 -> Spare | E104: =RF!E1814 -> 0 | F104: =IF('Roll Forward'!F125<RegDur,0,'Roll Forward'!F125-RegDur) -> 0 | G104: ='Roll Forward'!G125 -> 0 | H104: =RF!E2591 -> 0 | I104: =IF('Roll Forward'!J125<RegDur,0,'Roll Forward'!J125-RegDur) -> 0 | K104: 0 | L104: 0 | M104: 0 | N104: 0 | O104: 0 | P104: 0
B105: TRUE | C105: ='Roll Forward'!C126 -> Spare | E105: =RF!E1815 -> 0 | F105: =IF('Roll Forward'!F126<RegDur,0,'Roll Forward'!F126-RegDur) -> 0 | G105: ='Roll Forward'!G126 -> 0 | H105: =RF!E2592 -> 0 | I105: =IF('Roll Forward'!J126<RegDur,0,'Roll Forward'!J126-RegDur) -> 0 | K105: 0 | L105: 0 | M105: 0 | N105: 0 | O105: 0 | P105: 0
B106: TRUE | C106: ='Roll Forward'!C127 -> Spare | E106: =RF!E1816 -> 0 | F106: =IF('Roll Forward'!F127<RegDur,0,'Roll Forward'!F127-RegDur) -> 0 | G106: ='Roll Forward'!G127 -> 0 | H106: =RF!E2593 -> 0 | I106: =IF('Roll Forward'!J127<RegDur,0,'Roll Forward'!J127-RegDur) -> 0 | K106: 0 | L106: 0 | M106: 0 | N106: 0 | O106: 0 | P106: 0
B107: TRUE | C107: ='Roll Forward'!C128 -> Spare | E107: =RF!E1817 -> 0 | F107: =IF('Roll Forward'!F128<RegDur,0,'Roll Forward'!F128-RegDur) -> 0 | G107: ='Roll Forward'!G128 -> 0 | H107: =RF!E2594 -> 0 | I107: =IF('Roll Forward'!J128<RegDur,0,'Roll Forward'!J128-RegDur) -> 0 | K107: 0 | L107: 0 | M107: 0 | N107: 0 | O107: 0 | P107: 0
B108: TRUE | C108: ='Roll Forward'!C129 -> Spare | E108: =RF!E1818 -> 0 | F108: =IF('Roll Forward'!F129<RegDur,0,'Roll Forward'!F129-RegDur) -> 0 | G108: ='Roll Forward'!G129 -> 0 | H108: =RF!E2595 -> 0 | I108: =IF('Roll Forward'!J129<RegDur,0,'Roll Forward'!J129-RegDur) -> 0 | K108: 0 | L108: 0 | M108: 0 | N108: 0 | O108: 0 | P108: 0
B109: TRUE | C109: ='Roll Forward'!C130 -> Spare | E109: =RF!E1819 -> 0 | F109: =IF('Roll Forward'!F130<RegDur,0,'Roll Forward'!F130-RegDur) -> 0 | G109: ='Roll Forward'!G130 -> 0 | H109: =RF!E2596 -> 0 | I109: =IF('Roll Forward'!J130<RegDur,0,'Roll Forward'!J130-RegDur) -> 0 | K109: 0 | L109: 0 | M109: 0 | N109: 0 | O109: 0 | P109: 0
B110: TRUE | C110: ='Roll Forward'!C131 -> Spare | E110: =RF!E1820 -> 0 | F110: =IF('Roll Forward'!F131<RegDur,0,'Roll Forward'!F131-RegDur) -> 0 | G110: ='Roll Forward'!G131 -> 0 | H110: =RF!E2597 -> 0 | I110: =IF('Roll Forward'!J131<RegDur,0,'Roll Forward'!J131-RegDur) -> 0 | K110: 0 | L110: 0 | M110: 0 | N110: 0 | O110: 0 | P110: 0
B111: TRUE | C111: ='Roll Forward'!C132 -> Spare | E111: =RF!E1821 -> 0 | F111: =IF('Roll Forward'!F132<RegDur,0,'Roll Forward'!F132-RegDur) -> 0 | G111: ='Roll Forward'!G132 -> 0 | H111: =RF!E2598 -> 0 | I111: =IF('Roll Forward'!J132<RegDur,0,'Roll Forward'!J132-RegDur) -> 0 | K111: 0 | L111: 0 | M111: 0 | N111: 0 | O111: 0 | P111: 0
B112: TRUE | C112: ='Roll Forward'!C133 -> Spare | E112: =RF!E1822 -> 0 | F112: =IF('Roll Forward'!F133<RegDur,0,'Roll Forward'!F133-RegDur) -> 0 | G112: ='Roll Forward'!G133 -> 0 | H112: =RF!E2599 -> 0 | I112: =IF('Roll Forward'!J133<RegDur,0,'Roll Forward'!J133-RegDur) -> 0 | K112: 0 | L112: 0 | M112: 0 | N112: 0 | O112: 0 | P112: 0
B113: TRUE | C113: ='Roll Forward'!C134 -> Spare | E113: =RF!E1823 -> 0 | F113: =IF('Roll Forward'!F134<RegDur,0,'Roll Forward'!F134-RegDur) -> 0 | G113: ='Roll Forward'!G134 -> 0 | H113: =RF!E2600 -> 0 | I113: =IF('Roll Forward'!J134<RegDur,0,'Roll Forward'!J134-RegDur) -> 0 | K113: 0 | L113: 0 | M113: 0 | N113: 0 | O113: 0 | P113: 0
B114: TRUE | C114: ='Roll Forward'!C135 -> Spare | E114: =RF!E1824 -> 0 | F114: =IF('Roll Forward'!F135<RegDur,0,'Roll Forward'!F135-RegDur) -> 0 | G114: ='Roll Forward'!G135 -> 0 | H114: =RF!E2601 -> 0 | I114: =IF('Roll Forward'!J135<RegDur,0,'Roll Forward'!J135-RegDur) -> 0 | K114: 0 | L114: 0 | M114: 0 | N114: 0 | O114: 0 | P114: 0
B115: TRUE | C115: ='Roll Forward'!C136 -> Spare | E115: =RF!E1825 -> 0 | F115: =IF('Roll Forward'!F136<RegDur,0,'Roll Forward'!F136-RegDur) -> 0 | G115: ='Roll Forward'!G136 -> 0 | H115: =RF!E2602 -> 0 | I115: =IF('Roll Forward'!J136<RegDur,0,'Roll Forward'!J136-RegDur) -> 0 | K115: 0 | L115: 0 | M115: 0 | N115: 0 | O115: 0 | P115: 0
B116: TRUE | C116: ='Roll Forward'!C137 -> Spare | E116: =RF!E1826 -> 0 | F116: =IF('Roll Forward'!F137<RegDur,0,'Roll Forward'!F137-RegDur) -> 0 | G116: ='Roll Forward'!G137 -> 0 | H116: =RF!E2603 -> 0 | I116: =IF('Roll Forward'!J137<RegDur,0,'Roll Forward'!J137-RegDur) -> 0 | K116: 0 | L116: 0 | M116: 0 | N116: 0 | O116: 0 | P116: 0
B117: TRUE | C117: ='Roll Forward'!C138 -> Spare | E117: =RF!E1827 -> 0 | F117: =IF('Roll Forward'!F138<RegDur,0,'Roll Forward'!F138-RegDur) -> 0 | G117: ='Roll Forward'!G138 -> 0 | H117: =RF!E2604 -> 0 | I117: =IF('Roll Forward'!J138<RegDur,0,'Roll Forward'!J138-RegDur) -> 0 | K117: 0 | L117: 0 | M117: 0 | N117: 0 | O117: 0 | P117: 0
B118: TRUE | C118: ='Roll Forward'!C139 -> Spare | E118: =RF!E1828 -> 0 | F118: =IF('Roll Forward'!F139<RegDur,0,'Roll Forward'!F139-RegDur) -> 0 | G118: ='Roll Forward'!G139 -> 0 | H118: =RF!E2605 -> 0 | I118: =IF('Roll Forward'!J139<RegDur,0,'Roll Forward'!J139-RegDur) -> 0 | K118: 0 | L118: 0 | M118: 0 | N118: 0 | O118: 0 | P118: 0
B119: TRUE | C119: ='Roll Forward'!C140 -> Spare | E119: =RF!E1829 -> 0 | F119: =IF('Roll Forward'!F140<RegDur,0,'Roll Forward'!F140-RegDur) -> 0 | G119: ='Roll Forward'!G140 -> 0 | H119: =RF!E2606 -> 0 | I119: =IF('Roll Forward'!J140<RegDur,0,'Roll Forward'!J140-RegDur) -> 0 | K119: 0 | L119: 0 | M119: 0 | N119: 0 | O119: 0 | P119: 0
B120: TRUE | C120: ='Roll Forward'!C141 -> Spare | E120: =RF!E1830 -> 0 | F120: =IF('Roll Forward'!F141<RegDur,0,'Roll Forward'!F141-RegDur) -> 0 | G120: ='Roll Forward'!G141 -> 0 | H120: =RF!E2607 -> 0 | I120: =IF('Roll Forward'!J141<RegDur,0,'Roll Forward'!J141-RegDur) -> 0 | K120: 0 | L120: 0 | M120: 0 | N120: 0 | O120: 0 | P120: 0
B121: TRUE | C121: ='Roll Forward'!C142 -> Spare | E121: =RF!E1831 -> 0 | F121: =IF('Roll Forward'!F142<RegDur,0,'Roll Forward'!F142-RegDur) -> 0 | G121: ='Roll Forward'!G142 -> 0 | H121: =RF!E2608 -> 0 | I121: =IF('Roll Forward'!J142<RegDur,0,'Roll Forward'!J142-RegDur) -> 0 | K121: 0 | L121: 0 | M121: 0 | N121: 0 | O121: 0 | P121: 0
B122: TRUE | C122: ='Roll Forward'!C143 -> Spare | E122: =RF!E1832 -> 0 | F122: =IF('Roll Forward'!F143<RegDur,0,'Roll Forward'!F143-RegDur) -> 0 | G122: ='Roll Forward'!G143 -> 0 | H122: =RF!E2609 -> 0 | I122: =IF('Roll Forward'!J143<RegDur,0,'Roll Forward'!J143-RegDur) -> 0 | K122: 0 | L122: 0 | M122: 0 | N122: 0 | O122: 0 | P122: 0
B123: TRUE | C123: ='Roll Forward'!C144 -> Spare | E123: =RF!E1833 -> 0 | F123: =IF('Roll Forward'!F144<RegDur,0,'Roll Forward'!F144-RegDur) -> 0 | G123: ='Roll Forward'!G144 -> 0 | H123: =RF!E2610 -> 0 | I123: =IF('Roll Forward'!J144<RegDur,0,'Roll Forward'!J144-RegDur) -> 0 | K123: 0 | L123: 0 | M123: 0 | N123: 0 | O123: 0 | P123: 0
B124: TRUE | C124: ='Roll Forward'!C145 -> Spare | E124: =RF!E1834 -> 0 | F124: =IF('Roll Forward'!F145<RegDur,0,'Roll Forward'!F145-RegDur) -> 0 | G124: ='Roll Forward'!G145 -> 0 | H124: =RF!E2611 -> 0 | I124: =IF('Roll Forward'!J145<RegDur,0,'Roll Forward'!J145-RegDur) -> 0 | K124: 0 | L124: 0 | M124: 0 | N124: 0 | O124: 0 | P124: 0
B125: TRUE | C125: ='Roll Forward'!C146 -> Spare | E125: =RF!E1835 -> 0 | F125: =IF('Roll Forward'!F146<RegDur,0,'Roll Forward'!F146-RegDur) -> 0 | G125: ='Roll Forward'!G146 -> 0 | H125: =RF!E2612 -> 0 | I125: =IF('Roll Forward'!J146<RegDur,0,'Roll Forward'!J146-RegDur) -> 0 | K125: 0 | L125: 0 | M125: 0 | N125: 0 | O125: 0 | P125: 0
B126: TRUE | C126: ='Roll Forward'!C147 -> Spare | E126: =RF!E1836 -> 0 | F126: =IF('Roll Forward'!F147<RegDur,0,'Roll Forward'!F147-RegDur) -> 0 | G126: ='Roll Forward'!G147 -> 0 | H126: =RF!E2613 -> 0 | I126: =IF('Roll Forward'!J147<RegDur,0,'Roll Forward'!J147-RegDur) -> 0 | K126: 0 | L126: 0 | M126: 0 | N126: 0 | O126: 0 | P126: 0
B127: TRUE | C127: ='Roll Forward'!C148 -> Spare | E127: =RF!E1837 -> 0 | F127: =IF('Roll Forward'!F148<RegDur,0,'Roll Forward'!F148-RegDur) -> 0 | G127: ='Roll Forward'!G148 -> 0 | H127: =RF!E2614 -> 0 | I127: =IF('Roll Forward'!J148<RegDur,0,'Roll Forward'!J148-RegDur) -> 0 | K127: 0 | L127: 0 | M127: 0 | N127: 0 | O127: 0 | P127: 0
B128: TRUE | C128: ='Roll Forward'!C149 -> Spare | E128: =RF!E1838 -> 0 | F128: =IF('Roll Forward'!F149<RegDur,0,'Roll Forward'!F149-RegDur) -> 0 | G128: ='Roll Forward'!G149 -> 0 | H128: =RF!E2615 -> 0 | I128: =IF('Roll Forward'!J149<RegDur,0,'Roll Forward'!J149-RegDur) -> 0 | K128: 0 | L128: 0 | M128: 0 | N128: 0 | O128: 0 | P128: 0
B129: TRUE | C129: ='Roll Forward'!C150 -> Spare | E129: =RF!E1839 -> 0 | F129: =IF('Roll Forward'!F150<RegDur,0,'Roll Forward'!F150-RegDur) -> 0 | G129: ='Roll Forward'!G150 -> 0 | H129: =RF!E2616 -> 0 | I129: =IF('Roll Forward'!J150<RegDur,0,'Roll Forward'!J150-RegDur) -> 0 | K129: 0 | L129: 0 | M129: 0 | N129: 0 | O129: 0 | P129: 0
B130: TRUE | C130: ='Roll Forward'!C151 -> Spare | E130: =RF!E1840 -> 0 | F130: =IF('Roll Forward'!F151<RegDur,0,'Roll Forward'!F151-RegDur) -> 0 | G130: ='Roll Forward'!G151 -> 0 | H130: =RF!E2617 -> 0 | I130: =IF('Roll Forward'!J151<RegDur,0,'Roll Forward'!J151-RegDur) -> 0 | K130: 0 | L130: 0 | M130: 0 | N130: 0 | O130: 0 | P130: 0
B131: TRUE | C131: ='Roll Forward'!C152 -> Spare | E131: =RF!E1841 -> 0 | F131: =IF('Roll Forward'!F152<RegDur,0,'Roll Forward'!F152-RegDur) -> 0 | G131: ='Roll Forward'!G152 -> 0 | H131: =RF!E2618 -> 0 | I131: =IF('Roll Forward'!J152<RegDur,0,'Roll Forward'!J152-RegDur) -> 0 | K131: 0 | L131: 0 | M131: 0 | N131: 0 | O131: 0 | P131: 0
B132: TRUE | C132: ='Roll Forward'!C153 -> Spare | E132: =RF!E1842 -> 0 | F132: =IF('Roll Forward'!F153<RegDur,0,'Roll Forward'!F153-RegDur) -> 0 | G132: ='Roll Forward'!G153 -> 0 | H132: =RF!E2619 -> 0 | I132: =IF('Roll Forward'!J153<RegDur,0,'Roll Forward'!J153-RegDur) -> 0 | K132: 0 | L132: 0 | M132: 0 | N132: 0 | O132: 0 | P132: 0
B133: TRUE | C133: ='Roll Forward'!C154 -> Spare | E133: =RF!E1843 -> 0 | F133: =IF('Roll Forward'!F154<RegDur,0,'Roll Forward'!F154-RegDur) -> 0 | G133: ='Roll Forward'!G154 -> 0 | H133: =RF!E2620 -> 0 | I133: =IF('Roll Forward'!J154<RegDur,0,'Roll Forward'!J154-RegDur) -> 0 | K133: 0 | L133: 0 | M133: 0 | N133: 0 | O133: 0 | P133: 0
B134: TRUE | C134: ='Roll Forward'!C155 -> Spare | E134: =RF!E1844 -> 0 | F134: =IF('Roll Forward'!F155<RegDur,0,'Roll Forward'!F155-RegDur) -> 0 | G134: ='Roll Forward'!G155 -> 0 | H134: =RF!E2621 -> 0 | I134: =IF('Roll Forward'!J155<RegDur,0,'Roll Forward'!J155-RegDur) -> 0 | K134: 0 | L134: 0 | M134: 0 | N134: 0 | O134: 0 | P134: 0
B135: TRUE | C135: ='Roll Forward'!C156 -> Spare | E135: =RF!E1845 -> 0 | F135: =IF('Roll Forward'!F156<RegDur,0,'Roll Forward'!F156-RegDur) -> 0 | G135: ='Roll Forward'!G156 -> 0 | H135: =RF!E2622 -> 0 | I135: =IF('Roll Forward'!J156<RegDur,0,'Roll Forward'!J156-RegDur) -> 0 | K135: 0 | L135: 0 | M135: 0 | N135: 0 | O135: 0 | P135: 0
B136: TRUE | C136: ='Roll Forward'!C157 -> Spare | E136: =RF!E1846 -> 0 | F136: =IF('Roll Forward'!F157<RegDur,0,'Roll Forward'!F157-RegDur) -> 0 | G136: ='Roll Forward'!G157 -> 0 | H136: =RF!E2623 -> 0 | I136: =IF('Roll Forward'!J157<RegDur,0,'Roll Forward'!J157-RegDur) -> 0 | K136: 0 | L136: 0 | M136: 0 | N136: 0 | O136: 0 | P136: 0
B137: TRUE | C137: ='Roll Forward'!C158 -> Spare | E137: =RF!E1847 -> 0 | F137: =IF('Roll Forward'!F158<RegDur,0,'Roll Forward'!F158-RegDur) -> 0 | G137: ='Roll Forward'!G158 -> 0 | H137: =RF!E2624 -> 0 | I137: =IF('Roll Forward'!J158<RegDur,0,'Roll Forward'!J158-RegDur) -> 0 | K137: 0 | L137: 0 | M137: 0 | N137: 0 | O137: 0 | P137: 0
B138: TRUE | C138: ='Roll Forward'!C159 -> Spare | E138: =RF!E1848 -> 0 | F138: =IF('Roll Forward'!F159<RegDur,0,'Roll Forward'!F159-RegDur) -> 0 | G138: ='Roll Forward'!G159 -> 0 | H138: =RF!E2625 -> 0 | I138: =IF('Roll Forward'!J159<RegDur,0,'Roll Forward'!J159-RegDur) -> 0 | K138: 0 | L138: 0 | M138: 0 | N138: 0 | O138: 0 | P138: 0
B139: TRUE | C139: ='Roll Forward'!C160 -> Spare | E139: =RF!E1849 -> 0 | F139: =IF('Roll Forward'!F160<RegDur,0,'Roll Forward'!F160-RegDur) -> 0 | G139: ='Roll Forward'!G160 -> 0 | H139: =RF!E2626 -> 0 | I139: =IF('Roll Forward'!J160<RegDur,0,'Roll Forward'!J160-RegDur) -> 0 | K139: 0 | L139: 0 | M139: 0 | N139: 0 | O139: 0 | P139: 0
B140: TRUE | C140: ='Roll Forward'!C161 -> Spare | E140: =RF!E1850 -> 0 | F140: =IF('Roll Forward'!F161<RegDur,0,'Roll Forward'!F161-RegDur) -> 0 | G140: ='Roll Forward'!G161 -> 0 | H140: =RF!E2627 -> 0 | I140: =IF('Roll Forward'!J161<RegDur,0,'Roll Forward'!J161-RegDur) -> 0 | K140: 0 | L140: 0 | M140: 0 | N140: 0 | O140: 0 | P140: 0
B141: TRUE | C141: ='Roll Forward'!C162 -> Spare | E141: =RF!E1851 -> 0 | F141: =IF('Roll Forward'!F162<RegDur,0,'Roll Forward'!F162-RegDur) -> 0 | G141: ='Roll Forward'!G162 -> 0 | H141: =RF!E2628 -> 0 | I141: =IF('Roll Forward'!J162<RegDur,0,'Roll Forward'!J162-RegDur) -> 0 | K141: 0 | L141: 0 | M141: 0 | N141: 0 | O141: 0 | P141: 0
B142: TRUE | C142: ='Roll Forward'!C163 -> Spare | E142: =RF!E1852 -> 0 | F142: =IF('Roll Forward'!F163<RegDur,0,'Roll Forward'!F163-RegDur) -> 0 | G142: ='Roll Forward'!G163 -> 0 | H142: =RF!E2629 -> 0 | I142: =IF('Roll Forward'!J163<RegDur,0,'Roll Forward'!J163-RegDur) -> 0 | K142: 0 | L142: 0 | M142: 0 | N142: 0 | O142: 0 | P142: 0
B143: TRUE | C143: ='Roll Forward'!C164 -> Spare | E143: =RF!E1853 -> 0 | F143: =IF('Roll Forward'!F164<RegDur,0,'Roll Forward'!F164-RegDur) -> 0 | G143: ='Roll Forward'!G164 -> 0 | H143: =RF!E2630 -> 0 | I143: =IF('Roll Forward'!J164<RegDur,0,'Roll Forward'!J164-RegDur) -> 0 | K143: 0 | L143: 0 | M143: 0 | N143: 0 | O143: 0 | P143: 0
B144: TRUE | C144: ='Roll Forward'!C165 -> Spare | E144: =RF!E1854 -> 0 | F144: =IF('Roll Forward'!F165<RegDur,0,'Roll Forward'!F165-RegDur) -> 0 | G144: ='Roll Forward'!G165 -> 0 | H144: =RF!E2631 -> 0 | I144: =IF('Roll Forward'!J165<RegDur,0,'Roll Forward'!J165-RegDur) -> 0 | K144: 0 | L144: 0 | M144: 0 | N144: 0 | O144: 0 | P144: 0
B145: TRUE | C145: ='Roll Forward'!C166 -> Spare | E145: =RF!E1855 -> 0 | F145: =IF('Roll Forward'!F166<RegDur,0,'Roll Forward'!F166-RegDur) -> 0 | G145: ='Roll Forward'!G166 -> 0 | H145: =RF!E2632 -> 0 | I145: =IF('Roll Forward'!J166<RegDur,0,'Roll Forward'!J166-RegDur) -> 0 | K145: 0 | L145: 0 | M145: 0 | N145: 0 | O145: 0 | P145: 0
B146: TRUE | C146: ='Roll Forward'!C167 -> Spare | E146: =RF!E1856 -> 0 | F146: =IF('Roll Forward'!F167<RegDur,0,'Roll Forward'!F167-RegDur) -> 0 | G146: ='Roll Forward'!G167 -> 0 | H146: =RF!E2633 -> 0 | I146: =IF('Roll Forward'!J167<RegDur,0,'Roll Forward'!J167-RegDur) -> 0 | K146: 0 | L146: 0 | M146: 0 | N146: 0 | O146: 0 | P146: 0
B147: TRUE | C147: ='Roll Forward'!C168 -> Spare | E147: =RF!E1857 -> 0 | F147: =IF('Roll Forward'!F168<RegDur,0,'Roll Forward'!F168-RegDur) -> 0 | G147: ='Roll Forward'!G168 -> 0 | H147: =RF!E2634 -> 0 | I147: =IF('Roll Forward'!J168<RegDur,0,'Roll Forward'!J168-RegDur) -> 0 | K147: 0 | L147: 0 | M147: 0 | N147: 0 | O147: 0 | P147: 0
B148: TRUE | C148: ='Roll Forward'!C169 -> Spare | E148: =RF!E1858 -> 0 | F148: =IF('Roll Forward'!F169<RegDur,0,'Roll Forward'!F169-RegDur) -> 0 | G148: ='Roll Forward'!G169 -> 0 | H148: =RF!E2635 -> 0 | I148: =IF('Roll Forward'!J169<RegDur,0,'Roll Forward'!J169-RegDur) -> 0 | K148: 0 | L148: 0 | M148: 0 | N148: 0 | O148: 0 | P148: 0
B149: TRUE | C149: ='Roll Forward'!C170 -> Spare | E149: =RF!E1859 -> 0 | F149: =IF('Roll Forward'!F170<RegDur,0,'Roll Forward'!F170-RegDur) -> 0 | G149: ='Roll Forward'!G170 -> 0 | H149: =RF!E2636 -> 0 | I149: =IF('Roll Forward'!J170<RegDur,0,'Roll Forward'!J170-RegDur) -> 0 | K149: 0 | L149: 0 | M149: 0 | N149: 0 | O149: 0 | P149: 0
B150: TRUE | C150: ='Roll Forward'!C171 -> Spare | E150: =RF!E1860 -> 0 | F150: =IF('Roll Forward'!F171<RegDur,0,'Roll Forward'!F171-RegDur) -> 0 | G150: ='Roll Forward'!G171 -> 0 | H150: =RF!E2637 -> 0 | I150: =IF('Roll Forward'!J171<RegDur,0,'Roll Forward'!J171-RegDur) -> 0 | K150: 0 | L150: 0 | M150: 0 | N150: 0 | O150: 0 | P150: 0
B151: =IF(C151="Spare",TRUE,0) -> TRUE | C151: ='Roll Forward'!C172 -> Spare | E151: =RF!E1861 -> 0 | F151: =IF('Roll Forward'!F172<RegDur,0,'Roll Forward'!F172-RegDur) -> 0 | G151: ='Roll Forward'!G172 -> 0 | H151: =RF!E2638 -> 0 | I151: =IF('Roll Forward'!J172<RegDur,0,'Roll Forward'!J172-RegDur) -> 0 | K151: 0 | L151: =K151-K782 -> 0 | M151: =L151-L782 -> 0 | N151: =M151-M782 -> 0 | O151: =N151-N782 -> 0 | P151: =O151-O782 -> 0
B152: TRUE | C152: ='Roll Forward'!C173 -> Spare | E152: =RF!E1862 -> 0 | F152: =IF('Roll Forward'!F173<RegDur,0,'Roll Forward'!F173-RegDur) -> 0 | G152: ='Roll Forward'!G173 -> 0 | H152: =RF!E2639 -> 0 | I152: =IF('Roll Forward'!J173<RegDur,0,'Roll Forward'!J173-RegDur) -> 0 | K152: 0 | L152: 0 | M152: 0 | N152: 0 | O152: 0 | P152: 0
B153: TRUE | C153: ='Roll Forward'!C174 -> Spare | E153: =RF!E1863 -> 0 | F153: =IF('Roll Forward'!F174<RegDur,0,'Roll Forward'!F174-RegDur) -> 0 | G153: ='Roll Forward'!G174 -> 0 | H153: =RF!E2640 -> 0 | I153: =IF('Roll Forward'!J174<RegDur,0,'Roll Forward'!J174-RegDur) -> 0 | K153: 0 | L153: 0 | M153: 0 | N153: 0 | O153: 0 | P153: 0
B154: TRUE | C154: ='Roll Forward'!C175 -> Spare | E154: =RF!E1864 -> 0 | F154: =IF('Roll Forward'!F175<RegDur,0,'Roll Forward'!F175-RegDur) -> 0 | G154: ='Roll Forward'!G175 -> 0 | H154: =RF!E2641 -> 0 | I154: =IF('Roll Forward'!J175<RegDur,0,'Roll Forward'!J175-RegDur) -> 0 | K154: 0 | L154: 0 | M154: 0 | N154: 0 | O154: 0 | P154: 0
B155: TRUE | C155: ='Roll Forward'!C176 -> Spare | E155: =RF!E1865 -> 0 | F155: =IF('Roll Forward'!F176<RegDur,0,'Roll Forward'!F176-RegDur) -> 0 | G155: ='Roll Forward'!G176 -> 0 | H155: =RF!E2642 -> 0 | I155: =IF('Roll Forward'!J176<RegDur,0,'Roll Forward'!J176-RegDur) -> 0 | K155: 0 | L155: 0 | M155: 0 | N155: 0 | O155: 0 | P155: 0
B156: TRUE | C156: ='Roll Forward'!C177 -> Spare | E156: =RF!E1866 -> 0 | F156: =IF('Roll Forward'!F177<RegDur,0,'Roll Forward'!F177-RegDur) -> 0 | G156: ='Roll Forward'!G177 -> 0 | H156: =RF!E2643 -> 0 | I156: =IF('Roll Forward'!J177<RegDur,0,'Roll Forward'!J177-RegDur) -> 0 | K156: 0 | L156: 0 | M156: 0 | N156: 0 | O156: 0 | P156: 0
B157: TRUE | C157: ='Roll Forward'!C178 -> Spare | E157: =RF!E1867 -> 0 | F157: =IF('Roll Forward'!F178<RegDur,0,'Roll Forward'!F178-RegDur) -> 0 | G157: ='Roll Forward'!G178 -> 0 | H157: =RF!E2644 -> 0 | I157: =IF('Roll Forward'!J178<RegDur,0,'Roll Forward'!J178-RegDur) -> 0 | K157: 0 | L157: 0 | M157: 0 | N157: 0 | O157: 0 | P157: 0
B158: TRUE | C158: ='Roll Forward'!C179 -> Spare | E158: =RF!E1868 -> 0 | F158: =IF('Roll Forward'!F179<RegDur,0,'Roll Forward'!F179-RegDur) -> 0 | G158: ='Roll Forward'!G179 -> 0 | H158: =RF!E2645 -> 0 | I158: =IF('Roll Forward'!J179<RegDur,0,'Roll Forward'!J179-RegDur) -> 0 | K158: 0 | L158: 0 | M158: 0 | N158: 0 | O158: 0 | P158: 0
B159: TRUE | C159: ='Roll Forward'!C180 -> Spare | E159: =RF!E1869 -> 0 | F159: =IF('Roll Forward'!F180<RegDur,0,'Roll Forward'!F180-RegDur) -> 0 | G159: ='Roll Forward'!G180 -> 0 | H159: =RF!E2646 -> 0 | I159: =IF('Roll Forward'!J180<RegDur,0,'Roll Forward'!J180-RegDur) -> 0 | K159: 0 | L159: 0 | M159: 0 | N159: 0 | O159: 0 | P159: 0
B160: TRUE | C160: ='Roll Forward'!C181 -> Spare | E160: =RF!E1870 -> 0 | F160: =IF('Roll Forward'!F181<RegDur,0,'Roll Forward'!F181-RegDur) -> 0 | G160: ='Roll Forward'!G181 -> 0 | H160: =RF!E2647 -> 0 | I160: =IF('Roll Forward'!J181<RegDur,0,'Roll Forward'!J181-RegDur) -> 0 | K160: 0 | L160: 0 | M160: 0 | N160: 0 | O160: 0 | P160: 0
B161: TRUE | C161: ='Roll Forward'!C182 -> Spare | E161: =RF!E1871 -> 0 | F161: =IF('Roll Forward'!F182<RegDur,0,'Roll Forward'!F182-RegDur) -> 0 | G161: ='Roll Forward'!G182 -> 0 | H161: =RF!E2648 -> 0 | I161: =IF('Roll Forward'!J182<RegDur,0,'Roll Forward'!J182-RegDur) -> 0 | K161: 0 | L161: 0 | M161: 0 | N161: 0 | O161: 0 | P161: 0
B162: TRUE | C162: ='Roll Forward'!C183 -> Spare | E162: =RF!E1872 -> 0 | F162: =IF('Roll Forward'!F183<RegDur,0,'Roll Forward'!F183-RegDur) -> 0 | G162: ='Roll Forward'!G183 -> 0 | H162: =RF!E2649 -> 0 | I162: =IF('Roll Forward'!J183<RegDur,0,'Roll Forward'!J183-RegDur) -> 0 | K162: 0 | L162: 0 | M162: 0 | N162: 0 | O162: 0 | P162: 0
C163: Total | E163: =SUM(E13:E162) -> 14042093.88 | F163: =SUMPRODUCT(E13:E162,F13:F162)/E163 -> 14.59921363 | H163: =SUM(H13:H162) -> 1927354.557 | I163: =ABS(SUMPRODUCT(H13:H162,I13:I162)/H163) -> 9.143039578 | K163: =SUM(K13:K162) -> 236263 | L163: 225284 | M163: 214311 | N163: 203338 | O163: 193588 | P163: 184369
C165: Net Asset Movements - nominal
C167: Forecast Capital Expenditure - nominal
E169: =TRANSPOSE(List_RegYear) -> 2020 | F169: 2021 | G169: 2022 | H169: 2023 | I169: 2024 | K169: =E169 -> 2020 | L169: =F169 -> 2021 | M169: =G169 -> 2022 | N169: =H169 -> 2023 | O169: =I169 -> 2024
E170: $ | K170: units
C171: Asset Class Name
B172: =IF(C172="Spare",TRUE,0) -> 0 | C172: =C13 -> 1 x 20 W Fluorescent | E172: 0 | F172: 0 | G172: 0 | H172: 0 | I172: 0 | K172: 0 | L172: 0 | M172: 0 | N172: 0 | O172: 0
B173: =IF(C173="Spare",TRUE,0) -> 0 | C173: =C14 -> 2 x 20 W Fluorescent | E173: 0 | F173: 0 | G173: 0 | H173: 0 | I173: 0 | K173: 0 | L173: 0 | M173: 0 | N173: 0 | O173: 0
B174: 0 | C174: 4 x 20 W Fluorescent | E174: 0 | F174: 0 | G174: 0 | H174: 0 | I174: 0 | K174: 0 | L174: 0 | M174: 0 | N174: 0 | O174: 0
B175: 0 | C175: 2 x 14 W Fluorescent | E175: 0 | F175: 0 | G175: 0 | H175: 0 | I175: 0 | K175: 0 | L175: 0 | M175: 0 | N175: 0 | O175: 0
B176: 0 | C176: 2 x 24 W Fluorescent | E176: 0 | F176: 0 | G176: 0 | H176: 0 | I176: 0 | K176: 0 | L176: 0 | M176: 0 | N176: 0 | O176: 0
B177: 0 | C177: 1 x 40 W Fluorescent | E177: 0 | F177: 0 | G177: 0 | H177: 0 | I177: 0 | K177: 0 | L177: 0 | M177: 0 | N177: 0 | O177: 0
B178: 0 | C178: 2 x 40 W Fluorescent | E178: 0 | F178: 0 | G178: 0 | H178: 0 | I178: 0 | K178: 0 | L178: 0 | M178: 0 | N178: 0 | O178: 0
B179: 0 | C179: 1 x 42 W Fluorescent | E179: 0 | F179: 0 | G179: 0 | H179: 0 | I179: 0 | K179: 0 | L179: 0 | M179: 0 | N179: 0 | O179: 0
B180: 0 | C180: 50W Mercury | E180: 0 | F180: 0 | G180: 0 | H180: 0 | I180: 0 | K180: 0 | L180: 0 | M180: 0 | N180: 0 | O180: 0
B181: 0 | C181: 80W Mercury | E181: 0 | F181: 0 | G181: 0 | H181: 0 | I181: 0 | K181: 0 | L181: 0 | M181: 0 | N181: 0 | O181: 0
B182: 0 | C182: 125W Mercury | E182: 0 | F182: 0 | G182: 0 | H182: 0 | I182: 0 | K182: 0 | L182: 0 | M182: 0 | N182: 0 | O182: 0
B183: 0 | C183: 250W Mercury | E183: 0 | F183: 0 | G183: 0 | H183: 0 | I183: 0 | K183: 0 | L183: 0 | M183: 0 | N183: 0 | O183: 0
B184: 0 | C184: 2 x 250W Mercury | E184: 0 | F184: 0 | G184: 0 | H184: 0 | I184: 0 | K184: 0 | L184: 0 | M184: 0 | N184: 0 | O184: 0
B185: 0 | C185: 400 W Mercury | E185: 0 | F185: 0 | G185: 0 | H185: 0 | I185: 0 | K185: 0 | L185: 0 | M185: 0 | N185: 0 | O185: 0
B186: 0 | C186: 700 W Mercury | E186: 0 | F186: 0 | G186: 0 | H186: 0 | I186: 0 | K186: 0 | L186: 0 | M186: 0 | N186: 0 | O186: 0
B187: 0 | C187: 50W Sodium | E187: 0 | F187: 0 | G187: 0 | H187: 0 | I187: 0 | K187: 0 | L187: 0 | M187: 0 | N187: 0 | O187: 0
B188: 0 | C188: 70W Sodium | E188: 0 | F188: 0 | G188: 0 | H188: 0 | I188: 0 | K188: 0 | L188: 0 | M188: 0 | N188: 0 | O188: 0
B189: 0 | C189: 90W Sodium | E189: 0 | F189: 0 | G189: 0 | H189: 0 | I189: 0 | K189: 0 | L189: 0 | M189: 0 | N189: 0 | O189: 0
B190: 0 | C190: 100W Sodium | E190: 0 | F190: 0 | G190: 0 | H190: 0 | I190: 0 | K190: 0 | L190: 0 | M190: 0 | N190: 0 | O190: 0
B191: 0 | C191: 120W Sodium | E191: 0 | F191: 0 | G191: 0 | H191: 0 | I191: 0 | K191: 0 | L191: 0 | M191: 0 | N191: 0 | O191: 0
B192: 0 | C192: 150W Sodium | E192: 0 | F192: 0 | G192: 0 | H192: 0 | I192: 0 | K192: 0 | L192: 0 | M192: 0 | N192: 0 | O192: 0
B193: 0 | C193: 250W Sodium | E193: 0 | F193: 0 | G193: 0 | H193: 0 | I193: 0 | K193: 0 | L193: 0 | M193: 0 | N193: 0 | O193: 0
B194: 0 | C194: 2 x 250W Sodium | E194: 0 | F194: 0 | G194: 0 | H194: 0 | I194: 0 | K194: 0 | L194: 0 | M194: 0 | N194: 0 | O194: 0
B195: 0 | C195: 310W Sodium | E195: 0 | F195: 0 | G195: 0 | H195: 0 | I195: 0 | K195: 0 | L195: 0 | M195: 0 | N195: 0 | O195: 0
B196: 0 | C196: 400 W Sodium | E196: 0 | F196: 0 | G196: 0 | H196: 0 | I196: 0 | K196: 0 | L196: 0 | M196: 0 | N196: 0 | O196: 0
B197: 0 | C197: 2 x 400 W Sodium | E197: 0 | F197: 0 | G197: 0 | H197: 0 | I197: 0 | K197: 0 | L197: 0 | M197: 0 | N197: 0 | O197: 0
B198: 0 | C198: 4 x 600W Sodium | E198: 0 | F198: 0 | G198: 0 | H198: 0 | I198: 0 | K198: 0 | L198: 0 | M198: 0 | N198: 0 | O198: 0
B199: 0 | C199: 60 W Incandescent | E199: 0 | F199: 0 | G199: 0 | H199: 0 | I199: 0 | K199: 0 | L199: 0 | M199: 0 | N199: 0 | O199: 0
B200: 0 | C200: 100 W Incandescent | E200: 0 | F200: 0 | G200: 0 | H200: 0 | I200: 0 | K200: 0 | L200: 0 | M200: 0 | N200: 0 | O200: 0
B201: 0 | C201: 500 W Incandescent | E201: 0 | F201: 0 | G201: 0 | H201: 0 | I201: 0 | K201: 0 | L201: 0 | M201: 0 | N201: 0 | O201: 0
B202: 0 | C202: 1000 W Incandescent | E202: 0 | F202: 0 | G202: 0 | H202: 0 | I202: 0 | K202: 0 | L202: 0 | M202: 0 | N202: 0 | O202: 0
B203: 0 | C203: 1500 W Incandescent | E203: 0 | F203: 0 | G203: 0 | H203: 0 | I203: 0 | K203: 0 | L203: 0 | M203: 0 | N203: 0 | O203: 0
B204: 0 | C204: 100 W Metal Halide | E204: 0 | F204: 0 | G204: 0 | H204: 0 | I204: 0 | K204: 0 | L204: 0 | M204: 0 | N204: 0 | O204: 0
B205: 0 | C205: 150 W Metal Halide | E205: 0 | F205: 0 | G205: 0 | H205: 0 | I205: 0 | K205: 0 | L205: 0 | M205: 0 | N205: 0 | O205: 0
B206: 0 | C206: 250 W Metal Halide | E206: 0 | F206: 0 | G206: 0 | H206: 0 | I206: 0 | K206: 0 | L206: 0 | M206: 0 | N206: 0 | O206: 0
B207: 0 | C207: 2 x 250 W Metal Halide | E207: 0 | F207: 0 | G207: 0 | H207: 0 | I207: 0 | K207: 0 | L207: 0 | M207: 0 | N207: 0 | O207: 0
... 736 more rows

Sheet Tariff Smoothing - real
C4: Capital | R4: Opex
E6: NPV | L6: Smoothed Tariffs | T6: NPV | AA6: Smoothed Tariffs
E7: =REG_Timing!K4 -> 2020 | F7: =REG_Timing!L4 -> 2021 | G7: =REG_Timing!M4 -> 2022 | H7: =REG_Timing!N4 -> 2023 | I7: =REG_Timing!O4 -> 2024 | J7: Total | L7: =REG_Timing!K4 -> 2020 | M7: =REG_Timing!L4 -> 2021 | N7: =REG_Timing!M4 -> 2022 | O7: =REG_Timing!N4 -> 2023 | P7: =REG_Timing!O4 -> 2024 | T7: =E7 -> 2020 | U7: 2021 | V7: 2022 | W7: 2023 | X7: 2024 | Y7: Total | AA7: =L7 -> 2020 | AB7: =M7 -> 2021 | AC7: =N7 -> 2022 | AD7: =O7 -> 2023 | AE7: =P7 -> 2024
C8: =Global!C83 -> Real vanilla WACC | E8: =Global!F$83 -> 0.03226776725 | F8: =Global!G$83 -> 0.03226776725 | G8: =Global!H$83 -> 0.03226776725 | H8: =Global!I$83 -> 0.03226776725 | I8: =Global!J$83 -> 0.03226776725 | R8: =C8 -> Real vanilla WACC | T8: 0.03226776725 | U8: 0.03226776725 | V8: 0.03226776725 | W8: 0.03226776725 | X8: 0.03226776725
C9: Discount factor | D9: 1 | E9: =D9*(1-E8) -> 0.9677322327 | F9: =E9*(1-F8) -> 0.9365056743 | G9: =F9*(1-G8) -> 0.9062867272 | H9: =G9*(1-H8) -> 0.877042878 | I9: =H9*(1-I8) -> 0.8487426625 | R9: =C9 -> Discount factor | S9: 1 | T9: =S9*(1-T8) -> 0.9677322327 | U9: =T9*(1-U8) -> 0.9365056743 | V9: =U9*(1-V8) -> 0.9062867272 | W9: =V9*(1-W8) -> 0.877042878 | X9: =W9*(1-X8) -> 0.8487426625
B11: =IF(C11="Spare",TRUE,0) -> 0 | C11: =RAB!C13 -> 1 x 20 W Fluorescent | E11: =Output!E11/E$9 -> 0.6350021995 | F11: =Output!F11/F$9 -> 0.6412487397 | G11: =Output!G11/G$9 -> 0.6472058486 | H11: =Output!H11/H$9 -> 0.6528472801 | I11: =Output!I11/I$9 -> 0.6581453591 | J11: =SUM(E11:I11) -> 3.234449427 | L11: =$J11/RegDur -> 0.6468898854 | M11: 0.6468898854 | N11: 0.6468898854 | O11: 0.6468898854 | P11: 0.6468898854 | R11: =C11 -> 1 x 20 W Fluorescent | T11: =Output!L11*T$9 -> 48.66680303 | U11: =Output!M11*U$9 -> 47.09643396 | V11: =Output!N11*V$9 -> 45.57673719 | W11: =Output!O11*W$9 -> 44.10607764 | X11: =Output!P11*X$9 -> 42.68287299 | Y11: =SUM(T11:X11) -> 228.1289248 | AA11: =$Y11/RegDur -> 45.62578496 | AB11: 45.62578496 | AC11: 45.62578496 | AD11: 45.62578496 | AE11: 45.62578496
B12: 0 | C12: =RAB!C14 -> 2 x 20 W Fluorescent | E12: =Output!E12/E$9 -> 0 | F12: =Output!F12/F$9 -> 0 | G12: =Output!G12/G$9 -> 0 | H12: =Output!H12/H$9 -> 0 | I12: =Output!I12/I$9 -> 0 | J12: =SUM(E12:I12) -> 0 | L12: 0 | M12: 0 | N12: 0 | O12: 0 | P12: 0 | R12: 2 x 20 W Fluorescent | T12: =Output!L12*T$9 -> 51.95709262 | U12: =Output!M12*U$9 -> 50.28055325 | V12: =Output!N12*V$9 -> 48.65811206 | W12: =Output!O12*W$9 -> 47.08802343 | X12: =Output!P12*X$9 -> 45.56859805 | Y12: =SUM(T12:X12) -> 243.5523794 | AA12: 48.71047588 | AB12: 48.71047588 | AC12: 48.71047588 | AD12: 48.71047588 | AE12: 48.71047588
B13: 0 | C13: =RAB!C15 -> 4 x 20 W Fluorescent | E13: =Output!E13/E$9 -> 0 | F13: =Output!F13/F$9 -> 0 | G13: =Output!G13/G$9 -> 0 | H13: =Output!H13/H$9 -> 0 | I13: =Output!I13/I$9 -> 0 | J13: 0 | L13: 0 | M13: 0 | N13: 0 | O13: 0 | P13: 0 | R13: 4 x 20 W Fluorescent | T13: =Output!L13*T$9 -> 0 | U13: =Output!M13*U$9 -> 0 | V13: =Output!N13*V$9 -> 0 | W13: =Output!O13*W$9 -> 0 | X13: =Output!P13*X$9 -> 0 | Y13: 0 | AA13: 0 | AB13: 0 | AC13: 0 | AD13: 0 | AE13: 0
B14: 0 | C14: =RAB!C16 -> 2 x 14 W Fluorescent | E14: =Output!E14/E$9 -> 9.950974328 | F14: =Output!F14/F$9 -> 9.862409635 | G14: =Output!G14/G$9 -> 9.764076302 | H14: =Output!H14/H$9 -> 8.355305507 | I14: =Output!I14/I$9 -> 8.255239103 | J14: 46.18800488 | L14: 9.237600975 | M14: 9.237600975 | N14: 9.237600975 | O14: 9.237600975 | P14: 9.237600975 | R14: 2 x 14 W Fluorescent | T14: =Output!L14*T$9 -> 48.66680303 | U14: =Output!M14*U$9 -> 47.09643396 | V14: =Output!N14*V$9 -> 45.57673719 | W14: =Output!O14*W$9 -> 44.10607764 | X14: =Output!P14*X$9 -> 42.68287299 | Y14: 228.1289248 | AA14: 45.62578496 | AB14: 45.62578496 | AC14: 45.62578496 | AD14: 45.62578496 | AE14: 45.62578496
B15: 0 | C15: =RAB!C17 -> 2 x 24 W Fluorescent | E15: =Output!E15/E$9 -> 4.766544419 | F15: =Output!F15/F$9 -> 4.805567846 | G15: =Output!G15/G$9 -> 4.84189419 | H15: =Output!H15/H$9 -> 4.875300204 | I15: =Output!I15/I$9 -> 4.905550751 | J15: 24.19485741 | L15: 4.838971482 | M15: 4.838971482 | N15: 4.838971482 | O15: 4.838971482 | P15: 4.838971482 | R15: 2 x 24 W Fluorescent | T15: =Output!L15*T$9 -> 48.66680303 | U15: =Output!M15*U$9 -> 47.09643396 | V15: =Output!N15*V$9 -> 45.57673719 | W15: =Output!O15*W$9 -> 44.10607764 | X15: =Output!P15*X$9 -> 42.68287299 | Y15: 228.1289248 | AA15: 45.62578496 | AB15: 45.62578496 | AC15: 45.62578496 | AD15: 45.62578496 | AE15: 45.62578496
B16: 0 | C16: =RAB!C18 -> 1 x 40 W Fluorescent | E16: =Output!E16/E$9 -> 1.486750132 | F16: =Output!F16/F$9 -> 1.498855001 | G16: =Output!G16/G$9 -> 1.510114141 | H16: =Output!H16/H$9 -> 1.520457693 | I16: =Output!I16/I$9 -> 1.529812082 | J16: 7.545989049 | L16: 1.50919781 | M16: 1.50919781 | N16: 1.50919781 | O16: 1.50919781 | P16: 1.50919781 | R16: 1 x 40 W Fluorescent | T16: =Output!L16*T$9 -> 50.45710766 | U16: =Output!M16*U$9 -> 48.82896946 | V16: =Output!N16*V$9 -> 47.25336764 | W16: =Output!O16*W$9 -> 45.72860697 | X16: =Output!P16*X$9 -> 44.25304692 | Y16: 236.5210986 | AA16: 47.30421973 | AB16: 47.30421973 | AC16: 47.30421973 | AD16: 47.30421973 | AE16: 47.30421973
B17: 0 | C17: =RAB!C19 -> 2 x 40 W Fluorescent | E17: =Output!E17/E$9 -> 0 | F17: =Output!F17/F$9 -> 0 | G17: =Output!G17/G$9 -> 0 | H17: =Output!H17/H$9 -> 0 | I17: =Output!I17/I$9 -> 0 | J17: 0 | L17: 0 | M17: 0 | N17: 0 | O17: 0 | P17: 0 | R17: 2 x 40 W Fluorescent | T17: =Output!L17*T$9 -> 55.53770189 | U17: =Output!M17*U$9 -> 53.74562425 | V17: =Output!N17*V$9 -> 52.01137295 | W17: =Output!O17*W$9 -> 50.33308208 | X17: =Output!P17*X$9 -> 48.7089459 | Y17: 260.3367271 | AA17: 52.06734541 | AB17: 52.06734541 | AC17: 52.06734541 | AD17: 52.06734541 | AE17: 52.06734541
B18: 0 | C18: =RAB!C20 -> 1 x 42 W Fluorescent | E18: =Output!E18/E$9 -> 0 | F18: =Output!F18/F$9 -> 0 | G18: =Output!G18/G$9 -> 0 | H18: =Output!H18/H$9 -> 0 | I18: =Output!I18/I$9 -> 0 | J18: 0 | L18: 0 | M18: 0 | N18: 0 | O18: 0 | P18: 0 | R18: 1 x 42 W Fluorescent | T18: =Output!L18*T$9 -> 50.45710766 | U18: =Output!M18*U$9 -> 48.82896946 | V18: =Output!N18*V$9 -> 47.25336764 | W18: =Output!O18*W$9 -> 45.72860697 | X18: =Output!P18*X$9 -> 44.25304692 | Y18: 236.5210986 | AA18: 47.30421973 | AB18: 47.30421973 | AC18: 47.30421973 | AD18: 47.30421973 | AE18: 47.30421973
B19: 0 | C19: =RAB!C21 -> 50W Mercury | E19: =Output!E19/E$9 -> 0.3473032403 | F19: =Output!F19/F$9 -> 0.3497007757 | G19: =Output!G19/G$9 -> 0.3518720641 | H19: =Output!H19/H$9 -> 0.3537993521 | I19: =Output!I19/I$9 -> 0.3554639538 | J19: 1.758139386 | L19: 0.3516278772 | M19: 0.3516278772 | N19: 0.3516278772 | O19: 0.3516278772 | P19: 0.3516278772 | R19: 50W Mercury | T19: =Output!L19*T$9 -> 51.76354618 | U19: =Output!M19*U$9 -> 50.09325212 | V19: =Output!N19*V$9 -> 48.47685472 | W19: =Output!O19*W$9 -> 46.91261485 | X19: =Output!P19*X$9 -> 45.39884951 | Y19: 242.6451174 | AA19: 48.52902348 | AB19: 48.52902348 | AC19: 48.52902348 | AD19: 48.52902348 | AE19: 48.52902348
B20: 0 | C20: =RAB!C22 -> 80W Mercury | E20: =Output!E20/E$9 -> 0.2195631519 | F20: =Output!F20/F$9 -> 0.1822347984 | G20: =Output!G20/G$9 -> 0.1438494425 | H20: =Output!H20/H$9 -> 0.1043929833 | I20: =Output!I20/I$9 -> 0.07907743779 | J20: 0.7291178139 | L20: 0.1458235628 | M20: 0.1458235628 | N20: 0.1458235628 | O20: 0.1458235628 | P20: 0.1458235628 | R20: 80W Mercury | T20: =Output!L20*T$9 -> 49.15066915 | U20: =Output!M20*U$9 -> 47.5646868 | V20: =Output!N20*V$9 -> 46.02988055 | W20: =Output!O20*W$9 -> 44.54459908 | X20: =Output!P20*X$9 -> 43.10724433 | Y20: 230.3970799 | AA20: 46.07941598 | AB20: 46.07941598 | AC20: 46.07941598 | AD20: 46.07941598 | AE20: 46.07941598
B21: 0 | C21: =RAB!C23 -> 125W Mercury | E21: =Output!E21/E$9 -> 0.4515436517 | F21: =Output!F21/F$9 -> 0.4518641353 | G21: =Output!G21/G$9 -> 0.4517039641 | H21: =Output!H21/H$9 -> 0.451030728 | I21: =Output!I21/I$9 -> 0.4498103902 | J21: 2.255952869 | L21: =$J21/RegDur -> 0.4511905738 | M21: 0.4511905738 | N21: 0.4511905738 | O21: 0.4511905738 | P21: 0.4511905738 | R21: 125W Mercury | T21: =Output!L21*T$9 -> 49.15066915 | U21: =Output!M21*U$9 -> 47.5646868 | V21: =Output!N21*V$9 -> 46.02988055 | W21: =Output!O21*W$9 -> 44.54459908 | X21: =Output!P21*X$9 -> 43.10724433 | Y21: 230.3970799 | AA21: =$Y21/RegDur -> 46.07941598 | AB21: 46.07941598 | AC21: 46.07941598 | AD21: 46.07941598 | AE21: 46.07941598
B22: 0 | C22: =RAB!C24 -> 250W Mercury | E22: =Output!E22/E$9 -> 0.6082118817 | F22: =Output!F22/F$9 -> 0.5902604671 | G22: =Output!G22/G$9 -> 0.5712748137 | H22: =Output!H22/H$9 -> 0.5512133604 | I22: =Output!I22/I$9 -> 0.5381808754 | J22: 2.859141398 | L22: 0.5718282797 | M22: 0.5718282797 | N22: 0.5718282797 | O22: 0.5718282797 | P22: 0.5718282797 | R22: 250W Mercury | T22: =Output!L22*T$9 -> 49.15066915 | U22: =Output!M22*U$9 -> 47.5646868 | V22: =Output!N22*V$9 -> 46.02988055 | W22: =Output!O22*W$9 -> 44.54459908 | X22: =Output!P22*X$9 -> 43.10724433 | Y22: 230.3970799 | AA22: 46.07941598 | AB22: 46.07941598 | AC22: 46.07941598 | AD22: 46.07941598 | AE22: 46.07941598
B23: 0 | C23: =RAB!C25 -> 2 x 250W Mercury | E23: =Output!E23/E$9 -> 39.46286755 | F23: =Output!F23/F$9 -> 39.78266591 | G23: =Output!G23/G$9 -> 40.07991591 | H23: =Output!H23/H$9 -> 40.35275828 | I23: =Output!I23/I$9 -> 40.59923487 | J23: 200.2774425 | L23: 40.0554885 | M23: 40.0554885 | N23: 40.0554885 | O23: 40.0554885 | P23: 40.0554885 | R23: 2 x 250W Mercury | T23: =Output!L23*T$9 -> 52.92482486 | U23: =Output!M23*U$9 -> 51.21705893 | V23: =Output!N23*V$9 -> 49.56439879 | W23: =Output!O23*W$9 -> 47.96506631 | X23: =Output!P23*X$9 -> 46.41734071 | Y23: 248.0886896 | AA23: 49.61773792 | AB23: 49.61773792 | AC23: 49.61773792 | AD23: 49.61773792 | AE23: 49.61773792
B24: 0 | C24: =RAB!C26 -> 400 W Mercury | E24: =Output!E24/E$9 -> 0.8636060834 | F24: =Output!F24/F$9 -> 0.6393831279 | G24: =Output!G24/G$9 -> 0.5146892121 | H24: =Output!H24/H$9 -> 0.4032909614 | I24: =Output!I24/I$9 -> 0.2870367176 | J24: 2.708006102 | L24: 0.5416012205 | M24: 0.5416012205 | N24: 0.5416012205 | O24: 0.5416012205 | P24: 0.5416012205 | R24: 400 W Mercury | T24: =Output!L24*T$9 -> 49.15066915 | U24: =Output!M24*U$9 -> 47.5646868 | V24: =Output!N24*V$9 -> 46.02988055 | W24: =Output!O24*W$9 -> 44.54459908 | X24: =Output!P24*X$9 -> 43.10724433 | Y24: 230.3970799 | AA24: 46.07941598 | AB24: 46.07941598 | AC24: 46.07941598 | AD24: 46.07941598 | AE24: 46.07941598
B25: 0 | C25: =RAB!C27 -> 700 W Mercury | E25: =Output!E25/E$9 -> 0 | F25: =Output!F25/F$9 -> 0 | G25: =Output!G25/G$9 -> 0 | H25: =Output!H25/H$9 -> 0 | I25: =Output!I25/I$9 -> 0 | J25: 0 | L25: 0 | M25: 0 | N25: 0 | O25: 0 | P25: 0 | R25: 700 W Mercury | T25: =Output!L25*T$9 -> 0 | U25: =Output!M25*U$9 -> 0 | V25: =Output!N25*V$9 -> 0 | W25: =Output!O25*W$9 -> 0 | X25: =Output!P25*X$9 -> 0 | Y25: 0 | AA25: 0 | AB25: 0 | AC25: 0 | AD25: 0 | AE25: 0
B26: 0 | C26: =RAB!C28 -> 50W Sodium | E26: =Output!E26/E$9 -> 6.970811953 | F26: =Output!F26/F$9 -> 7.027301874 | G26: =Output!G26/G$9 -> 7.079808799 | H26: =Output!H26/H$9 -> 7.128004305 | I26: =Output!I26/I$9 -> 7.171542499 | J26: 35.37746943 | L26: 7.075493886 | M26: 7.075493886 | N26: 7.075493886 | O26: 7.075493886 | P26: 7.075493886 | R26: 50W Sodium | T26: =Output!L26*T$9 -> 54.00868496 | U26: =Output!M26*U$9 -> 52.26594528 | V26: =Output!N26*V$9 -> 50.57943992 | W26: =Output!O26*W$9 -> 48.94735433 | X26: =Output!P26*X$9 -> 47.36793249 | Y26: 253.169357 | AA26: 50.6338714 | AB26: 50.6338714 | AC26: 50.6338714 | AD26: 50.6338714 | AE26: 50.6338714
B27: 0 | C27: =RAB!C29 -> 70W Sodium | E27: =Output!E27/E$9 -> 1.224869367 | F27: =Output!F27/F$9 -> 1.234847742 | G27: =Output!G27/G$9 -> 1.244129736 | H27: =Output!H27/H$9 -> 1.252657816 | I27: =Output!I27/I$9 -> 1.260371386 | J27: 6.216876047 | L27: 1.243375209 | M27: 1.243375209 | N27: 1.243375209 | O27: 1.243375209 | P27: 1.243375209 | R27: 70W Sodium | T27: =Output!L27*T$9 -> 54.00868496 | U27: =Output!M27*U$9 -> 52.26594528 | V27: =Output!N27*V$9 -> 50.57943992 | W27: =Output!O27*W$9 -> 48.94735433 | X27: =Output!P27*X$9 -> 47.36793249 | Y27: 253.169357 | AA27: 50.6338714 | AB27: 50.6338714 | AC27: 50.6338714 | AD27: 50.6338714 | AE27: 50.6338714
B28: 0 | C28: =RAB!C30 -> 90W Sodium | E28: =Output!E28/E$9 -> 0 | F28: =Output!F28/F$9 -> 0 | G28: =Output!G28/G$9 -> 0 | H28: =Output!H28/H$9 -> 0 | I28: =Output!I28/I$9 -> 0 | J28: 0 | L28: 0 | M28: 0 | N28: 0 | O28: 0 | P28: 0 | R28: 90W Sodium | T28: =Output!L28*T$9 -> 57.76348602 | U28: =Output!M28*U$9 -> 55.8995873 | V28: =Output!N28*V$9 -> 54.09583243 | W28: =Output!O28*W$9 -> 52.3502807 | X28: =Output!P28*X$9 -> 50.66105402 | Y28: 270.7702405 | AA28: 54.15404809 | AB28: 54.15404809 | AC28: 54.15404809 | AD28: 54.15404809 | AE28: 54.15404809
B29: 0 | C29: =RAB!C31 -> 100W Sodium | E29: =Output!E29/E$9 -> 1.740433443 | F29: =Output!F29/F$9 -> 1.758830482 | G29: =Output!G29/G$9 -> 1.776519354 | H29: =Output!H29/H$9 -> 1.79343238 | I29: =Output!I29/I$9 -> 1.809498153 | J29: 8.878713812 | L29: 1.775742762 | M29: 1.775742762 | N29: 1.775742762 | O29: 1.775742762 | P29: 1.775742762 | R29: 100W Sodium | T29: =Output!L29*T$9 -> 57.76348602 | U29: =Output!M29*U$9 -> 55.8995873 | V29: =Output!N29*V$9 -> 54.09583243 | W29: =Output!O29*W$9 -> 52.3502807 | X29: =Output!P29*X$9 -> 50.66105402 | Y29: 270.7702405 | AA29: 54.15404809 | AB29: 54.15404809 | AC29: 54.15404809 | AD29: 54.15404809 | AE29: 54.15404809
B30: 0 | C30: =RAB!C32 -> 120W Sodium | E30: =Output!E30/E$9 -> 0.9337209583 | F30: =Output!F30/F$9 -> 0.9414691369 | G30: =Output!G30/G$9 -> 0.9486959085 | H30: =Output!H30/H$9 -> 0.9553578875 | I30: =Output!I30/I$9 -> 0.9614093744 | J30: 4.740653266 | L30: 0.9481306531 | M30: 0.9481306531 | N30: 0.9481306531 | O30: 0.9481306531 | P30: 0.9481306531 | R30: 120W Sodium | T30: =Output!L30*T$9 -> 53.84417048 | U30: =Output!M30*U$9 -> 52.10673932 | V30: =Output!N30*V$9 -> 50.42537118 | W30: =Output!O30*W$9 -> 48.79825704 | X30: =Output!P30*X$9 -> 47.22364624 | Y30: 252.3981843 | AA30: 50.47963685 | AB30: 50.47963685 | AC30: 50.47963685 | AD30: 50.47963685 | AE30: 50.47963685
B31: 0 | C31: =RAB!C33 -> 150W Sodium | E31: =Output!E31/E$9 -> 2.927491116 | F31: =Output!F31/F$9 -> 2.882124787 | G31: =Output!G31/G$9 -> 2.832732848 | H31: =Output!H31/H$9 -> 2.779117298 | I31: =Output!I31/I$9 -> 2.721071589 | J31: 14.14253764 | L31: =$J31/RegDur -> 2.828507528 | M31: 2.828507528 | N31: 2.828507528 | O31: 2.828507528 | P31: 2.828507528 | R31: 150W Sodium | T31: =Output!L31*T$9 -> 53.84417048 | U31: =Output!M31*U$9 -> 52.10673932 | V31: =Output!N31*V$9 -> 50.42537118 | W31: =Output!O31*W$9 -> 48.79825704 | X31: =Output!P31*X$9 -> 47.22364624 | Y31: 252.3981843 | AA31: =$Y31/RegDur -> 50.47963685 | AB31: 50.47963685 | AC31: 50.47963685 | AD31: 50.47963685 | AE31: 50.47963685
B32: 0 | C32: =RAB!C34 -> 250W Sodium | E32: =Output!E32/E$9 -> 0.6838345249 | F32: =Output!F32/F$9 -> 0.6413218082 | G32: =Output!G32/G$9 -> 0.597240668 | H32: =Output!H32/H$9 -> 0.5515517743 | I32: =Output!I32/I$9 -> 0.5292389155 | J32: 3.003187691 | L32: 0.6006375382 | M32: 0.6006375382 | N32: 0.6006375382 | O32: 0.6006375382 | P32: 0.6006375382 | R32: 250W Sodium | T32: =Output!L32*T$9 -> 62.77633899 | U32: =Output!M32*U$9 -> 60.75068669 | V32: =Output!N32*V$9 -> 58.79039767 | W32: =Output!O32*W$9 -> 56.8933628 | X32: =Output!P32*X$9 -> 55.05754101 | Y32: 294.2683272 | AA32: 58.85366543 | AB32: 58.85366543 | AC32: 58.85366543 | AD32: 58.85366543 | AE32: 58.85366543
B33: 0 | C33: =RAB!C35 -> 2 x 250W Sodium | E33: =Output!E33/E$9 -> 1.48328884 | F33: =Output!F33/F$9 -> 1.495309085 | G33: =Output!G33/G$9 -> 1.506481806 | H33: =Output!H33/H$9 -> 1.516737118 | I33: =Output!I33/I$9 -> 1.526001422 | J33: 7.52781827 | L33: 1.505563654 | M33: 1.505563654 | N33: 1.505563654 | O33: 1.505563654 | P33: 1.505563654 | R33: 2 x 250W Sodium | T33: =Output!L33*T$9 -> 80.17616453 | U33: =Output!M33*U$9 -> 77.58905871 | V33: =Output!N33*V$9 -> 75.08543303 | W33: =Output!O33*W$9 -> 72.66259375 | X33: =Output!P33*X$9 -> 70.31793409 | Y33: 375.8311841 | AA33: 75.16623682 | AB33: 75.16623682 | AC33: 75.16623682 | AD33: 75.16623682 | AE33: 75.16623682
B34: 0 | C34: =RAB!C36 -> 310W Sodium | E34: =Output!E34/E$9 -> 0 | F34: =Output!F34/F$9 -> 0 | G34: =Output!G34/G$9 -> 0 | H34: =Output!H34/H$9 -> 0 | I34: =Output!I34/I$9 -> 0 | J34: 0 | L34: 0 | M34: 0 | N34: 0 | O34: 0 | P34: 0 | R34: 310W Sodium | T34: =Output!L34*T$9 -> 62.77633899 | U34: =Output!M34*U$9 -> 60.75068669 | V34: =Output!N34*V$9 -> 58.79039767 | W34: =Output!O34*W$9 -> 56.8933628 | X34: =Output!P34*X$9 -> 55.05754101 | Y34: 294.2683272 | AA34: 58.85366543 | AB34: 58.85366543 | AC34: 58.85366543 | AD34: 58.85366543 | AE34: 58.85366543
B35: 0 | C35: =RAB!C37 -> 400 W Sodium | E35: =Output!E35/E$9 -> 0.1999344443 | F35: =Output!F35/F$9 -> 0.1683452023 | G35: =Output!G35/G$9 -> 0.1353629612 | H35: =Output!H35/H$9 -> 0.1009382567 | I35: =Output!I35/I$9 -> 0.06501994859 | J35: 0.669600813 | L35: 0.1339201626 | M35: 0.1339201626 | N35: 0.1339201626 | O35: 0.1339201626 | P35: 0.1339201626 | R35: 400 W Sodium | T35: =Output!L35*T$9 -> 55.92479478 | U35: =Output!M35*U$9 -> 54.12022652 | V35: =Output!N35*V$9 -> 52.37388764 | W35: =Output!O35*W$9 -> 50.68389923 | X35: =Output!P35*X$9 -> 49.04844296 | Y35: 262.1512511 | AA35: 52.43025023 | AB35: 52.43025023 | AC35: 52.43025023 | AD35: 52.43025023 | AE35: 52.43025023
B36: 0 | C36: =RAB!C38 -> 2 x 400 W Sodium | E36: =Output!E36/E$9 -> 4.777136644 | F36: =Output!F36/F$9 -> 4.827117963 | G36: =Output!G36/G$9 -> 4.875121177 | H36: =Output!H36/H$9 -> 4.9209588 | I36: =Output!I36/I$9 -> 4.964433046 | J36: 24.36476763 | L36: 4.872953526 | M36: 4.872953526 | N36: 4.872953526 | O36: 4.872953526 | P36: 4.872953526 | R36: 2 x 400 W Sodium | T36: =Output!L36*T$9 -> 66.47307612 | U36: =Output!M36*U$9 -> 64.32813837 | V36: =Output!N36*V$9 -> 62.25241297 | W36: =Output!O36*W$9 -> 60.2436666 | X36: =Output!P36*X$9 -> 58.29973798 | Y36: 311.597032 | AA36: 62.31940641 | AB36: 62.31940641 | AC36: 62.31940641 | AD36: 62.31940641 | AE36: 62.31940641
B37: 0 | C37: =RAB!C39 -> 4 x 600W Sodium | E37: =Output!E37/E$9 -> 0 | F37: =Output!F37/F$9 -> 0 | G37: =Output!G37/G$9 -> 0 | H37: =Output!H37/H$9 -> 0 | I37: =Output!I37/I$9 -> 0 | J37: 0 | L37: 0 | M37: 0 | N37: 0 | O37: 0 | P37: 0 | R37: 4 x 600W Sodium | T37: =Output!L37*T$9 -> 87.56963879 | U37: =Output!M37*U$9 -> 84.74396207 | V37: =Output!N37*V$9 -> 82.00946362 | W37: =Output!O37*W$9 -> 79.36320134 | X37: =Output!P37*X$9 -> 76.80232803 | Y37: 410.4885938 | AA37: 82.09771877 | AB37: 82.09771877 | AC37: 82.09771877 | AD37: 82.09771877 | AE37: 82.09771877
B38: 0 | C38: =RAB!C40 -> 60 W Incandescent | E38: =Output!E38/E$9 -> 0 | F38: =Output!F38/F$9 -> 0 | G38: =Output!G38/G$9 -> 0 | H38: =Output!H38/H$9 -> 0 | I38: =Output!I38/I$9 -> 0 | J38: 0 | L38: 0 | M38: 0 | N38: 0 | O38: 0 | P38: 0 | R38: 60 W Incandescent | T38: =Output!L38*T$9 -> 66.66662256 | U38: =Output!M38*U$9 -> 64.5154395 | V38: =Output!N38*V$9 -> 62.43367032 | W38: =Output!O38*W$9 -> 60.41907517 | X38: =Output!P38*X$9 -> 58.46948652 | Y38: 312.5042941 | AA38: 62.50085881 | AB38: 62.50085881 | AC38: 62.50085881 | AD38: 62.50085881 | AE38: 62.50085881
B39: 0 | C39: =RAB!C41 -> 100 W Incandescent | E39: =Output!E39/E$9 -> 0 | F39: =Output!F39/F$9 -> 0 | G39: =Output!G39/G$9 -> 0 | H39: =Output!H39/H$9 -> 0 | I39: =Output!I39/I$9 -> 0 | J39: 0 | L39: 0 | M39: 0 | N39: 0 | O39: 0 | P39: 0 | R39: 100 W Incandescent | T39: =Output!L39*T$9 -> 0 | U39: =Output!M39*U$9 -> 0 | V39: =Output!N39*V$9 -> 0 | W39: =Output!O39*W$9 -> 0 | X39: =Output!P39*X$9 -> 0 | Y39: 0 | AA39: 0 | AB39: 0 | AC39: 0 | AD39: 0 | AE39: 0
B40: 0 | C40: =RAB!C42 -> 500 W Incandescent | E40: =Output!E40/E$9 -> 0 | F40: =Output!F40/F$9 -> 0 | G40: =Output!G40/G$9 -> 0 | H40: =Output!H40/H$9 -> 0 | I40: =Output!I40/I$9 -> 0 | J40: 0 | L40: 0 | M40: 0 | N40: 0 | O40: 0 | P40: 0 | R40: 500 W Incandescent | T40: =Output!L40*T$9 -> 0 | U40: =Output!M40*U$9 -> 0 | V40: =Output!N40*V$9 -> 0 | W40: =Output!O40*W$9 -> 0 | X40: =Output!P40*X$9 -> 0 | Y40: 0 | AA40: 0 | AB40: 0 | AC40: 0 | AD40: 0 | AE40: 0
B41: 0 | C41: =RAB!C43 -> 1000 W Incandescent | E41: =Output!E41/E$9 -> 0 | F41: =Output!F41/F$9 -> 0 | G41: =Output!G41/G$9 -> 0 | H41: =Output!H41/H$9 -> 0 | I41: =Output!I41/I$9 -> 0 | J41: 0 | L41: =$J41/RegDur -> 0 | M41: 0 | N41: 0 | O41: 0 | P41: 0 | R41: 1000 W Incandescent | T41: =Output!L41*T$9 -> 0 | U41: =Output!M41*U$9 -> 0 | V41: =Output!N41*V$9 -> 0 | W41: =Output!O41*W$9 -> 0 | X41: =Output!P41*X$9 -> 0 | Y41: 0 | AA41: =$Y41/RegDur -> 0 | AB41: 0 | AC41: 0 | AD41: 0 | AE41: 0
B42: 0 | C42: =RAB!C44 -> 1500 W Incandescent | E42: =Output!E42/E$9 -> 0 | F42: =Output!F42/F$9 -> 0 | G42: =Output!G42/G$9 -> 0 | H42: =Output!H42/H$9 -> 0 | I42: =Output!I42/I$9 -> 0 | J42: 0 | L42: 0 | M42: 0 | N42: 0 | O42: 0 | P42: 0 | R42: 1500 W Incandescent | T42: =Output!L42*T$9 -> 66.66662256 | U42: =Output!M42*U$9 -> 64.5154395 | V42: =Output!N42*V$9 -> 62.43367032 | W42: =Output!O42*W$9 -> 60.41907517 | X42: =Output!P42*X$9 -> 58.46948652 | Y42: 312.5042941 | AA42: 62.50085881 | AB42: 62.50085881 | AC42: 62.50085881 | AD42: 62.50085881 | AE42: 62.50085881
B43: 0 | C43: =RAB!C45 -> 100 W Metal Halide | E43: =Output!E43/E$9 -> 5.824806284 | F43: =Output!F43/F$9 -> 5.796088222 | G43: =Output!G43/G$9 -> 5.761393717 | H43: =Output!H43/H$9 -> 5.720377585 | I43: =Output!I43/I$9 -> 5.67267846 | J43: 28.77534427 | L43: 5.755068854 | M43: 5.755068854 | N43: 5.755068854 | O43: 5.755068854 | P43: 5.755068854 | R43: =C43 -> 100 W Metal Halide | T43: =Output!L43*T$9 -> 76.46975008 | U43: =Output!M43*U$9 -> 74.00224198 | V43: =Output!N43*V$9 -> 71.61435486 | W43: =Output!O43*W$9 -> 69.30351953 | X43: =Output!P43*X$9 -> 67.06724969 | Y43: 358.4571161 | AA43: 71.69142323 | AB43: 71.69142323 | AC43: 71.69142323 | AD43: 71.69142323 | AE43: 71.69142323
B44: 0 | C44: =RAB!C46 -> 150 W Metal Halide | E44: =Output!E44/E$9 -> 53.40054699 | F44: =Output!F44/F$9 -> 53.88862247 | G44: =Output!G44/G$9 -> 54.34987559 | H44: =Output!H44/H$9 -> 54.781975 | I44: =Output!I44/I$9 -> 55.1824637 | J44: 271.6034838 | L44: 54.32069675 | M44: 54.32069675 | N44: 54.32069675 | O44: 54.32069675 | P44: 54.32069675 | R44: 150 W Metal Halide | T44: =Output!L44*T$9 -> 66.66662256 | U44: =Output!M44*U$9 -> 64.5154395 | V44: =Output!N44*V$9 -> 62.43367032 | W44: =Output!O44*W$9 -> 60.41907517 | X44: =Output!P44*X$9 -> 58.46948652 | Y44: 312.5042941 | AA44: 62.50085881 | AB44: 62.50085881 | AC44: 62.50085881 | AD44: 62.50085881 | AE44: 62.50085881
B45: 0 | C45: =RAB!C47 -> 250 W Metal Halide | E45: =Output!E45/E$9 -> 9.826509196 | F45: =Output!F45/F$9 -> 9.902176574 | G45: =Output!G45/G$9 -> 9.973134135 | H45: =Output!H45/H$9 -> 10.03899405 | I45: =Output!I45/I$9 -> 10.09934795 | J45: 49.84016191 | L45: 9.968032381 | M45: 9.968032381 | N45: 9.968032381 | O45: 9.968032381 | P45: 9.968032381 | R45: 250 W Metal Halide | T45: =Output!L45*T$9 -> 64.13116411 | U45: =Output!M45*U$9 -> 62.06179463 | V45: =Output!N45*V$9 -> 60.05919909 | W45: =Output!O45*W$9 -> 58.12122283 | X45: =Output!P45*X$9 -> 56.24578074 | Y45: 300.6191614 | AA45: 60.12383228 | AB45: 60.12383228 | AC45: 60.12383228 | AD45: 60.12383228 | AE45: 60.12383228
B46: 0 | C46: =RAB!C48 -> 2 x 250 W Metal Halide | E46: =Output!E46/E$9 -> 46.63942803 | F46: =Output!F46/F$9 -> 47.12759706 | G46: =Output!G46/G$9 -> 47.59646701 | H46: =Output!H46/H$9 -> 48.04420811 | I46: =Output!I46/I$9 -> 48.46889006 | J46: 237.8765903 | L46: 47.57531805 | M46: 47.57531805 | N46: 47.57531805 | O46: 47.57531805 | P46: 47.57531805 | R46: 2 x 250 W Metal Halide | T46: =Output!L46*T$9 -> 82.88581478 | U46: =Output!M46*U$9 -> 80.2112746 | V46: =Output!N46*V$9 -> 77.62303586 | W46: =Output!O46*W$9 -> 75.11831381 | X46: =Output!P46*X$9 -> 72.69441354 | Y46: 388.5328526 | AA46: 77.70657052 | AB46: 77.70657052 | AC46: 77.70657052 | AD46: 77.70657052 | AE46: 77.70657052
B47: 0 | C47: =RAB!C49 -> 400 W Metal Halide | E47: =Output!E47/E$9 -> 2.911134517 | F47: =Output!F47/F$9 -> 2.933356969 | G47: =Output!G47/G$9 -> 2.955011112 | H47: =Output!H47/H$9 -> 2.976044874 | I47: =Output!I47/I$9 -> 2.996403436 | J47: 14.77195091 | L47: 2.954390182 | M47: 2.954390182 | N47: 2.954390182 | O47: 2.954390182 | P47: 2.954390182 | R47: 400 W Metal Halide | T47: =Output!L47*T$9 -> 62.79569363 | U47: =Output!M47*U$9 -> 60.7694168 | V47: =Output!N47*V$9 -> 58.80852341 | W47: =Output!O47*W$9 -> 56.91090366 | X47: =Output!P47*X$9 -> 55.07451587 | Y47: 294.3590534 | AA47: 58.87181067 | AB47: 58.87181067 | AC47: 58.87181067 | AD47: 58.87181067 | AE47: 58.87181067
B48: 0 | C48: =RAB!C50 -> 2 x 400 W Metal Halide | E48: =Output!E48/E$9 -> 89.35952254 | F48: =Output!F48/F$9 -> 90.29650192 | G48: =Output!G48/G$9 -> 91.19661592 | H48: =Output!H48/H$9 -> 92.05636434 | I48: =Output!I48/I$9 -> 92.87205457 | J48: 455.7810593 | L48: 91.15621186 | M48: 91.15621186 | N48: 91.15621186 | O48: 91.15621186 | P48: 91.15621186 | R48: 2 x 400 W Metal Halide | T48: =Output!L48*T$9 -> 80.21487382 | U48: =Output!M48*U$9 -> 77.62651894 | V48: =Output!N48*V$9 -> 75.1216845 | W48: =Output!O48*W$9 -> 72.69767546 | X48: =Output!P48*X$9 -> 70.35188379 | Y48: 376.0126365 | AA48: 75.2025273 | AB48: 75.2025273 | AC48: 75.2025273 | AD48: 75.2025273 | AE48: 75.2025273
B49: 0 | C49: =RAB!C51 -> 1000 W Metal Halide | E49: =Output!E49/E$9 -> 0.02012887592 | F49: =Output!F49/F$9 -> -0.215370055 | G49: =Output!G49/G$9 -> -0.4643712295 | H49: =Output!H49/H$9 -> -0.7420414179 | I49: =Output!I49/I$9 -> -1.017663776 | J49: -2.419317603 | L49: -0.4838635206 | M49: -0.4838635206 | N49: -0.4838635206 | O49: -0.4838635206 | P49: -0.4838635206 | R49: 1000 W Metal Halide | T49: =Output!L49*T$9 -> 62.79569363 | U49: =Output!M49*U$9 -> 60.7694168 | V49: =Output!N49*V$9 -> 58.80852341 | W49: =Output!O49*W$9 -> 56.91090366 | X49: =Output!P49*X$9 -> 55.07451587 | Y49: 294.3590534 | AA49: 58.87181067 | AB49: 58.87181067 | AC49: 58.87181067 | AD49: 58.87181067 | AE49: 58.87181067
B50: 0 | C50: =RAB!C52 -> 600 W Sodium | E50: =Output!E50/E$9 -> 27.55628685 | F50: =Output!F50/F$9 -> 27.70223126 | G50: =Output!G50/G$9 -> 24.62801819 | H50: =Output!H50/H$9 -> 24.6239224 | I50: =Output!I50/I$9 -> 24.592172 | J50: 129.1026307 | L50: 25.82052614 | M50: 25.82052614 | N50: 25.82052614 | O50: 25.82052614 | P50: 25.82052614 | R50: 600 W Sodium | T50: =Output!L50*T$9 -> 55.92479478 | U50: =Output!M50*U$9 -> 54.12022652 | V50: =Output!N50*V$9 -> 52.37388764 | W50: =Output!O50*W$9 -> 50.68389923 | X50: =Output!P50*X$9 -> 49.04844296 | Y50: 262.1512511 | AA50: 52.43025023 | AB50: 52.43025023 | AC50: 52.43025023 | AD50: 52.43025023 | AE50: 52.43025023
B51: 0 | C51: =RAB!C53 -> Pole mounting bracket minor (<=3m) | E51: =Output!E51/E$9 -> 0.1208617851 | F51: =Output!F51/F$9 -> 0.05981113492 | G51: =Output!G51/G$9 -> 0.02217376105 | H51: =Output!H51/H$9 -> -0.008606967331 | I51: =Output!I51/I$9 -> -0.03895622048 | J51: 0.1552834932 | L51: =$J51/RegDur -> 0.03105669865 | M51: 0.03105669865 | N51: 0.03105669865 | O51: 0.03105669865 | P51: 0.03105669865 | R51: Pole mounting bracket minor (<=3m) | T51: =Output!L51*T$9 -> 14.33720386 | U51: =Output!M51*U$9 -> 13.8745743 | V51: =Output!N51*V$9 -> 13.42687277 | W51: =Output!O51*W$9 -> 12.99361756 | X51: =Output!P51*X$9 -> 12.57434254 | Y51: 67.20661104 | AA51: =$Y51/RegDur -> 13.44132221 | AB51: 13.44132221 | AC51: 13.44132221 | AD51: 13.44132221 | AE51: 13.44132221
B52: 0 | C52: =RAB!C54 -> Pole mounting bracket major (>3m) | E52: =Output!E52/E$9 -> 0.1813578878 | F52: =Output!F52/F$9 -> 0.1333783243 | G52: =Output!G52/G$9 -> 0.09729363408 | H52: =Output!H52/H$9 -> 0.07944430841 | I52: =Output!I52/I$9 -> 0.06081251828 | J52: 0.5522866728 | L52: 0.1104573346 | M52: 0.1104573346 | N52: 0.1104573346 | O52: 0.1104573346 | P52: 0.1104573346 | R52: Pole mounting bracket major (>3m) | T52: =Output!L52*T$9 -> 14.33720386 | U52: =Output!M52*U$9 -> 13.8745743 | V52: =Output!N52*V$9 -> 13.42687277 | W52: =Output!O52*W$9 -> 12.99361756 | X52: =Output!P52*X$9 -> 12.57434254 | Y52: 67.20661104 | AA52: 13.44132221 | AB52: 13.44132221 | AC52: 13.44132221 | AD52: 13.44132221 | AE52: 13.44132221
B53: 0 | C53: =RAB!C55 -> Outreach Minor (<=2m) | E53: =Output!E53/E$9 -> 0.6989758188 | F53: =Output!F53/F$9 -> 0.5984670855 | G53: =Output!G53/G$9 -> 0.5049080035 | H53: =Output!H53/H$9 -> 0.4072213524 | I53: =Output!I53/I$9 -> 0.3052605536 | J53: 2.514832814 | L53: 0.5029665627 | M53: 0.5029665627 | N53: 0.5029665627 | O53: 0.5029665627 | P53: 0.5029665627 | R53: Outreach Minor (<=2m) | T53: =Output!L53*T$9 -> 14.33720386 | U53: =Output!M53*U$9 -> 13.8745743 | V53: =Output!N53*V$9 -> 13.42687277 | W53: =Output!O53*W$9 -> 12.99361756 | X53: =Output!P53*X$9 -> 12.57434254 | Y53: 67.20661104 | AA53: 13.44132221 | AB53: 13.44132221 | AC53: 13.44132221 | AD53: 13.44132221 | AE53: 13.44132221
B54: 0 | C54: =RAB!C56 -> Outreach Major (>2m) | E54: =Output!E54/E$9 -> 0.5959834087 | F54: =Output!F54/F$9 -> 0.5570740221 | G54: =Output!G54/G$9 -> 0.5179559801 | H54: =Output!H54/H$9 -> 0.4770213062 | I54: =Output!I54/I$9 -> 0.4342048782 | J54: 2.582239595 | L54: 0.5164479191 | M54: 0.5164479191 | N54: 0.5164479191 | O54: 0.5164479191 | P54: 0.5164479191 | R54: Outreach Major (>2m) | T54: =Output!L54*T$9 -> 14.33720386 | U54: =Output!M54*U$9 -> 13.8745743 | V54: =Output!N54*V$9 -> 13.42687277 | W54: =Output!O54*W$9 -> 12.99361756 | X54: =Output!P54*X$9 -> 12.57434254 | Y54: 67.20661104 | AA54: 13.44132221 | AB54: 13.44132221 | AC54: 13.44132221 | AD54: 13.44132221 | AE54: 13.44132221
B55: 0 | C55: =RAB!C57 -> Minor Column (<=9) | E55: =Output!E55/E$9 -> 6.260070333 | F55: =Output!F55/F$9 -> 6.213251235 | G55: =Output!G55/G$9 -> 6.160123533 | H55: =Output!H55/H$9 -> 6.100352084 | I55: =Output!I55/I$9 -> 6.033586707 | J55: 30.76738389 | L55: 6.153476778 | M55: 6.153476778 | N55: 6.153476778 | O55: 6.153476778 | P55: 6.153476778 | R55: Minor Column (<=9) | T55: =Output!L55*T$9 -> 18.72458503 | U55: =Output!M55*U$9 -> 18.12038448 | V55: =Output!N55*V$9 -> 17.53568013 | W55: =Output!O55*W$9 -> 16.96984288 | X55: =Output!P55*X$9 -> 16.42226394 | Y55: 87.77275647 | AA55: 17.55455129 | AB55: 17.55455129 | AC55: 17.55455129 | AD55: 17.55455129 | AE55: 17.55455129
B56: 0 | C56: =RAB!C58 -> Major Column (>=9) | E56: =Output!E56/E$9 -> 87.59267093 | F56: =Output!F56/F$9 -> 88.22747882 | G56: =Output!G56/G$9 -> 88.81019289 | H56: =Output!H56/H$9 -> 89.3366596 | I56: =Output!I56/I$9 -> 89.80250661 | J56: 443.7695088 | L56: 88.75390177 | M56: 88.75390177 | N56: 88.75390177 | O56: 88.75390177 | P56: 88.75390177 | R56: Major Column (>=9) | T56: =Output!L56*T$9 -> 18.72458503 | U56: =Output!M56*U$9 -> 18.12038448 | V56: =Output!N56*V$9 -> 17.53568013 | W56: =Output!O56*W$9 -> 16.96984288 | X56: =Output!P56*X$9 -> 16.42226394 | Y56: 87.77275647 | AA56: 17.55455129 | AB56: 17.55455129 | AC56: 17.55455129 | AD56: 17.55455129 | AE56: 17.55455129
B57: TRUE | C57: =RAB!C59 -> Spare | E57: =Output!E57/E$9 -> 0 | F57: =Output!F57/F$9 -> 0 | G57: =Output!G57/G$9 -> 0 | H57: =Output!H57/H$9 -> 0 | I57: =Output!I57/I$9 -> 0 | J57: 0 | L57: =#REF!/(RegDur-1) ->  | M57: =#REF!/(RegDur-1) ->  | N57: =#REF!/(RegDur-1) ->  | O57: =#REF!/(RegDur-1) ->  | P57: =#REF!/(RegDur-1) ->  | R57: Spare | T57: =Output!L57*T$9 -> 0 | U57: =Output!M57*U$9 -> 0 | V57: =Output!N57*V$9 -> 0 | W57: =Output!O57*W$9 -> 0 | X57: =Output!P57*X$9 -> 0 | Y57: 0 | AA57: =#REF! ->  | AB57: =#REF!/(RegDur-1) ->  | AC57: =#REF!/(RegDur-1) ->  | AD57: =#REF!/(RegDur-1) ->  | AE57: =#REF!/(RegDur-1) -> 
B58: TRUE | C58: =RAB!C60 -> Spare | E58: =Output!E58/E$9 -> 0 | F58: =Output!F58/F$9 -> 0 | G58: =Output!G58/G$9 -> 0 | H58: =Output!H58/H$9 -> 0 | I58: =Output!I58/I$9 -> 0 | J58: 0 | L58: =#REF!/(RegDur-1) ->  | M58: =#REF!/(RegDur-1) ->  | N58: =#REF!/(RegDur-1) ->  | O58: =#REF!/(RegDur-1) ->  | P58: =#REF!/(RegDur-1) ->  | R58: Spare | T58: =Output!L58*T$9 -> 0 | U58: =Output!M58*U$9 -> 0 | V58: =Output!N58*V$9 -> 0 | W58: =Output!O58*W$9 -> 0 | X58: =Output!P58*X$9 -> 0 | Y58: 0 | AA58: =#REF! ->  | AB58: =#REF!/(RegDur-1) ->  | AC58: =#REF!/(RegDur-1) ->  | AD58: =#REF!/(RegDur-1) ->  | AE58: =#REF!/(RegDur-1) -> 
B59: TRUE | C59: =RAB!C61 -> Spare | E59: =Output!E59/E$9 -> 0 | F59: =Output!F59/F$9 -> 0 | G59: =Output!G59/G$9 -> 0 | H59: =Output!H59/H$9 -> 0 | I59: =Output!I59/I$9 -> 0 | J59: 0 | L59: =#REF!/(RegDur-1) ->  | M59: =#REF!/(RegDur-1) ->  | N59: =#REF!/(RegDur-1) ->  | O59: =#REF!/(RegDur-1) ->  | P59: =#REF!/(RegDur-1) ->  | R59: Spare | T59: =Output!L59*T$9 -> 0 | U59: =Output!M59*U$9 -> 0 | V59: =Output!N59*V$9 -> 0 | W59: =Output!O59*W$9 -> 0 | X59: =Output!P59*X$9 -> 0 | Y59: 0 | AA59: =#REF! ->  | AB59: =#REF!/(RegDur-1) ->  | AC59: =#REF!/(RegDur-1) ->  | AD59: =#REF!/(RegDur-1) ->  | AE59: =#REF!/(RegDur-1) -> 
B60: TRUE | C60: =RAB!C62 -> Spare | E60: =Output!E60/E$9 -> 0 | F60: =Output!F60/F$9 -> 0 | G60: =Output!G60/G$9 -> 0 | H60: =Output!H60/H$9 -> 0 | I60: =Output!I60/I$9 -> 0 | J60: 0 | L60: =#REF!/(RegDur-1) ->  | M60: =#REF!/(RegDur-1) ->  | N60: =#REF!/(RegDur-1) ->  | O60: =#REF!/(RegDur-1) ->  | P60: =#REF!/(RegDur-1) ->  | R60: Spare | T60: =Output!L60*T$9 -> 0 | U60: =Output!M60*U$9 -> 0 | V60: =Output!N60*V$9 -> 0 | W60: =Output!O60*W$9 -> 0 | X60: =Output!P60*X$9 -> 0 | Y60: 0 | AA60: =#REF! ->  | AB60: =#REF!/(RegDur-1) ->  | AC60: =#REF!/(RegDur-1) ->  | AD60: =#REF!/(RegDur-1) ->  | AE60: =#REF!/(RegDur-1) -> 
B61: TRUE | C61: =RAB!C63 -> Spare | E61: =Output!E61/E$9 -> 0 | F61: =Output!F61/F$9 -> 0 | G61: =Output!G61/G$9 -> 0 | H61: =Output!H61/H$9 -> 0 | I61: =Output!I61/I$9 -> 0 | J61: 0 | L61: =#REF!/(RegDur-1) ->  | M61: =#REF!/(RegDur-1) ->  | N61: =#REF!/(RegDur-1) ->  | O61: =#REF!/(RegDur-1) ->  | P61: =#REF!/(RegDur-1) ->  | R61: Spare | T61: =Output!L61*T$9 -> 0 | U61: =Output!M61*U$9 -> 0 | V61: =Output!N61*V$9 -> 0 | W61: =Output!O61*W$9 -> 0 | X61: =Output!P61*X$9 -> 0 | Y61: 0 | AA61: =#REF! ->  | AB61: =#REF!/(RegDur-1) ->  | AC61: =#REF!/(RegDur-1) ->  | AD61: =#REF!/(RegDur-1) ->  | AE61: =#REF!/(RegDur-1) -> 
B62: TRUE | C62: =RAB!C64 -> Spare | E62: =Output!E62/E$9 -> 0 | F62: =Output!F62/F$9 -> 0 | G62: =Output!G62/G$9 -> 0 | H62: =Output!H62/H$9 -> 0 | I62: =Output!I62/I$9 -> 0 | J62: 0 | L62: =#REF!/(RegDur-1) ->  | M62: =#REF!/(RegDur-1) ->  | N62: =#REF!/(RegDur-1) ->  | O62: =#REF!/(RegDur-1) ->  | P62: =#REF!/(RegDur-1) ->  | R62: Spare | T62: =Output!L62*T$9 -> 0 | U62: =Output!M62*U$9 -> 0 | V62: =Output!N62*V$9 -> 0 | W62: =Output!O62*W$9 -> 0 | X62: =Output!P62*X$9 -> 0 | Y62: 0 | AA62: =#REF! ->  | AB62: =#REF!/(RegDur-1) ->  | AC62: =#REF!/(RegDur-1) ->  | AD62: =#REF!/(RegDur-1) ->  | AE62: =#REF!/(RegDur-1) -> 
B63: TRUE | C63: =RAB!C65 -> Spare | E63: =Output!E63/E$9 -> 0 | F63: =Output!F63/F$9 -> 0 | G63: =Output!G63/G$9 -> 0 | H63: =Output!H63/H$9 -> 0 | I63: =Output!I63/I$9 -> 0 | J63: 0 | L63: =#REF!/(RegDur-1) ->  | M63: =#REF!/(RegDur-1) ->  | N63: =#REF!/(RegDur-1) ->  | O63: =#REF!/(RegDur-1) ->  | P63: =#REF!/(RegDur-1) ->  | R63: Spare | T63: =Output!L63*T$9 -> 0 | U63: =Output!M63*U$9 -> 0 | V63: =Output!N63*V$9 -> 0 | W63: =Output!O63*W$9 -> 0 | X63: =Output!P63*X$9 -> 0 | Y63: 0 | AA63: =#REF! ->  | AB63: =#REF!/(RegDur-1) ->  | AC63: =#REF!/(RegDur-1) ->  | AD63: =#REF!/(RegDur-1) ->  | AE63: =#REF!/(RegDur-1) -> 
B64: TRUE | C64: =RAB!C66 -> Spare | E64: =Output!E64/E$9 -> 0 | F64: =Output!F64/F$9 -> 0 | G64: =Output!G64/G$9 -> 0 | H64: =Output!H64/H$9 -> 0 | I64: =Output!I64/I$9 -> 0 | J64: 0 | L64: =#REF!/(RegDur-1) ->  | M64: =#REF!/(RegDur-1) ->  | N64: =#REF!/(RegDur-1) ->  | O64: =#REF!/(RegDur-1) ->  | P64: =#REF!/(RegDur-1) ->  | R64: Spare | T64: =Output!L64*T$9 -> 0 | U64: =Output!M64*U$9 -> 0 | V64: =Output!N64*V$9 -> 0 | W64: =Output!O64*W$9 -> 0 | X64: =Output!P64*X$9 -> 0 | Y64: 0 | AA64: =#REF! ->  | AB64: =#REF!/(RegDur-1) ->  | AC64: =#REF!/(RegDur-1) ->  | AD64: =#REF!/(RegDur-1) ->  | AE64: =#REF!/(RegDur-1) -> 
B65: TRUE | C65: =RAB!C67 -> Spare | E65: =Output!E65/E$9 -> 0 | F65: =Output!F65/F$9 -> 0 | G65: =Output!G65/G$9 -> 0 | H65: =Output!H65/H$9 -> 0 | I65: =Output!I65/I$9 -> 0 | J65: 0 | L65: =#REF!/(RegDur-1) ->  | M65: =#REF!/(RegDur-1) ->  | N65: =#REF!/(RegDur-1) ->  | O65: =#REF!/(RegDur-1) ->  | P65: =#REF!/(RegDur-1) ->  | R65: Spare | T65: =Output!L65*T$9 -> 0 | U65: =Output!M65*U$9 -> 0 | V65: =Output!N65*V$9 -> 0 | W65: =Output!O65*W$9 -> 0 | X65: =Output!P65*X$9 -> 0 | Y65: 0 | AA65: =#REF! ->  | AB65: =#REF!/(RegDur-1) ->  | AC65: =#REF!/(RegDur-1) ->  | AD65: =#REF!/(RegDur-1) ->  | AE65: =#REF!/(RegDur-1) -> 
B66: TRUE | C66: =RAB!C68 -> Spare | E66: =Output!E66/E$9 -> 0 | F66: =Output!F66/F$9 -> 0 | G66: =Output!G66/G$9 -> 0 | H66: =Output!H66/H$9 -> 0 | I66: =Output!I66/I$9 -> 0 | J66: 0 | L66: =#REF!/(RegDur-1) ->  | M66: =#REF!/(RegDur-1) ->  | N66: =#REF!/(RegDur-1) ->  | O66: =#REF!/(RegDur-1) ->  | P66: =#REF!/(RegDur-1) ->  | R66: Spare | T66: =Output!L66*T$9 -> 0 | U66: =Output!M66*U$9 -> 0 | V66: =Output!N66*V$9 -> 0 | W66: =Output!O66*W$9 -> 0 | X66: =Output!P66*X$9 -> 0 | Y66: 0 | AA66: =#REF! ->  | AB66: =#REF!/(RegDur-1) ->  | AC66: =#REF!/(RegDur-1) ->  | AD66: =#REF!/(RegDur-1) ->  | AE66: =#REF!/(RegDur-1) -> 
B67: TRUE | C67: =RAB!C69 -> Spare | E67: =Output!E67/E$9 -> 0 | F67: =Output!F67/F$9 -> 0 | G67: =Output!G67/G$9 -> 0 | H67: =Output!H67/H$9 -> 0 | I67: =Output!I67/I$9 -> 0 | J67: 0 | L67: =#REF!/(RegDur-1) ->  | M67: =#REF!/(RegDur-1) ->  | N67: =#REF!/(RegDur-1) ->  | O67: =#REF!/(RegDur-1) ->  | P67: =#REF!/(RegDur-1) ->  | R67: Spare | T67: =Output!L67*T$9 -> 0 | U67: =Output!M67*U$9 -> 0 | V67: =Output!N67*V$9 -> 0 | W67: =Output!O67*W$9 -> 0 | X67: =Output!P67*X$9 -> 0 | Y67: 0 | AA67: =#REF! ->  | AB67: =#REF!/(RegDur-1) ->  | AC67: =#REF!/(RegDur-1) ->  | AD67: =#REF!/(RegDur-1) ->  | AE67: =#REF!/(RegDur-1) -> 
B68: TRUE | C68: =RAB!C70 -> Spare | E68: =Output!E68/E$9 -> 0 | F68: =Output!F68/F$9 -> 0 | G68: =Output!G68/G$9 -> 0 | H68: =Output!H68/H$9 -> 0 | I68: =Output!I68/I$9 -> 0 | J68: 0 | L68: =#REF!/(RegDur-1) ->  | M68: =#REF!/(RegDur-1) ->  | N68: =#REF!/(RegDur-1) ->  | O68: =#REF!/(RegDur-1) ->  | P68: =#REF!/(RegDur-1) ->  | R68: Spare | T68: =Output!L68*T$9 -> 0 | U68: =Output!M68*U$9 -> 0 | V68: =Output!N68*V$9 -> 0 | W68: =Output!O68*W$9 -> 0 | X68: =Output!P68*X$9 -> 0 | Y68: 0 | AA68: =#REF! ->  | AB68: =#REF!/(RegDur-1) ->  | AC68: =#REF!/(RegDur-1) ->  | AD68: =#REF!/(RegDur-1) ->  | AE68: =#REF!/(RegDur-1) -> 
B69: TRUE | C69: =RAB!C71 -> Spare | E69: =Output!E69/E$9 -> 0 | F69: =Output!F69/F$9 -> 0 | G69: =Output!G69/G$9 -> 0 | H69: =Output!H69/H$9 -> 0 | I69: =Output!I69/I$9 -> 0 | J69: 0 | L69: =#REF!/(RegDur-1) ->  | M69: =#REF!/(RegDur-1) ->  | N69: =#REF!/(RegDur-1) ->  | O69: =#REF!/(RegDur-1) ->  | P69: =#REF!/(RegDur-1) ->  | R69: Spare | T69: =Output!L69*T$9 -> 0 | U69: =Output!M69*U$9 -> 0 | V69: =Output!N69*V$9 -> 0 | W69: =Output!O69*W$9 -> 0 | X69: =Output!P69*X$9 -> 0 | Y69: 0 | AA69: =#REF! ->  | AB69: =#REF!/(RegDur-1) ->  | AC69: =#REF!/(RegDur-1) ->  | AD69: =#REF!/(RegDur-1) ->  | AE69: =#REF!/(RegDur-1) -> 
B70: TRUE | C70: =RAB!C72 -> Spare | E70: =Output!E70/E$9 -> 0 | F70: =Output!F70/F$9 -> 0 | G70: =Output!G70/G$9 -> 0 | H70: =Output!H70/H$9 -> 0 | I70: =Output!I70/I$9 -> 0 | J70: 0 | L70: =#REF!/(RegDur-1) ->  | M70: =#REF!/(RegDur-1) ->  | N70: =#REF!/(RegDur-1) ->  | O70: =#REF!/(RegDur-1) ->  | P70: =#REF!/(RegDur-1) ->  | R70: Spare | T70: =Output!L70*T$9 -> 0 | U70: =Output!M70*U$9 -> 0 | V70: =Output!N70*V$9 -> 0 | W70: =Output!O70*W$9 -> 0 | X70: =Output!P70*X$9 -> 0 | Y70: 0 | AA70: =#REF! ->  | AB70: =#REF!/(RegDur-1) ->  | AC70: =#REF!/(RegDur-1) ->  | AD70: =#REF!/(RegDur-1) ->  | AE70: =#REF!/(RegDur-1) -> 
B71: TRUE | C71: =RAB!C73 -> Spare | E71: =Output!E71/E$9 -> 0 | F71: =Output!F71/F$9 -> 0 | G71: =Output!G71/G$9 -> 0 | H71: =Output!H71/H$9 -> 0 | I71: =Output!I71/I$9 -> 0 | J71: 0 | L71: =#REF!/(RegDur-1) ->  | M71: =#REF!/(RegDur-1) ->  | N71: =#REF!/(RegDur-1) ->  | O71: =#REF!/(RegDur-1) ->  | P71: =#REF!/(RegDur-1) ->  | R71: Spare | T71: =Output!L71*T$9 -> 0 | U71: =Output!M71*U$9 -> 0 | V71: =Output!N71*V$9 -> 0 | W71: =Output!O71*W$9 -> 0 | X71: =Output!P71*X$9 -> 0 | Y71: 0 | AA71: =#REF! ->  | AB71: =#REF!/(RegDur-1) ->  | AC71: =#REF!/(RegDur-1) ->  | AD71: =#REF!/(RegDur-1) ->  | AE71: =#REF!/(RegDur-1) -> 
B72: TRUE | C72: =RAB!C74 -> Spare | E72: =Output!E72/E$9 -> 0 | F72: =Output!F72/F$9 -> 0 | G72: =Output!G72/G$9 -> 0 | H72: =Output!H72/H$9 -> 0 | I72: =Output!I72/I$9 -> 0 | J72: 0 | L72: =#REF!/(RegDur-1) ->  | M72: =#REF!/(RegDur-1) ->  | N72: =#REF!/(RegDur-1) ->  | O72: =#REF!/(RegDur-1) ->  | P72: =#REF!/(RegDur-1) ->  | R72: Spare | T72: =Output!L72*T$9 -> 0 | U72: =Output!M72*U$9 -> 0 | V72: =Output!N72*V$9 -> 0 | W72: =Output!O72*W$9 -> 0 | X72: =Output!P72*X$9 -> 0 | Y72: 0 | AA72: =#REF! ->  | AB72: =#REF!/(RegDur-1) ->  | AC72: =#REF!/(RegDur-1) ->  | AD72: =#REF!/(RegDur-1) ->  | AE72: =#REF!/(RegDur-1) -> 
B73: TRUE | C73: =RAB!C75 -> Spare | E73: =Output!E73/E$9 -> 0 | F73: =Output!F73/F$9 -> 0 | G73: =Output!G73/G$9 -> 0 | H73: =Output!H73/H$9 -> 0 | I73: =Output!I73/I$9 -> 0 | J73: 0 | L73: =#REF!/(RegDur-1) ->  | M73: =#REF!/(RegDur-1) ->  | N73: =#REF!/(RegDur-1) ->  | O73: =#REF!/(RegDur-1) ->  | P73: =#REF!/(RegDur-1) ->  | R73: Spare | T73: =Output!L73*T$9 -> 0 | U73: =Output!M73*U$9 -> 0 | V73: =Output!N73*V$9 -> 0 | W73: =Output!O73*W$9 -> 0 | X73: =Output!P73*X$9 -> 0 | Y73: 0 | AA73: =#REF! ->  | AB73: =#REF!/(RegDur-1) ->  | AC73: =#REF!/(RegDur-1) ->  | AD73: =#REF!/(RegDur-1) ->  | AE73: =#REF!/(RegDur-1) -> 
B74: TRUE | C74: =RAB!C76 -> Spare | E74: =Output!E74/E$9 -> 0 | F74: =Output!F74/F$9 -> 0 | G74: =Output!G74/G$9 -> 0 | H74: =Output!H74/H$9 -> 0 | I74: =Output!I74/I$9 -> 0 | J74: 0 | L74: =#REF!/(RegDur-1) ->  | M74: =#REF!/(RegDur-1) ->  | N74: =#REF!/(RegDur-1) ->  | O74: =#REF!/(RegDur-1) ->  | P74: =#REF!/(RegDur-1) ->  | R74: Spare | T74: =Output!L74*T$9 -> 0 | U74: =Output!M74*U$9 -> 0 | V74: =Output!N74*V$9 -> 0 | W74: =Output!O74*W$9 -> 0 | X74: =Output!P74*X$9 -> 0 | Y74: 0 | AA74: =#REF! ->  | AB74: =#REF!/(RegDur-1) ->  | AC74: =#REF!/(RegDur-1) ->  | AD74: =#REF!/(RegDur-1) ->  | AE74: =#REF!/(RegDur-1) -> 
B75: =IF(C75="Spare",TRUE,0) -> TRUE | C75: =RAB!C77 -> Spare | E75: =Output!E75/E$9 -> 0 | F75: =Output!F75/F$9 -> 0 | G75: =Output!G75/G$9 -> 0 | H75: =Output!H75/H$9 -> 0 | I75: =Output!I75/I$9 -> 0 | J75: 0 | L75: =#REF!/(RegDur-1) ->  | M75: =#REF!/(RegDur-1) ->  | N75: =#REF!/(RegDur-1) ->  | O75: =#REF!/(RegDur-1) ->  | P75: =#REF!/(RegDur-1) ->  | R75: =C75 -> Spare | T75: =Output!L75*T$9 -> 0 | U75: =Output!M75*U$9 -> 0 | V75: =Output!N75*V$9 -> 0 | W75: =Output!O75*W$9 -> 0 | X75: =Output!P75*X$9 -> 0 | Y75: 0 | AA75: =#REF! ->  | AB75: =#REF!/(RegDur-1) ->  | AC75: =#REF!/(RegDur-1) ->  | AD75: =#REF!/(RegDur-1) ->  | AE75: =#REF!/(RegDur-1) -> 
B76: TRUE | C76: =RAB!C78 -> Spare | E76: =Output!E76/E$9 -> 0 | F76: =Output!F76/F$9 -> 0 | G76: =Output!G76/G$9 -> 0 | H76: =Output!H76/H$9 -> 0 | I76: =Output!I76/I$9 -> 0 | J76: =SUM(E76:I76) -> 0 | L76: =#REF!/(RegDur-1) ->  | M76: =#REF!/(RegDur-1) ->  | N76: =#REF!/(RegDur-1) ->  | O76: =#REF!/(RegDur-1) ->  | P76: =#REF!/(RegDur-1) ->  | R76: Spare | T76: =Output!L76*T$9 -> 0 | U76: =Output!M76*U$9 -> 0 | V76: =Output!N76*V$9 -> 0 | W76: =Output!O76*W$9 -> 0 | X76: =Output!P76*X$9 -> 0 | Y76: =SUM(T76:X76) -> 0 | AA76: =#REF! ->  | AB76: =#REF!/(RegDur-1) ->  | AC76: =#REF!/(RegDur-1) ->  | AD76: =#REF!/(RegDur-1) ->  | AE76: =#REF!/(RegDur-1) -> 
B77: TRUE | C77: =RAB!C79 -> Spare | E77: =Output!E77/E$9 -> 0 | F77: =Output!F77/F$9 -> 0 | G77: =Output!G77/G$9 -> 0 | H77: =Output!H77/H$9 -> 0 | I77: =Output!I77/I$9 -> 0 | J77: 0 | L77: =#REF!/(RegDur-1) ->  | M77: =#REF!/(RegDur-1) ->  | N77: =#REF!/(RegDur-1) ->  | O77: =#REF!/(RegDur-1) ->  | P77: =#REF!/(RegDur-1) ->  | R77: Spare | T77: =Output!L77*T$9 -> 0 | U77: =Output!M77*U$9 -> 0 | V77: =Output!N77*V$9 -> 0 | W77: =Output!O77*W$9 -> 0 | X77: =Output!P77*X$9 -> 0 | Y77: 0 | AA77: =#REF! ->  | AB77: =#REF!/(RegDur-1) ->  | AC77: =#REF!/(RegDur-1) ->  | AD77: =#REF!/(RegDur-1) ->  | AE77: =#REF!/(RegDur-1) -> 
B78: TRUE | C78: =RAB!C80 -> Spare | E78: =Output!E78/E$9 -> 0 | F78: =Output!F78/F$9 -> 0 | G78: =Output!G78/G$9 -> 0 | H78: =Output!H78/H$9 -> 0 | I78: =Output!I78/I$9 -> 0 | J78: 0 | L78: =#REF!/(RegDur-1) ->  | M78: =#REF!/(RegDur-1) ->  | N78: =#REF!/(RegDur-1) ->  | O78: =#REF!/(RegDur-1) ->  | P78: =#REF!/(RegDur-1) ->  | R78: Spare | T78: =Output!L78*T$9 -> 0 | U78: =Output!M78*U$9 -> 0 | V78: =Output!N78*V$9 -> 0 | W78: =Output!O78*W$9 -> 0 | X78: =Output!P78*X$9 -> 0 | Y78: 0 | AA78: =#REF! ->  | AB78: =#REF!/(RegDur-1) ->  | AC78: =#REF!/(RegDur-1) ->  | AD78: =#REF!/(RegDur-1) ->  | AE78: =#REF!/(RegDur-1) -> 
B79: TRUE | C79: =RAB!C81 -> Spare | E79: =Output!E79/E$9 -> 0 | F79: =Output!F79/F$9 -> 0 | G79: =Output!G79/G$9 -> 0 | H79: =Output!H79/H$9 -> 0 | I79: =Output!I79/I$9 -> 0 | J79: 0 | L79: =#REF!/(RegDur-1) ->  | M79: =#REF!/(RegDur-1) ->  | N79: =#REF!/(RegDur-1) ->  | O79: =#REF!/(RegDur-1) ->  | P79: =#REF!/(RegDur-1) ->  | R79: Spare | T79: =Output!L79*T$9 -> 0 | U79: =Output!M79*U$9 -> 0 | V79: =Output!N79*V$9 -> 0 | W79: =Output!O79*W$9 -> 0 | X79: =Output!P79*X$9 -> 0 | Y79: 0 | AA79: =#REF! ->  | AB79: =#REF!/(RegDur-1) ->  | AC79: =#REF!/(RegDur-1) ->  | AD79: =#REF!/(RegDur-1) ->  | AE79: =#REF!/(RegDur-1) -> 
B80: TRUE | C80: =RAB!C82 -> Spare | E80: =Output!E80/E$9 -> 0 | F80: =Output!F80/F$9 -> 0 | G80: =Output!G80/G$9 -> 0 | H80: =Output!H80/H$9 -> 0 | I80: =Output!I80/I$9 -> 0 | J80: 0 | L80: =#REF!/(RegDur-1) ->  | M80: =#REF!/(RegDur-1) ->  | N80: =#REF!/(RegDur-1) ->  | O80: =#REF!/(RegDur-1) ->  | P80: =#REF!/(RegDur-1) ->  | R80: Spare | T80: =Output!L80*T$9 -> 0 | U80: =Output!M80*U$9 -> 0 | V80: =Output!N80*V$9 -> 0 | W80: =Output!O80*W$9 -> 0 | X80: =Output!P80*X$9 -> 0 | Y80: 0 | AA80: =#REF! ->  | AB80: =#REF!/(RegDur-1) ->  | AC80: =#REF!/(RegDur-1) ->  | AD80: =#REF!/(RegDur-1) ->  | AE80: =#REF!/(RegDur-1) -> 
B81: TRUE | C81: =RAB!C83 -> Spare | E81: =Output!E81/E$9 -> 0 | F81: =Output!F81/F$9 -> 0 | G81: =Output!G81/G$9 -> 0 | H81: =Output!H81/H$9 -> 0 | I81: =Output!I81/I$9 -> 0 | J81: 0 | L81: =#REF!/(RegDur-1) ->  | M81: =#REF!/(RegDur-1) ->  | N81: =#REF!/(RegDur-1) ->  | O81: =#REF!/(RegDur-1) ->  | P81: =#REF!/(RegDur-1) ->  | R81: Spare | T81: =Output!L81*T$9 -> 0 | U81: =Output!M81*U$9 -> 0 | V81: =Output!N81*V$9 -> 0 | W81: =Output!O81*W$9 -> 0 | X81: =Output!P81*X$9 -> 0 | Y81: 0 | AA81: =#REF! ->  | AB81: =#REF!/(RegDur-1) ->  | AC81: =#REF!/(RegDur-1) ->  | AD81: =#REF!/(RegDur-1) ->  | AE81: =#REF!/(RegDur-1) -> 
B82: TRUE | C82: =RAB!C84 -> Spare | E82: =Output!E82/E$9 -> 0 | F82: =Output!F82/F$9 -> 0 | G82: =Output!G82/G$9 -> 0 | H82: =Output!H82/H$9 -> 0 | I82: =Output!I82/I$9 -> 0 | J82: 0 | L82: =#REF!/(RegDur-1) ->  | M82: =#REF!/(RegDur-1) ->  | N82: =#REF!/(RegDur-1) ->  | O82: =#REF!/(RegDur-1) ->  | P82: =#REF!/(RegDur-1) ->  | R82: Spare | T82: =Output!L82*T$9 -> 0 | U82: =Output!M82*U$9 -> 0 | V82: =Output!N82*V$9 -> 0 | W82: =Output!O82*W$9 -> 0 | X82: =Output!P82*X$9 -> 0 | Y82: 0 | AA82: =#REF! ->  | AB82: =#REF!/(RegDur-1) ->  | AC82: =#REF!/(RegDur-1) ->  | AD82: =#REF!/(RegDur-1) ->  | AE82: =#REF!/(RegDur-1) -> 
B83: TRUE | C83: =RAB!C85 -> Spare | E83: =Output!E83/E$9 -> 0 | F83: =Output!F83/F$9 -> 0 | G83: =Output!G83/G$9 -> 0 | H83: =Output!H83/H$9 -> 0 | I83: =Output!I83/I$9 -> 0 | J83: 0 | L83: =#REF!/(RegDur-1) ->  | M83: =#REF!/(RegDur-1) ->  | N83: =#REF!/(RegDur-1) ->  | O83: =#REF!/(RegDur-1) ->  | P83: =#REF!/(RegDur-1) ->  | R83: Spare | T83: =Output!L83*T$9 -> 0 | U83: =Output!M83*U$9 -> 0 | V83: =Output!N83*V$9 -> 0 | W83: =Output!O83*W$9 -> 0 | X83: =Output!P83*X$9 -> 0 | Y83: 0 | AA83: =#REF! ->  | AB83: =#REF!/(RegDur-1) ->  | AC83: =#REF!/(RegDur-1) ->  | AD83: =#REF!/(RegDur-1) ->  | AE83: =#REF!/(RegDur-1) -> 
B84: TRUE | C84: =RAB!C86 -> Spare | E84: =Output!E84/E$9 -> 0 | F84: =Output!F84/F$9 -> 0 | G84: =Output!G84/G$9 -> 0 | H84: =Output!H84/H$9 -> 0 | I84: =Output!I84/I$9 -> 0 | J84: 0 | L84: =#REF!/(RegDur-1) ->  | M84: =#REF!/(RegDur-1) ->  | N84: =#REF!/(RegDur-1) ->  | O84: =#REF!/(RegDur-1) ->  | P84: =#REF!/(RegDur-1) ->  | R84: Spare | T84: =Output!L84*T$9 -> 0 | U84: =Output!M84*U$9 -> 0 | V84: =Output!N84*V$9 -> 0 | W84: =Output!O84*W$9 -> 0 | X84: =Output!P84*X$9 -> 0 | Y84: 0 | AA84: =#REF! ->  | AB84: =#REF!/(RegDur-1) ->  | AC84: =#REF!/(RegDur-1) ->  | AD84: =#REF!/(RegDur-1) ->  | AE84: =#REF!/(RegDur-1) -> 
B85: TRUE | C85: =RAB!C87 -> Spare | E85: =Output!E85/E$9 -> 0 | F85: =Output!F85/F$9 -> 0 | G85: =Output!G85/G$9 -> 0 | H85: =Output!H85/H$9 -> 0 | I85: =Output!I85/I$9 -> 0 | J85: 0 | L85: =#REF!/(RegDur-1) ->  | M85: =#REF!/(RegDur-1) ->  | N85: =#REF!/(RegDur-1) ->  | O85: =#REF!/(RegDur-1) ->  | P85: =#REF!/(RegDur-1) ->  | R85: Spare | T85: =Output!L85*T$9 -> 0 | U85: =Output!M85*U$9 -> 0 | V85: =Output!N85*V$9 -> 0 | W85: =Output!O85*W$9 -> 0 | X85: =Output!P85*X$9 -> 0 | Y85: 0 | AA85: =#REF! ->  | AB85: =#REF!/(RegDur-1) ->  | AC85: =#REF!/(RegDur-1) ->  | AD85: =#REF!/(RegDur-1) ->  | AE85: =#REF!/(RegDur-1) -> 
B86: TRUE | C86: =RAB!C88 -> Spare | E86: =Output!E86/E$9 -> 0 | F86: =Output!F86/F$9 -> 0 | G86: =Output!G86/G$9 -> 0 | H86: =Output!H86/H$9 -> 0 | I86: =Output!I86/I$9 -> 0 | J86: 0 | L86: =#REF!/(RegDur-1) ->  | M86: =#REF!/(RegDur-1) ->  | N86: =#REF!/(RegDur-1) ->  | O86: =#REF!/(RegDur-1) ->  | P86: =#REF!/(RegDur-1) ->  | R86: Spare | T86: =Output!L86*T$9 -> 0 | U86: =Output!M86*U$9 -> 0 | V86: =Output!N86*V$9 -> 0 | W86: =Output!O86*W$9 -> 0 | X86: =Output!P86*X$9 -> 0 | Y86: 0 | AA86: =#REF! ->  | AB86: =#REF!/(RegDur-1) ->  | AC86: =#REF!/(RegDur-1) ->  | AD86: =#REF!/(RegDur-1) ->  | AE86: =#REF!/(RegDur-1) -> 
B87: TRUE | C87: =RAB!C89 -> Spare | E87: =Output!E87/E$9 -> 0 | F87: =Output!F87/F$9 -> 0 | G87: =Output!G87/G$9 -> 0 | H87: =Output!H87/H$9 -> 0 | I87: =Output!I87/I$9 -> 0 | J87: 0 | L87: =#REF!/(RegDur-1) ->  | M87: =#REF!/(RegDur-1) ->  | N87: =#REF!/(RegDur-1) ->  | O87: =#REF!/(RegDur-1) ->  | P87: =#REF!/(RegDur-1) ->  | R87: Spare | T87: =Output!L87*T$9 -> 0 | U87: =Output!M87*U$9 -> 0 | V87: =Output!N87*V$9 -> 0 | W87: =Output!O87*W$9 -> 0 | X87: =Output!P87*X$9 -> 0 | Y87: 0 | AA87: =#REF! ->  | AB87: =#REF!/(RegDur-1) ->  | AC87: =#REF!/(RegDur-1) ->  | AD87: =#REF!/(RegDur-1) ->  | AE87: =#REF!/(RegDur-1) -> 
B88: TRUE | C88: =RAB!C90 -> Spare | E88: =Output!E88/E$9 -> 0 | F88: =Output!F88/F$9 -> 0 | G88: =Output!G88/G$9 -> 0 | H88: =Output!H88/H$9 -> 0 | I88: =Output!I88/I$9 -> 0 | J88: 0 | L88: =#REF!/(RegDur-1) ->  | M88: =#REF!/(RegDur-1) ->  | N88: =#REF!/(RegDur-1) ->  | O88: =#REF!/(RegDur-1) ->  | P88: =#REF!/(RegDur-1) ->  | R88: Spare | T88: =Output!L88*T$9 -> 0 | U88: =Output!M88*U$9 -> 0 | V88: =Output!N88*V$9 -> 0 | W88: =Output!O88*W$9 -> 0 | X88: =Output!P88*X$9 -> 0 | Y88: 0 | AA88: =#REF! ->  | AB88: =#REF!/(RegDur-1) ->  | AC88: =#REF!/(RegDur-1) ->  | AD88: =#REF!/(RegDur-1) ->  | AE88: =#REF!/(RegDur-1) -> 
B89: TRUE | C89: =RAB!C91 -> Spare | E89: =Output!E89/E$9 -> 0 | F89: =Output!F89/F$9 -> 0 | G89: =Output!G89/G$9 -> 0 | H89: =Output!H89/H$9 -> 0 | I89: =Output!I89/I$9 -> 0 | J89: 0 | L89: =#REF!/(RegDur-1) ->  | M89: =#REF!/(RegDur-1) ->  | N89: =#REF!/(RegDur-1) ->  | O89: =#REF!/(RegDur-1) ->  | P89: =#REF!/(RegDur-1) ->  | R89: Spare | T89: =Output!L89*T$9 -> 0 | U89: =Output!M89*U$9 -> 0 | V89: =Output!N89*V$9 -> 0 | W89: =Output!O89*W$9 -> 0 | X89: =Output!P89*X$9 -> 0 | Y89: 0 | AA89: =#REF! ->  | AB89: =#REF!/(RegDur-1) ->  | AC89: =#REF!/(RegDur-1) ->  | AD89: =#REF!/(RegDur-1) ->  | AE89: =#REF!/(RegDur-1) -> 
B90: TRUE | C90: =RAB!C92 -> Spare | E90: =Output!E90/E$9 -> 0 | F90: =Output!F90/F$9 -> 0 | G90: =Output!G90/G$9 -> 0 | H90: =Output!H90/H$9 -> 0 | I90: =Output!I90/I$9 -> 0 | J90: 0 | L90: =#REF!/(RegDur-1) ->  | M90: =#REF!/(RegDur-1) ->  | N90: =#REF!/(RegDur-1) ->  | O90: =#REF!/(RegDur-1) ->  | P90: =#REF!/(RegDur-1) ->  | R90: Spare | T90: =Output!L90*T$9 -> 0 | U90: =Output!M90*U$9 -> 0 | V90: =Output!N90*V$9 -> 0 | W90: =Output!O90*W$9 -> 0 | X90: =Output!P90*X$9 -> 0 | Y90: 0 | AA90: =#REF! ->  | AB90: =#REF!/(RegDur-1) ->  | AC90: =#REF!/(RegDur-1) ->  | AD90: =#REF!/(RegDur-1) ->  | AE90: =#REF!/(RegDur-1) -> 
B91: TRUE | C91: =RAB!C93 -> Spare | E91: =Output!E91/E$9 -> 0 | F91: =Output!F91/F$9 -> 0 | G91: =Output!G91/G$9 -> 0 | H91: =Output!H91/H$9 -> 0 | I91: =Output!I91/I$9 -> 0 | J91: 0 | L91: =#REF!/(RegDur-1) ->  | M91: =#REF!/(RegDur-1) ->  | N91: =#REF!/(RegDur-1) ->  | O91: =#REF!/(RegDur-1) ->  | P91: =#REF!/(RegDur-1) ->  | R91: Spare | T91: =Output!L91*T$9 -> 0 | U91: =Output!M91*U$9 -> 0 | V91: =Output!N91*V$9 -> 0 | W91: =Output!O91*W$9 -> 0 | X91: =Output!P91*X$9 -> 0 | Y91: 0 | AA91: =#REF! ->  | AB91: =#REF!/(RegDur-1) ->  | AC91: =#REF!/(RegDur-1) ->  | AD91: =#REF!/(RegDur-1) ->  | AE91: =#REF!/(RegDur-1) -> 
B92: TRUE | C92: =RAB!C94 -> Spare | E92: =Output!E92/E$9 -> 0 | F92: =Output!F92/F$9 -> 0 | G92: =Output!G92/G$9 -> 0 | H92: =Output!H92/H$9 -> 0 | I92: =Output!I92/I$9 -> 0 | J92: 0 | L92: =#REF!/(RegDur-1) ->  | M92: =#REF!/(RegDur-1) ->  | N92: =#REF!/(RegDur-1) ->  | O92: =#REF!/(RegDur-1) ->  | P92: =#REF!/(RegDur-1) ->  | R92: Spare | T92: =Output!L92*T$9 -> 0 | U92: =Output!M92*U$9 -> 0 | V92: =Output!N92*V$9 -> 0 | W92: =Output!O92*W$9 -> 0 | X92: =Output!P92*X$9 -> 0 | Y92: 0 | AA92: =#REF! ->  | AB92: =#REF!/(RegDur-1) ->  | AC92: =#REF!/(RegDur-1) ->  | AD92: =#REF!/(RegDur-1) ->  | AE92: =#REF!/(RegDur-1) -> 
B93: TRUE | C93: =RAB!C95 -> Spare | E93: =Output!E93/E$9 -> 0 | F93: =Output!F93/F$9 -> 0 | G93: =Output!G93/G$9 -> 0 | H93: =Output!H93/H$9 -> 0 | I93: =Output!I93/I$9 -> 0 | J93: 0 | L93: =#REF!/(RegDur-1) ->  | M93: =#REF!/(RegDur-1) ->  | N93: =#REF!/(RegDur-1) ->  | O93: =#REF!/(RegDur-1) ->  | P93: =#REF!/(RegDur-1) ->  | R93: Spare | T93: =Output!L93*T$9 -> 0 | U93: =Output!M93*U$9 -> 0 | V93: =Output!N93*V$9 -> 0 | W93: =Output!O93*W$9 -> 0 | X93: =Output!P93*X$9 -> 0 | Y93: 0 | AA93: =#REF! ->  | AB93: =#REF!/(RegDur-1) ->  | AC93: =#REF!/(RegDur-1) ->  | AD93: =#REF!/(RegDur-1) ->  | AE93: =#REF!/(RegDur-1) -> 
B94: TRUE | C94: =RAB!C96 -> Spare | E94: =Output!E94/E$9 -> 0 | F94: =Output!F94/F$9 -> 0 | G94: =Output!G94/G$9 -> 0 | H94: =Output!H94/H$9 -> 0 | I94: =Output!I94/I$9 -> 0 | J94: 0 | L94: =#REF!/(RegDur-1) ->  | M94: =#REF!/(RegDur-1) ->  | N94: =#REF!/(RegDur-1) ->  | O94: =#REF!/(RegDur-1) ->  | P94: =#REF!/(RegDur-1) ->  | R94: Spare | T94: =Output!L94*T$9 -> 0 | U94: =Output!M94*U$9 -> 0 | V94: =Output!N94*V$9 -> 0 | W94: =Output!O94*W$9 -> 0 | X94: =Output!P94*X$9 -> 0 | Y94: 0 | AA94: =#REF! ->  | AB94: =#REF!/(RegDur-1) ->  | AC94: =#REF!/(RegDur-1) ->  | AD94: =#REF!/(RegDur-1) ->  | AE94: =#REF!/(RegDur-1) -> 
B95: TRUE | C95: =RAB!C97 -> Spare | E95: =Output!E95/E$9 -> 0 | F95: =Output!F95/F$9 -> 0 | G95: =Output!G95/G$9 -> 0 | H95: =Output!H95/H$9 -> 0 | I95: =Output!I95/I$9 -> 0 | J95: 0 | L95: =#REF!/(RegDur-1) ->  | M95: =#REF!/(RegDur-1) ->  | N95: =#REF!/(RegDur-1) ->  | O95: =#REF!/(RegDur-1) ->  | P95: =#REF!/(RegDur-1) ->  | R95: Spare | T95: =Output!L95*T$9 -> 0 | U95: =Output!M95*U$9 -> 0 | V95: =Output!N95*V$9 -> 0 | W95: =Output!O95*W$9 -> 0 | X95: =Output!P95*X$9 -> 0 | Y95: 0 | AA95: =#REF! ->  | AB95: =#REF!/(RegDur-1) ->  | AC95: =#REF!/(RegDur-1) ->  | AD95: =#REF!/(RegDur-1) ->  | AE95: =#REF!/(RegDur-1) -> 
B96: TRUE | C96: =RAB!C98 -> Spare | E96: =Output!E96/E$9 -> 0 | F96: =Output!F96/F$9 -> 0 | G96: =Output!G96/G$9 -> 0 | H96: =Output!H96/H$9 -> 0 | I96: =Output!I96/I$9 -> 0 | J96: 0 | L96: =#REF!/(RegDur-1) ->  | M96: =#REF!/(RegDur-1) ->  | N96: =#REF!/(RegDur-1) ->  | O96: =#REF!/(RegDur-1) ->  | P96: =#REF!/(RegDur-1) ->  | R96: Spare | T96: =Output!L96*T$9 -> 0 | U96: =Output!M96*U$9 -> 0 | V96: =Output!N96*V$9 -> 0 | W96: =Output!O96*W$9 -> 0 | X96: =Output!P96*X$9 -> 0 | Y96: 0 | AA96: =#REF! ->  | AB96: =#REF!/(RegDur-1) ->  | AC96: =#REF!/(RegDur-1) ->  | AD96: =#REF!/(RegDur-1) ->  | AE96: =#REF!/(RegDur-1) -> 
B97: TRUE | C97: =RAB!C99 -> Spare | E97: =Output!E97/E$9 -> 0 | F97: =Output!F97/F$9 -> 0 | G97: =Output!G97/G$9 -> 0 | H97: =Output!H97/H$9 -> 0 | I97: =Output!I97/I$9 -> 0 | J97: 0 | L97: =#REF!/(RegDur-1) ->  | M97: =#REF!/(RegDur-1) ->  | N97: =#REF!/(RegDur-1) ->  | O97: =#REF!/(RegDur-1) ->  | P97: =#REF!/(RegDur-1) ->  | R97: Spare | T97: =Output!L97*T$9 -> 0 | U97: =Output!M97*U$9 -> 0 | V97: =Output!N97*V$9 -> 0 | W97: =Output!O97*W$9 -> 0 | X97: =Output!P97*X$9 -> 0 | Y97: 0 | AA97: =#REF! ->  | AB97: =#REF!/(RegDur-1) ->  | AC97: =#REF!/(RegDur-1) ->  | AD97: =#REF!/(RegDur-1) ->  | AE97: =#REF!/(RegDur-1) -> 
B98: TRUE | C98: =RAB!C100 -> Spare | E98: =Output!E98/E$9 -> 0 | F98: =Output!F98/F$9 -> 0 | G98: =Output!G98/G$9 -> 0 | H98: =Output!H98/H$9 -> 0 | I98: =Output!I98/I$9 -> 0 | J98: 0 | L98: =#REF!/(RegDur-1) ->  | M98: =#REF!/(RegDur-1) ->  | N98: =#REF!/(RegDur-1) ->  | O98: =#REF!/(RegDur-1) ->  | P98: =#REF!/(RegDur-1) ->  | R98: Spare | T98: =Output!L98*T$9 -> 0 | U98: =Output!M98*U$9 -> 0 | V98: =Output!N98*V$9 -> 0 | W98: =Output!O98*W$9 -> 0 | X98: =Output!P98*X$9 -> 0 | Y98: 0 | AA98: =#REF! ->  | AB98: =#REF!/(RegDur-1) ->  | AC98: =#REF!/(RegDur-1) ->  | AD98: =#REF!/(RegDur-1) ->  | AE98: =#REF!/(RegDur-1) -> 
B99: TRUE | C99: =RAB!C101 -> Spare | E99: =Output!E99/E$9 -> 0 | F99: =Output!F99/F$9 -> 0 | G99: =Output!G99/G$9 -> 0 | H99: =Output!H99/H$9 -> 0 | I99: =Output!I99/I$9 -> 0 | J99: 0 | L99: =#REF!/(RegDur-1) ->  | M99: =#REF!/(RegDur-1) ->  | N99: =#REF!/(RegDur-1) ->  | O99: =#REF!/(RegDur-1) ->  | P99: =#REF!/(RegDur-1) ->  | R99: Spare | T99: =Output!L99*T$9 -> 0 | U99: =Output!M99*U$9 -> 0 | V99: =Output!N99*V$9 -> 0 | W99: =Output!O99*W$9 -> 0 | X99: =Output!P99*X$9 -> 0 | Y99: 0 | AA99: =#REF! ->  | AB99: =#REF!/(RegDur-1) ->  | AC99: =#REF!/(RegDur-1) ->  | AD99: =#REF!/(RegDur-1) ->  | AE99: =#REF!/(RegDur-1) -> 
B100: TRUE | C100: =RAB!C102 -> Spare | E100: =Output!E100/E$9 -> 0 | F100: =Output!F100/F$9 -> 0 | G100: =Output!G100/G$9 -> 0 | H100: =Output!H100/H$9 -> 0 | I100: =Output!I100/I$9 -> 0 | J100: 0 | L100: =#REF!/(RegDur-1) ->  | M100: =#REF!/(RegDur-1) ->  | N100: =#REF!/(RegDur-1) ->  | O100: =#REF!/(RegDur-1) ->  | P100: =#REF!/(RegDur-1) ->  | R100: Spare | T100: =Output!L100*T$9 -> 0 | U100: =Output!M100*U$9 -> 0 | V100: =Output!N100*V$9 -> 0 | W100: =Output!O100*W$9 -> 0 | X100: =Output!P100*X$9 -> 0 | Y100: 0 | AA100: =#REF! ->  | AB100: =#REF!/(RegDur-1) ->  | AC100: =#REF!/(RegDur-1) ->  | AD100: =#REF!/(RegDur-1) ->  | AE100: =#REF!/(RegDur-1) -> 
B101: TRUE | C101: =RAB!C103 -> Spare | E101: =Output!E101/E$9 -> 0 | F101: =Output!F101/F$9 -> 0 | G101: =Output!G101/G$9 -> 0 | H101: =Output!H101/H$9 -> 0 | I101: =Output!I101/I$9 -> 0 | J101: 0 | L101: =#REF!/(RegDur-1) ->  | M101: =#REF!/(RegDur-1) ->  | N101: =#REF!/(RegDur-1) ->  | O101: =#REF!/(RegDur-1) ->  | P101: =#REF!/(RegDur-1) ->  | R101: Spare | T101: =Output!L101*T$9 -> 0 | U101: =Output!M101*U$9 -> 0 | V101: =Output!N101*V$9 -> 0 | W101: =Output!O101*W$9 -> 0 | X101: =Output!P101*X$9 -> 0 | Y101: 0 | AA101: =#REF! ->  | AB101: =#REF!/(RegDur-1) ->  | AC101: =#REF!/(RegDur-1) ->  | AD101: =#REF!/(RegDur-1) ->  | AE101: =#REF!/(RegDur-1) -> 
B102: TRUE | C102: =RAB!C104 -> Spare | E102: =Output!E102/E$9 -> 0 | F102: =Output!F102/F$9 -> 0 | G102: =Output!G102/G$9 -> 0 | H102: =Output!H102/H$9 -> 0 | I102: =Output!I102/I$9 -> 0 | J102: 0 | L102: =#REF!/(RegDur-1) ->  | M102: =#REF!/(RegDur-1) ->  | N102: =#REF!/(RegDur-1) ->  | O102: =#REF!/(RegDur-1) ->  | P102: =#REF!/(RegDur-1) ->  | R102: Spare | T102: =Output!L102*T$9 -> 0 | U102: =Output!M102*U$9 -> 0 | V102: =Output!N102*V$9 -> 0 | W102: =Output!O102*W$9 -> 0 | X102: =Output!P102*X$9 -> 0 | Y102: 0 | AA102: =#REF! ->  | AB102: =#REF!/(RegDur-1) ->  | AC102: =#REF!/(RegDur-1) ->  | AD102: =#REF!/(RegDur-1) ->  | AE102: =#REF!/(RegDur-1) -> 
B103: TRUE | C103: =RAB!C105 -> Spare | E103: =Output!E103/E$9 -> 0 | F103: =Output!F103/F$9 -> 0 | G103: =Output!G103/G$9 -> 0 | H103: =Output!H103/H$9 -> 0 | I103: =Output!I103/I$9 -> 0 | J103: 0 | L103: =#REF!/(RegDur-1) ->  | M103: =#REF!/(RegDur-1) ->  | N103: =#REF!/(RegDur-1) ->  | O103: =#REF!/(RegDur-1) ->  | P103: =#REF!/(RegDur-1) ->  | R103: Spare | T103: =Output!L103*T$9 -> 0 | U103: =Output!M103*U$9 -> 0 | V103: =Output!N103*V$9 -> 0 | W103: =Output!O103*W$9 -> 0 | X103: =Output!P103*X$9 -> 0 | Y103: 0 | AA103: =#REF! ->  | AB103: =#REF!/(RegDur-1) ->  | AC103: =#REF!/(RegDur-1) ->  | AD103: =#REF!/(RegDur-1) ->  | AE103: =#REF!/(RegDur-1) -> 
B104: TRUE | C104: =RAB!C106 -> Spare | E104: =Output!E104/E$9 -> 0 | F104: =Output!F104/F$9 -> 0 | G104: =Output!G104/G$9 -> 0 | H104: =Output!H104/H$9 -> 0 | I104: =Output!I104/I$9 -> 0 | J104: 0 | L104: =#REF!/(RegDur-1) ->  | M104: =#REF!/(RegDur-1) ->  | N104: =#REF!/(RegDur-1) ->  | O104: =#REF!/(RegDur-1) ->  | P104: =#REF!/(RegDur-1) ->  | R104: Spare | T104: =Output!L104*T$9 -> 0 | U104: =Output!M104*U$9 -> 0 | V104: =Output!N104*V$9 -> 0 | W104: =Output!O104*W$9 -> 0 | X104: =Output!P104*X$9 -> 0 | Y104: 0 | AA104: =#REF! ->  | AB104: =#REF!/(RegDur-1) ->  | AC104: =#REF!/(RegDur-1) ->  | AD104: =#REF!/(RegDur-1) ->  | AE104: =#REF!/(RegDur-1) -> 
B105: TRUE | C105: =RAB!C107 -> Spare | E105: =Output!E105/E$9 -> 0 | F105: =Output!F105/F$9 -> 0 | G105: =Output!G105/G$9 -> 0 | H105: =Output!H105/H$9 -> 0 | I105: =Output!I105/I$9 -> 0 | J105: 0 | L105: =#REF!/(RegDur-1) ->  | M105: =#REF!/(RegDur-1) ->  | N105: =#REF!/(RegDur-1) ->  | O105: =#REF!/(RegDur-1) ->  | P105: =#REF!/(RegDur-1) ->  | R105: Spare | T105: =Output!L105*T$9 -> 0 | U105: =Output!M105*U$9 -> 0 | V105: =Output!N105*V$9 -> 0 | W105: =Output!O105*W$9 -> 0 | X105: =Output!P105*X$9 -> 0 | Y105: 0 | AA105: =#REF! ->  | AB105: =#REF!/(RegDur-1) ->  | AC105: =#REF!/(RegDur-1) ->  | AD105: =#REF!/(RegDur-1) ->  | AE105: =#REF!/(RegDur-1) -> 
B106: TRUE | C106: =RAB!C108 -> Spare | E106: =Output!E106/E$9 -> 0 | F106: =Output!F106/F$9 -> 0 | G106: =Output!G106/G$9 -> 0 | H106: =Output!H106/H$9 -> 0 | I106: =Output!I106/I$9 -> 0 | J106: 0 | L106: =#REF!/(RegDur-1) ->  | M106: =#REF!/(RegDur-1) ->  | N106: =#REF!/(RegDur-1) ->  | O106: =#REF!/(RegDur-1) ->  | P106: =#REF!/(RegDur-1) ->  | R106: Spare | T106: =Output!L106*T$9 -> 0 | U106: =Output!M106*U$9 -> 0 | V106: =Output!N106*V$9 -> 0 | W106: =Output!O106*W$9 -> 0 | X106: =Output!P106*X$9 -> 0 | Y106: 0 | AA106: =#REF! ->  | AB106: =#REF!/(RegDur-1) ->  | AC106: =#REF!/(RegDur-1) ->  | AD106: =#REF!/(RegDur-1) ->  | AE106: =#REF!/(RegDur-1) -> 
B107: TRUE | C107: =RAB!C109 -> Spare | E107: =Output!E107/E$9 -> 0 | F107: =Output!F107/F$9 -> 0 | G107: =Output!G107/G$9 -> 0 | H107: =Output!H107/H$9 -> 0 | I107: =Output!I107/I$9 -> 0 | J107: 0 | L107: =#REF!/(RegDur-1) ->  | M107: =#REF!/(RegDur-1) ->  | N107: =#REF!/(RegDur-1) ->  | O107: =#REF!/(RegDur-1) ->  | P107: =#REF!/(RegDur-1) ->  | R107: =C107 -> Spare | T107: =Output!L107*T$9 -> 0 | U107: =Output!M107*U$9 -> 0 | V107: =Output!N107*V$9 -> 0 | W107: =Output!O107*W$9 -> 0 | X107: =Output!P107*X$9 -> 0 | Y107: 0 | AA107: =#REF! ->  | AB107: =#REF!/(RegDur-1) ->  | AC107: =#REF!/(RegDur-1) ->  | AD107: =#REF!/(RegDur-1) ->  | AE107: =#REF!/(RegDur-1) -> 
B108: TRUE | C108: =RAB!C110 -> Spare | E108: =Output!E108/E$9 -> 0 | F108: =Output!F108/F$9 -> 0 | G108: =Output!G108/G$9 -> 0 | H108: =Output!H108/H$9 -> 0 | I108: =Output!I108/I$9 -> 0 | J108: 0 | L108: =#REF!/(RegDur-1) ->  | M108: =#REF!/(RegDur-1) ->  | N108: =#REF!/(RegDur-1) ->  | O108: =#REF!/(RegDur-1) ->  | P108: =#REF!/(RegDur-1) ->  | R108: Spare | T108: =Output!L108*T$9 -> 0 | U108: =Output!M108*U$9 -> 0 | V108: =Output!N108*V$9 -> 0 | W108: =Output!O108*W$9 -> 0 | X108: =Output!P108*X$9 -> 0 | Y108: 0 | AA108: =#REF! ->  | AB108: =#REF!/(RegDur-1) ->  | AC108: =#REF!/(RegDur-1) ->  | AD108: =#REF!/(RegDur-1) ->  | AE108: =#REF!/(RegDur-1) -> 
B109: TRUE | C109: =RAB!C111 -> Spare | E109: =Output!E109/E$9 -> 0 | F109: =Output!F109/F$9 -> 0 | G109: =Output!G109/G$9 -> 0 | H109: =Output!H109/H$9 -> 0 | I109: =Output!I109/I$9 -> 0 | J109: 0 | L109: =#REF!/(RegDur-1) ->  | M109: =#REF!/(RegDur-1) ->  | N109: =#REF!/(RegDur-1) ->  | O109: =#REF!/(RegDur-1) ->  | P109: =#REF!/(RegDur-1) ->  | R109: Spare | T109: =Output!L109*T$9 -> 0 | U109: =Output!M109*U$9 -> 0 | V109: =Output!N109*V$9 -> 0 | W109: =Output!O109*W$9 -> 0 | X109: =Output!P109*X$9 -> 0 | Y109: 0 | AA109: =#REF! ->  | AB109: =#REF!/(RegDur-1) ->  | AC109: =#REF!/(RegDur-1) ->  | AD109: =#REF!/(RegDur-1) ->  | AE109: =#REF!/(RegDur-1) -> 
B110: TRUE | C110: =RAB!C112 -> Spare | E110: =Output!E110/E$9 -> 0 | F110: =Output!F110/F$9 -> 0 | G110: =Output!G110/G$9 -> 0 | H110: =Output!H110/H$9 -> 0 | I110: =Output!I110/I$9 -> 0 | J110: 0 | L110: =#REF!/(RegDur-1) ->  | M110: =#REF!/(RegDur-1) ->  | N110: =#REF!/(RegDur-1) ->  | O110: =#REF!/(RegDur-1) ->  | P110: =#REF!/(RegDur-1) ->  | R110: Spare | T110: =Output!L110*T$9 -> 0 | U110: =Output!M110*U$9 -> 0 | V110: =Output!N110*V$9 -> 0 | W110: =Output!O110*W$9 -> 0 | X110: =Output!P110*X$9 -> 0 | Y110: 0 | AA110: =#REF! ->  | AB110: =#REF!/(RegDur-1) ->  | AC110: =#REF!/(RegDur-1) ->  | AD110: =#REF!/(RegDur-1) ->  | AE110: =#REF!/(RegDur-1) -> 
B111: TRUE | C111: =RAB!C113 -> Spare | E111: =Output!E111/E$9 -> 0 | F111: =Output!F111/F$9 -> 0 | G111: =Output!G111/G$9 -> 0 | H111: =Output!H111/H$9 -> 0 | I111: =Output!I111/I$9 -> 0 | J111: 0 | L111: =#REF!/(RegDur-1) ->  | M111: =#REF!/(RegDur-1) ->  | N111: =#REF!/(RegDur-1) ->  | O111: =#REF!/(RegDur-1) ->  | P111: =#REF!/(RegDur-1) ->  | R111: Spare | T111: =Output!L111*T$9 -> 0 | U111: =Output!M111*U$9 -> 0 | V111: =Output!N111*V$9 -> 0 | W111: =Output!O111*W$9 -> 0 | X111: =Output!P111*X$9 -> 0 | Y111: 0 | AA111: =#REF! ->  | AB111: =#REF!/(RegDur-1) ->  | AC111: =#REF!/(RegDur-1) ->  | AD111: =#REF!/(RegDur-1) ->  | AE111: =#REF!/(RegDur-1) -> 
B112: TRUE | C112: =RAB!C114 -> Spare | E112: =Output!E112/E$9 -> 0 | F112: =Output!F112/F$9 -> 0 | G112: =Output!G112/G$9 -> 0 | H112: =Output!H112/H$9 -> 0 | I112: =Output!I112/I$9 -> 0 | J112: 0 | L112: =#REF!/(RegDur-1) ->  | M112: =#REF!/(RegDur-1) ->  | N112: =#REF!/(RegDur-1) ->  | O112: =#REF!/(RegDur-1) ->  | P112: =#REF!/(RegDur-1) ->  | R112: Spare | T112: =Output!L112*T$9 -> 0 | U112: =Output!M112*U$9 -> 0 | V112: =Output!N112*V$9 -> 0 | W112: =Output!O112*W$9 -> 0 | X112: =Output!P112*X$9 -> 0 | Y112: 0 | AA112: =#REF! ->  | AB112: =#REF!/(RegDur-1) ->  | AC112: =#REF!/(RegDur-1) ->  | AD112: =#REF!/(RegDur-1) ->  | AE112: =#REF!/(RegDur-1) -> 
B113: TRUE | C113: =RAB!C115 -> Spare | E113: =Output!E113/E$9 -> 0 | F113: =Output!F113/F$9 -> 0 | G113: =Output!G113/G$9 -> 0 | H113: =Output!H113/H$9 -> 0 | I113: =Output!I113/I$9 -> 0 | J113: 0 | L113: =#REF!/(RegDur-1) ->  | M113: =#REF!/(RegDur-1) ->  | N113: =#REF!/(RegDur-1) ->  | O113: =#REF!/(RegDur-1) ->  | P113: =#REF!/(RegDur-1) ->  | R113: Spare | T113: =Output!L113*T$9 -> 0 | U113: =Output!M113*U$9 -> 0 | V113: =Output!N113*V$9 -> 0 | W113: =Output!O113*W$9 -> 0 | X113: =Output!P113*X$9 -> 0 | Y113: 0 | AA113: =#REF! ->  | AB113: =#REF!/(RegDur-1) ->  | AC113: =#REF!/(RegDur-1) ->  | AD113: =#REF!/(RegDur-1) ->  | AE113: =#REF!/(RegDur-1) -> 
B114: TRUE | C114: =RAB!C116 -> Spare | E114: =Output!E114/E$9 -> 0 | F114: =Output!F114/F$9 -> 0 | G114: =Output!G114/G$9 -> 0 | H114: =Output!H114/H$9 -> 0 | I114: =Output!I114/I$9 -> 0 | J114: 0 | L114: =#REF!/(RegDur-1) ->  | M114: =#REF!/(RegDur-1) ->  | N114: =#REF!/(RegDur-1) ->  | O114: =#REF!/(RegDur-1) ->  | P114: =#REF!/(RegDur-1) ->  | R114: Spare | T114: =Output!L114*T$9 -> 0 | U114: =Output!M114*U$9 -> 0 | V114: =Output!N114*V$9 -> 0 | W114: =Output!O114*W$9 -> 0 | X114: =Output!P114*X$9 -> 0 | Y114: 0 | AA114: =#REF! ->  | AB114: =#REF!/(RegDur-1) ->  | AC114: =#REF!/(RegDur-1) ->  | AD114: =#REF!/(RegDur-1) ->  | AE114: =#REF!/(RegDur-1) -> 
B115: TRUE | C115: =RAB!C117 -> Spare | E115: =Output!E115/E$9 -> 0 | F115: =Output!F115/F$9 -> 0 | G115: =Output!G115/G$9 -> 0 | H115: =Output!H115/H$9 -> 0 | I115: =Output!I115/I$9 -> 0 | J115: 0 | L115: =#REF!/(RegDur-1) ->  | M115: =#REF!/(RegDur-1) ->  | N115: =#REF!/(RegDur-1) ->  | O115: =#REF!/(RegDur-1) ->  | P115: =#REF!/(RegDur-1) ->  | R115: Spare | T115: =Output!L115*T$9 -> 0 | U115: =Output!M115*U$9 -> 0 | V115: =Output!N115*V$9 -> 0 | W115: =Output!O115*W$9 -> 0 | X115: =Output!P115*X$9 -> 0 | Y115: 0 | AA115: =#REF! ->  | AB115: =#REF!/(RegDur-1) ->  | AC115: =#REF!/(RegDur-1) ->  | AD115: =#REF!/(RegDur-1) ->  | AE115: =#REF!/(RegDur-1) -> 
B116: TRUE | C116: =RAB!C118 -> Spare | E116: =Output!E116/E$9 -> 0 | F116: =Output!F116/F$9 -> 0 | G116: =Output!G116/G$9 -> 0 | H116: =Output!H116/H$9 -> 0 | I116: =Output!I116/I$9 -> 0 | J116: 0 | L116: =#REF!/(RegDur-1) ->  | M116: =#REF!/(RegDur-1) ->  | N116: =#REF!/(RegDur-1) ->  | O116: =#REF!/(RegDur-1) ->  | P116: =#REF!/(RegDur-1) ->  | R116: Spare | T116: =Output!L116*T$9 -> 0 | U116: =Output!M116*U$9 -> 0 | V116: =Output!N116*V$9 -> 0 | W116: =Output!O116*W$9 -> 0 | X116: =Output!P116*X$9 -> 0 | Y116: 0 | AA116: =#REF! ->  | AB116: =#REF!/(RegDur-1) ->  | AC116: =#REF!/(RegDur-1) ->  | AD116: =#REF!/(RegDur-1) ->  | AE116: =#REF!/(RegDur-1) -> 
B117: TRUE | C117: =RAB!C119 -> Spare | E117: =Output!E117/E$9 -> 0 | F117: =Output!F117/F$9 -> 0 | G117: =Output!G117/G$9 -> 0 | H117: =Output!H117/H$9 -> 0 | I117: =Output!I117/I$9 -> 0 | J117: 0 | L117: =#REF!/(RegDur-1) ->  | M117: =#REF!/(RegDur-1) ->  | N117: =#REF!/(RegDur-1) ->  | O117: =#REF!/(RegDur-1) ->  | P117: =#REF!/(RegDur-1) ->  | R117: Spare | T117: =Output!L117*T$9 -> 0 | U117: =Output!M117*U$9 -> 0 | V117: =Output!N117*V$9 -> 0 | W117: =Output!O117*W$9 -> 0 | X117: =Output!P117*X$9 -> 0 | Y117: 0 | AA117: =#REF! ->  | AB117: =#REF!/(RegDur-1) ->  | AC117: =#REF!/(RegDur-1) ->  | AD117: =#REF!/(RegDur-1) ->  | AE117: =#REF!/(RegDur-1) -> 
B118: TRUE | C118: =RAB!C120 -> Spare | E118: =Output!E118/E$9 -> 0 | F118: =Output!F118/F$9 -> 0 | G118: =Output!G118/G$9 -> 0 | H118: =Output!H118/H$9 -> 0 | I118: =Output!I118/I$9 -> 0 | J118: 0 | L118: =#REF!/(RegDur-1) ->  | M118: =#REF!/(RegDur-1) ->  | N118: =#REF!/(RegDur-1) ->  | O118: =#REF!/(RegDur-1) ->  | P118: =#REF!/(RegDur-1) ->  | R118: Spare | T118: =Output!L118*T$9 -> 0 | U118: =Output!M118*U$9 -> 0 | V118: =Output!N118*V$9 -> 0 | W118: =Output!O118*W$9 -> 0 | X118: =Output!P118*X$9 -> 0 | Y118: 0 | AA118: =#REF! ->  | AB118: =#REF!/(RegDur-1) ->  | AC118: =#REF!/(RegDur-1) ->  | AD118: =#REF!/(RegDur-1) ->  | AE118: =#REF!/(RegDur-1) -> 
B119: TRUE | C119: =RAB!C121 -> Spare | E119: =Output!E119/E$9 -> 0 | F119: =Output!F119/F$9 -> 0 | G119: =Output!G119/G$9 -> 0 | H119: =Output!H119/H$9 -> 0 | I119: =Output!I119/I$9 -> 0 | J119: 0 | L119: =#REF!/(RegDur-1) ->  | M119: =#REF!/(RegDur-1) ->  | N119: =#REF!/(RegDur-1) ->  | O119: =#REF!/(RegDur-1) ->  | P119: =#REF!/(RegDur-1) ->  | R119: Spare | T119: =Output!L119*T$9 -> 0 | U119: =Output!M119*U$9 -> 0 | V119: =Output!N119*V$9 -> 0 | W119: =Output!O119*W$9 -> 0 | X119: =Output!P119*X$9 -> 0 | Y119: 0 | AA119: =#REF! ->  | AB119: =#REF!/(RegDur-1) ->  | AC119: =#REF!/(RegDur-1) ->  | AD119: =#REF!/(RegDur-1) ->  | AE119: =#REF!/(RegDur-1) -> 
B120: TRUE | C120: =RAB!C122 -> Spare | E120: =Output!E120/E$9 -> 0 | F120: =Output!F120/F$9 -> 0 | G120: =Output!G120/G$9 -> 0 | H120: =Output!H120/H$9 -> 0 | I120: =Output!I120/I$9 -> 0 | J120: 0 | L120: =#REF!/(RegDur-1) ->  | M120: =#REF!/(RegDur-1) ->  | N120: =#REF!/(RegDur-1) ->  | O120: =#REF!/(RegDur-1) ->  | P120: =#REF!/(RegDur-1) ->  | R120: Spare | T120: =Output!L120*T$9 -> 0 | U120: =Output!M120*U$9 -> 0 | V120: =Output!N120*V$9 -> 0 | W120: =Output!O120*W$9 -> 0 | X120: =Output!P120*X$9 -> 0 | Y120: 0 | AA120: =#REF! ->  | AB120: =#REF!/(RegDur-1) ->  | AC120: =#REF!/(RegDur-1) ->  | AD120: =#REF!/(RegDur-1) ->  | AE120: =#REF!/(RegDur-1) -> 
B121: TRUE | C121: =RAB!C123 -> Spare | E121: =Output!E121/E$9 -> 0 | F121: =Output!F121/F$9 -> 0 | G121: =Output!G121/G$9 -> 0 | H121: =Output!H121/H$9 -> 0 | I121: =Output!I121/I$9 -> 0 | J121: 0 | L121: =#REF!/(RegDur-1) ->  | M121: =#REF!/(RegDur-1) ->  | N121: =#REF!/(RegDur-1) ->  | O121: =#REF!/(RegDur-1) ->  | P121: =#REF!/(RegDur-1) ->  | R121: Spare | T121: =Output!L121*T$9 -> 0 | U121: =Output!M121*U$9 -> 0 | V121: =Output!N121*V$9 -> 0 | W121: =Output!O121*W$9 -> 0 | X121: =Output!P121*X$9 -> 0 | Y121: 0 | AA121: =#REF! ->  | AB121: =#REF!/(RegDur-1) ->  | AC121: =#REF!/(RegDur-1) ->  | AD121: =#REF!/(RegDur-1) ->  | AE121: =#REF!/(RegDur-1) -> 
B122: TRUE | C122: =RAB!C124 -> Spare | E122: =Output!E122/E$9 -> 0 | F122: =Output!F122/F$9 -> 0 | G122: =Output!G122/G$9 -> 0 | H122: =Output!H122/H$9 -> 0 | I122: =Output!I122/I$9 -> 0 | J122: 0 | L122: =#REF!/(RegDur-1) ->  | M122: =#REF!/(RegDur-1) ->  | N122: =#REF!/(RegDur-1) ->  | O122: =#REF!/(RegDur-1) ->  | P122: =#REF!/(RegDur-1) ->  | R122: Spare | T122: =Output!L122*T$9 -> 0 | U122: =Output!M122*U$9 -> 0 | V122: =Output!N122*V$9 -> 0 | W122: =Output!O122*W$9 -> 0 | X122: =Output!P122*X$9 -> 0 | Y122: 0 | AA122: =#REF! ->  | AB122: =#REF!/(RegDur-1) ->  | AC122: =#REF!/(RegDur-1) ->  | AD122: =#REF!/(RegDur-1) ->  | AE122: =#REF!/(RegDur-1) -> 
B123: TRUE | C123: =RAB!C125 -> Spare | E123: =Output!E123/E$9 -> 0 | F123: =Output!F123/F$9 -> 0 | G123: =Output!G123/G$9 -> 0 | H123: =Output!H123/H$9 -> 0 | I123: =Output!I123/I$9 -> 0 | J123: 0 | L123: =#REF!/(RegDur-1) ->  | M123: =#REF!/(RegDur-1) ->  | N123: =#REF!/(RegDur-1) ->  | O123: =#REF!/(RegDur-1) ->  | P123: =#REF!/(RegDur-1) ->  | R123: Spare | T123: =Output!L123*T$9 -> 0 | U123: =Output!M123*U$9 -> 0 | V123: =Output!N123*V$9 -> 0 | W123: =Output!O123*W$9 -> 0 | X123: =Output!P123*X$9 -> 0 | Y123: 0 | AA123: =#REF! ->  | AB123: =#REF!/(RegDur-1) ->  | AC123: =#REF!/(RegDur-1) ->  | AD123: =#REF!/(RegDur-1) ->  | AE123: =#REF!/(RegDur-1) -> 
B124: TRUE | C124: =RAB!C126 -> Spare | E124: =Output!E124/E$9 -> 0 | F124: =Output!F124/F$9 -> 0 | G124: =Output!G124/G$9 -> 0 | H124: =Output!H124/H$9 -> 0 | I124: =Output!I124/I$9 -> 0 | J124: 0 | L124: =#REF!/(RegDur-1) ->  | M124: =#REF!/(RegDur-1) ->  | N124: =#REF!/(RegDur-1) ->  | O124: =#REF!/(RegDur-1) ->  | P124: =#REF!/(RegDur-1) ->  | R124: Spare | T124: =Output!L124*T$9 -> 0 | U124: =Output!M124*U$9 -> 0 | V124: =Output!N124*V$9 -> 0 | W124: =Output!O124*W$9 -> 0 | X124: =Output!P124*X$9 -> 0 | Y124: 0 | AA124: =#REF! ->  | AB124: =#REF!/(RegDur-1) ->  | AC124: =#REF!/(RegDur-1) ->  | AD124: =#REF!/(RegDur-1) ->  | AE124: =#REF!/(RegDur-1) -> 
B125: TRUE | C125: =RAB!C127 -> Spare | E125: =Output!E125/E$9 -> 0 | F125: =Output!F125/F$9 -> 0 | G125: =Output!G125/G$9 -> 0 | H125: =Output!H125/H$9 -> 0 | I125: =Output!I125/I$9 -> 0 | J125: 0 | L125: =#REF!/(RegDur-1) ->  | M125: =#REF!/(RegDur-1) ->  | N125: =#REF!/(RegDur-1) ->  | O125: =#REF!/(RegDur-1) ->  | P125: =#REF!/(RegDur-1) ->  | R125: Spare | T125: =Output!L125*T$9 -> 0 | U125: =Output!M125*U$9 -> 0 | V125: =Output!N125*V$9 -> 0 | W125: =Output!O125*W$9 -> 0 | X125: =Output!P125*X$9 -> 0 | Y125: 0 | AA125: =#REF! ->  | AB125: =#REF!/(RegDur-1) ->  | AC125: =#REF!/(RegDur-1) ->  | AD125: =#REF!/(RegDur-1) ->  | AE125: =#REF!/(RegDur-1) -> 
B126: TRUE | C126: =RAB!C128 -> Spare | E126: =Output!E126/E$9 -> 0 | F126: =Output!F126/F$9 -> 0 | G126: =Output!G126/G$9 -> 0 | H126: =Output!H126/H$9 -> 0 | I126: =Output!I126/I$9 -> 0 | J126: 0 | L126: =#REF!/(RegDur-1) ->  | M126: =#REF!/(RegDur-1) ->  | N126: =#REF!/(RegDur-1) ->  | O126: =#REF!/(RegDur-1) ->  | P126: =#REF!/(RegDur-1) ->  | R126: Spare | T126: =Output!L126*T$9 -> 0 | U126: =Output!M126*U$9 -> 0 | V126: =Output!N126*V$9 -> 0 | W126: =Output!O126*W$9 -> 0 | X126: =Output!P126*X$9 -> 0 | Y126: 0 | AA126: =#REF! ->  | AB126: =#REF!/(RegDur-1) ->  | AC126: =#REF!/(RegDur-1) ->  | AD126: =#REF!/(RegDur-1) ->  | AE126: =#REF!/(RegDur-1) -> 
B127: TRUE | C127: =RAB!C129 -> Spare | E127: =Output!E127/E$9 -> 0 | F127: =Output!F127/F$9 -> 0 | G127: =Output!G127/G$9 -> 0 | H127: =Output!H127/H$9 -> 0 | I127: =Output!I127/I$9 -> 0 | J127: 0 | L127: =#REF!/(RegDur-1) ->  | M127: =#REF!/(RegDur-1) ->  | N127: =#REF!/(RegDur-1) ->  | O127: =#REF!/(RegDur-1) ->  | P127: =#REF!/(RegDur-1) ->  | R127: Spare | T127: =Output!L127*T$9 -> 0 | U127: =Output!M127*U$9 -> 0 | V127: =Output!N127*V$9 -> 0 | W127: =Output!O127*W$9 -> 0 | X127: =Output!P127*X$9 -> 0 | Y127: 0 | AA127: =#REF! ->  | AB127: =#REF!/(RegDur-1) ->  | AC127: =#REF!/(RegDur-1) ->  | AD127: =#REF!/(RegDur-1) ->  | AE127: =#REF!/(RegDur-1) -> 
B128: TRUE | C128: =RAB!C130 -> Spare | E128: =Output!E128/E$9 -> 0 | F128: =Output!F128/F$9 -> 0 | G128: =Output!G128/G$9 -> 0 | H128: =Output!H128/H$9 -> 0 | I128: =Output!I128/I$9 -> 0 | J128: 0 | L128: =#REF!/(RegDur-1) ->  | M128: =#REF!/(RegDur-1) ->  | N128: =#REF!/(RegDur-1) ->  | O128: =#REF!/(RegDur-1) ->  | P128: =#REF!/(RegDur-1) ->  | R128: Spare | T128: =Output!L128*T$9 -> 0 | U128: =Output!M128*U$9 -> 0 | V128: =Output!N128*V$9 -> 0 | W128: =Output!O128*W$9 -> 0 | X128: =Output!P128*X$9 -> 0 | Y128: 0 | AA128: =#REF! ->  | AB128: =#REF!/(RegDur-1) ->  | AC128: =#REF!/(RegDur-1) ->  | AD128: =#REF!/(RegDur-1) ->  | AE128: =#REF!/(RegDur-1) -> 
B129: TRUE | C129: =RAB!C131 -> Spare | E129: =Output!E129/E$9 -> 0 | F129: =Output!F129/F$9 -> 0 | G129: =Output!G129/G$9 -> 0 | H129: =Output!H129/H$9 -> 0 | I129: =Output!I129/I$9 -> 0 | J129: 0 | L129: =#REF!/(RegDur-1) ->  | M129: =#REF!/(RegDur-1) ->  | N129: =#REF!/(RegDur-1) ->  | O129: =#REF!/(RegDur-1) ->  | P129: =#REF!/(RegDur-1) ->  | R129: Spare | T129: =Output!L129*T$9 -> 0 | U129: =Output!M129*U$9 -> 0 | V129: =Output!N129*V$9 -> 0 | W129: =Output!O129*W$9 -> 0 | X129: =Output!P129*X$9 -> 0 | Y129: 0 | AA129: =#REF! ->  | AB129: =#REF!/(RegDur-1) ->  | AC129: =#REF!/(RegDur-1) ->  | AD129: =#REF!/(RegDur-1) ->  | AE129: =#REF!/(RegDur-1) -> 
B130: TRUE | C130: =RAB!C132 -> Spare | E130: =Output!E130/E$9 -> 0 | F130: =Output!F130/F$9 -> 0 | G130: =Output!G130/G$9 -> 0 | H130: =Output!H130/H$9 -> 0 | I130: =Output!I130/I$9 -> 0 | J130: 0 | L130: =#REF!/(RegDur-1) ->  | M130: =#REF!/(RegDur-1) ->  | N130: =#REF!/(RegDur-1) ->  | O130: =#REF!/(RegDur-1) ->  | P130: =#REF!/(RegDur-1) ->  | R130: Spare | T130: =Output!L130*T$9 -> 0 | U130: =Output!M130*U$9 -> 0 | V130: =Output!N130*V$9 -> 0 | W130: =Output!O130*W$9 -> 0 | X130: =Output!P130*X$9 -> 0 | Y130: 0 | AA130: =#REF! ->  | AB130: =#REF!/(RegDur-1) ->  | AC130: =#REF!/(RegDur-1) ->  | AD130: =#REF!/(RegDur-1) ->  | AE130: =#REF!/(RegDur-1) -> 
B131: TRUE | C131: =RAB!C133 -> Spare | E131: =Output!E131/E$9 -> 0 | F131: =Output!F131/F$9 -> 0 | G131: =Output!G131/G$9 -> 0 | H131: =Output!H131/H$9 -> 0 | I131: =Output!I131/I$9 -> 0 | J131: 0 | L131: =#REF!/(RegDur-1) ->  | M131: =#REF!/(RegDur-1) ->  | N131: =#REF!/(RegDur-1) ->  | O131: =#REF!/(RegDur-1) ->  | P131: =#REF!/(RegDur-1) ->  | R131: Spare | T131: =Output!L131*T$9 -> 0 | U131: =Output!M131*U$9 -> 0 | V131: =Output!N131*V$9 -> 0 | W131: =Output!O131*W$9 -> 0 | X131: =Output!P131*X$9 -> 0 | Y131: 0 | AA131: =#REF! ->  | AB131: =#REF!/(RegDur-1) ->  | AC131: =#REF!/(RegDur-1) ->  | AD131: =#REF!/(RegDur-1) ->  | AE131: =#REF!/(RegDur-1) -> 
B132: TRUE | C132: =RAB!C134 -> Spare | E132: =Output!E132/E$9 -> 0 | F132: =Output!F132/F$9 -> 0 | G132: =Output!G132/G$9 -> 0 | H132: =Output!H132/H$9 -> 0 | I132: =Output!I132/I$9 -> 0 | J132: 0 | L132: =#REF!/(RegDur-1) ->  | M132: =#REF!/(RegDur-1) ->  | N132: =#REF!/(RegDur-1) ->  | O132: =#REF!/(RegDur-1) ->  | P132: =#REF!/(RegDur-1) ->  | R132: Spare | T132: =Output!L132*T$9 -> 0 | U132: =Output!M132*U$9 -> 0 | V132: =Output!N132*V$9 -> 0 | W132: =Output!O132*W$9 -> 0 | X132: =Output!P132*X$9 -> 0 | Y132: 0 | AA132: =#REF! ->  | AB132: =#REF!/(RegDur-1) ->  | AC132: =#REF!/(RegDur-1) ->  | AD132: =#REF!/(RegDur-1) ->  | AE132: =#REF!/(RegDur-1) -> 
B133: TRUE | C133: =RAB!C135 -> Spare | E133: =Output!E133/E$9 -> 0 | F133: =Output!F133/F$9 -> 0 | G133: =Output!G133/G$9 -> 0 | H133: =Output!H133/H$9 -> 0 | I133: =Output!I133/I$9 -> 0 | J133: 0 | L133: =#REF!/(RegDur-1) ->  | M133: =#REF!/(RegDur-1) ->  | N133: =#REF!/(RegDur-1) ->  | O133: =#REF!/(RegDur-1) ->  | P133: =#REF!/(RegDur-1) ->  | R133: Spare | T133: =Output!L133*T$9 -> 0 | U133: =Output!M133*U$9 -> 0 | V133: =Output!N133*V$9 -> 0 | W133: =Output!O133*W$9 -> 0 | X133: =Output!P133*X$9 -> 0 | Y133: 0 | AA133: =#REF! ->  | AB133: =#REF!/(RegDur-1) ->  | AC133: =#REF!/(RegDur-1) ->  | AD133: =#REF!/(RegDur-1) ->  | AE133: =#REF!/(RegDur-1) -> 
B134: TRUE | C134: =RAB!C136 -> Spare | E134: =Output!E134/E$9 -> 0 | F134: =Output!F134/F$9 -> 0 | G134: =Output!G134/G$9 -> 0 | H134: =Output!H134/H$9 -> 0 | I134: =Output!I134/I$9 -> 0 | J134: 0 | L134: =#REF!/(RegDur-1) ->  | M134: =#REF!/(RegDur-1) ->  | N134: =#REF!/(RegDur-1) ->  | O134: =#REF!/(RegDur-1) ->  | P134: =#REF!/(RegDur-1) ->  | R134: Spare | T134: =Output!L134*T$9 -> 0 | U134: =Output!M134*U$9 -> 0 | V134: =Output!N134*V$9 -> 0 | W134: =Output!O134*W$9 -> 0 | X134: =Output!P134*X$9 -> 0 | Y134: 0 | AA134: =#REF! ->  | AB134: =#REF!/(RegDur-1) ->  | AC134: =#REF!/(RegDur-1) ->  | AD134: =#REF!/(RegDur-1) ->  | AE134: =#REF!/(RegDur-1) -> 
B135: TRUE | C135: =RAB!C137 -> Spare | E135: =Output!E135/E$9 -> 0 | F135: =Output!F135/F$9 -> 0 | G135: =Output!G135/G$9 -> 0 | H135: =Output!H135/H$9 -> 0 | I135: =Output!I135/I$9 -> 0 | J135: 0 | L135: =#REF!/(RegDur-1) ->  | M135: =#REF!/(RegDur-1) ->  | N135: =#REF!/(RegDur-1) ->  | O135: =#REF!/(RegDur-1) ->  | P135: =#REF!/(RegDur-1) ->  | R135: Spare | T135: =Output!L135*T$9 -> 0 | U135: =Output!M135*U$9 -> 0 | V135: =Output!N135*V$9 -> 0 | W135: =Output!O135*W$9 -> 0 | X135: =Output!P135*X$9 -> 0 | Y135: 0 | AA135: =#REF! ->  | AB135: =#REF!/(RegDur-1) ->  | AC135: =#REF!/(RegDur-1) ->  | AD135: =#REF!/(RegDur-1) ->  | AE135: =#REF!/(RegDur-1) -> 
B136: TRUE | C136: =RAB!C138 -> Spare | E136: =Output!E136/E$9 -> 0 | F136: =Output!F136/F$9 -> 0 | G136: =Output!G136/G$9 -> 0 | H136: =Output!H136/H$9 -> 0 | I136: =Output!I136/I$9 -> 0 | J136: 0 | L136: =#REF!/(RegDur-1) ->  | M136: =#REF!/(RegDur-1) ->  | N136: =#REF!/(RegDur-1) ->  | O136: =#REF!/(RegDur-1) ->  | P136: =#REF!/(RegDur-1) ->  | R136: Spare | T136: =Output!L136*T$9 -> 0 | U136: =Output!M136*U$9 -> 0 | V136: =Output!N136*V$9 -> 0 | W136: =Output!O136*W$9 -> 0 | X136: =Output!P136*X$9 -> 0 | Y136: 0 | AA136: =#REF! ->  | AB136: =#REF!/(RegDur-1) ->  | AC136: =#REF!/(RegDur-1) ->  | AD136: =#REF!/(RegDur-1) ->  | AE136: =#REF!/(RegDur-1) -> 
B137: TRUE | C137: =RAB!C139 -> Spare | E137: =Output!E137/E$9 -> 0 | F137: =Output!F137/F$9 -> 0 | G137: =Output!G137/G$9 -> 0 | H137: =Output!H137/H$9 -> 0 | I137: =Output!I137/I$9 -> 0 | J137: 0 | L137: =#REF!/(RegDur-1) ->  | M137: =#REF!/(RegDur-1) ->  | N137: =#REF!/(RegDur-1) ->  | O137: =#REF!/(RegDur-1) ->  | P137: =#REF!/(RegDur-1) ->  | R137: Spare | T137: =Output!L137*T$9 -> 0 | U137: =Output!M137*U$9 -> 0 | V137: =Output!N137*V$9 -> 0 | W137: =Output!O137*W$9 -> 0 | X137: =Output!P137*X$9 -> 0 | Y137: 0 | AA137: =#REF! ->  | AB137: =#REF!/(RegDur-1) ->  | AC137: =#REF!/(RegDur-1) ->  | AD137: =#REF!/(RegDur-1) ->  | AE137: =#REF!/(RegDur-1) -> 
B138: TRUE | C138: =RAB!C140 -> Spare | E138: =Output!E138/E$9 -> 0 | F138: =Output!F138/F$9 -> 0 | G138: =Output!G138/G$9 -> 0 | H138: =Output!H138/H$9 -> 0 | I138: =Output!I138/I$9 -> 0 | J138: 0 | L138: =#REF!/(RegDur-1) ->  | M138: =#REF!/(RegDur-1) ->  | N138: =#REF!/(RegDur-1) ->  | O138: =#REF!/(RegDur-1) ->  | P138: =#REF!/(RegDur-1) ->  | R138: Spare | T138: =Output!L138*T$9 -> 0 | U138: =Output!M138*U$9 -> 0 | V138: =Output!N138*V$9 -> 0 | W138: =Output!O138*W$9 -> 0 | X138: =Output!P138*X$9 -> 0 | Y138: 0 | AA138: =#REF! ->  | AB138: =#REF!/(RegDur-1) ->  | AC138: =#REF!/(RegDur-1) ->  | AD138: =#REF!/(RegDur-1) ->  | AE138: =#REF!/(RegDur-1) -> 
B139: =IF(C139="Spare",TRUE,0) -> TRUE | C139: =RAB!C141 -> Spare | E139: =Output!E139/E$9 -> 0 | F139: =Output!F139/F$9 -> 0 | G139: =Output!G139/G$9 -> 0 | H139: =Output!H139/H$9 -> 0 | I139: =Output!I139/I$9 -> 0 | J139: 0 | L139: =#REF!/(RegDur-1) ->  | M139: =#REF!/(RegDur-1) ->  | N139: =#REF!/(RegDur-1) ->  | O139: =#REF!/(RegDur-1) ->  | P139: =#REF!/(RegDur-1) ->  | R139: =C139 -> Spare | T139: =Output!L139*T$9 -> 0 | U139: =Output!M139*U$9 -> 0 | V139: =Output!N139*V$9 -> 0 | W139: =Output!O139*W$9 -> 0 | X139: =Output!P139*X$9 -> 0 | Y139: 0 | AA139: =#REF! ->  | AB139: =#REF!/(RegDur-1) ->  | AC139: =#REF!/(RegDur-1) ->  | AD139: =#REF!/(RegDur-1) ->  | AE139: =#REF!/(RegDur-1) -> 
B140: TRUE | C140: =RAB!C142 -> Spare | E140: =Output!E140/E$9 -> 0 | F140: =Output!F140/F$9 -> 0 | G140: =Output!G140/G$9 -> 0 | H140: =Output!H140/H$9 -> 0 | I140: =Output!I140/I$9 -> 0 | J140: =SUM(E140:I140) -> 0 | L140: =#REF!/(RegDur-1) ->  | M140: =#REF!/(RegDur-1) ->  | N140: =#REF!/(RegDur-1) ->  | O140: =#REF!/(RegDur-1) ->  | P140: =#REF!/(RegDur-1) ->  | R140: Spare | T140: =Output!L140*T$9 -> 0 | U140: =Output!M140*U$9 -> 0 | V140: =Output!N140*V$9 -> 0 | W140: =Output!O140*W$9 -> 0 | X140: =Output!P140*X$9 -> 0 | Y140: =SUM(T140:X140) -> 0 | AA140: =#REF! ->  | AB140: =#REF!/(RegDur-1) ->  | AC140: =#REF!/(RegDur-1) ->  | AD140: =#REF!/(RegDur-1) ->  | AE140: =#REF!/(RegDur-1) -> 
B141: TRUE | C141: =RAB!C143 -> Spare | E141: =Output!E141/E$9 -> 0 | F141: =Output!F141/F$9 -> 0 | G141: =Output!G141/G$9 -> 0 | H141: =Output!H141/H$9 -> 0 | I141: =Output!I141/I$9 -> 0 | J141: 0 | L141: =#REF!/(RegDur-1) ->  | M141: =#REF!/(RegDur-1) ->  | N141: =#REF!/(RegDur-1) ->  | O141: =#REF!/(RegDur-1) ->  | P141: =#REF!/(RegDur-1) ->  | R141: Spare | T141: =Output!L141*T$9 -> 0 | U141: =Output!M141*U$9 -> 0 | V141: =Output!N141*V$9 -> 0 | W141: =Output!O141*W$9 -> 0 | X141: =Output!P141*X$9 -> 0 | Y141: 0 | AA141: =#REF! ->  | AB141: =#REF!/(RegDur-1) ->  | AC141: =#REF!/(RegDur-1) ->  | AD141: =#REF!/(RegDur-1) ->  | AE141: =#REF!/(RegDur-1) -> 
B142: TRUE | C142: =RAB!C144 -> Spare | E142: =Output!E142/E$9 -> 0 | F142: =Output!F142/F$9 -> 0 | G142: =Output!G142/G$9 -> 0 | H142: =Output!H142/H$9 -> 0 | I142: =Output!I142/I$9 -> 0 | J142: 0 | L142: =#REF!/(RegDur-1) ->  | M142: =#REF!/(RegDur-1) ->  | N142: =#REF!/(RegDur-1) ->  | O142: =#REF!/(RegDur-1) ->  | P142: =#REF!/(RegDur-1) ->  | R142: Spare | T142: =Output!L142*T$9 -> 0 | U142: =Output!M142*U$9 -> 0 | V142: =Output!N142*V$9 -> 0 | W142: =Output!O142*W$9 -> 0 | X142: =Output!P142*X$9 -> 0 | Y142: 0 | AA142: =#REF! ->  | AB142: =#REF!/(RegDur-1) ->  | AC142: =#REF!/(RegDur-1) ->  | AD142: =#REF!/(RegDur-1) ->  | AE142: =#REF!/(RegDur-1) -> 
B143: TRUE | C143: =RAB!C145 -> Spare | E143: =Output!E143/E$9 -> 0 | F143: =Output!F143/F$9 -> 0 | G143: =Output!G143/G$9 -> 0 | H143: =Output!H143/H$9 -> 0 | I143: =Output!I143/I$9 -> 0 | J143: 0 | L143: =#REF!/(RegDur-1) ->  | M143: =#REF!/(RegDur-1) ->  | N143: =#REF!/(RegDur-1) ->  | O143: =#REF!/(RegDur-1) ->  | P143: =#REF!/(RegDur-1) ->  | R143: Spare | T143: =Output!L143*T$9 -> 0 | U143: =Output!M143*U$9 -> 0 | V143: =Output!N143*V$9 -> 0 | W143: =Output!O143*W$9 -> 0 | X143: =Output!P143*X$9 -> 0 | Y143: 0 | AA143: =#REF! ->  | AB143: =#REF!/(RegDur-1) ->  | AC143: =#REF!/(RegDur-1) ->  | AD143: =#REF!/(RegDur-1) ->  | AE143: =#REF!/(RegDur-1) -> 
B144: TRUE | C144: =RAB!C146 -> Spare | E144: =Output!E144/E$9 -> 0 | F144: =Output!F144/F$9 -> 0 | G144: =Output!G144/G$9 -> 0 | H144: =Output!H144/H$9 -> 0 | I144: =Output!I144/I$9 -> 0 | J144: 0 | L144: =#REF!/(RegDur-1) ->  | M144: =#REF!/(RegDur-1) ->  | N144: =#REF!/(RegDur-1) ->  | O144: =#REF!/(RegDur-1) ->  | P144: =#REF!/(RegDur-1) ->  | R144: Spare | T144: =Output!L144*T$9 -> 0 | U144: =Output!M144*U$9 -> 0 | V144: =Output!N144*V$9 -> 0 | W144: =Output!O144*W$9 -> 0 | X144: =Output!P144*X$9 -> 0 | Y144: 0 | AA144: =#REF! ->  | AB144: =#REF!/(RegDur-1) ->  | AC144: =#REF!/(RegDur-1) ->  | AD144: =#REF!/(RegDur-1) ->  | AE144: =#REF!/(RegDur-1) -> 
B145: TRUE | C145: =RAB!C147 -> Spare | E145: =Output!E145/E$9 -> 0 | F145: =Output!F145/F$9 -> 0 | G145: =Output!G145/G$9 -> 0 | H145: =Output!H145/H$9 -> 0 | I145: =Output!I145/I$9 -> 0 | J145: 0 | L145: =#REF!/(RegDur-1) ->  | M145: =#REF!/(RegDur-1) ->  | N145: =#REF!/(RegDur-1) ->  | O145: =#REF!/(RegDur-1) ->  | P145: =#REF!/(RegDur-1) ->  | R145: Spare | T145: =Output!L145*T$9 -> 0 | U145: =Output!M145*U$9 -> 0 | V145: =Output!N145*V$9 -> 0 | W145: =Output!O145*W$9 -> 0 | X145: =Output!P145*X$9 -> 0 | Y145: 0 | AA145: =#REF! ->  | AB145: =#REF!/(RegDur-1) ->  | AC145: =#REF!/(RegDur-1) ->  | AD145: =#REF!/(RegDur-1) ->  | AE145: =#REF!/(RegDur-1) -> 
B146: TRUE | C146: =RAB!C148 -> Spare | E146: =Output!E146/E$9 -> 0 | F146: =Output!F146/F$9 -> 0 | G146: =Output!G146/G$9 -> 0 | H146: =Output!H146/H$9 -> 0 | I146: =Output!I146/I$9 -> 0 | J146: 0 | L146: =#REF!/(RegDur-1) ->  | M146: =#REF!/(RegDur-1) ->  | N146: =#REF!/(RegDur-1) ->  | O146: =#REF!/(RegDur-1) ->  | P146: =#REF!/(RegDur-1) ->  | R146: Spare | T146: =Output!L146*T$9 -> 0 | U146: =Output!M146*U$9 -> 0 | V146: =Output!N146*V$9 -> 0 | W146: =Output!O146*W$9 -> 0 | X146: =Output!P146*X$9 -> 0 | Y146: 0 | AA146: =#REF! ->  | AB146: =#REF!/(RegDur-1) ->  | AC146: =#REF!/(RegDur-1) ->  | AD146: =#REF!/(RegDur-1) ->  | AE146: =#REF!/(RegDur-1) -> 
B147: TRUE | C147: =RAB!C149 -> Spare | E147: =Output!E147/E$9 -> 0 | F147: =Output!F147/F$9 -> 0 | G147: =Output!G147/G$9 -> 0 | H147: =Output!H147/H$9 -> 0 | I147: =Output!I147/I$9 -> 0 | J147: 0 | L147: =#REF!/(RegDur-1) ->  | M147: =#REF!/(RegDur-1) ->  | N147: =#REF!/(RegDur-1) ->  | O147: =#REF!/(RegDur-1) ->  | P147: =#REF!/(RegDur-1) ->  | R147: Spare | T147: =Output!L147*T$9 -> 0 | U147: =Output!M147*U$9 -> 0 | V147: =Output!N147*V$9 -> 0 | W147: =Output!O147*W$9 -> 0 | X147: =Output!P147*X$9 -> 0 | Y147: 0 | AA147: =#REF! ->  | AB147: =#REF!/(RegDur-1) ->  | AC147: =#REF!/(RegDur-1) ->  | AD147: =#REF!/(RegDur-1) ->  | AE147: =#REF!/(RegDur-1) -> 
B148: TRUE | C148: =RAB!C150 -> Spare | E148: =Output!E148/E$9 -> 0 | F148: =Output!F148/F$9 -> 0 | G148: =Output!G148/G$9 -> 0 | H148: =Output!H148/H$9 -> 0 | I148: =Output!I148/I$9 -> 0 | J148: 0 | L148: =#REF!/(RegDur-1) ->  | M148: =#REF!/(RegDur-1) ->  | N148: =#REF!/(RegDur-1) ->  | O148: =#REF!/(RegDur-1) ->  | P148: =#REF!/(RegDur-1) ->  | R148: Spare | T148: =Output!L148*T$9 -> 0 | U148: =Output!M148*U$9 -> 0 | V148: =Output!N148*V$9 -> 0 | W148: =Output!O148*W$9 -> 0 | X148: =Output!P148*X$9 -> 0 | Y148: 0 | AA148: =#REF! ->  | AB148: =#REF!/(RegDur-1) ->  | AC148: =#REF!/(RegDur-1) ->  | AD148: =#REF!/(RegDur-1) ->  | AE148: =#REF!/(RegDur-1) -> 
B149: TRUE | C149: =RAB!C151 -> Spare | E149: =Output!E149/E$9 -> 0 | F149: =Output!F149/F$9 -> 0 | G149: =Output!G149/G$9 -> 0 | H149: =Output!H149/H$9 -> 0 | I149: =Output!I149/I$9 -> 0 | J149: 0 | L149: =#REF!/(RegDur-1) ->  | M149: =#REF!/(RegDur-1) ->  | N149: =#REF!/(RegDur-1) ->  | O149: =#REF!/(RegDur-1) ->  | P149: =#REF!/(RegDur-1) ->  | R149: Spare | T149: =Output!L149*T$9 -> 0 | U149: =Output!M149*U$9 -> 0 | V149: =Output!N149*V$9 -> 0 | W149: =Output!O149*W$9 -> 0 | X149: =Output!P149*X$9 -> 0 | Y149: 0 | AA149: =#REF! ->  | AB149: =#REF!/(RegDur-1) ->  | AC149: =#REF!/(RegDur-1) ->  | AD149: =#REF!/(RegDur-1) ->  | AE149: =#REF!/(RegDur-1) -> 
B150: TRUE | C150: =RAB!C152 -> Spare | E150: =Output!E150/E$9 -> 0 | F150: =Output!F150/F$9 -> 0 | G150: =Output!G150/G$9 -> 0 | H150: =Output!H150/H$9 -> 0 | I150: =Output!I150/I$9 -> 0 | J150: 0 | L150: =#REF!/(RegDur-1) ->  | M150: =#REF!/(RegDur-1) ->  | N150: =#REF!/(RegDur-1) ->  | O150: =#REF!/(RegDur-1) ->  | P150: =#REF!/(RegDur-1) ->  | R150: Spare | T150: =Output!L150*T$9 -> 0 | U150: =Output!M150*U$9 -> 0 | V150: =Output!N150*V$9 -> 0 | W150: =Output!O150*W$9 -> 0 | X150: =Output!P150*X$9 -> 0 | Y150: 0 | AA150: =#REF! ->  | AB150: =#REF!/(RegDur-1) ->  | AC150: =#REF!/(RegDur-1) ->  | AD150: =#REF!/(RegDur-1) ->  | AE150: =#REF!/(RegDur-1) -> 
B151: TRUE | C151: =RAB!C153 -> Spare | E151: =Output!E151/E$9 -> 0 | F151: =Output!F151/F$9 -> 0 | G151: =Output!G151/G$9 -> 0 | H151: =Output!H151/H$9 -> 0 | I151: =Output!I151/I$9 -> 0 | J151: 0 | L151: =#REF!/(RegDur-1) ->  | M151: =#REF!/(RegDur-1) ->  | N151: =#REF!/(RegDur-1) ->  | O151: =#REF!/(RegDur-1) ->  | P151: =#REF!/(RegDur-1) ->  | R151: Spare | T151: =Output!L151*T$9 -> 0 | U151: =Output!M151*U$9 -> 0 | V151: =Output!N151*V$9 -> 0 | W151: =Output!O151*W$9 -> 0 | X151: =Output!P151*X$9 -> 0 | Y151: 0 | AA151: =#REF! ->  | AB151: =#REF!/(RegDur-1) ->  | AC151: =#REF!/(RegDur-1) ->  | AD151: =#REF!/(RegDur-1) ->  | AE151: =#REF!/(RegDur-1) -> 
B152: TRUE | C152: =RAB!C154 -> Spare | E152: =Output!E152/E$9 -> 0 | F152: =Output!F152/F$9 -> 0 | G152: =Output!G152/G$9 -> 0 | H152: =Output!H152/H$9 -> 0 | I152: =Output!I152/I$9 -> 0 | J152: 0 | L152: =#REF!/(RegDur-1) ->  | M152: =#REF!/(RegDur-1) ->  | N152: =#REF!/(RegDur-1) ->  | O152: =#REF!/(RegDur-1) ->  | P152: =#REF!/(RegDur-1) ->  | R152: Spare | T152: =Output!L152*T$9 -> 0 | U152: =Output!M152*U$9 -> 0 | V152: =Output!N152*V$9 -> 0 | W152: =Output!O152*W$9 -> 0 | X152: =Output!P152*X$9 -> 0 | Y152: 0 | AA152: =#REF! ->  | AB152: =#REF!/(RegDur-1) ->  | AC152: =#REF!/(RegDur-1) ->  | AD152: =#REF!/(RegDur-1) ->  | AE152: =#REF!/(RegDur-1) -> 
B153: TRUE | C153: =RAB!C155 -> Spare | E153: =Output!E153/E$9 -> 0 | F153: =Output!F153/F$9 -> 0 | G153: =Output!G153/G$9 -> 0 | H153: =Output!H153/H$9 -> 0 | I153: =Output!I153/I$9 -> 0 | J153: 0 | L153: =#REF!/(RegDur-1) ->  | M153: =#REF!/(RegDur-1) ->  | N153: =#REF!/(RegDur-1) ->  | O153: =#REF!/(RegDur-1) ->  | P153: =#REF!/(RegDur-1) ->  | R153: Spare | T153: =Output!L153*T$9 -> 0 | U153: =Output!M153*U$9 -> 0 | V153: =Output!N153*V$9 -> 0 | W153: =Output!O153*W$9 -> 0 | X153: =Output!P153*X$9 -> 0 | Y153: 0 | AA153: =#REF! ->  | AB153: =#REF!/(RegDur-1) ->  | AC153: =#REF!/(RegDur-1) ->  | AD153: =#REF!/(RegDur-1) ->  | AE153: =#REF!/(RegDur-1) -> 
B154: TRUE | C154: =RAB!C156 -> Spare | E154: =Output!E154/E$9 -> 0 | F154: =Output!F154/F$9 -> 0 | G154: =Output!G154/G$9 -> 0 | H154: =Output!H154/H$9 -> 0 | I154: =Output!I154/I$9 -> 0 | J154: 0 | L154: =#REF!/(RegDur-1) ->  | M154: =#REF!/(RegDur-1) ->  | N154: =#REF!/(RegDur-1) ->  | O154: =#REF!/(RegDur-1) ->  | P154: =#REF!/(RegDur-1) ->  | R154: Spare | T154: =Output!L154*T$9 -> 0 | U154: =Output!M154*U$9 -> 0 | V154: =Output!N154*V$9 -> 0 | W154: =Output!O154*W$9 -> 0 | X154: =Output!P154*X$9 -> 0 | Y154: 0 | AA154: =#REF! ->  | AB154: =#REF!/(RegDur-1) ->  | AC154: =#REF!/(RegDur-1) ->  | AD154: =#REF!/(RegDur-1) ->  | AE154: =#REF!/(RegDur-1) -> 
B155: TRUE | C155: =RAB!C157 -> Spare | E155: =Output!E155/E$9 -> 0 | F155: =Output!F155/F$9 -> 0 | G155: =Output!G155/G$9 -> 0 | H155: =Output!H155/H$9 -> 0 | I155: =Output!I155/I$9 -> 0 | J155: 0 | L155: =#REF!/(RegDur-1) ->  | M155: =#REF!/(RegDur-1) ->  | N155: =#REF!/(RegDur-1) ->  | O155: =#REF!/(RegDur-1) ->  | P155: =#REF!/(RegDur-1) ->  | R155: Spare | T155: =Output!L155*T$9 -> 0 | U155: =Output!M155*U$9 -> 0 | V155: =Output!N155*V$9 -> 0 | W155: =Output!O155*W$9 -> 0 | X155: =Output!P155*X$9 -> 0 | Y155: 0 | AA155: =#REF! ->  | AB155: =#REF!/(RegDur-1) ->  | AC155: =#REF!/(RegDur-1) ->  | AD155: =#REF!/(RegDur-1) ->  | AE155: =#REF!/(RegDur-1) -> 
B156: TRUE | C156: =RAB!C158 -> Spare | E156: =Output!E156/E$9 -> 0 | F156: =Output!F156/F$9 -> 0 | G156: =Output!G156/G$9 -> 0 | H156: =Output!H156/H$9 -> 0 | I156: =Output!I156/I$9 -> 0 | J156: 0 | L156: =#REF!/(RegDur-1) ->  | M156: =#REF!/(RegDur-1) ->  | N156: =#REF!/(RegDur-1) ->  | O156: =#REF!/(RegDur-1) ->  | P156: =#REF!/(RegDur-1) ->  | R156: Spare | T156: =Output!L156*T$9 -> 0 | U156: =Output!M156*U$9 -> 0 | V156: =Output!N156*V$9 -> 0 | W156: =Output!O156*W$9 -> 0 | X156: =Output!P156*X$9 -> 0 | Y156: 0 | AA156: =#REF! ->  | AB156: =#REF!/(RegDur-1) ->  | AC156: =#REF!/(RegDur-1) ->  | AD156: =#REF!/(RegDur-1) ->  | AE156: =#REF!/(RegDur-1) -> 
B157: TRUE | C157: =RAB!C159 -> Spare | E157: =Output!E157/E$9 -> 0 | F157: =Output!F157/F$9 -> 0 | G157: =Output!G157/G$9 -> 0 | H157: =Output!H157/H$9 -> 0 | I157: =Output!I157/I$9 -> 0 | J157: 0 | L157: =#REF!/(RegDur-1) ->  | M157: =#REF!/(RegDur-1) ->  | N157: =#REF!/(RegDur-1) ->  | O157: =#REF!/(RegDur-1) ->  | P157: =#REF!/(RegDur-1) ->  | R157: Spare | T157: =Output!L157*T$9 -> 0 | U157: =Output!M157*U$9 -> 0 | V157: =Output!N157*V$9 -> 0 | W157: =Output!O157*W$9 -> 0 | X157: =Output!P157*X$9 -> 0 | Y157: 0 | AA157: =#REF! ->  | AB157: =#REF!/(RegDur-1) ->  | AC157: =#REF!/(RegDur-1) ->  | AD157: =#REF!/(RegDur-1) ->  | AE157: =#REF!/(RegDur-1) -> 
B158: TRUE | C158: =RAB!C160 -> Spare | E158: =Output!E158/E$9 -> 0 | F158: =Output!F158/F$9 -> 0 | G158: =Output!G158/G$9 -> 0 | H158: =Output!H158/H$9 -> 0 | I158: =Output!I158/I$9 -> 0 | J158: 0 | L158: =#REF!/(RegDur-1) ->  | M158: =#REF!/(RegDur-1) ->  | N158: =#REF!/(RegDur-1) ->  | O158: =#REF!/(RegDur-1) ->  | P158: =#REF!/(RegDur-1) ->  | R158: Spare | T158: =Output!L158*T$9 -> 0 | U158: =Output!M158*U$9 -> 0 | V158: =Output!N158*V$9 -> 0 | W158: =Output!O158*W$9 -> 0 | X158: =Output!P158*X$9 -> 0 | Y158: 0 | AA158: =#REF! ->  | AB158: =#REF!/(RegDur-1) ->  | AC158: =#REF!/(RegDur-1) ->  | AD158: =#REF!/(RegDur-1) ->  | AE158: =#REF!/(RegDur-1) -> 
B159: TRUE | C159: =RAB!C161 -> Spare | E159: =Output!E159/E$9 -> 0 | F159: =Output!F159/F$9 -> 0 | G159: =Output!G159/G$9 -> 0 | H159: =Output!H159/H$9 -> 0 | I159: =Output!I159/I$9 -> 0 | J159: 0 | L159: =#REF!/(RegDur-1) ->  | M159: =#REF!/(RegDur-1) ->  | N159: =#REF!/(RegDur-1) ->  | O159: =#REF!/(RegDur-1) ->  | P159: =#REF!/(RegDur-1) ->  | R159: Spare | T159: =Output!L159*T$9 -> 0 | U159: =Output!M159*U$9 -> 0 | V159: =Output!N159*V$9 -> 0 | W159: =Output!O159*W$9 -> 0 | X159: =Output!P159*X$9 -> 0 | Y159: 0 | AA159: =#REF! ->  | AB159: =#REF!/(RegDur-1) ->  | AC159: =#REF!/(RegDur-1) ->  | AD159: =#REF!/(RegDur-1) ->  | AE159: =#REF!/(RegDur-1) -> 
B160: TRUE | C160: =RAB!C162 -> Spare | E160: =Output!E160/E$9 -> 0 | F160: =Output!F160/F$9 -> 0 | G160: =Output!G160/G$9 -> 0 | H160: =Output!H160/H$9 -> 0 | I160: =Output!I160/I$9 -> 0 | J160: 0 | L160: =#REF!/(RegDur-1) ->  | M160: =#REF!/(RegDur-1) ->  | N160: =#REF!/(RegDur-1) ->  | O160: =#REF!/(RegDur-1) ->  | P160: =#REF!/(RegDur-1) ->  | R160: Spare | T160: =Output!L160*T$9 -> 0 | U160: =Output!M160*U$9 -> 0 | V160: =Output!N160*V$9 -> 0 | W160: =Output!O160*W$9 -> 0 | X160: =Output!P160*X$9 -> 0 | Y160: 0 | AA160: =#REF! ->  | AB160: =#REF!/(RegDur-1) ->  | AC160: =#REF!/(RegDur-1) ->  | AD160: =#REF!/(RegDur-1) ->  | AE160: =#REF!/(RegDur-1) -> 
C165: Tariff Class 3 | R165: Tariff Class 4 | AG165: Tariff Class 3 & 4
C166: Component : Capital Recovery | R166: Component : Tax Recovery | AG166: Component : Maintenance
E167: NPV | L167: Smoothed Tariffs | T167: NPV | AA167: Smoothed Tariffs | AI167: NPV | AP167: Smoothed Tariffs
E168: =REG_Timing!K$4 -> 2020 | F168: =REG_Timing!L$4 -> 2021 | G168: =REG_Timing!M$4 -> 2022 | H168: =REG_Timing!N$4 -> 2023 | I168: =REG_Timing!O$4 -> 2024 | J168: Total | L168: =REG_Timing!K$4 -> 2020 | M168: =REG_Timing!L$4 -> 2021 | N168: =REG_Timing!M$4 -> 2022 | O168: =REG_Timing!N$4 -> 2023 | P168: =REG_Timing!O$4 -> 2024 | T168: =E168 -> 2020 | U168: 2021 | V168: 2022 | W168: 2023 | X168: 2024 | Y168: Total | AA168: =L168 -> 2020 | AB168: =M168 -> 2021 | AC168: =N168 -> 2022 | AD168: =O168 -> 2023 | AE168: =P168 -> 2024 | AI168: =T168 -> 2020 | AJ168: =U168 -> 2021 | AK168: =V168 -> 2022 | AL168: =W168 -> 2023 | AM168: =X168 -> 2024 | AN168: Total | AP168: =AA168 -> 2020 | AQ168: =AB168 -> 2021 | AR168: =AC168 -> 2022 | AS168: =AD168 -> 2023 | AT168: =AE168 -> 2024
C169: =Global!$C$83 -> Real vanilla WACC | E169: =Global!F$83 -> 0.03226776725 | F169: =Global!G$83 -> 0.03226776725 | G169: =Global!H$83 -> 0.03226776725 | H169: =Global!I$83 -> 0.03226776725 | I169: =Global!J$83 -> 0.03226776725 | R169: =Global!$C$83 -> Real vanilla WACC | T169: 0.03226776725 | U169: 0.03226776725 | V169: 0.03226776725 | W169: 0.03226776725 | X169: 0.03226776725 | AG169: =Global!$C$83 -> Real vanilla WACC | AI169: 0.03226776725 | AJ169: 0.03226776725 | AK169: 0.03226776725 | AL169: 0.03226776725 | AM169: 0.03226776725
C170: Discount factor | D170: 1 | E170: =D170*(1-E169) -> 0.9677322327 | F170: =E170*(1-F169) -> 0.9365056743 | G170: =F170*(1-G169) -> 0.9062867272 | H170: =G170*(1-H169) -> 0.877042878 | I170: =H170*(1-I169) -> 0.8487426625 | R170: Discount factor | S170: 1 | T170: =S170*(1-T169) -> 0.9677322327 | U170: =T170*(1-U169) -> 0.9365056743 | V170: =U170*(1-V169) -> 0.9062867272 | W170: =V170*(1-W169) -> 0.877042878 | X170: =W170*(1-X169) -> 0.8487426625 | AG170: Discount factor | AH170: 1 | AI170: =AH170*(1-AI169) -> 0.9677322327 | AJ170: =AI170*(1-AJ169) -> 0.9365056743 | AK170: =AJ170*(1-AK169) -> 0.9062867272 | AL170: =AK170*(1-AL169) -> 0.877042878 | AM170: =AL170*(1-AM169) -> 0.8487426625
C173: ='TC3'!C335 -> 2x14W Energy Efficient Fluro - STD | E173: =Output!AF11*E$170 -> 30.2140953 | F173: =Output!AG11*F$170 -> 29.26217109 | G173: =Output!AH11*G$170 -> 28.34933389 | H173: =Output!AI11*H$170 -> 27.46668841 | I173: =Output!AJ11*I$170 -> 26.60643243 | J173: =SUM(E173:I173) -> 141.8987211 | L173: =$J173/RegDur -> 28.37974422 | M173: 28.37974422 | N173: 28.37974422 | O173: 28.37974422 | P173: 28.37974422 | R173: =C173 -> 2x14W Energy Efficient Fluro - STD | T173: =Output!AZ11*T$170 -> 3.749998725 | U173: =Output!BA11*U$170 -> 3.631851399 | V173: =Output!BB11*V$170 -> 3.518555327 | W173: =Output!BC11*W$170 -> 3.409006476 | X173: =Output!BD11*X$170 -> 3.302236479 | Y173: =SUM(T173:X173) -> 17.61164841 | AA173: =$Y173/RegDur -> 3.522329681 | AB173: 3.522329681 | AC173: 3.522329681 | AD173: 3.522329681 | AE173: 3.522329681 | AG173: =R173 -> 2x14W Energy Efficient Fluro - STD | AI173: =Output!AL11*AI$170 -> 48.77624418 | AJ173: =Output!AM11*AJ$170 -> 47.31752005 | AK173: =Output!AN11*AK$170 -> 45.94787348 | AL173: =Output!AO11*AL$170 -> 44.62628659 | AM173: =Output!AP11*AM$170 -> 43.31695642 | AN173: =SUM(AI173:AM173) -> 229.9848807 | AP173: =$AN173/RegDur -> 45.99697615 | AQ173: 45.99697615 | AR173: 45.99697615 | AS173: 45.99697615 | AT173: 45.99697615
C174: ='TC3'!C336 -> 2x24W Energy Efficient Fluro - STD | E174: =Output!AF12*E$170 -> 32.64854453 | F174: =Output!AG12*F$170 -> 31.61806608 | G174: =Output!AH12*G$170 -> 30.62920942 | H174: =Output!AI12*H$170 -> 29.67299744 | I174: =Output!AJ12*I$170 -> 28.74154879 | J174: =SUM(E174:I174) -> 153.3103663 | L174: 30.66207325 | M174: 30.66207325 | N174: 30.66207325 | O174: 30.66207325 | P174: 30.66207325 | R174: 2x24W Energy Efficient Fluro - STD | T174: =Output!AZ12*T$170 -> 4.052148481 | U174: =Output!BA12*U$170 -> 3.924251458 | V174: =Output!BB12*V$170 -> 3.801520288 | W174: =Output!BC12*W$170 -> 3.68284079 | X174: =Output!BD12*X$170 -> 3.567234771 | Y174: 19.02799579 | AA174: 3.805599158 | AB174: 3.805599158 | AC174: 3.805599158 | AD174: 3.805599158 | AE174: 3.805599158 | AG174: 2x24W Energy Efficient Fluro - STD | AI174: =Output!AL12*AI$170 -> 48.77624418 | AJ174: =Output!AM12*AJ$170 -> 47.31752005 | AK174: =Output!AN12*AK$170 -> 45.94787348 | AL174: =Output!AO12*AL$170 -> 44.62628659 | AM174: =Output!AP12*AM$170 -> 43.31695642 | AN174: 229.9848807 | AP174: 45.99697615 | AQ174: 45.99697615 | AR174: 45.99697615 | AS174: 45.99697615 | AT174: 45.99697615
C175: ='TC3'!C337 -> 1x42W Compact Fluorescent - STD | E175: =Output!AF13*E$170 -> 26.25478827 | F175: =Output!AG13*F$170 -> 25.43062206 | G175: =Output!AH13*G$170 -> 24.64142039 | H175: =Output!AI13*H$170 -> 23.87842101 | I175: =Output!AJ13*I$170 -> 23.1339504 | J175: 123.3392021 | L175: 24.66784042 | M175: 24.66784042 | N175: 24.66784042 | O175: 24.66784042 | P175: 24.66784042 | R175: 1x42W Compact Fluorescent - STD | T175: =Output!AZ13*T$170 -> 3.258592441 | U175: =Output!BA13*U$170 -> 3.156301698 | V175: =Output!BB13*V$170 -> 3.058350553 | W175: =Output!BC13*W$170 -> 2.963651483 | X175: =Output!BD13*X$170 -> 2.871252097 | Y175: 15.30814827 | AA175: 3.061629654 | AB175: 3.061629654 | AC175: 3.061629654 | AD175: 3.061629654 | AE175: 3.061629654 | AG175: 1x42W Compact Fluorescent - STD | AI175: =Output!AL13*AI$170 -> 50.57057482 | AJ175: =Output!AM13*AJ$170 -> 49.05818864 | AK175: =Output!AN13*AK$170 -> 47.63815691 | AL175: =Output!AO13*AL$170 -> 46.26795283 | AM175: =Output!AP13*AM$170 -> 44.91045636 | AN175: 238.4453296 | AP175: 47.68906591 | AQ175: 47.68906591 | AR175: 47.68906591 | AS175: 47.68906591 | AT175: 47.68906591
C176: ='TC3'!C338 -> 50W Mercury - STANDARD | E176: =Output!AF14*E$170 -> 22.94231558 | F176: =Output!AG14*F$170 -> 22.22503547 | G176: =Output!AH14*G$170 -> 21.53927092 | H176: =Output!AI14*H$170 -> 20.87637097 | I176: =Output!AJ14*I$170 -> 20.22876981 | J176: 107.8117628 | L176: 21.56235255 | M176: 21.56235255 | N176: 21.56235255 | O176: 21.56235255 | P176: 21.56235255 | R176: 50W Mercury - STANDARD | T176: =Output!AZ14*T$170 -> 2.847467492 | U176: =Output!BA14*U$170 -> 2.758442834 | V176: =Output!BB14*V$170 -> 2.673329706 | W176: =Output!BC14*W$170 -> 2.591054399 | X176: =Output!BD14*X$170 -> 2.51067789 | Y176: 13.38097232 | AA176: 2.676194464 | AB176: 2.676194464 | AC176: 2.676194464 | AD176: 2.676194464 | AE176: 2.676194464 | AG176: 50W Mercury - STANDARD | AI176: =Output!AL14*AI$170 -> 51.87995124 | AJ176: =Output!AM14*AJ$170 -> 50.32840626 | AK176: =Output!AN14*AK$170 -> 48.87160698 | AL176: =Output!AO14*AL$170 -> 47.46592549 | AM176: =Output!AP14*AM$170 -> 46.07328064 | AN176: 244.6191706 | AP176: 48.92383412 | AQ176: 48.92383412 | AR176: 48.92383412 | AS176: 48.92383412 | AT176: 48.92383412
C177: ='TC3'!C339 -> 80W Mercury - STANDARD | E177: =Output!AF15*E$170 -> 25.55007928 | F177: =Output!AG15*F$170 -> 24.74865246 | G177: =Output!AH15*G$170 -> 23.98145643 | H177: =Output!AI15*H$170 -> 23.2397526 | I177: =Output!AJ15*I$170 -> 22.5158904 | J177: 120.0358312 | L177: 24.00716623 | M177: 24.00716623 | N177: 24.00716623 | O177: 24.00716623 | P177: 24.00716623 | R177: 80W Mercury - STANDARD | T177: =Output!AZ15*T$170 -> 3.171128037 | U177: =Output!BA15*U$170 -> 3.071659576 | V177: =Output!BB15*V$170 -> 2.976439643 | W177: =Output!BC15*W$170 -> 2.884383655 | X177: =Output!BD15*X$170 -> 2.794542065 | Y177: 14.89815298 | AA177: 2.979630596 | AB177: 2.979630596 | AC177: 2.979630596 | AD177: 2.979630596 | AE177: 2.979630596 | AG177: 80W Mercury - STANDARD | AI177: =Output!AL15*AI$170 -> 49.26119841 | AJ177: =Output!AM15*AJ$170 -> 47.78797102 | AK177: =Output!AN15*AK$170 -> 46.40470684 | AL177: =Output!AO15*AL$170 -> 45.06998017 | AM177: =Output!AP15*AM$170 -> 43.74763208 | AN177: 232.2714885 | AP177: 46.4542977 | AQ177: 46.4542977 | AR177: 46.4542977 | AS177: 46.4542977 | AT177: 46.4542977
C178: ='TC3'!C340 -> 70W Sodium - STANDARD | E178: =Output!AF16*E$170 -> 25.82379234 | F178: =Output!AG16*F$170 -> 25.0135334 | G178: =Output!AH16*G$170 -> 24.23779026 | H178: =Output!AI16*H$170 -> 23.48781511 | I178: =Output!AJ16*I$170 -> 22.75594848 | J178: 121.3188796 | L178: 24.26377592 | M178: 24.26377592 | N178: 24.26377592 | O178: 24.26377592 | P178: 24.26377592 | R178: 70W Sodium - STANDARD | T178: =Output!AZ16*T$170 -> 3.205099719 | U178: =Output!BA16*U$170 -> 3.104535067 | V178: =Output!BB16*V$170 -> 3.008254315 | W178: =Output!BC16*W$170 -> 2.915171739 | X178: =Output!BD16*X$170 -> 2.824336687 | Y178: 15.05739753 | AA178: 3.011479505 | AB178: 3.011479505 | AC178: 3.011479505 | AD178: 3.011479505 | AE178: 3.011479505 | AG178: 70W Sodium - STANDARD | AI178: =Output!AL16*AI$170 -> 54.13013885 | AJ178: =Output!AM16*AJ$170 -> 52.51129876 | AK178: =Output!AN16*AK$170 -> 50.99131376 | AL178: =Output!AO16*AL$170 -> 49.52466369 | AM178: =Output!AP16*AM$170 -> 48.0716157 | AN178: 255.2290308 | AP178: 51.04580615 | AQ178: 51.04580615 | AR178: 51.04580615 | AS178: 51.04580615 | AT178: 51.04580615
C179: ='TC3'!C341 -> 100W Sodium - STANDARD | E179: =Output!AF17*E$170 -> 31.39882345 | F179: =Output!AG17*F$170 -> 30.40867071 | G179: =Output!AH17*G$170 -> 29.45883853 | H179: =Output!AI17*H$170 -> 28.54039182 | I179: =Output!AJ17*I$170 -> 27.64548982 | J179: 147.4522143 | L179: 29.49044287 | M179: 29.49044287 | N179: 29.49044287 | O179: 29.49044287 | P179: 29.49044287 | R179: 100W Sodium - STANDARD | T179: =Output!AZ17*T$170 -> 3.89704033 | U179: =Output!BA17*U$170 -> 3.7741483 | V179: =Output!BB17*V$170 -> 3.656260625 | W179: =Output!BC17*W$170 -> 3.542268331 | X179: =Output!BD17*X$170 -> 3.431198272 | Y179: 18.30091586 | AA179: 3.660183172 | AB179: 3.660183172 | AC179: 3.660183172 | AD179: 3.660183172 | AE179: 3.660183172 | AG179: 100W Sodium - STANDARD | AI179: =Output!AL17*AI$170 -> 57.89338365 | AJ179: =Output!AM17*AJ$170 -> 56.16199828 | AK179: =Output!AN17*AK$170 -> 54.53634063 | AL179: =Output!AO17*AL$170 -> 52.96772586 | AM179: =Output!AP17*AM$170 -> 51.41365881 | AN179: 272.9731072 | AP179: 54.59462145 | AQ179: 54.59462145 | AR179: 54.59462145 | AS179: 54.59462145 | AT179: 54.59462145
C180: ='TC3'!C342 -> 100W Metal Halide - STANDARD | E180: =Output!AF18*E$170 -> 32.71496111 | F180: =Output!AG18*F$170 -> 31.68233955 | G180: =Output!AH18*G$170 -> 30.69140892 | H180: =Output!AI18*H$170 -> 29.73318991 | I180: =Output!AJ18*I$170 -> 28.79979898 | J180: 153.6216985 | L180: 30.72433969 | M180: 30.72433969 | N180: 30.72433969 | O180: 30.72433969 | P180: 30.72433969 | R180: 100W Metal Halide - STANDARD | T180: =Output!AZ18*T$170 -> 4.060391723 | U180: =Output!BA18*U$170 -> 3.932228708 | V180: =Output!BB18*V$170 -> 3.809240131 | W180: =Output!BC18*W$170 -> 3.69031153 | X180: =Output!BD18*X$170 -> 3.574464447 | Y180: 19.06663654 | AA180: 3.813327308 | AB180: 3.813327308 | AC180: 3.813327308 | AD180: 3.813327308 | AE180: 3.813327308 | AG180: 100W Metal Halide - STANDARD | AI180: =Output!AL18*AI$170 -> 76.64171406 | AJ180: =Output!AM18*AJ$170 -> 74.34963276 | AK180: =Output!AN18*AK$170 -> 72.19751828 | AL180: =Output!AO18*AL$170 -> 70.1209196 | AM180: =Output!AP18*AM$170 -> 68.0635798 | AN180: 361.3733645 | AP180: 72.2746729 | AQ180: 72.2746729 | AR180: 72.2746729 | AS180: 72.2746729 | AT180: 72.2746729
C181: ='TC3'!C343 -> 25W LED | E181: =Output!AF19*E$170 -> 33.73964336 | F181: =Output!AG19*F$170 -> 32.67798924 | G181: =Output!AH19*G$170 -> 31.66042905 | H181: =Output!AI19*H$170 -> 30.67656876 | I181: =Output!AJ19*I$170 -> 29.71729695 | J181: 158.4719274 | L181: 31.69438547 | M181: 31.69438547 | N181: 31.69438547 | O181: 31.69438547 | P181: 31.69438547 | R181: 25W LED | T181: =Output!AZ19*T$170 -> 3.608438494 | U181: =Output!BA19*U$170 -> 3.494895101 | V181: =Output!BB19*V$170 -> 3.386067532 | W181: =Output!BC19*W$170 -> 3.280844151 | X181: =Output!BD19*X$170 -> 3.178250497 | Y181: 16.94849577 | AA181: 3.389699155 | AB181: 3.389699155 | AC181: 3.389699155 | AD181: 3.389699155 | AE181: 3.389699155 | AG181: 25W LED | AI181: =Output!AL19*AI$170 -> 43.33818386 | AJ181: =Output!AM19*AJ$170 -> 42.04209279 | AK181: =Output!AN19*AK$170 -> 40.82514803 | AL181: =Output!AO19*AL$170 -> 39.65090478 | AM181: =Output!AP19*AM$170 -> 38.48755174 | AN181: 204.3438812 | AP181: 40.86877624 | AQ181: 40.86877624 | AR181: 40.86877624 | AS181: 40.86877624 | AT181: 40.86877624
C182: ='TC3'!C344 -> Suburban 70W HPS c/w D2 PECB - STD | E182: =Output!AF20*E$170 -> 25.82379234 | F182: =Output!AG20*F$170 -> 25.0135334 | G182: =Output!AH20*G$170 -> 24.23779026 | H182: =Output!AI20*H$170 -> 23.48781511 | I182: =Output!AJ20*I$170 -> 22.75594848 | J182: 121.3188796 | L182: 24.26377592 | M182: 24.26377592 | N182: 24.26377592 | O182: 24.26377592 | P182: 24.26377592 | R182: Suburban 70W HPS c/w D2 PECB - STD | T182: =Output!AZ20*T$170 -> 3.205099719 | U182: =Output!BA20*U$170 -> 3.104535067 | V182: =Output!BB20*V$170 -> 3.008254315 | W182: =Output!BC20*W$170 -> 2.915171739 | X182: =Output!BD20*X$170 -> 2.824336687 | Y182: 15.05739753 | AA182: 3.011479505 | AB182: 3.011479505 | AC182: 3.011479505 | AD182: 3.011479505 | AE182: 3.011479505 | AG182: Suburban 70W HPS c/w D2 PECB - STD | AI182: =Output!AL20*AI$170 -> 54.13013885 | AJ182: =Output!AM20*AJ$170 -> 52.51129876 | AK182: =Output!AN20*AK$170 -> 50.99131376 | AL182: =Output!AO20*AL$170 -> 49.52466369 | AM182: =Output!AP20*AM$170 -> 48.0716157 | AN182: 255.2290308 | AP182: 51.04580615 | AQ182: 51.04580615 | AR182: 51.04580615 | AS182: 51.04580615 | AT182: 51.04580615
C183: ='TC3'!C345 -> 150W Sodium - STANDARD | E183: =Output!AF21*E$170 -> 30.28465904 | F183: =Output!AG21*F$170 -> 29.3304579 | G183: =Output!AH21*G$170 -> 28.41541724 | H183: =Output!AI21*H$170 -> 27.5306394 | I183: =Output!AJ21*I$170 -> 26.66831986 | J183: 142.2294934 | L183: 28.44589869 | M183: 28.44589869 | N183: 28.44589869 | O183: 28.44589869 | P183: 28.44589869 | R183: 150W Sodium - STANDARD | T183: =Output!AZ21*T$170 -> 3.758756689 | U183: =Output!BA21*U$170 -> 3.640326763 | V183: =Output!BB21*V$170 -> 3.52675721 | W183: =Output!BC21*W$170 -> 3.416943702 | X183: =Output!BD21*X$170 -> 3.309917589 | Y183: 17.65270195 | AA183: =$Y183/RegDur -> 3.530540391 | AB183: 3.530540391 | AC183: 3.530540391 | AD183: 3.530540391 | AE183: 3.530540391 | AG183: 150W Sodium - STANDARD | AI183: =Output!AL21*AI$170 -> 53.96525441 | AJ183: =Output!AM21*AJ$170 -> 52.35134543 | AK183: =Output!AN21*AK$170 -> 50.83599042 | AL183: =Output!AO21*AL$170 -> 49.37380788 | AM183: =Output!AP21*AM$170 -> 47.92518597 | AN183: 254.4515841 | AP183: =$AN183/RegDur -> 50.89031682 | AQ183: 50.89031682 | AR183: 50.89031682 | AS183: 50.89031682 | AT183: 50.89031682
C184: ='TC3'!C346 -> 150W Metal Halide - STANDARD | E184: =Output!AF22*E$170 -> 31.18707032 | F184: =Output!AG22*F$170 -> 30.20375038 | G184: =Output!AH22*G$170 -> 29.26053052 | H184: =Output!AI22*H$170 -> 28.34848276 | I184: =Output!AJ22*I$170 -> 27.45977324 | J184: 146.4596072 | L184: 29.29192144 | M184: 29.29192144 | N184: 29.29192144 | O184: 29.29192144 | P184: 29.29192144 | R184: 150W Metal Halide - STANDARD | T184: =Output!AZ22*T$170 -> 3.870758756 | U184: =Output!BA22*U$170 -> 3.748714774 | V184: =Output!BB22*V$170 -> 3.631647781 | W184: =Output!BC22*W$170 -> 3.518449689 | X184: =Output!BD22*X$170 -> 3.408148204 | Y184: 18.1777192 | AA184: 3.635543841 | AB184: 3.635543841 | AC184: 3.635543841 | AD184: 3.635543841 | AE184: 3.635543841 | AG184: 150W Metal Halide - STANDARD | AI184: =Output!AL22*AI$170 -> 66.81654143 | AJ184: =Output!AM22*AJ$170 -> 64.81829611 | AK184: =Output!AN22*AK$170 -> 62.94207443 | AL184: =Output!AO22*AL$170 -> 61.1316877 | AM184: =Output!AP22*AM$170 -> 59.33809094 | AN184: 315.0466906 | AP184: 63.00933812 | AQ184: 63.00933812 | AR184: 63.00933812 | AS184: 63.00933812 | AT184: 63.00933812
C185: ='TC3'!C347 -> 250W Sodium - STANDARD | E185: =Output!AF23*E$170 -> 32.02386969 | F185: =Output!AG23*F$170 -> 31.0135481 | G185: =Output!AH23*G$170 -> 30.04419788 | H185: =Output!AI23*H$170 -> 29.10686292 | I185: =Output!AJ23*I$170 -> 28.19368217 | J185: 150.3821608 | L185: 30.07643215 | M185: 30.07643215 | N185: 30.07643215 | O185: 30.07643215 | P185: 30.07643215 | R185: 250W Sodium - STANDARD | T185: =Output!AZ23*T$170 -> 3.974617453 | U185: =Output!BA23*U$170 -> 3.849222182 | V185: =Output!BB23*V$170 -> 3.72891204 | W185: =Output!BC23*W$170 -> 3.612575448 | X185: =Output!BD23*X$170 -> 3.499236735 | Y185: 18.66456386 | AA185: 3.732912772 | AB185: 3.732912772 | AC185: 3.732912772 | AD185: 3.732912772 | AE185: 3.732912772 | AG185: 250W Sodium - STANDARD | AI185: =Output!AL23*AI$170 -> 62.91750944 | AJ185: =Output!AM23*AJ$170 -> 61.03587032 | AK185: =Output!AN23*AK$170 -> 59.26913423 | AL185: =Output!AO23*AL$170 -> 57.56439133 | AM185: =Output!AP23*AM$170 -> 55.87545864 | AN185: 296.662364 | AP185: 59.33247279 | AQ185: 59.33247279 | AR185: 59.33247279 | AS185: 59.33247279 | AT185: 59.33247279
C186: ='TC3'!C348 -> 250W Metal Halide - STANDARD | E186: =Output!AF24*E$170 -> 32.11919264 | F186: =Output!AG24*F$170 -> 31.1057952 | G186: =Output!AH24*G$170 -> 30.13346837 | H186: =Output!AI24*H$170 -> 29.19325285 | I186: =Output!AJ24*I$170 -> 28.27728448 | J186: 150.8289935 | L186: 30.16579871 | M186: 30.16579871 | N186: 30.16579871 | O186: 30.16579871 | P186: 30.16579871 | R186: 250W Metal Halide - STANDARD | T186: =Output!AZ24*T$170 -> 3.986448387 | U186: =Output!BA24*U$170 -> 3.860671358 | V186: =Output!BB24*V$170 -> 3.739991777 | W186: =Output!BC24*W$170 -> 3.623297666 | X186: =Output!BD24*X$170 -> 3.509612971 | Y186: 18.72002216 | AA186: 3.744004432 | AB186: 3.744004432 | AC186: 3.744004432 | AD186: 3.744004432 | AE186: 3.744004432 | AG186: 250W Metal Halide - STANDARD | AI186: =Output!AL24*AI$170 -> 64.27538128 | AJ186: =Output!AM24*AJ$170 -> 62.35313304 | AK186: =Output!AN24*AK$170 -> 60.54826763 | AL186: =Output!AO24*AL$170 -> 58.80673335 | AM186: =Output!AP24*AM$170 -> 57.08135049 | AN186: 303.0648658 | AP186: 60.61297316 | AQ186: 60.61297316 | AR186: 60.61297316 | AS186: 60.61297316 | AT186: 60.61297316
C187: ='TC3'!C349 -> 400W Sodium - STANDARD | E187: =Output!AF25*E$170 -> 37.39736084 | F187: =Output!AG25*F$170 -> 36.21364869 | G187: =Output!AH25*G$170 -> 35.07650283 | H187: =Output!AI25*H$170 -> 33.97678663 | I187: =Output!AJ25*I$170 -> 32.90646431 | J187: 175.5707633 | L187: 35.11415266 | M187: 35.11415266 | N187: 35.11415266 | O187: 35.11415266 | P187: 35.11415266 | R187: 400W Sodium - STANDARD | T187: =Output!AZ25*T$170 -> 4.64154409 | U187: =Output!BA25*U$170 -> 4.494628586 | V187: =Output!BB25*V$170 -> 4.35349262 | W187: =Output!BC25*W$170 -> 4.217002207 | X187: =Output!BD25*X$170 -> 4.084159992 | Y187: 21.7908275 | AA187: 4.358165499 | AB187: 4.358165499 | AC187: 4.358165499 | AD187: 4.358165499 | AE187: 4.358165499 | AG187: 400W Sodium - STANDARD | AI187: =Output!AL25*AI$170 -> 56.05055759 | AJ187: =Output!AM25*AJ$170 -> 54.37428459 | AK187: =Output!AN25*AK$170 -> 52.80037386 | AL187: =Output!AO25*AL$170 -> 51.28169026 | AM187: =Output!AP25*AM$170 -> 49.77709131 | AN187: 264.2839976 | AP187: 52.85679952 | AQ187: 52.85679952 | AR187: 52.85679952 | AS187: 52.85679952 | AT187: 52.85679952
C188: ='TC3'!C350 -> 80W Mercury - AEROSCREEN | E188: =Output!AF26*E$170 -> 25.55007928 | F188: =Output!AG26*F$170 -> 24.74865246 | G188: =Output!AH26*G$170 -> 23.98145643 | H188: =Output!AI26*H$170 -> 23.2397526 | I188: =Output!AJ26*I$170 -> 22.5158904 | J188: 120.0358312 | L188: 24.00716623 | M188: 24.00716623 | N188: 24.00716623 | O188: 24.00716623 | P188: 24.00716623 | R188: 80W Mercury - AEROSCREEN | T188: =Output!AZ26*T$170 -> 3.171128037 | U188: =Output!BA26*U$170 -> 3.071659576 | V188: =Output!BB26*V$170 -> 2.976439643 | W188: =Output!BC26*W$170 -> 2.884383655 | X188: =Output!BD26*X$170 -> 2.794542065 | Y188: 14.89815298 | AA188: 2.979630596 | AB188: 2.979630596 | AC188: 2.979630596 | AD188: 2.979630596 | AE188: 2.979630596 | AG188: 80W Mercury - AEROSCREEN | AI188: =Output!AL26*AI$170 -> 75.44872667 | AJ188: =Output!AM26*AJ$170 -> 73.19232337 | AK188: =Output!AN26*AK$170 -> 71.07370822 | AL188: =Output!AO26*AL$170 -> 69.0294334 | AM188: =Output!AP26*AM$170 -> 67.00411767 | AN188: 355.7483093 | AP188: 71.14966187 | AQ188: 71.14966187 | AR188: 71.14966187 | AS188: 71.14966187 | AT188: 71.14966187
C189: ='TC3'!C351 -> Urban A/Screen 42W CFL c/w D2 PECB | E189: =Output!AF27*E$170 -> 33.06388026 | F189: =Output!AG27*F$170 -> 32.01999986 | G189: =Output!AH27*G$170 -> 31.01817369 | H189: =Output!AI27*H$170 -> 30.04941071 | I189: =Output!AJ27*I$170 -> 29.10581604 | J189: 155.2572806 | L189: =$J189/RegDur -> 31.05145611 | M189: 31.05145611 | N189: 31.05145611 | O189: 31.05145611 | P189: 31.05145611 | R189: Urban A/Screen 42W CFL c/w D2 PECB | T189: =Output!AZ27*T$170 -> 4.10369755 | U189: =Output!BA27*U$170 -> 3.974137153 | V189: =Output!BB27*V$170 -> 3.849796283 | W189: =Output!BC27*W$170 -> 3.729559026 | X189: =Output!BD27*X$170 -> 3.612445515 | Y189: 19.26963553 | AA189: 3.853927105 | AB189: 3.853927105 | AC189: 3.853927105 | AD189: 3.853927105 | AE189: 3.853927105 | AG189: Urban A/Screen 42W CFL c/w D2 PECB | AI189: =Output!AL27*AI$170 -> 50.57057482 | AJ189: =Output!AM27*AJ$170 -> 49.05818864 | AK189: =Output!AN27*AK$170 -> 47.63815691 | AL189: =Output!AO27*AL$170 -> 46.26795283 | AM189: =Output!AP27*AM$170 -> 44.91045636 | AN189: 238.4453296 | AP189: 47.68906591 | AQ189: 47.68906591 | AR189: 47.68906591 | AS189: 47.68906591 | AT189: 47.68906591
C190: ='TC3'!C352 -> 150W Sodium - AEROSCREEN | E190: =Output!AF28*E$170 -> 33.50614164 | F190: =Output!AG28*F$170 -> 32.44799045 | G190: =Output!AH28*G$170 -> 31.43235397 | H190: =Output!AI28*H$170 -> 30.45022632 | I190: =Output!AJ28*I$170 -> 29.49369822 | J190: 157.3304106 | L190: 31.46608212 | M190: 31.46608212 | N190: 31.46608212 | O190: 31.46608212 | P190: 31.46608212 | R190: 150W Sodium - AEROSCREEN | T190: =Output!AZ28*T$170 -> 4.158588473 | U190: =Output!BA28*U$170 -> 4.027256868 | V190: =Output!BB28*V$170 -> 3.901201944 | W190: =Output!BC28*W$170 -> 3.779305941 | X190: =Output!BD28*X$170 -> 3.660587208 | Y190: 19.52694043 | AA190: 3.905388087 | AB190: 3.905388087 | AC190: 3.905388087 | AD190: 3.905388087 | AE190: 3.905388087 | AG190: 150W Sodium - AEROSCREEN | AI190: =Output!AL28*AI$170 -> 53.96525441 | AJ190: =Output!AM28*AJ$170 -> 52.35134543 | AK190: =Output!AN28*AK$170 -> 50.83599042 | AL190: =Output!AO28*AL$170 -> 49.37380788 | AM190: =Output!AP28*AM$170 -> 47.92518597 | AN190: 254.4515841 | AP190: 50.89031682 | AQ190: 50.89031682 | AR190: 50.89031682 | AS190: 50.89031682 | AT190: 50.89031682
C191: ='TC3'!C353 -> 150W Metal Halide - AEROSCREEN | E191: =Output!AF29*E$170 -> 34.40830532 | F191: =Output!AG29*F$170 -> 33.32104332 | G191: =Output!AH29*G$170 -> 32.27723538 | H191: =Output!AI29*H$170 -> 31.26784529 | I191: =Output!AJ29*I$170 -> 30.28493446 | J191: 161.5593638 | L191: 32.31187275 | M191: 32.31187275 | N191: 32.31187275 | O191: 32.31187275 | P191: 32.31187275 | R191: 150W Metal Halide - AEROSCREEN | T191: =Output!AZ29*T$170 -> 4.27055981 | U191: =Output!BA29*U$170 -> 4.135615141 | V191: =Output!BB29*V$170 -> 4.006063737 | W191: =Output!BC29*W$170 -> 3.880784078 | X191: =Output!BD29*X$170 -> 3.758790872 | Y191: 20.05181364 | AA191: 4.010362728 | AB191: 4.010362728 | AC191: 4.010362728 | AD191: 4.010362728 | AE191: 4.010362728 | AG191: 150W Metal Halide - AEROSCREEN | AI191: =Output!AL29*AI$170 -> 66.81654143 | AJ191: =Output!AM29*AJ$170 -> 64.81829611 | AK191: =Output!AN29*AK$170 -> 62.94207443 | AL191: =Output!AO29*AL$170 -> 61.1316877 | AM191: =Output!AP29*AM$170 -> 59.33809094 | AN191: 315.0466906 | AP191: 63.00933812 | AQ191: 63.00933812 | AR191: 63.00933812 | AS191: 63.00933812 | AT191: 63.00933812
C192: ='TC3'!C354 -> 250W Sodium (w/o PECB) - AEROSCREEN | E192: =Output!AF30*E$170 -> 33.39936755 | F192: =Output!AG30*F$170 -> 32.34466172 | G192: =Output!AH30*G$170 -> 31.33235943 | H192: =Output!AI30*H$170 -> 30.35345838 | I192: =Output!AJ30*I$170 -> 29.40005277 | J192: 156.8298998 | L192: 31.36597997 | M192: 31.36597997 | N192: 31.36597997 | O192: 31.36597997 | P192: 31.36597997 | R192: 250W Sodium (w/o PECB) - AEROSCREEN | T192: =Output!AZ30*T$170 -> 4.145336291 | U192: =Output!BA30*U$170 -> 4.014432304 | V192: =Output!BB30*V$170 -> 3.8887912 | W192: =Output!BC30*W$170 -> 3.767295665 | X192: =Output!BD30*X$170 -> 3.648964476 | Y192: 19.46481994 | AA192: 3.892963987 | AB192: 3.892963987 | AC192: 3.892963987 | AD192: 3.892963987 | AE192: 3.892963987 | AG192: 250W Sodium (w/o PECB) - AEROSCREEN | AI192: =Output!AL30*AI$170 -> 62.91750944 | AJ192: =Output!AM30*AJ$170 -> 61.03587032 | AK192: =Output!AN30*AK$170 -> 59.26913423 | AL192: =Output!AO30*AL$170 -> 57.56439133 | AM192: =Output!AP30*AM$170 -> 55.87545864 | AN192: 296.662364 | AP192: 59.33247279 | AQ192: 59.33247279 | AR192: 59.33247279 | AS192: 59.33247279 | AT192: 59.33247279
C193: ='TC3'!C355 -> 250W Metal Halide - AEROSCREEN | E193: =Output!AF31*E$170 -> 33.49456671 | F193: =Output!AG31*F$170 -> 32.43678901 | G193: =Output!AH31*G$170 -> 31.42151398 | H193: =Output!AI31*H$170 -> 30.43973611 | I193: =Output!AJ31*I$170 -> 29.48354651 | J193: 157.2761523 | L193: 31.45523047 | M193: 31.45523047 | N193: 31.45523047 | O193: 31.45523047 | P193: 31.45523047 | R193: 250W Metal Halide - AEROSCREEN | T193: =Output!AZ31*T$170 -> 4.15715186 | U193: =Output!BA31*U$170 -> 4.025866611 | V193: =Output!BB31*V$170 -> 3.899856548 | W193: =Output!BC31*W$170 -> 3.778003958 | X193: =Output!BD31*X$170 -> 3.659327236 | Y193: 19.52020621 | AA193: =$Y193/RegDur -> 3.904041243 | AB193: 3.904041243 | AC193: 3.904041243 | AD193: 3.904041243 | AE193: 3.904041243 | AG193: 250W Metal Halide - AEROSCREEN | AI193: =Output!AL31*AI$170 -> 64.27538128 | AJ193: =Output!AM31*AJ$170 -> 62.35313304 | AK193: =Output!AN31*AK$170 -> 60.54826763 | AL193: =Output!AO31*AL$170 -> 58.80673335 | AM193: =Output!AP31*AM$170 -> 57.08135049 | AN193: 303.0648658 | AP193: =$AN193/RegDur -> 60.61297316 | AQ193: 60.61297316 | AR193: 60.61297316 | AS193: 60.61297316 | AT193: 60.61297316
C194: ='TC3'!C356 -> 400W Sodium - AEROSCREEN | E194: =Output!AF32*E$170 -> 36.51221911 | F194: =Output!AG32*F$170 -> 35.35706851 | G194: =Output!AH32*G$170 -> 34.24756259 | H194: =Output!AI32*H$170 -> 33.17459444 | I194: =Output!AJ32*I$170 -> 32.13015707 | J194: 171.4216017 | L194: 34.28432034 | M194: 34.28432034 | N194: 34.28432034 | O194: 34.28432034 | P194: 34.28432034 | R194: 400W Sodium - AEROSCREEN | T194: =Output!AZ32*T$170 -> 4.53168542 | U194: =Output!BA32*U$170 -> 4.38831481 | V194: =Output!BB32*V$170 -> 4.250609352 | W194: =Output!BC32*W$170 -> 4.117438752 | X194: =Output!BD32*X$170 -> 3.987809228 | Y194: 21.27585756 | AA194: 4.255171512 | AB194: 4.255171512 | AC194: 4.255171512 | AD194: 4.255171512 | AE194: 4.255171512 | AG194: 400W Sodium - AEROSCREEN | AI194: =Output!AL32*AI$170 -> 56.05055759 | AJ194: =Output!AM32*AJ$170 -> 54.37428459 | AK194: =Output!AN32*AK$170 -> 52.80037386 | AL194: =Output!AO32*AL$170 -> 51.28169026 | AM194: =Output!AP32*AM$170 -> 49.77709131 | AN194: 264.2839976 | AP194: 52.85679952 | AQ194: 52.85679952 | AR194: 52.85679952 | AS194: 52.85679952 | AT194: 52.85679952
C195: ='TC3'!C357 -> 400W Metal Halide - AEROSCREEN | E195: =Output!AF33*E$170 -> 36.99564267 | F195: =Output!AG33*F$170 -> 35.82489307 | G195: =Output!AH33*G$170 -> 34.70029149 | H195: =Output!AI33*H$170 -> 33.61271479 | I195: =Output!AJ33*I$170 -> 32.55414025 | J195: 173.6876823 | L195: 34.73753646 | M195: 34.73753646 | N195: 34.73753646 | O195: 34.73753646 | P195: 34.73753646 | R195: 400W Metal Halide - AEROSCREEN | T195: =Output!AZ33*T$170 -> 4.591685155 | U195: =Output!BA33*U$170 -> 4.446378488 | V195: =Output!BB33*V$170 -> 4.306799445 | W195: =Output!BC33*W$170 -> 4.171815716 | X195: =Output!BD33*X$170 -> 4.040431569 | Y195: 21.55711037 | AA195: 4.311422074 | AB195: 4.311422074 | AC195: 4.311422074 | AD195: 4.311422074 | AE195: 4.311422074 | AG195: 400W Metal Halide - AEROSCREEN | AI195: =Output!AL33*AI$170 -> 62.93690761 | AJ195: =Output!AM33*AJ$170 -> 61.05468836 | AK195: =Output!AN33*AK$170 -> 59.28740756 | AL195: =Output!AO33*AL$170 -> 57.58213908 | AM195: =Output!AP33*AM$170 -> 55.89268567 | AN195: 296.7538283 | AP195: 59.35076566 | AQ195: 59.35076566 | AR195: 59.35076566 | AS195: 59.35076566 | AT195: 59.35076566
C196: ='TC3'!C358 -> Roadster A/Screen 100W HPS c/w PECB | E196: =Output!AF34*E$170 -> 31.39882345 | F196: =Output!AG34*F$170 -> 30.40867071 | G196: =Output!AH34*G$170 -> 29.45883853 | H196: =Output!AI34*H$170 -> 28.54039182 | I196: =Output!AJ34*I$170 -> 27.64548982 | J196: 147.4522143 | L196: 29.49044287 | M196: 29.49044287 | N196: 29.49044287 | O196: 29.49044287 | P196: 29.49044287 | R196: Roadster A/Screen 100W HPS c/w PECB | T196: =Output!AZ34*T$170 -> 3.89704033 | U196: =Output!BA34*U$170 -> 3.7741483 | V196: =Output!BB34*V$170 -> 3.656260625 | W196: =Output!BC34*W$170 -> 3.542268331 | X196: =Output!BD34*X$170 -> 3.431198272 | Y196: 18.30091586 | AA196: 3.660183172 | AB196: 3.660183172 | AC196: 3.660183172 | AD196: 3.660183172 | AE196: 3.660183172 | AG196: Roadster A/Screen 100W HPS c/w PECB | AI196: =Output!AL34*AI$170 -> 57.89338365 | AJ196: =Output!AM34*AJ$170 -> 56.16199828 | AK196: =Output!AN34*AK$170 -> 54.53634063 | AL196: =Output!AO34*AL$170 -> 52.96772586 | AM196: =Output!AP34*AM$170 -> 51.41365881 | AN196: 272.9731072 | AP196: 54.59462145 | AQ196: 54.59462145 | AR196: 54.59462145 | AS196: 54.59462145 | AT196: 54.59462145
C197: ='TC3'!C359 -> 80W Mercury - POST TOP | E197: =Output!AF35*E$170 -> 45.84025115 | F197: =Output!AG35*F$170 -> 44.38410578 | G197: =Output!AH35*G$170 -> 42.98331752 | H197: =Output!AI35*H$170 -> 41.62846606 | I197: =Output!AJ35*I$170 -> 40.31124113 | J197: 215.1473816 | L197: 43.02947633 | M197: 43.02947633 | N197: 43.02947633 | O197: 43.02947633 | P197: 43.02947633 | R197: 80W Mercury - POST TOP | T197: =Output!AZ35*T$170 -> 5.689426795 | U197: =Output!BA35*U$170 -> 5.508698456 | V197: =Output!BB35*V$170 -> 5.334840719 | W197: =Output!BC35*W$170 -> 5.166684394 | X197: =Output!BD35*X$170 -> 5.003198055 | Y197: 26.70284842 | AA197: 5.340569684 | AB197: 5.340569684 | AC197: 5.340569684 | AD197: 5.340569684 | AE197: 5.340569684 | AG197: 80W Mercury - POST TOP | AI197: =Output!AL35*AI$170 -> 49.26119841 | AJ197: =Output!AM35*AJ$170 -> 47.78797102 | AK197: =Output!AN35*AK$170 -> 46.40470684 | AL197: =Output!AO35*AL$170 -> 45.06998017 | AM197: =Output!AP35*AM$170 -> 43.74763208 | AN197: 232.2714885 | AP197: 46.4542977 | AQ197: 46.4542977 | AR197: 46.4542977 | AS197: 46.4542977 | AT197: 46.4542977
C198: ='TC3'!C360 -> B2001 42WCFL c/w D2 PECB green - PT | E198: =Output!AF36*E$170 -> 49.82400789 | F198: =Output!AG36*F$170 -> 48.23931559 | G198: =Output!AH36*G$170 -> 46.71412831 | H198: =Output!AI36*H$170 -> 45.23889192 | I198: =Output!AJ36*I$170 -> 43.80516661 | J198: 233.8215103 | L198: 46.76430207 | M198: 46.76430207 | N198: 46.76430207 | O198: 46.76430207 | P198: 46.76430207 | R198: B2001 42WCFL c/w D2 PECB green - PT | T198: =Output!AZ36*T$170 -> 6.183867637 | U198: =Output!BA36*U$170 -> 5.987184796 | V198: =Output!BB36*V$170 -> 5.797887373 | W198: =Output!BC36*W$170 -> 5.614789567 | X198: =Output!BD36*X$170 -> 5.436843874 | Y198: 29.02057325 | AA198: 5.804114649 | AB198: 5.804114649 | AC198: 5.804114649 | AD198: 5.804114649 | AE198: 5.804114649 | AG198: B2001 42WCFL c/w D2 PECB green - PT | AI198: =Output!AL36*AI$170 -> 50.57057482 | AJ198: =Output!AM36*AJ$170 -> 49.05818864 | AK198: =Output!AN36*AK$170 -> 47.63815691 | AL198: =Output!AO36*AL$170 -> 46.26795283 | AM198: =Output!AP36*AM$170 -> 44.91045636 | AN198: 238.4453296 | AP198: 47.68906591 | AQ198: 47.68906591 | AR198: 47.68906591 | AS198: 47.68906591 | AT198: 47.68906591
C199: ='TC3'!C361 -> 250W Sodium - FLOODLIGHT | E199: =Output!AF37*E$170 -> 47.18591416 | F199: =Output!AG37*F$170 -> 45.68634726 | G199: =Output!AH37*G$170 -> 44.24353856 | H199: =Output!AI37*H$170 -> 42.84802259 | I199: =Output!AJ37*I$170 -> 41.49144529 | J199: 221.4552679 | L199: 44.29105357 | M199: 44.29105357 | N199: 44.29105357 | O199: 44.29105357 | P199: 44.29105357 | R199: 250W Sodium - FLOODLIGHT | T199: =Output!AZ37*T$170 -> 5.856442704 | U199: =Output!BA37*U$170 -> 5.670325134 | V199: =Output!BB37*V$170 -> 5.491252066 | W199: =Output!BC37*W$170 -> 5.318048696 | X199: =Output!BD37*X$170 -> 5.149678169 | Y199: 27.48574677 | AA199: 5.497149354 | AB199: 5.497149354 | AC199: 5.497149354 | AD199: 5.497149354 | AE199: 5.497149354 | AG199: 250W Sodium - FLOODLIGHT | AI199: =Output!AL37*AI$170 -> 62.91750944 | AJ199: =Output!AM37*AJ$170 -> 61.03587032 | AK199: =Output!AN37*AK$170 -> 59.26913423 | AL199: =Output!AO37*AL$170 -> 57.56439133 | AM199: =Output!AP37*AM$170 -> 55.87545864 | AN199: 296.662364 | AP199: 59.33247279 | AQ199: 59.33247279 | AR199: 59.33247279 | AS199: 59.33247279 | AT199: 59.33247279
C200: ='TC3'!C362 -> 250W Metal Halide - FLOODLIGHT | E200: =Output!AF38*E$170 -> 47.28098953 | F200: =Output!AG38*F$170 -> 45.77835475 | G200: =Output!AH38*G$170 -> 44.33257718 | H200: =Output!AI38*H$170 -> 42.93418813 | I200: =Output!AJ38*I$170 -> 41.57483046 | J200: 221.90094 | L200: 44.38018801 | M200: 44.38018801 | N200: 44.38018801 | O200: 44.38018801 | P200: 44.38018801 | R200: 250W Metal Halide - FLOODLIGHT | T200: =Output!AZ38*T$170 -> 5.868242908 | U200: =Output!BA38*U$170 -> 5.681744572 | V200: =Output!BB38*V$170 -> 5.502303024 | W200: =Output!BC38*W$170 -> 5.328743064 | X200: =Output!BD38*X$170 -> 5.160027454 | Y200: 27.54106102 | AA200: 5.508212204 | AB200: 5.508212204 | AC200: 5.508212204 | AD200: 5.508212204 | AE200: 5.508212204 | AG200: 250W Metal Halide - FLOODLIGHT | AI200: =Output!AL38*AI$170 -> 64.27538128 | AJ200: =Output!AM38*AJ$170 -> 62.35313304 | AK200: =Output!AN38*AK$170 -> 60.54826763 | AL200: =Output!AO38*AL$170 -> 58.80673335 | AM200: =Output!AP38*AM$170 -> 57.08135049 | AN200: 303.0648658 | AP200: 60.61297316 | AQ200: 60.61297316 | AR200: 60.61297316 | AS200: 60.61297316 | AT200: 60.61297316
C201: ='TC3'!C363 -> 400W Sodium - FLOODLIGHT | E201: =Output!AF39*E$170 -> 48.50867491 | F201: =Output!AG39*F$170 -> 46.96642547 | G201: =Output!AH39*G$170 -> 45.48231151 | H201: =Output!AI39*H$170 -> 44.0468231 | I201: =Output!AJ39*I$170 -> 42.65156318 | J201: 227.6557982 | L201: 45.53115963 | M201: 45.53115963 | N201: 45.53115963 | O201: 45.53115963 | P201: 45.53115963 | R201: 400W Sodium - FLOODLIGHT | T201: =Output!AZ39*T$170 -> 6.020616116 | U201: =Output!BA39*U$170 -> 5.829201037 | V201: =Output!BB39*V$170 -> 5.645001398 | W201: =Output!BC39*W$170 -> 5.46683688 | X201: =Output!BD39*X$170 -> 5.293665291 | Y201: 28.25532072 | AA201: 5.651064144 | AB201: 5.651064144 | AC201: 5.651064144 | AD201: 5.651064144 | AE201: 5.651064144 | AG201: 400W Sodium - FLOODLIGHT | AI201: =Output!AL39*AI$170 -> 56.05055759 | AJ201: =Output!AM39*AJ$170 -> 54.37428459 | AK201: =Output!AN39*AK$170 -> 52.80037386 | AL201: =Output!AO39*AL$170 -> 51.28169026 | AM201: =Output!AP39*AM$170 -> 49.77709131 | AN201: 264.2839976 | AP201: 52.85679952 | AQ201: 52.85679952 | AR201: 52.85679952 | AS201: 52.85679952 | AT201: 52.85679952
C202: ='TC3'!C364 -> 400W Metal Halide - FLOODLIGHT | E202: =Output!AF40*E$170 -> 48.99209847 | F202: =Output!AG40*F$170 -> 47.43425003 | G202: =Output!AH40*G$170 -> 45.93504042 | H202: =Output!AI40*H$170 -> 44.48494345 | I202: =Output!AJ40*I$170 -> 43.07554637 | J202: 229.9218787 | L202: 45.98437575 | M202: 45.98437575 | N202: 45.98437575 | O202: 45.98437575 | P202: 45.98437575 | R202: 400W Metal Halide - FLOODLIGHT | T202: =Output!AZ40*T$170 -> 6.080615851 | U202: =Output!BA40*U$170 -> 5.887264715 | V202: =Output!BB40*V$170 -> 5.70119149 | W202: =Output!BC40*W$170 -> 5.521213844 | X202: =Output!BD40*X$170 -> 5.346287631 | Y202: 28.53657353 | AA202: 5.707314706 | AB202: 5.707314706 | AC202: 5.707314706 | AD202: 5.707314706 | AE202: 5.707314706 | AG202: 400W Metal Halide - FLOODLIGHT | AI202: =Output!AL40*AI$170 -> 62.93690761 | AJ202: =Output!AM40*AJ$170 -> 61.05468836 | AK202: =Output!AN40*AK$170 -> 59.28740756 | AL202: =Output!AO40*AL$170 -> 57.58213908 | AM202: =Output!AP40*AM$170 -> 55.89268567 | AN202: 296.7538283 | AP202: 59.35076566 | AQ202: 59.35076566 | AR202: 59.35076566 | AS202: 59.35076566 | AT202: 59.35076566
C203: ='TC3'!C365 -> 150W Sodium - FLOODLIGHT | E203: =Output!AF41*E$170 -> 46.16397781 | F203: =Output!AG41*F$170 -> 44.69738651 | G203: =Output!AH41*G$170 -> 43.28648937 | H203: =Output!AI41*H$170 -> 41.92185523 | I203: =Output!AJ41*I$170 -> 40.59516329 | J203: 216.6648722 | L203: 43.33297444 | M203: 43.33297444 | N203: 43.33297444 | O203: 43.33297444 | P203: 43.33297444 | R203: 150W Sodium - FLOODLIGHT | T203: =Output!AZ41*T$170 -> 5.729605875 | U203: =Output!BA41*U$170 -> 5.547581047 | V203: =Output!BB41*V$170 -> 5.372468656 | W203: =Output!BC41*W$170 -> 5.203098161 | X203: =Output!BD41*X$170 -> 5.038436832 | Y203: 26.89119057 | AA203: =$Y203/RegDur -> 5.378238114 | AB203: 5.378238114 | AC203: 5.378238114 | AD203: 5.378238114 | AE203: 5.378238114 | AG203: 150W Sodium - FLOODLIGHT | AI203: =Output!AL41*AI$170 -> 53.96525441 | AJ203: =Output!AM41*AJ$170 -> 52.35134543 | AK203: =Output!AN41*AK$170 -> 50.83599042 | AL203: =Output!AO41*AL$170 -> 49.37380788 | AM203: =Output!AP41*AM$170 -> 47.92518597 | AN203: 254.4515841 | AP203: =$AN203/RegDur -> 50.89031682 | AQ203: 50.89031682 | AR203: 50.89031682 | AS203: 50.89031682 | AT203: 50.89031682
C204: ='TC3'!C366 -> 150W Metal Halide - FLOODLIGHT | E204: =Output!AF42*E$170 -> 47.065832 | F204: =Output!AG42*F$170 -> 45.57013988 | G204: =Output!AH42*G$170 -> 44.13108094 | H204: =Output!AI42*H$170 -> 42.73919372 | I204: =Output!AJ42*I$170 -> 41.38612808 | J204: 220.8923746 | L204: 44.17847492 | M204: 44.17847492 | N204: 44.17847492 | O204: 44.17847492 | P204: 44.17847492 | R204: 150W Metal Halide - FLOODLIGHT | T204: =Output!AZ42*T$170 -> 5.8415388 | U204: =Output!BA42*U$170 -> 5.655902146 | V204: =Output!BB42*V$170 -> 5.477294475 | W204: =Output!BC42*W$170 -> 5.304541486 | X204: =Output!BD42*X$170 -> 5.136606806 | Y204: 27.41588371 | AA204: 5.483176743 | AB204: 5.483176743 | AC204: 5.483176743 | AD204: 5.483176743 | AE204: 5.483176743 | AG204: 150W Metal Halide - FLOODLIGHT | AI204: =Output!AL42*AI$170 -> 66.81654143 | AJ204: =Output!AM42*AJ$170 -> 64.81829611 | AK204: =Output!AN42*AK$170 -> 62.94207443 | AL204: =Output!AO42*AL$170 -> 61.1316877 | AM204: =Output!AP42*AM$170 -> 59.33809094 | AN204: 315.0466906 | AP204: 63.00933812 | AQ204: 63.00933812 | AR204: 63.00933812 | AS204: 63.00933812 | AT204: 63.00933812
C205: ='TC3'!C367 -> Bracket - Minor <=3m | E205: =Output!AF43*E$170 -> 5.250230632 | F205: =Output!AG43*F$170 -> 5.083578941 | G205: =Output!AH43*G$170 -> 4.923308998 | H205: =Output!AI43*H$170 -> 4.768298971 | I205: =Output!AJ43*I$170 -> 4.617559933 | J205: 24.64297748 | L205: 4.928595495 | M205: 4.928595495 | N205: 4.928595495 | O205: 4.928595495 | P205: 4.928595495 | R205: Bracket - Minor <=3m | T205: =Output!AZ43*T$170 -> 0.9014080856 | U205: =Output!BA43*U$170 -> 0.872795784 | V205: =Output!BB43*V$170 -> 0.84527916 | W205: =Output!BC43*W$170 -> 0.8186656069 | X205: =Output!BD43*X$170 -> 0.7927853366 | Y205: 4.230933973 | AA205: 0.8461867946 | AB205: 0.8461867946 | AC205: 0.8461867946 | AD205: 0.8461867946 | AE205: 0.8461867946 | AG205: Bracket - Minor <=3m | AI205: =Output!AL43*AI$170 -> 14.36944514 | AJ205: =Output!AM43*AJ$170 -> 13.9397061 | AK205: =Output!AN43*AK$170 -> 13.53620924 | AL205: =Output!AO43*AL$170 -> 13.14687073 | AM205: =Output!AP43*AM$170 -> 12.76114304 | AN205: 67.75337426 | AP205: 13.55067485 | AQ205: 13.55067485 | AR205: 13.55067485 | AS205: 13.55067485 | AT205: 13.55067485
C206: ='TC3'!C368 -> Bracket - Major >3m | E206: =Output!AF44*E$170 -> 32.52908435 | F206: =Output!AG44*F$170 -> 31.48858493 | G206: =Output!AH44*G$170 -> 30.48498456 | H206: =Output!AI44*H$170 -> 29.51406063 | I206: =Output!AJ44*I$170 -> 28.57204695 | J206: 152.5887614 | L206: 30.51775228 | M206: 30.51775228 | N206: 30.51775228 | O206: 30.51775228 | P206: 30.51775228 | R206: Bracket - Major >3m | T206: =Output!AZ44*T$170 -> 5.584893636 | U206: =Output!BA44*U$170 -> 5.406251087 | V206: =Output!BB44*V$170 -> 5.233943705 | W206: =Output!BC44*W$170 -> 5.067246518 | X206: =Output!BD44*X$170 -> 4.905512908 | Y206: 26.19784785 | AA206: 5.239569571 | AB206: 5.239569571 | AC206: 5.239569571 | AD206: 5.239569571 | AE206: 5.239569571 | AG206: Bracket - Major >3m | AI206: =Output!AL44*AI$170 -> 14.36944514 | AJ206: =Output!AM44*AJ$170 -> 13.9397061 | AK206: =Output!AN44*AK$170 -> 13.53620924 | AL206: =Output!AO44*AL$170 -> 13.14687073 | AM206: =Output!AP44*AM$170 -> 12.76114304 | AN206: 67.75337426 | AP206: 13.55067485 | AQ206: 13.55067485 | AR206: 13.55067485 | AS206: 13.55067485 | AT206: 13.55067485
C207: ='TC3'!C369 -> Outreach - Minor <=2m | E207: =Output!AF45*E$170 -> 6.556540671 | F207: =Output!AG45*F$170 -> 6.347737271 | G207: =Output!AH45*G$170 -> 6.146675762 | H207: =Output!AI45*H$170 -> 5.952190421 | I207: =Output!AJ45*I$170 -> 5.763249848 | J207: 30.76639397 | L207: 6.153278795 | M207: 6.153278795 | N207: 6.153278795 | O207: 6.153278795 | P207: 6.153278795 | R207: Outreach - Minor <=2m | T207: =Output!AZ45*T$170 -> 1.125687458 | U207: =Output!BA45*U$170 -> 1.089838162 | V207: =Output!BB45*V$170 -> 1.055318065 | W207: =Output!BC45*W$170 -> 1.021927025 | X207: =Output!BD45*X$170 -> 0.9894879628 | Y207: 5.282258673 | AA207: 1.056451735 | AB207: 1.056451735 | AC207: 1.056451735 | AD207: 1.056451735 | AE207: 1.056451735 | AG207: Outreach - Minor <=2m | AI207: =Output!AL45*AI$170 -> 14.36944514 | AJ207: =Output!AM45*AJ$170 -> 13.9397061 | AK207: =Output!AN45*AK$170 -> 13.53620924 | AL207: =Output!AO45*AL$170 -> 13.14687073 | AM207: =Output!AP45*AM$170 -> 12.76114304 | AN207: 67.75337426 | AP207: 13.55067485 | AQ207: 13.55067485 | AR207: 13.55067485 | AS207: 13.55067485 | AT207: 13.55067485
C208: ='TC3'!C370 -> Outreach - Major >2m | E208: =Output!AF46*E$170 -> 13.51646747 | F208: =Output!AG46*F$170 -> 13.08946275 | G208: =Output!AH46*G$170 -> 12.67956096 | H208: =Output!AI46*H$170 -> 12.2831783 | I208: =Output!AJ46*I$170 -> 11.89716672 | J208: 63.4658362 | L208: 12.69316724 | M208: 12.69316724 | N208: 12.69316724 | O208: 12.69316724 | P208: 12.69316724 | R208: Outreach - Major >2m | T208: =Output!AZ46*T$170 -> 2.320631972 | U208: =Output!BA46*U$170 -> 2.247319858 | V208: =Output!BB46*V$170 -> 2.176944133 | W208: =Output!BC46*W$170 -> 2.108889497 | X208: =Output!BD46*X$170 -> 2.042615463 | Y208: 10.89640092 | AA208: 2.179280184 | AB208: 2.179280184 | AC208: 2.179280184 | AD208: 2.179280184 | AE208: 2.179280184 | AG208: Outreach - Major >2m | AI208: =Output!AL46*AI$170 -> 14.36944514 | AJ208: =Output!AM46*AJ$170 -> 13.9397061 | AK208: =Output!AN46*AK$170 -> 13.53620924 | AL208: =Output!AO46*AL$170 -> 13.14687073 | AM208: =Output!AP46*AM$170 -> 12.76114304 | AN208: 67.75337426 | AP208: 13.55067485 | AQ208: 13.55067485 | AR208: 13.55067485 | AS208: 13.55067485 | AT208: 13.55067485
C209: ='TC3'!C371 -> Pole (Wood) - Minor - DEDICATED SL <=11m | E209: =Output!AF47*E$170 -> 131.8590215 | F209: =Output!AG47*F$170 -> 127.7953836 | G209: =Output!AH47*G$170 -> 123.9323877 | H209: =Output!AI47*H$170 -> 120.2001587 | I209: =Output!AJ47*I$170 -> 116.5377704 | J209: 620.3247219 | L209: 124.0649444 | M209: 124.0649444 | N209: 124.0649444 | O209: 124.0649444 | P209: 124.0649444 | R209: Pole (Wood) - Minor - DEDICATED SL <=11m | T209: =Output!AZ47*T$170 -> 22.63877465 | U209: =Output!BA47*U$170 -> 21.94109176 | V209: =Output!BB47*V$170 -> 21.27785695 | W209: =Output!BC47*W$170 -> 20.63707341 | X209: =Output!BD47*X$170 -> 20.00828074 | Y209: 106.5030775 | AA209: 21.3006155 | AB209: 21.3006155 | AC209: 21.3006155 | AD209: 21.3006155 | AE209: 21.3006155 | AG209: Pole (Wood) - Minor - DEDICATED SL <=11m | AI209: =Output!AL47*AI$170 -> 18.76669259 | AJ209: =Output!AM47*AJ$170 -> 18.2054475 | AK209: =Output!AN47*AK$170 -> 17.67847507 | AL209: =Output!AO47*AL$170 -> 17.16999363 | AM209: =Output!AP47*AM$170 -> 16.66622797 | AN209: 88.48683674 | AP209: 17.69736735 | AQ209: 17.69736735 | AR209: 17.69736735 | AS209: 17.69736735 | AT209: 17.69736735
C210: ='TC3'!C372 -> Pole (Wood) - Major - DEDICATED SL >11m | E210: =Output!AF48*E$170 -> 244.8794513 | F210: =Output!AG48*F$170 -> 237.3390292 | G210: =Output!AH48*G$170 -> 230.1733085 | H210: =Output!AI48*H$170 -> 223.2503702 | I210: =Output!AJ48*I$170 -> 216.4552038 | J210: 1152.097363 | L210: 230.4194726 | M210: 230.4194726 | N210: 230.4194726 | O210: 230.4194726 | P210: 230.4194726 | R210: Pole (Wood) - Major - DEDICATED SL >11m | T210: =Output!AZ48*T$170 -> 42.04316588 | U210: =Output!BA48*U$170 -> 40.74855658 | V210: =Output!BB48*V$170 -> 39.51827947 | W210: =Output!BC48*W$170 -> 38.32968547 | X210: =Output!BD48*X$170 -> 37.16302855 | Y210: 197.802716 | AA210: 39.56054319 | AB210: 39.56054319 | AC210: 39.56054319 | AD210: 39.56054319 | AE210: 39.56054319 | AG210: Pole (Wood) - Major - DEDICATED SL >11m | AI210: =Output!AL48*AI$170 -> 18.76669259 | AJ210: =Output!AM48*AJ$170 -> 18.2054475 | AK210: =Output!AN48*AK$170 -> 17.67847507 | AL210: =Output!AO48*AL$170 -> 17.16999363 | AM210: =Output!AP48*AM$170 -> 16.66622797 | AN210: 88.48683674 | AP210: 17.69736735 | AQ210: 17.69736735 | AR210: 17.69736735 | AS210: 17.69736735 | AT210: 17.69736735
C211: ='TC3'!C373 -> Column (Steel) - Minor <=9m | E211: =Output!AF49*E$170 -> 135.9095503 | F211: =Output!AG49*F$170 -> 131.7152108 | G211: =Output!AH49*G$170 -> 127.7257309 | H211: =Output!AI49*H$170 -> 123.8710992 | I211: =Output!AJ49*I$170 -> 120.0902577 | J211: 639.3118489 | L211: 127.8623698 | M211: 127.8623698 | N211: 127.8623698 | O211: 127.8623698 | P211: 127.8623698 | R211: Column (Steel) - Minor <=9m | T211: =Output!AZ49*T$170 -> 9.141388701 | U211: =Output!BA49*U$170 -> 8.850708217 | V211: =Output!BB49*V$170 -> 8.570968091 | W211: =Output!BC49*W$170 -> 8.30039188 | X211: =Output!BD49*X$170 -> 8.037410754 | Y211: 42.90086764 | AA211: 8.580173529 | AB211: 8.580173529 | AC211: 8.580173529 | AD211: 8.580173529 | AE211: 8.580173529 | AG211: Column (Steel) - Minor <=9m | AI211: =Output!AL49*AI$170 -> 18.76669259 | AJ211: =Output!AM49*AJ$170 -> 18.2054475 | AK211: =Output!AN49*AK$170 -> 17.67847507 | AL211: =Output!AO49*AL$170 -> 17.16999363 | AM211: =Output!AP49*AM$170 -> 16.66622797 | AN211: 88.48683674 | AP211: 17.69736735 | AQ211: 17.69736735 | AR211: 17.69736735 | AS211: 17.69736735 | AT211: 17.69736735
... 11 more rows

Sheet Roll Forward
B1: Roll Forward Inputs
C2: Inputs required for calculating the opening RAB and TAB values
C8: Other
C10: Actual escalation
E12: =TRANSPOSE(Global!G13:G17) -> 2015 | F12: 2016 | G12: 2017 | H12: 2018 | I12: 2019
C13: =Global!C93 -> CPI | D13: % p.a. | E13: 0.02475 | F13: 0.0182011224 | G13: 0.0285 | H13: 0.0339 | I13: 0.0176
C14: =Global!C94 -> LPI | D14: % p.a. | E14: 0.0335 | F14: 0.036 | G14: 0.024 | H14: 0.017 | I14: 0.006
C15: =Global!C95 -> Real capex | D15: % p.a. | E15: 0 | F15: 0 | G15: 0 | H15: 0 | I15: 0
C16: =Global!C96 -> Real labour (capex) | D16: % p.a. | E16: 0 | F16: 0 | G16: 0 | H16: 0 | I16: 0
C17: =Global!C97 -> Real opex | D17: % p.a. | E17: 0 | F17: 0 | G17: 0 | H17: 0 | I17: 0
C19: WACC
E21: =E12 -> 2015 | F21: =F12 -> 2016 | G21: =G12 -> 2017 | H21: =H12 -> 2018 | I21: =I12 -> 2019
C22: Real vanilla WACC | D22: %
C23: Nominal pre-tax WACC | D23: %
C25: ="Opening Regulated Asset Base " & "- nominal " & Global!$G$13 -> Opening Regulated Asset Base - nominal 2015
C28: RAB escalation index | D28: selection | E28: CPI
E31: Opening RAB | F31: Remaining Life | G31: Standard Life | H31: Asset Count | I31: Opening TAB | J31: Remaining Life | K31: Standard Life
E32: $ | F32: Yrs | G32: Yrs | H32: # | I32: $ | J32: Yrs | K32: Yrs
C33: Asset Class Name
B34: =IF(C34="Spare",TRUE,0) -> 0 | C34: 1 x 20 W Fluorescent | E34: 1310.050397 | F34: 15 | G34: 20 | H34: 417 | I34: 1892.406533 | J34: 10 | K34: 15
B35: 0 | C35: 2 x 20 W Fluorescent | E35: 0 | F35: 15 | G35: 20 | H35: 608 | I35: 0 | J35: 10 | K35: 15
B36: 0 | C36: 4 x 20 W Fluorescent | E36: 43646.61529 | F36: 15 | G36: 20 | H36: 0 | I36: 79210.47575 | J36: 10 | K36: 15
B37: 0 | C37: 2 x 14 W Fluorescent | E37: 228706.8985 | F37: 13 | G37: 20 | H37: 2305.333333 | I37: 385242.3499 | J37: 8 | K37: 15
B38: 0 | C38: 2 x 24 W Fluorescent | E38: 66030.21683 | F38: 15 | G38: 20 | H38: 261 | I38: 61523.57419 | J38: 10 | K38: 15
B39: 0 | C39: 1 x 40 W Fluorescent | E39: 24767.5131 | F39: 15 | G39: 20 | H39: 16929 | I39: 22753.24569 | J39: 10 | K39: 15
B40: 0 | C40: 2 x 40 W Fluorescent | E40: 0 | F40: 15 | G40: 20 | H40: 62 | I40: 0 | J40: 10 | K40: 15
B41: 0 | C41: 1 x 42 W Fluorescent | E41: 0 | F41: 15 | G41: 20 | H41: 0 | I41: 0 | J41: 10 | K41: 15
B42: 0 | C42: 50W Mercury | E42: 7620.655256 | F42: 15 | G42: 20 | H42: 46 | I42: 4397.914142 | J42: 10 | K42: 15
B43: 0 | C43: 80W Mercury | E43: 2624874.311 | F43: 4 | G43: 20 | H43: 90113 | I43: 19066.18115 | J43: 0 | K43: 15
B44: 0 | C44: 125W Mercury | E44: 5113.078251 | F44: 15 | G44: 20 | H44: 34 | I44: 1505.460645 | J44: 10 | K44: 15
B45: 0 | C45: 250W Mercury | E45: 193394.1721 | F45: 4 | G45: 20 | H45: 4430.333333 | I45: 0 | J45: 0 | K45: 15
B46: 0 | C46: 2 x 250W Mercury | E46: 737.7005 | F46: 15 | G46: 20 | H46: 2 | I46: 669.5957547 | J46: 10 | K46: 15
B47: 0 | C47: 400 W Mercury | E47: 94072.79723 | F47: 4 | G47: 20 | H47: 1740.666667 | I47: 0 | J47: 0 | K47: 15
B48: 0 | C48: 700 W Mercury | E48: 0 | F48: 15 | G48: 20 | H48: 0 | I48: 0 | J48: 10 | K48: 15
B49: 0 | C49: 50W Sodium | E49: 260.618236 | F49: 15 | G49: 20 | H49: 1 | I49: 236.5578773 | J49: 10 | K49: 15
B50: 0 | C50: 70W Sodium | E50: 9669.103412 | F50: 15 | G50: 20 | H50: 39 | I50: 8895.753587 | J50: 10 | K50: 15
B51: 0 | C51: 90W Sodium | E51: 0 | F51: 15 | G51: 20 | H51: 0 | I51: 0 | J51: 10 | K51: 15
B52: 0 | C52: 100W Sodium | E52: 21106.49615 | F52: 15 | G52: 20 | H52: 51 | I52: 35802.36592 | J52: 10 | K52: 15
B53: 0 | C53: 120W Sodium | E53: 285.781865 | F53: 15 | G53: 20 | H53: 5 | I53: 275.5482514 | J53: 10 | K53: 15
B54: 0 | C54: 150W Sodium | E54: 840168.478 | F54: 6 | G54: 20 | H54: 14910.33333 | I54: 0 | J54: 0 | K54: 15
B55: 0 | C55: 250W Sodium | E55: 312450.7243 | F55: 6 | G55: 20 | H55: 19547.33333 | I55: 0 | J55: 0 | K55: 15
B56: 0 | C56: 2 x 250W Sodium | E56: 1233.892084 | F56: 15 | G56: 20 | H56: 10 | I56: 1119.978773 | J56: 10 | K56: 15
B57: 0 | C57: 310W Sodium | E57: 0 | F57: 15 | G57: 20 | H57: 0 | I57: 0 | J57: 10 | K57: 15
B58: 0 | C58: 400 W Sodium | E58: 0 | F58: 6 | G58: 20 | H58: 2083.666667 | I58: 23987.33154 | J58: 0 | K58: 15
B59: 0 | C59: 2 x 400 W Sodium | E59: 2104.850006 | F59: 15 | G59: 20 | H59: 0 | I59: 3490.401914 | J59: 10 | K59: 15
B60: 0 | C60: 4 x 600W Sodium | E60: 0 | F60: 15 | G60: 20 | H60: 0 | I60: 0 | J60: 10 | K60: 15
B61: 0 | C61: 60 W Incandescent | E61: 0 | F61: 15 | G61: 20 | H61: 41 | I61: 0 | J61: 10 | K61: 15
B62: 0 | C62: 100 W Incandescent | E62: 0 | F62: 15 | G62: 20 | H62: 60 | I62: 0 | J62: 10 | K62: 15
B63: 0 | C63: 500 W Incandescent | E63: 0.7017803805 | F63: 5 | G63: 20 | H63: 3 | I63: 0 | J63: 0 | K63: 15
B64: 0 | C64: 1000 W Incandescent | E64: 0 | F64: 15 | G64: 20 | H64: 0 | I64: 0 | J64: 0 | K64: 15
B65: 0 | C65: 1500 W Incandescent | E65: 0 | F65: 15 | G65: 20 | H65: 0 | I65: 0 | J65: 0 | K65: 15
B66: =IF(C66="Spare",TRUE,0) -> 0 | C66: 100 W Metal Halide | E66: 6778.483069 | F66: 0 | G66: 20 | H66: 143 | I66: 182.1769279 | J66: 0 | K66: 15
B67: 0 | C67: 150 W Metal Halide | E67: 97519.47292 | F67: 0 | G67: 20 | H67: 376 | I67: 176254.735 | J67: 0 | K67: 15
B68: 0 | C68: 250 W Metal Halide | E68: 14061.42869 | F68: 0 | G68: 20 | H68: 245 | I68: 34347.16664 | J68: 0 | K68: 15
B69: 0 | C69: 2 x 250 W Metal Halide | E69: 14224.10411 | F69: 15 | G69: 20 | H69: 22 | I69: 23608.64591 | J69: 10 | K69: 15
B70: 0 | C70: 400 W Metal Halide | E70: 3662.711967 | F70: 0 | G70: 20 | H70: 285 | I70: 26417.67569 | J70: 0 | K70: 15
B71: 0 | C71: 2 x 400 W Metal Halide | E71: 5294.858154 | F71: 15 | G71: 20 | H71: 0 | I71: 8822.870763 | J71: 10 | K71: 15
B72: 0 | C72: 1000 W Metal Halide | E72: 0 | F72: 0 | G72: 20 | H72: 20 | I72: 17.80757904 | J72: 0 | K72: 15
B73: 0 | C73: 600 W Sodium | E73: 3417.203835 | F73: 12 | G73: 20 | H73: 16 | I73: 2140.870033 | J73: 7 | K73: 15
B74: 0 | C74: Pole mounting bracket minor (<=3m) | E74: 1074476.477 | F74: 5 | G74: 35 | H74: 101889 | I74: 85352.2605 | J74: 0 | K74: 15
B75: 0 | C75: Pole mounting bracket major (>3m) | E75: 1378428.84 | F75: 5 | G75: 35 | H75: 28234.33333 | I75: 0 | J75: 0 | K75: 15
B76: 0 | C76: Outreach Minor (<=2m) | E76: 104388.2362 | F76: 5 | G76: 35 | H76: 7869.333333 | I76: 397858.1211 | J76: 0 | K76: 15
B77: 0 | C77: Outreach Major (>2m) | E77: 19721.54172 | F77: 5 | G77: 35 | H77: 12489 | I77: 476106.7672 | J77: 0 | K77: 15
B78: 0 | C78: Minor Column (<=9) | E78: 3025132.31 | F78: 15 | G78: 35 | H78: 8170.666667 | I78: 161384.7862 | J78: 0 | K78: 15
B79: 0 | C79: Major Column (>=9) | E79: 14289621.95 | F79: 15 | G79: 35 | H79: 12525.66667 | I79: 254199.591 | J79: 0 | K79: 15
B80: TRUE | C80: Spare
B81: TRUE | C81: Spare
B82: TRUE | C82: Spare
B83: TRUE | C83: Spare
B84: TRUE | C84: Spare
B85: TRUE | C85: Spare
B86: TRUE | C86: Spare
B87: TRUE | C87: Spare
B88: TRUE | C88: Spare
B89: TRUE | C89: Spare
B90: TRUE | C90: Spare
B91: TRUE | C91: Spare
B92: TRUE | C92: Spare
B93: TRUE | C93: Spare
B94: TRUE | C94: Spare
B95: TRUE | C95: Spare
B96: TRUE | C96: Spare
B97: TRUE | C97: Spare
B98: =IF(C98="Spare",TRUE,0) -> TRUE | C98: Spare
B99: TRUE | C99: Spare
B100: TRUE | C100: Spare
B101: TRUE | C101: Spare
B102: TRUE | C102: Spare
B103: TRUE | C103: Spare
B104: TRUE | C104: Spare
B105: TRUE | C105: Spare
B106: TRUE | C106: Spare
B107: TRUE | C107: Spare
B108: TRUE | C108: Spare
B109: TRUE | C109: Spare
B110: TRUE | C110: Spare
B111: TRUE | C111: Spare
B112: TRUE | C112: Spare
B113: TRUE | C113: Spare
B114: TRUE | C114: Spare
B115: TRUE | C115: Spare
B116: TRUE | C116: Spare
B117: TRUE | C117: Spare
B118: TRUE | C118: Spare
B119: TRUE | C119: Spare
B120: TRUE | C120: Spare
B121: TRUE | C121: Spare
B122: TRUE | C122: Spare
B123: TRUE | C123: Spare
B124: TRUE | C124: Spare
B125: TRUE | C125: Spare
B126: TRUE | C126: Spare
B127: TRUE | C127: Spare
B128: TRUE | C128: Spare
B129: TRUE | C129: Spare
B130: =IF(C130="Spare",TRUE,0) -> TRUE | C130: Spare
B131: TRUE | C131: Spare
B132: TRUE | C132: Spare
B133: TRUE | C133: Spare
B134: TRUE | C134: Spare
B135: TRUE | C135: Spare
B136: TRUE | C136: Spare
B137: TRUE | C137: Spare
B138: TRUE | C138: Spare
B139: TRUE | C139: Spare
B140: TRUE | C140: Spare
B141: TRUE | C141: Spare
B142: TRUE | C142: Spare
B143: TRUE | C143: Spare
B144: TRUE | C144: Spare
B145: TRUE | C145: Spare
B146: TRUE | C146: Spare
B147: TRUE | C147: Spare
B148: TRUE | C148: Spare
B149: TRUE | C149: Spare
B150: TRUE | C150: Spare
B151: TRUE | C151: Spare
B152: TRUE | C152: Spare
B153: TRUE | C153: Spare
B154: TRUE | C154: Spare
B155: TRUE | C155: Spare
B156: TRUE | C156: Spare
B157: TRUE | C157: Spare
B158: TRUE | C158: Spare
B159: TRUE | C159: Spare
B160: TRUE | C160: Spare
B161: TRUE | C161: Spare
B162: =IF(C162="Spare",TRUE,0) -> TRUE | C162: Spare
B163: TRUE | C163: Spare
B164: TRUE | C164: Spare
B165: TRUE | C165: Spare
B166: TRUE | C166: Spare
B167: TRUE | C167: Spare
B168: TRUE | C168: Spare
B169: TRUE | C169: Spare
B170: TRUE | C170: Spare
B171: TRUE | C171: Spare
B172: TRUE | C172: Spare
B173: TRUE | C173: Spare
B174: TRUE | C174: Spare
B175: TRUE | C175: Spare
B176: TRUE | C176: Spare
B177: TRUE | C177: Spare
B178: TRUE | C178: Spare
B179: TRUE | C179: Spare
B180: TRUE | C180: Spare
B181: TRUE | C181: Spare
B182: TRUE | C182: Spare
B183: TRUE | C183: Spare
C184: Total | E184: =SUM(E34:E183) -> 24514282.28 | F184: =SUMPRODUCT(E34:E183,F34:F183)/E184 -> 12.12504405 | H184: =SUM(H34:H183) -> 325984.6667 | I184: =SUM(I34:I183) -> 2296762.616 | J184: =SUMPRODUCT(I34:I183,J34:J183)/I184 -> 2.455183138
C186: Net asset movements - nominal
C188: Actual Capital Expenditure - nominal
E190: New capex | F190: =RegYear -> 2020 | G190: =RegYear -> 2020 | H190: =RegYear -> 2020 | I190: =RegYear -> 2020
E191: =E$12 -> 2015 | F191: =F$12 -> 2016 | G191: =G$12 -> 2017 | H191: =H$12 -> 2018 | I191: =I$12 -> 2019 | O191: =E191 -> 2015 | P191: =F191 -> 2016 | Q191: =G191 -> 2017 | R191: =H191 -> 2018 | S191: =I191 -> 2019
E192: $ | O192: #
C193: Asset Class Name | M193: Asset Class Name
B194: =IF(C194="Spare",TRUE,0) -> 0 | C194: =C34 -> 1 x 20 W Fluorescent | E194: 0 | F194: 0 | G194: 0 | H194: 0 | I194: 0 | M194: =C194 -> 1 x 20 W Fluorescent | O194: 0 | P194: 0 | Q194: 0 | R194: 0 | S194: 0
B195: =IF(C195="Spare",TRUE,0) -> 0 | C195: =C35 -> 2 x 20 W Fluorescent | E195: 0 | F195: 0 | G195: 0 | H195: 0 | I195: 0 | M195: =C195 -> 2 x 20 W Fluorescent | O195: 0 | P195: 0 | Q195: 0 | R195: 0 | S195: 0
B196: 0 | C196: 4 x 20 W Fluorescent | E196: 0 | F196: 0 | M196: 4 x 20 W Fluorescent | O196: 0 | P196: 0
B197: 0 | C197: 2 x 14 W Fluorescent | E197: 0 | F197: 0 | G197: 0 | H197: 0 | I197: 0 | M197: 2 x 14 W Fluorescent | O197: 0 | P197: 0 | Q197: 0 | R197: 0 | S197: 0
B198: 0 | C198: 2 x 24 W Fluorescent | E198: 0 | F198: 0 | G198: 0 | H198: 0 | I198: 0 | M198: 2 x 24 W Fluorescent | O198: 0 | P198: 0 | Q198: 0 | R198: 0 | S198: 0
B199: 0 | C199: 1 x 40 W Fluorescent | E199: 0 | F199: 0 | G199: 0 | H199: 0 | I199: 0 | M199: 1 x 40 W Fluorescent | O199: 0 | P199: 0 | Q199: 0 | R199: 0 | S199: 0
B200: 0 | C200: 2 x 40 W Fluorescent | E200: 0 | F200: 0 | G200: 0 | H200: 0 | I200: 0 | M200: 2 x 40 W Fluorescent | O200: 0 | P200: 0 | Q200: 0 | R200: 0 | S200: 0
B201: 0 | C201: 1 x 42 W Fluorescent | E201: 0 | F201: 0 | G201: 0 | H201: 0 | I201: 0 | M201: 1 x 42 W Fluorescent | O201: 0 | P201: 0 | Q201: 0 | R201: 0 | S201: 0
B202: 0 | C202: 50W Mercury | E202: 0 | F202: 0 | G202: 0 | H202: 0 | I202: 0 | M202: 50W Mercury | O202: 0 | P202: 0 | Q202: 0 | R202: 0 | S202: 0
B203: 0 | C203: 80W Mercury | E203: 0 | F203: 0 | G203: 0 | H203: 0 | I203: 0 | M203: 80W Mercury | O203: 0 | P203: 0 | Q203: 0 | R203: 0 | S203: 0
B204: 0 | C204: 125W Mercury | E204: 0 | F204: 0 | G204: 0 | H204: 0 | I204: 0 | M204: 125W Mercury | O204: 0 | P204: 0 | Q204: 0 | R204: 0 | S204: 0
B205: 0 | C205: 250W Mercury | E205: 0 | F205: 0 | G205: 0 | H205: 0 | I205: 0 | M205: 250W Mercury | O205: 0 | P205: 0 | Q205: 0 | R205: 0 | S205: 0
B206: 0 | C206: 2 x 250W Mercury | E206: 0 | F206: 0 | G206: 0 | H206: 0 | I206: 0 | M206: 2 x 250W Mercury | O206: 0 | P206: 0 | Q206: 0 | R206: 0 | S206: 0
B207: 0 | C207: 400 W Mercury | E207: 0 | F207: 0 | G207: 0 | H207: 0 | I207: 0 | M207: 400 W Mercury | O207: 0 | P207: 0 | Q207: 0 | R207: 0 | S207: 0
B208: 0 | C208: 700 W Mercury | E208: 0 | F208: 0 | M208: 700 W Mercury | O208: 0 | P208: 0
B209: 0 | C209: 50W Sodium | E209: 0 | F209: 0 | G209: 0 | H209: 0 | I209: 0 | M209: 50W Sodium | O209: 0 | P209: 0 | Q209: 0 | R209: 0 | S209: 0
B210: 0 | C210: 70W Sodium | E210: 0 | F210: 0 | G210: 0 | H210: 0 | I210: 0 | M210: 70W Sodium | O210: 0 | P210: 0 | Q210: 0 | R210: 0 | S210: 0
B211: 0 | C211: 90W Sodium | E211: 0 | F211: 0 | M211: 90W Sodium | O211: 0 | P211: 0
B212: 0 | C212: 100W Sodium | E212: 0 | F212: 0 | G212: 0 | H212: 0 | I212: 0 | M212: 100W Sodium | O212: 0 | P212: 0 | Q212: 0 | R212: 0 | S212: 0
B213: 0 | C213: 120W Sodium | E213: 0 | F213: 0 | G213: 0 | H213: 0 | I213: 0 | M213: 120W Sodium | O213: 0 | P213: 0 | Q213: 0 | R213: 0 | S213: 0
B214: 0 | C214: 150W Sodium | E214: 0 | F214: 0 | G214: 0 | H214: 0 | I214: 0 | M214: 150W Sodium | O214: 0 | P214: 0 | Q214: 0 | R214: 0 | S214: 0
B215: 0 | C215: 250W Sodium | E215: 0 | F215: 0 | G215: 0 | H215: 0 | I215: 0 | M215: 250W Sodium | O215: 0 | P215: 0 | Q215: 0 | R215: 0 | S215: 0
B216: 0 | C216: 2 x 250W Sodium | E216: 0 | F216: 0 | G216: 0 | H216: 0 | I216: 0 | M216: 2 x 250W Sodium | O216: 0 | P216: 0 | Q216: 0 | R216: 0 | S216: 0
B217: 0 | C217: 310W Sodium | E217: 0 | F217: 0 | M217: 310W Sodium | O217: 0 | P217: 0
... 750 more rows

Sheet Global
B1: Global Assumptions
C6: Timing
C8: Model start date | D8: Date | F8: =EOMONTH(DATE(F13-1,6,1),0) -> 2019-06-30
C9: Reglatory period length | D9: Years | F9: 5
C10: Current Year | D10: Years | F10: 2020
C12: Regulatory Period | F12: Current | G12: Previous
C13: Year 1 | D13: FY | F13: 2020 | G13: =G14-1 -> 2015
C14: Year 2 | D14: FY | F14: =F13+1 -> 2021 | G14: =G15-1 -> 2016
C15: Year 3 | D15: FY | F15: =F14+1 -> 2022 | G15: =G16-1 -> 2017
C16: Year 4 | D16: FY | F16: =F15+1 -> 2023 | G16: =G17-1 -> 2018
C17: Year 5 | D17: FY | F17: =F16+1 -> 2024 | G17: =RegYear-1 -> 2019
C19: WACC
F21: =TRANSPOSE(List_RegYear) -> 2020 | G21: 2021 | H21: 2022 | I21: 2023 | J21: 2024
C26: Cost of debt
C28: Nominal pre-tax cost of debt | D28: % p.a. | F28: ='AER Inputs'!$D$5 -> 0.05684426897 | G28: ='AER Inputs'!$D$5 -> 0.05684426897 | H28: ='AER Inputs'!$D$5 -> 0.05684426897 | I28: ='AER Inputs'!$D$5 -> 0.05684426897 | J28: ='AER Inputs'!$D$5 -> 0.05684426897
C29: Real pre-tax cost of debt | D29: % p.a. | F29: =(1+F28)/(1+F93)-1 -> 0.0318238343 | G29: =(1+G28)/(1+G93)-1 -> 0.0318238343 | H29: =(1+H28)/(1+H93)-1 -> 0.0318238343 | I29: =(1+I28)/(1+I93)-1 -> 0.0318238343 | J29: =(1+J28)/(1+J93)-1 -> 0.0318238343
C31: Nominal post-tax cost of debt | D31: % p.a. | F31: =F28*(1-F$43*(1-F44)) -> 0.04970264437 | G31: =G28*(1-G$43*(1-G44)) -> 0.04970264437 | H31: 0.04970264437 | I31: 0.04970264437 | J31: 0.04970264437
C32: Real post-tax cost of debt | D32: % p.a. | F32: =(1+F31)/(1+F93)-1 -> 0.02485128527 | G32: =(1+G31)/(1+G93)-1 -> 0.02485128527 | H32: 0.02485128527 | I32: 0.02485128527 | J32: 0.02485128527
C38: Nominal post-tax cost of equity | D38: % p.a. | F38: ='AER Inputs'!$D$7 -> 0.0579810134 | G38: ='AER Inputs'!$D$7 -> 0.0579810134 | H38: ='AER Inputs'!$D$7 -> 0.0579810134 | I38: ='AER Inputs'!$D$7 -> 0.0579810134 | J38: ='AER Inputs'!$D$7 -> 0.0579810134
C39: Real post-tax cost of equity | D39: % p.a. | F39: =(1+F38)/(1+F93)-1 -> 0.03293366669 | G39: =(1+G38)/(1+G93)-1 -> 0.03293366669 | H39: =(1+H38)/(1+H93)-1 -> 0.03293366669 | I39: =(1+I38)/(1+I93)-1 -> 0.03293366669 | J39: =(1+J38)/(1+J93)-1 -> 0.03293366669
C41: Tax & Dividend Imputation
C42: Effective tax rate for equity | D42: % | F42: ='AER Inputs'!$D$9 -> 0.259057128 | G42: ='AER Inputs'!$D$9 -> 0.259057128 | H42: ='AER Inputs'!$D$9 -> 0.259057128 | I42: ='AER Inputs'!$D$9 -> 0.259057128 | J42: ='AER Inputs'!$D$9 -> 0.259057128
C43: Effective tax rate for debt | D43: % | F43: ='AER Inputs'!$D$11 -> 0.3027347224 | G43: ='AER Inputs'!$D$11 -> 0.3027347224 | H43: ='AER Inputs'!$D$11 -> 0.3027347224 | I43: ='AER Inputs'!$D$11 -> 0.3027347224 | J43: ='AER Inputs'!$D$11 -> 0.3027347224
C44: Utilisation of imputation credits | D44: % | F44: ='AER Inputs'!$D$13 -> 0.585 | G44: ='AER Inputs'!$D$13 -> 0.585 | H44: ='AER Inputs'!$D$13 -> 0.585 | I44: ='AER Inputs'!$D$13 -> 0.585 | J44: ='AER Inputs'!$D$13 -> 0.585
C46: Leverage
C47: Debt | D47: % | F47: 0.6 | G47: 0.6 | H47: 0.6 | I47: 0.6 | J47: 0.6
C48: Equity | D48: % | F48: =1-F47 -> 0.4 | G48: =1-G47 -> 0.4 | H48: =1-H47 -> 0.4 | I48: =1-I47 -> 0.4 | J48: =1-J47 -> 0.4
C50: WACC
C51: Nominal vanilla WACC
C52: =C28 -> Nominal pre-tax cost of debt | D52: % | F52: =F28 -> 0.05684426897 | G52: =G28 -> 0.05684426897 | H52: =H28 -> 0.05684426897 | I52: =I28 -> 0.05684426897 | J52: =J28 -> 0.05684426897
C53: =C38 -> Nominal post-tax cost of equity | D53: % | F53: =F38 -> 0.0579810134 | G53: =G38 -> 0.0579810134 | H53: =H38 -> 0.0579810134 | I53: =I38 -> 0.0579810134 | J53: =J38 -> 0.0579810134
C54: Nominal vanilla WACC | D54: % | F54: =F52*F$47+F53*F$48 -> 0.05729896674 | G54: =G52*G$47+G53*G$48 -> 0.05729896674 | H54: 0.05729896674 | I54: 0.05729896674 | J54: 0.05729896674
C56: Real vanilla WACC
C57: =C29 -> Real pre-tax cost of debt | D57: % | F57: =F29 -> 0.0318238343 | G57: =G29 -> 0.0318238343 | H57: =H29 -> 0.0318238343 | I57: =I29 -> 0.0318238343 | J57: =J29 -> 0.0318238343
C58: =C39 -> Real post-tax cost of equity | D58: % | F58: =F39 -> 0.03293366669 | G58: =G39 -> 0.03293366669 | H58: =H39 -> 0.03293366669 | I58: =I39 -> 0.03293366669 | J58: =J39 -> 0.03293366669
C59: Real vanilla WACC | D59: % | F59: =F57*F$47+F58*F$48 -> 0.03226776725 | G59: =G57*G$47+G58*G$48 -> 0.03226776725 | H59: 0.03226776725 | I59: 0.03226776725 | J59: 0.03226776725
C61: Post-tax nominal WACC
C62: =C31 -> Nominal post-tax cost of debt | D62: % | F62: =F31 -> 0.04970264437 | G62: =G31 -> 0.04970264437 | H62: =H31 -> 0.04970264437 | I62: =I31 -> 0.04970264437 | J62: =J31 -> 0.04970264437
C63: Nominal post-tax, post imputation, cost of equity | D63: % | F63: =F38 -> 0.0579810134 | G63: =G38 -> 0.0579810134 | H63: 0.0579810134 | I63: 0.0579810134 | J63: 0.0579810134
C64: Post-tax nominal WACC | D64: % | F64: =F62*F$47+F63*F$48 -> 0.05301399198 | G64: =G62*G$47+G63*G$48 -> 0.05301399198 | H64: 0.05301399198 | I64: 0.05301399198 | J64: 0.05301399198
C66: Post-tax real WACC
C67: =C32 -> Real post-tax cost of debt | D67: % | F67: =(1+F62)/(1+F93)-1 -> 0.02485128527 | G67: =(1+G62)/(1+G93)-1 -> 0.02485128527 | H67: 0.02485128527 | I67: 0.02485128527 | J67: 0.02485128527
C68: Real post-tax, post imputation, cost of equity | D68: % | F68: =(1+F63)/(1+F93)-1 -> 0.03293366669 | G68: =(1+G63)/(1+G93)-1 -> 0.03293366669 | H68: 0.03293366669 | I68: 0.03293366669 | J68: 0.03293366669
